Workbook

Sheet Auslegung
C1: =Translation!$A$4 -> Bivalent heatpump systems
C7: =Translation!A8 -> Input values | M7: =Slot1!C80 -> WPL 25 A | Gaskessel | Y7: =Slot2!C80 -> - | AK7: =Slot3!C80 -> -
E11: =Translation!A165 -> Select country | N11: =Translation!A124 -> Heating | Z11: =Translation!A124 -> Heating | AL11: =Translation!A124 -> Heating
N15: =Translation!A7 -> Mode | Z15: =Translation!A7 -> Mode | AL15: =Translation!A7 -> Mode
E18: =Translation!A76 -> Location
N19: =Translation!A40 -> DHW | Z19: =Translation!A40 -> DHW | AL19: =Translation!A40 -> DHW
E25: =Translation!A84 -> Building
E32: =Translation!A43 -> persons
E39: =Translation!A124 -> Heating
N44: =Slot1!$AM$81 ->  | S44: =Slot1!$AN$81 ->  | Z44: =Slot2!$AM$81 ->  | AE44: =Slot2!$AN$81 ->  | AL44: =Slot3!$AM$81 ->  | AQ44: =Slot3!$AN$81 -> 
E46: =Translation!A72 -> Heat demand | N46: =Slot1!$AO$81 ->  | S46: =Slot1!$AP$81 ->  | Z46: =Slot2!$AO$81 ->  | AE46: =Slot2!$AP$81 ->  | AL46: =Slot3!$AO$81 ->  | AQ46: =Slot3!$AP$81 -> 
D48: =" "&Berechnung!G5&" KW" -> 6 KW | N48: =Slot1!$AQ$81 -> Operating mode | S48: =Slot1!$AR$81 -> Mono-Mode | Z48: =Slot2!$AQ$81 -> Operating mode | AE48: =Slot2!$AR$81 -> Mono-Mode | AL48: =Slot3!$AQ$81 -> Operating mode | AQ48: =Slot3!$AR$81 -> Bivalent-parallel
N50: =Slot1!$AS$81 ->  | S50: =Slot1!$AT$81 ->  | Z50: =Slot2!$AS$81 ->  | AE50: =Slot2!$AT$81 ->  | AL50: =Slot3!$AS$81 -> Dual-mode point | AQ50: =Slot3!$AT$81 -> -5,8 °C
N52: =IF(Berechnung!C86=TRUE,Translation!A50&": "&Berechnung!C80&" "&Translation!A81&" | "&Translation!A51&": "&Berechnung!C74&" "&Translation!A81,"") -> 
C54: IMT/TR v1.20 | AU54: =IF(Berechnung!C99=FALSE,"","* Überschlägige Abschätzung. Es müssen weitere Bedingungen erfüllen werden zB. Mindestkollektorfläche Solar, Mindest-Jahresarbeitszahlen WP.") -> 

Sheet Einstellungen (hidden)
C2: =Translation!A60 -> Settings
K4: gewählt | L4: =VLOOKUP(D5,K5:M8,2,FALSE) -> 
C5: =Translation!A166 -> Select fossil energy | D5: Gaskessel | E5: - | K5: =Berechnung!H7 -> Gas boiler | L5: 1
K6: =Berechnung!H8 -> Oil boiler | L6: 2
C7: =Translation!A167 -> Max. setting range heat demand | D7: 100 | E7: KW | K7: =Berechnung!H9 -> District heating | L7: 3
C12: =IF(Berechnung!$H$5=Berechnung!$H$7,Translation!$A$186,IF(Berechnung!$H$5=Berechnung!$H$8,Translation!A185,IF(Berechnung!$H$5=Berechnung!$H$9,Translation!A208,Translation!A222))) -> Price | D12: 85 | E12: =Berechnung!$D$70 -> pence/kWh
C14: =Translation!$A$49 -> Yearly price increase | D14: 5 | E14: =Translation!$A$81 -> %/year
C16: =Translation!$A$190 -> CO2-factor | D16: 253 | E16: g/kWh
C18: =Translation!$A$53 -> Efficiency Heating | D18: 97 | E18: %
C20: =Translation!$A$54 -> Efficiency DHW | D20: 80 | E20: %
C25: =Translation!$A$182 -> Electricity price | D25: 25 | E25: =Translation!$A$187 -> pence/kWh
C27: =Translation!$A$46 -> Electricity price heat pump | D27: 18 | E27: =Translation!$A$187 -> pence/kWh
C29: =Translation!$A$50 -> Price increase electricity | D29: 3 | E29: =Translation!$A$81 -> %/year
C31: =Translation!$A$45 -> CO2-factor electricity | D31: 621 | E31: g/kWh
C36: =Translation!$A$218 -> DHW demand | D36: Normaler Bedarf | E36: - | K36: gewählt | L36: =VLOOKUP(D36,K37:M40,2,FALSE) -> 
K37: =Berechnung!K7 -> Demand low | L37: 0.9
C38: =Translation!$A$55 -> Hot water consumption | D38: 1.8 | E38: =Translation!$A$56 -> kWh/person x day | K38: =Berechnung!K8 -> Demand medium | L38: 1.8
K39: =Berechnung!K9 -> Demand high | L39: 3.6
C40: =Translation!$A$173 -> Distribution losses DHW | D40: 25 | E40: %
C42: =Translation!$A$207 -> Solar fraction | D42: 50 | E42: %
C47: =Translation!$A$224 -> Choose subvention program | D47: Eingabe Fördersummen | E47: - | K47: gewählt | L47: =VLOOKUP(D47,K48:L50,2,FALSE) -> 
K48: =Berechnung!N7 -> Manual input values | L48: 1
C49: =Translation!$A$213 -> Subvention Heat Pump | D49: 0 | E49: =Translation!$A$77 -> £/Year | K49: =Berechnung!N8 -> Domestic RHI (UK) | L49: 2
C51: =Translation!$A$215 -> Termtime heat pump subvention | D51: 0 | E51: =Translation!$A$217 -> Years
C53: =IF(Berechnung!$N$5=Berechnung!$N$8,Translation!$A$226,Translation!$A$214) -> Subvention Solar | D53: 0 | E53: =IF(Berechnung!$N$5=Berechnung!$N$8,Translation!$A$78,Translation!$A$77) -> £/Year
C55: =IF(Berechnung!$N$5=Berechnung!$N$8,Translation!$A$227,Translation!$A$216) -> Termtime Solar subvention | D55: 0 | E55: =IF(Berechnung!$N$5=Berechnung!$N$8,Translation!$A$78,Translation!$A$217) -> Years
C57: =Translation!$A$228 -> Installation costs heatpump | D57: 0 | E57: =Translation!$A$209 -> £

Sheet Berechnung (hidden)
A2: Comboboxen
A3: Land | B3: Stadt | C3: Norm-Außentemp. | D3: Gebäudetyp | E3: Personenzahl | F3: VL-Temp | G3: Heizlast | H3: E-Träger Vergleich | I3: Kurzname | J3: Auswahl WP | K3: WW-Bedarf | L3: Sprache | N3: Vorauswahl Förderung
A5: Germany | B5: Holzminden | C5: =VLOOKUP(A5,A6:C50,3,FALSE) -> -10 °C | D5: New building | E5: 4 persons | F5: 35 °C | G5: 6 | H5: =Einstellungen!D5 -> Gaskessel | K5: =Einstellungen!D36 -> Normaler Bedarf | L5: 2 | N5: =Einstellungen!D47 -> Eingabe Fördersummen
B6: Startzeile | C6: -11 °C
A7: =Translation!A20 -> Germany | B7: 100 | C7: -10 °C | D7: =Translation!A17 -> New building | E7: =Translation!A41 -> without DHW | F7: 30 °C | H7: =Translation!A65 -> Gas boiler | J7: =C61 -> Gaskessel | K7: =Translation!A219 -> Demand low | L7: 1 | M7: Deutsch | N7: =Translation!A225 -> Manual input values
A8: =Translation!A21 -> Austria | B8: 150 | C8: =VLOOKUP($B$5,Klimadaten!$N:$O,2,FALSE) ->  | D8: =Translation!A19 -> Passive house | E8: =1 &" "& Translation!A42 -> 1 person | F8: 35 °C | H8: =Translation!A64 -> Oil boiler | J8: =Leistungsdaten!A3 -> WPL 10 AC | K8: =Translation!A220 -> Demand medium | L8: 2 | M8: English | N8: Domestic RHI (UK)
A9: =Translation!A22 -> Switzerland | B9: 200 | C9: =VLOOKUP($B$5,Klimadaten!$Q:$R,2,FALSE) ->  | D9: =Translation!A18 -> Not-renovated building | E9: =2 &" "& Translation!$A$43 -> 2 persons | F9: 40 °C | H9: =Translation!A119 -> District heating | J9: =Leistungsdaten!A4 -> WPL 10 ACS | K9: =Translation!A221 -> Demand high | L9: 3 | M9: Nederlands
A10: =Translation!A23 -> Great Britain | B10: 250 | C10: =VLOOKUP($B$5,Klimadaten!$T:$U,2,FALSE) ->  | E10: =3 &" "& Translation!$A$43 -> 3 persons | F10: 45 °C | J10: =Leistungsdaten!A5 -> WPL 13 E/cool | L10: 4 | M10: Slovak
A11: =Translation!A24 -> Netherlands | B11: 400 | C11: =VLOOKUP($B$5,Klimadaten!$W:$X,2,FALSE) ->  | E11: =4 &" "& Translation!$A$43 -> 4 persons | F11: 50 °C | J11: =Leistungsdaten!A6 -> WPL 18 E/cool | L11: 5 | M11: Dansk
A12: Italien | B12: 950 | C12: =VLOOKUP($B$5,Klimadaten!$Z:$AA,2,FALSE) ->  | E12: =5 &" "& Translation!$A$43 -> 5 persons | F12: 55 °C | J12: =Leistungsdaten!A7 -> WPL 23 E/cool | L12: 6 | M12: Latvia
A13: =Translation!A26 -> Finland | B13: 300 | C13: =VLOOKUP($B$5,Klimadaten!$AC:$AD,2,FALSE) ->  | E13: =6 &" "& Translation!$A$43 -> 6 persons | J13: =Leistungsdaten!A8 -> WPL 13 A basic | L13: 7 | M13: Italiano
A14: =Translation!A27 -> Spain | B14: 550 | C14: =VLOOKUP($B$5,Klimadaten!$AF:$AG,2,FALSE) ->  | E14: =7 &" "& Translation!$A$43 -> 7 persons | J14: =Leistungsdaten!A9 -> WPL 20 A basic
A15: =Translation!A36 -> Denmark | B15: 800 | C15: =VLOOKUP($B$5,Klimadaten!$AI:$AJ,2,FALSE) ->  | E15: =8 &" "& Translation!$A$43 -> 8 persons | J15: =Leistungsdaten!A10 -> WPL 15 IS/IKS
A16: =Translation!A31 -> Russia | B16: 600 | C16: =VLOOKUP($B$5,Klimadaten!$AL:$AM,2,FALSE) ->  | E16: =9 &" "& Translation!$A$43 -> 9 persons | J16: =Leistungsdaten!A11 -> WPL 25 I/IK
A17: =Translation!A33 -> Slovakia | B17: 700 | C17: =VLOOKUP($B$5,Klimadaten!$AO:$AP,2,FALSE) ->  | E17: =10 &" "& Translation!$A$43 -> 10 persons | J17: =Leistungsdaten!A12 -> WPL 15 ACS
A18: =Translation!A34 -> Latvia | B18: 750 | C18: =VLOOKUP($B$5,Klimadaten!$AR:$AS,2,FALSE) ->  | E18: =11 &" "& Translation!$A$43 -> 11 persons | J18: =Leistungsdaten!A13 -> WPL 25 A
A19: Litauen | B19: 900 | C19: =VLOOKUP($B$5,Klimadaten!$AU:$AV,2,FALSE) ->  | E19: =12 &" "& Translation!$A$43 -> 12 persons | J19: =Leistungsdaten!A14 -> WPL 33 HT
A20: =Translation!A32 -> Bosnia-Herzegovina | B20: 650 | C20: =VLOOKUP($B$5,Klimadaten!$AX:$AY,2,FALSE) ->  | E20: =13 &" "& Translation!$A$43 -> 13 persons | J20: =Leistungsdaten!A15 -> WPL 33 HTS
A21: =Translation!A29 -> Morocco | B21: 500 | C21: =VLOOKUP($B$5,Klimadaten!$BA:$BB,2,FALSE) ->  | E21: =14 &" "& Translation!$A$43 -> 14 persons | J21: =Leistungsdaten!A16 -> WPL 34
A22: Namibia | B22: 850 | C22: =VLOOKUP($B$5,Klimadaten!$BD:$BE,2,FALSE) ->  | E22: =15 &" "& Translation!$A$43 -> 15 persons | J22: =Leistungsdaten!A17 -> WPL 47
A23: =Translation!A37 -> Europe | B23: 450 | C23: =VLOOKUP($B$5,Klimadaten!$BG:$BH,2,FALSE) ->  | E23: =16 &" "& Translation!$A$43 -> 16 persons | J23: =Leistungsdaten!A18 -> WPL 57
A24: =Translation!A28 -> Near East | B24: 350 | C24: =VLOOKUP($B$5,Klimadaten!$BJ:$BK,2,FALSE) ->  | E24: =17 &" "& Translation!$A$43 -> 17 persons | J24: =Leistungsdaten!A19 -> 2 x WPL 23 E
E25: =18 &" "& Translation!$A$43 -> 18 persons | J25: =Leistungsdaten!A20 -> 2 x WPL 34 | L25: =Translation!A163 -> Restore to standard values ?
E26: =19 &" "& Translation!$A$43 -> 19 persons | J26: =Leistungsdaten!A21 -> 2 x WPL 47 | L26: =Translation!A58 -> Default values
E27: =20 &" "& Translation!$A$43 -> 20 persons | J27: =Leistungsdaten!A22 -> 2 x WPL 57
E28: =21 &" "& Translation!$A$43 -> 21 persons | J28: =Leistungsdaten!A23 -> WPL 13 S basic
E29: =22 &" "& Translation!$A$43 -> 22 persons | J29: =Leistungsdaten!A24 -> WPL 18 S basic
E30: =23 &" "& Translation!$A$43 -> 23 persons | J30: =Leistungsdaten!A51 -> WPC 04 / WPC 04 cool
E31: =24 &" "& Translation!$A$43 -> 24 persons | J31: =Leistungsdaten!A52 -> WPC 05 / WPC 05 cool
E32: =25 &" "& Translation!$A$43 -> 25 persons | J32: =Leistungsdaten!A53 -> WPC 07 / WPC 07 cool
E33: =26 &" "& Translation!$A$43 -> 26 persons | J33: =Leistungsdaten!A54 -> WPC 10 / WPC 10 cool
E34: =27 &" "& Translation!$A$43 -> 27 persons | J34: =Leistungsdaten!A55 -> WPC 13 / WPC 13 cool
E35: =28 &" "& Translation!$A$43 -> 28 persons | J35: =Leistungsdaten!A56 -> WPF 04 / WPF 04 cool
E36: =29 &" "& Translation!$A$43 -> 29 persons | J36: =Leistungsdaten!A57 -> WPF 05 / WPF 05 cool
E37: =30 &" "& Translation!$A$43 -> 30 persons | J37: =Leistungsdaten!A58 -> WPF 07 / WPF 07 cool
E38: =31 &" "& Translation!$A$43 -> 31 persons | J38: =Leistungsdaten!A59 -> WPF 10 / WPF 10 cool
E39: =32 &" "& Translation!$A$43 -> 32 persons | J39: =Leistungsdaten!A60 -> WPF 13 / WPF 13 cool
E40: =33 &" "& Translation!$A$43 -> 33 persons | J40: =Leistungsdaten!A61 -> WPF 16 / WPF 16 cool
E41: =34 &" "& Translation!$A$43 -> 34 persons | J41: =Leistungsdaten!A62 -> WPF 5 basic
E42: =35 &" "& Translation!$A$43 -> 35 persons | J42: =Leistungsdaten!A63 -> WPF 7 basic
E43: =36 &" "& Translation!$A$43 -> 36 persons | J43: =Leistungsdaten!A64 -> WPF 10 basic
E44: =37 &" "& Translation!$A$43 -> 37 persons | J44: =Leistungsdaten!A65 -> WPF 13 basic
E45: =38 &" "& Translation!$A$43 -> 38 persons | J45: =Leistungsdaten!A66 -> WPF 16 basic
E46: =39 &" "& Translation!$A$43 -> 39 persons | J46: =Leistungsdaten!A67 -> WPF 10 M
E47: =40 &" "& Translation!$A$43 -> 40 persons | J47: =Leistungsdaten!A68 -> WPF 13 M
J48: =Leistungsdaten!A69 -> WPF 16 M
J49: =Leistungsdaten!A70 -> WPF 20
J50: =Leistungsdaten!A71 -> WPF 27
J51: =Leistungsdaten!A72 -> WPF 27 HT
J52: =Leistungsdaten!A73 -> WPF 35
J53: =Leistungsdaten!A74 -> WPF 40
J54: =Leistungsdaten!A75 -> WPF 52
J55: =Leistungsdaten!A76 -> WPF 66
J56: =Leistungsdaten!A77 -> WPF 20 SET
J57: =Leistungsdaten!A78 -> WPF 23 SET
J58: =Leistungsdaten!A79 -> WPF 26 SET
J59: =Leistungsdaten!A80 -> WPF 29 SET
A60: Rechenwerte | J60: =Leistungsdaten!A81 -> WPF 32 SET
A61: Name fossiler Energieträger | C61: =Einstellungen!D5 -> Gaskessel | J61: =Leistungsdaten!A82 -> 3 x WPF 16 M
A62: Personenzahl | C62: =IF(E5=E7,0,LEFT(E5,FIND(" ",E5)-1)*1) -> 4 | J62: =Leistungsdaten!A83 -> 4 x WPF 16 M
A63: Norm-Außentemperatur | C63: =LEFT(C5,FIND(" ",C5)-1)*1 -> -10 | J63: =Leistungsdaten!A84 -> 5 x WPF 16 M
A64: Heizgrenz-Temperatur | C64: =IF(D5=D7,12,IF(D5=D8,10,15)) -> 12 | J64: =Leistungsdaten!A85 -> 6 x WPF 16 M
A65: Gebäudeheizlast | C65: =G5*1 -> 6 | J65: =Leistungsdaten!A86 -> WPF 80 SET
A66: Zugehörige Wetterstation | C66: =IF(A5=A7,VLOOKUP(B5,Klimadaten!B:D,3,FALSE),B5) -> Fritzlar | J66: =Leistungsdaten!A87 -> WPF 92 SET
A67: Startzeile Klimadaten Land | C67: =VLOOKUP(A5,A6:B50,2,FALSE) -> 100 | J67: =Leistungsdaten!A88 -> WPF 104 SET
A68: Max Einstellbereich Heizlast | C68: =Einstellungen!D7 -> 100 | J68: =Leistungsdaten!A89 -> WPF 118 SET
A69: CO2-Faktor Strom g/kWh | C69: =Einstellungen!D31 -> 621 | D69: Für Ausdruck | J69: =Leistungsdaten!A90 -> WPF 132 SET
A70: Energiepreis Öl/Gas/Fernwärme | C70: =Einstellungen!D12 -> 85 | D70: =IF(H5=H7,Translation!A189,IF(H5=H8,Translation!A188,Translation!A187)) -> pence/kWh | J70: =Leistungsdaten!A91 -> WPC 5 S GB
A71: Heizwert Öl/Gas/Fernwärme | C71: =IF(H5=H7,C101,IF(H5=H8,C102,1)) -> 1 | D71: =IF(H5=H7,Translation!A193,IF(H5=H8,Translation!A192,IF(H5=H9,Translation!A119,C61))) -> Gaskessel | J71: =Leistungsdaten!A92 -> WPC 7 S GB
A72: Energiepreis [€/kWh] | C72: =(C70/C71)/100 -> 0.85 | J72: =Leistungsdaten!A93 -> WPC 10 S GB
A73: CO2 Öl/Gas/Fernwärme | C73: =Einstellungen!D16 -> 253 | J73: =Leistungsdaten!A94 -> WPF 5 S
A74: Preissteigerung Öl/Gas/FW | C74: =Einstellungen!D14 -> 5 | J74: =Leistungsdaten!A95 -> WPF 7 S
A75: Wärmebedarf WW kWh/P*d | C75: =Einstellungen!D38 -> 1.8 | J75: =Leistungsdaten!A96 -> WPF 10 S
A76: Wärmebedarf WW KWh/Jahr | C76: =C75*365*C62*(1+C83/100) -> 3285 | J76: =Leistungsdaten!A97 -> WPF 7 MS
A77: Deckungsanteil Solaranlage | C77: =Einstellungen!D42 -> 50 | J77: =Leistungsdaten!A98 -> WPF 10 MS
A78: Strompreis Haushalt Cent/kWH | C78: =Einstellungen!D25 -> 25 | J78: =Leistungsdaten!A99 -> WPF 14 Set (S)
A79: Strompreis WP Cent/Kwh | C79: =Einstellungen!D27 -> 18 | J79: =Leistungsdaten!A100 -> WPF 17 Set (S)
A80: Preissteigerung Strom %/Jahr | C80: =Einstellungen!D29 -> 3 | J80: =Leistungsdaten!A101 -> WPF 20 Set (S)
A81: Eta Öl/Gas/FW Heizung in % | C81: =Einstellungen!D18 -> 97 | J81: =Leistungsdaten!A145 -> WPW 06 Set
A82: Eta Öl/Gas/FW Warmwasser in % | C82: =Einstellungen!D20 -> 80 | J82: =Leistungsdaten!A146 -> WPW 07 Set
A83: Verteilverluste Warmwasser in % | C83: =Einstellungen!D40 -> 25 | J83: =Leistungsdaten!A147 -> WPW 10 Set
A84: Auswahl Kategorie | J84: =Leistungsdaten!A148 -> WPW 13 Set
A85: Energiekosten | C85: FALSE | J85: =Leistungsdaten!A149 -> WPW 18 Set
A86: Kostenentwicklung | C86: FALSE | J86: =Leistungsdaten!A150 -> WPW 22 Set
A87: Heizlast/Bivpunkt | C87: TRUE | J87: =Leistungsdaten!A151 -> WPW 7 basic Set
A88: Jahresheizarbeit | C88: FALSE | J88: =Leistungsdaten!A152 -> WPW 10 basic Set
A89: CO2 | C89: FALSE | J89: =Leistungsdaten!A153 -> WPW 13 basic Set
A90: Endenergie | C90: FALSE | J90: =Leistungsdaten!A154 -> WPW 18 basic Set
A91: Leistungszahl | C91: FALSE | D91: Ausgabe | J91: =Leistungsdaten!A155 -> WPW 22 basic Set
C92: 1 | J92: =Leistungsdaten!A156 -> WPF 10 M (Water)
J93: =Leistungsdaten!A157 -> WPF 13 M (Water)
J94: =Leistungsdaten!A158 -> WPF 16 M (Water)
A95: Einheit Endenergie Slot 1 | C95: 1 | J95: =Leistungsdaten!A159 -> WPF 20 (Water)
A96: Einheit Endenergie Slot 1 | C96: 1 | J96: =Leistungsdaten!A160 -> WPF 27 (Water)
A97: Einheit Endenergie Slot 1 | C97: 1 | J97: =Leistungsdaten!A161 -> WPF 27 HT (Water)
J98: =Leistungsdaten!A162 -> WPF 35 (Water)
A99: EEWärmeG zeigen ? | C99: =IF(AND(A5=A7,D5=D7,L5=1),TRUE,FALSE) -> FALSE | J99: =Leistungsdaten!A163 -> WPF 40 (Water)
J100: =Leistungsdaten!A164 -> WPF 52 (Water)
A101: Heizwert Gas | C101: 10.4 | J101: =Leistungsdaten!A165 -> WPF 66 (Water)
A102: Heizwert Öl | C102: 10.08 | J102: =Leistungsdaten!A166 -> WPF 20 SET (Water)
A103: Slot1 gewählt? | C103: =Slot1!C86 -> TRUE | J103: =Leistungsdaten!A167 -> WPF 23 SET (Water)
A104: Slot 2 gewählt | C104: =Slot2!C86 -> FALSE | J104: =Leistungsdaten!A168 -> WPF 26 SET (Water)
A105: Slot 3 gewählt | C105: =Slot3!C86 -> FALSE | J105: =Leistungsdaten!A169 -> WPF 29 SET (Water)
A106: Slots gesamt | B106: berechnet | C106: =COUNTIF(C103:C105,TRUE) -> 1 | J106: =Leistungsdaten!A170 -> WPF 32 SET (Water)
A107: Slots gesamt | B107: Anzeige | C107: 1 | J107: =Leistungsdaten!A171 -> WPF 80 SET (Water)
J108: =Leistungsdaten!A172 -> WPF 92 SET (Water)
J109: =Leistungsdaten!A173 -> WPF 104 SET (Water)
J110: =Leistungsdaten!A174 -> WPF 118 SET (Water)
J111: =Leistungsdaten!A175 -> WPF 132 SET (Water)
J112: =Leistungsdaten!A176 -> WPF 7 MS (Water)
J113: =Leistungsdaten!A177 -> WPF 10 MS (Water)
J114: =Leistungsdaten!A178 -> WPF 20 Set (S) (Water)
A119: RHI-COP
A120: Vorlauf | B120: COP Luft-Wasser | C120: COP Sole-Wasser | D120: Sterne | E120: Oversize-factor
A121: =F7 -> 30 °C | B121: 3.6 | C121: 4.3 | D121: 6 | E121: 6.8
A122: 35 °C | B122: 3.6 | C122: 4.3 | D122: 6 | E122: 6.8
A123: 40 °C | B123: 3.4 | C123: 4.1 | D123: 5 | E123: 4.3
A124: 45 °C | B124: 3 | C124: 3.7 | D124: 4 | E124: 3.1
A125: 50 °C | B125: 2.7 | C125: 3.4 | D125: 3 | E125: 2.4
A126: 55 °C | B126: 2.4 | C126: 3.1 | D126: 2 | E126: 1.9
A127: Gewählt | B127: =VLOOKUP(F5,A121:D126,2,FALSE) -> 3.6 | C127: =VLOOKUP(F5,A121:D126,3,FALSE) -> 4.3 | D127: =VLOOKUP(F5,A121:D126,4,FALSE) -> 6 | E127: =VLOOKUP(F5,A121:E126,5,FALSE) -> 6.8

Sheet Translation (hidden)
A2: English | B2: Deutsch | C2: English | D2: Holländisch | E2: Slovak | F2: Dansk | G2: Latvia | H2: Italienisch
A3: en_DE | B3: de_DE | C3: en_DE | D3: nl_NL | E3: sk_SK | F3: da_DK | G3: en_DE | H3: it_AT
A4: Bivalent heatpump systems | B4: Bivalente Wärmepumpensysteme | C4: Bivalent heatpump systems | D4: Bivalent warmtepompsysteem | E4: Bivalentný systém tepleného čerpadla | F4: Bivalent varmepumpesystem | G4: Bivalentas siltumsūkņu sistēmas | H4: Sistema bivalente in pompa di calore
A5: Heat pump | B5: Wärmepumpe | C5: Heat pump | D5: Warmtepomp | E5: Tepelné čerpadlo | F5: Varmepumpe | G5: Siltumsūknis | H5: Pompa di calore
A6: Operating mode | B6: Betriebsweise | C6: Operating mode | D6: Werkwijze | E6: Prevádzka | F6: Driftsmåde | G6: Darbības režīms | H6: Modalità di funzionamento
A7: Mode | B7: Betrieb | C7: Mode | D7: Werking | E7: Režim | F7: Tilstand | G7: Režīms | H7: Modalità
A8: Input values | B8: Eingabewerte | C8: Input values | D8: Ingegeven waarde | E8: Vstupné údaje | F8: Input værdier | G8: Ievadāmās vērtības | H8: Valori ingresso
A9: No second heat source | B9: Kein zweiter Wärmeerzeuger | C9: No second heat source | D9: Geen tweede verwarmingsbron | E9: Žiadny druhý zdroj | F9: Ingen anden varmekilde | G9: Bez papildus siltumavota | H9: Senza secondo generatore di calore
A10: Monoenergetic | B10: Monoenergetisch | C10: Monoenergetic | D10: Monoenergetisch | E10: Monoenergetický | F10: Monoenergetisk | G10: Mono enerģētisks | H10: Monoenergetico
A11: Mono-Mode | B11: Monovalent | C11: Mono-Mode | D11: Monovalent | E11: Monovalnetná | F11: Monovalent | G11: Monovalents | H11: Monovalente
A12: Bivalent-parallel | B12: Bivalent-Parallel | C12: Bivalent-parallel | D12: Bivalent-parallel | E12: Bivalentná - pararelná | F12: Bivalent-parallel | G12: Bivalents-paralēls | H12: Bivalente-parellelo
A13: Bivalent-alternativ | B13: Bivalent-Alternativ | C13: Bivalent-alternativ | D13: Bivalent-alternatief | E13: Bivalentná - alternatívna | F13: Bivalent-alternativ | G13: Bivalents-alternatīvs | H13: Bivalente-alternativo
A14: Parallel | B14: Parallelbetrieb | C14: Parallel | D14: Parallel | E14: Paralelná | F14: Parallel | G14: Paralēla darbība | H14: Parallelo
A15: Alternativ | B15: Alternativbetrieb | C15: Alternativ | D15: Alternatief | E15: Alternatívna | F15: Alternativ | G15: Alternatīva darbība | H15: Alternativo
A16: 2nd heat source | B16: 2. Wärmeerzeuger | C16: 2nd heat source | D16: Additioneel toestel | E16: Druhý zdroj | F16: 2. varmekilde | G16: Papildus siltumavots | H16: Secondo generatore di calore
A17: New building | B17: Neubau | C17: New building | D17: Nieuwbouw | E17: Nová budova | F17: Nybyg | G17: Jaunbūve | H17: Edificio di nuova costruzione
A18: Not-renovated building | B18: Altbau unsaniert | C18: Not-renovated building | D18: Bestaande bouw | E18: Nerekonštruovaná budova | F18: Ikke renoveret bygning | G18: Nerenovēta ēka | H18: Vecchio edificio non ristrutturato
A19: Passive house | B19: Passivhaus | C19: Passive house | D19: Passiefhuis | E19: Pasívny dom | F19: Passivhus | G19: Pasīvā ēka | H19: Casa passiva
A20: Germany | B20: Deutschland | C20: Germany | D20: Duitsland | E20: Nemecko | F20: Tyskland | G20: Vācija | H20: Germania
A21: Austria | B21: Österreich | C21: Austria | D21: Oostenrijk | E21: Rakúsko | F21: Østrig | G21: Austrija | H21: Austria
A22: Switzerland | B22: Schweiz | C22: Switzerland | D22: Zwitserland | E22: Švajčiarsko | F22: Schweiz | G22: Šveice | H22: Svizzera
A23: Great Britain | B23: Großbritannien | C23: Great Britain | D23: Engeland | E23: Veľká Británie | F23: Storbritannien | G23: Lielbritānija | H23: Gran Bretagna
A24: Netherlands | B24: Niederlande | C24: Netherlands | D24: Nederland | E24: Holandsko | F24: Holland | G24: Holande | H24: Paesi Bassi
A25: Italy | B25: Italien | C25: Italy | D25: Italie | E25: Taliansko | F25: Italien | G25: Itālija | H25: Italia
A26: Finland | B26: Finnland | C26: Finland | D26: Finland | E26: Fínsko | F26: Finland | G26: Somija | H26: Finlandia
A27: Spain | B27: Spanien | C27: Spain | D27: Spanje | E27: Španielsko | F27: Spanien | G27: Spānija | H27: Spagna
A28: Near East | B28: Naher Osten | C28: Near East | D28: Midden Oosten | E28: Blízky Východ | F28: Mellemøsten | G28: Tuvie Austrumi | H28: Vicino Oriente
A29: Morocco | B29: Marokko | C29: Morocco | D29: Marokko | E29: Maroko | F29: Marokko | G29: Maroka | H29: Marocco
A30: Namibia | B30: Namibia | C30: Namibia | D30: Namibië | E30: Namibia | F30: Namibia | G30: Namībija | H30: Namibia
A31: Russia | B31: Russland | C31: Russia | D31: Russia | E31: Rusko | F31: Rusland | G31: Krievija | H31: Russia
A32: Bosnia-Herzegovina | B32: Bosnien-Herzegowina | C32: Bosnia-Herzegovina | D32: Bosnie-Herzegovina | E32: Bosna a Hercegovina | F32: Bosnien-Herzegovina | G32: Bosnija-Hercegovina | H32: Bosnia-Erzegovina
A33: Slovakia | B33: Slovakei | C33: Slovakia | D33: Slovakia | E33: Slovensko | F33: Slovakiet | G33: Slovākija | H33: Repubblica Slovacca
A34: Latvia | B34: Lettland | C34: Latvia | D34: Letland | E34: Lotyšsko | F34: Litauen | G34: Latvija | H34: Lettonia
A35: Lithuania | B35: Litauen | C35: Lithuania | D35: Litouwen | E35: Lithuania | F35: Lithuania | G35: Lietuva | H35: Lituania
A36: Denmark | B36: Dänemark | C36: Denmark | D36: Denemarken | E36: Dánsko | F36: Danmark | G36: Dānija | H36: Danimarca
A37: Europe | B37: Europa | C37: Europe | D37: Europa | E37: Európa | F37: Europa | G37: Eiropa | H37: Europa
A38: Dual-mode point | B38: Bivalenzpunkt | C38: Dual-mode point | D38: Bivalentiepunt | E38: Bivalentný bod | F38: Bivalenspunkt | G38: Bivalences punkts | H38: Punto di bivalenza
A39: Energy prices | B39: Energiepreise | C39: Energy prices | D39: Energieprijzen | E39: Cena energie | F39: Energipriser | G39: Enerģijas cenas | H39: Prezzi dell'energia
A40: DHW | B40: Warmwasser | C40: DHW | D40: Tapwater | E40: Teplá voda | F40: Varmt brugsvand | G40: Karstais ūdens | H40: ACS
A41: without DHW | B41: Ohne Warmwasser | C41: without DHW | D41: Zonder Tapwater | E41: bez teplej vody | F41: Uden varmt brugsvand | G41: bez karstā ūdens | H41: senza ACS
A42: person | B42: Person | C42: person | D42: Persoon | E42: osoba | F42: Person | G42: cilvēks | H42: persona
A43: persons | B43: Personen | C43: persons | D43: Personen | E43: osoby | F43: Personer | G43: cilvēki | H43: persone
A44: Options | B44: Allgemeine Einstellungen | C44: Options | D44: Opties | E44: Možnosti | F44: Valgmuligheder | G44: Vispārējie iestatījumi | H44: Opzioni
A45: CO2-factor electricity | B45: CO2-Faktor Strom | C45: CO2-factor electricity | D45: CO2-Factor Stroom | E45: CO2-Faktor elektriny | F45: CO2-faktor strøm | G45: CO2-faktors elektrībai | H45: Emissioni di CO2 dell'elettricità
A46: Electricity price heat pump | B46: Strompreis Wärmepumpe | C46: Electricity price heat pump | D46: Prijs electra Warmtepomp | E46: Cena elektriky pre tepel.čerpadlo | F46: Elpris varmepumpe | G46: Elektrības cena siltumsūknim | H46: Prezzo dell'energia elettrica per la pompa di calore
A47: Oil price in pence/liter | B47: Ölpreis in Cent/Liter | C47: Oil price in pence/liter | D47: Olieprijs in Cent/Liter | E47: Cena vykur. oleja v cent/liter | F47: Oliepris i øre/liter | G47: Dīzeļdegvielas cena centi/litrā | H47: Prezzo del gasolio in centesimi/litro
A48: Gas price in pence/m³ | B48: Gaspreis in Cent/m³ | C48: Gas price in pence/m³ | D48: Gasprijs in Cent/m³ | E48: Cena zem. plynu v cent/m³ | F48: Gaspris i øre/m³ | G48: Gāzes cena centi/m³ | H48: Prezzo del gas metano in centesimi/m³
A49: Yearly price increase | B49: Preissteigerung | C49: Yearly price increase | D49: Jaarlijkse stijging | E49: Ročná miera zdrženia ceny | F49: Årlig prisstigning | G49: Ikgadējais sadārdzinājums | H49: Aumento annuo del costo
A50: Price increase electricity | B50: Preissteigerung Strom | C50: Price increase electricity | D50: Stijging prijs electra | E50: Zvýšenie ceny elektriny | F50: Prisstigning el | G50: Elektrības sadārdzinājums | H50: Incremento di prezzo dell'energia elettrica
A51: oil/gas | B51: Öl/Gas | C51: oil/gas | D51: Olie/Gas | E51: olej/plyn | F51: Olie/gas | G51: dīzeļdegviela/gāze | H51: gasolio / gas metano
A52: Efficiency | B52: Wirkungsgrade | C52: Efficiency | D52: Rendement | E52: Účinnosť | F52: Effekttivitet | G52: Lietderības koeficients | H52: Rendimento
A53: Efficiency Heating | B53: Wirkungsgrad Heizung | C53: Efficiency Heating | D53: Rendement verwarminging | E53: Účinnosť vykurovanie | F53: Effektivitet varme | G53: Lietderības koeficients apkurei | H53: Rendimento per riscaldamento
A54: Efficiency DHW | B54: Wirkungsgrad Warmwasser | C54: Efficiency DHW | D54: Rendement tapwater | E54: Účinnosť TUV | F54: Effektivitet varmtvand | G54: Lietderības koeficients karstajam ūdenim | H54: Rendimento per ACS
A55: Hot water consumption | B55: Warmwasserbedarf | C55: Hot water consumption | D55: Tapwaterbehoefte | E55: Spotreba teplej vody | F55: Varmtvandsforbrug | G55: Karstā ūdens patēriņš | H55: Consumo di acqua calda
A56: kWh/person x day | B56: kWh/Person x Tag | C56: kWh/person x day | D56: kWh/pppd | E56: kWh/osoba x deň | F56: kWh/person x dag | G56: kWh/personai dienā | H56: kWh/persona al giorno
A57: Yearly heat demand | B57: Jahresheizwärmebedarf | C57: Yearly heat demand | D57: Jaarlijks benodigde verwarmingsvermogen | E57: Ročná potreba tepla | F57: Årligt varmeforbrug | G57: Gada siltumenerģijas patēriņš | H57: Fabbisogno termico annuo
A58: Default values | B58: Standardwerte | C58: Default values | D58: Standaardwaarden | E58: Predvolené | F58: Standard værdier | G58: Pamatiestatījumi | H58: Valori di default
A59: Save & Back | B59: Speichern & Zurück | C59: Save & Back | D59: Terug | E59: Späť | F59: Tilbage | G59: Saglabāt | H59: Salva
A60: Settings | B60: Einstellungen | C60: Settings | D60: Overige instellingen | E60: Viac možností nastavenia | F60: Flere indstillinger | G60: Uzstādījumi | H60: Impostazioni
A61: Print preview | B61: Druckvorschau | C61: Print preview | D61: Afdrukvoorbeeld | E61: tlačiť | F61: Print | G61: Drukas priekšskatījums | H61: Anteprima di stampa
A62: Final energy | B62: Endenergie | C62: Final energy | D62: Eindverbruik van energie | E62: Celková energia | F62: Slutenergi | G62: Kopējais enerģijas patēriņš | H62: Energia finale
A63: Years | B63: Jahre | C63: Years | D63: Jaren | E63: Roky | F63: År | G63: Gadi | H63: Anni
A64: Oil boiler | B64: Ölkessel | C64: Oil boiler | D64: Olieketel | E64: Kotol na vykur. olej | F64: Oliekeddel | G64: Dīzeļdegvielas katls | H64: Caldaia a gasolio
A65: Gas boiler | B65: Gaskessel | C65: Gas boiler | D65: Gasketel | E65: Plynový kotol | F65: Gaskeddel | G65: Gāzes katls | H65: Caldaia a gas metano
A66: Annual heating | B66: Heizarbeit | C66: Annual heating | D66: Verwarmingsvermogen | E66: Ročná spotreba | F66: Årlig varme | G66: Gada siltumenerģija | H66: Riscaldamento annuale
A67: Final energy | B67: Endenergie | C67: Final energy | D67: Eindverbruik van energie | E67: Celková energia | F67: Slutenergi | G67: Kopējais enerģijas patēriņš | H67: Energia finale
A68: Energy costs | B68: Energiekosten | C68: Energy costs | D68: Energiekosten | E68: Cena energie | F68: Energiomkostninger | G68: Enerģijas cena | H68: Costi dell'energia
A69: CO2-emission | B69: CO2-Emission | C69: CO2-emission | D69: CO2-Emissie | E69: CO2 - emisie | F69: CO2-emission | G69: CO2-emisija | H69: Emissioni di CO2
A70: Cost trend | B70: Kostenentwicklung | C70: Cost trend | D70: Ontwikkeling kosten | E70: Vývoj nákladov | F70: Omkostninger udvikling | G70: Izmaksu tendence | H70: Andamento dei costi
A71: Heat demand | Dual-mode point | B71: Heizlast | Bivalenzpunkt | C71: Heat demand | Dual-mode point | D71: Warmteverlies | Bivalentiepunt | E71: Tepelná strata I bod bivalencie | F71: Effektbehov | Bivalenspunkt | G71: Siltumslodze | Bivalences punkts | H71: Fabbisogno termico | Punto di bivalenza
A72: Heat demand | B72: Heizlast | C72: Heat demand | D72: Warmteverlies | E72: Tepelná strata | F72: Effektbehov | G72: Siltumslodze | H72: Fabbisogno termico
A73: Heat demand | Heating power [KW] | B73: Heizlast | Heizleistung [KW] | C73: Heat demand | Heating power [KW] | D73: Warmteverlies | Vermogen [KW] | E73: Tepelná strata I tepelný príkon [KW] | F73: Effektbehov | Varmeeffekt [kW] | G73: Siltumslodze | Siltuma saražotais daudzums [KW] | H73: Fabbisogno termico | Potenza termica [kW]
A74: Outside temperature [°C] | B74: Außentemperatur [°C] | C74: Outside temperature [°C] | D74: Buitentemperatuur [°C] | E74: Vonkjašia teplota [°C] | F74: Udetemperatur [°C] | G74: Ārgaisa temperatūra [°C] | H74: Temperatura esterna [°C]
A75: Electric heating | B75: Elektroheizung | C75: Electric heating | D75: Elektrische verwarming | E75: Elektrické kúrenie | F75: Elektrisk opvarmning | G75: Elektriskā apkure | H75: Riscaldamento elettrico
A76: Location | B76: Standort | C76: Location | D76: Plaats object | E76: Umiestnenie | F76: Placering | G76: Vieta | H76: Località
A77: £/Year | B77: €/Jahr | C77: £/Year | D77: Euro/Jaar | E77: €/rok | F77: DKK/år | G77: €/Gadā | H77: €/anno
A78: £/kWh | B78: €/kWh | C78: £/kWh | D78: Euro/kWh | E78: €/kWh | F78: DKK/kWh | G78: €/kWh | H78: €/kWh
A79: kWh/Year | B79: kWh/Jahr | C79: kWh/Year | D79: kWh/Jaar | E79: kWh/rok | F79: kWh/år | G79: kWh/Gadā | H79: kWh/anno
A80: kg/year | B80: kg/Jahr | C80: kg/year | D80: kg/Jaar | E80: kg/rok | F80: kg/år | G80: kg/Gadā | H80: kg/anno
A81: %/year | B81: % pro Jahr | C81: %/year | D81: %/Jaar | E81: %/rok | F81: %/år | G81: % Gadā | H81: %/anno
A82: Energy costs 15 years | B82: Energiekosten 15 Jahre | C82: Energy costs 15 years | D82: Energiekosten 15 jaar | E82: Cena energii za 15 rokov | F82: Energiomkostninger 15 år | G82: Enerģijas izmaksas 15 Gados | H82: Costi dell'energia 15 anni
A83: Heat demand by consumption | B83: Heizlast nach Verbrauchsdaten | C83: Heat demand by consumption | D83: Verwarmingsvermogen | E83: Spotrebované teplo | F83: Effektbehov efter forbrugsdata | G83: Siltumslodze pēc iepriekšēja patēriņa | H83: Fabbisogno termico per consumo
A84: Building | B84: Gebäude | C84: Building | D84: Object | E84: Budova | F84: Bygning | G84: Ēka | H84: Edificio
A85: Year of build | B85: Baujahr | C85: Year of build | D85: Bouwjaar | E85: Rok výstavby | F85: Bygningsår | G85: Ēka uzbūvēta | H85: Anno di costruzione
A86: From 2009 | B86: Ab 2009 | C86: From 2009 | D86: Vanaf 2009 | E86: od 2009 | F86: Fra 2009 | G86: Pēc 2009 | H86: Dal 2009
A87: 1995 - 2008 | B87: 1995 - 2008 | C87: 1995 - 2008 | D87: 1995-2008 | E87: 1995 - 2008 | F87: 1995 - 2008 | G87: 1995 - 2008 | H87: 1995 - 2008
A88: 1980 - 1994 | B88: 1980 - 1994 | C88: 1980 - 1994 | D88: 1980-1994 | E88: 1980 - 1994 | F88: 1980 - 1994 | G88: 1980 - 1994 | H88: 1980 - 1994
A89: Before 1980 | B89: Vor 1980 | C89: Before 1980 | D89: Voor 1980 | E89: pred 1980 | F89: Før 1980 | G89: Pirms 1980 | H89: Prima del 1980
A90: Type of building | B90: Gebäudetyp | C90: Type of building | D90: Type Gebouw | E90: Typ budovy | F90: Bygningstype | G90: Ēkas tips | H90: Tipologia di edificio
A91: Single family house | B91: Einfamilienhaus | C91: Single family house | D91: Einfamilienhaus | E91: Einfamilienhaus | F91: Einfamilienhaus | G91: Einfamilienhaus | H91: Einfamilienhaus
A92: Multi family house | B92: Mehrfamilienhaus | C92: Multi family house | D92: Mehrfamilienhaus | E92: Mehrfamilienhaus | F92: Mehrfamilienhaus | G92: Mehrfamilienhaus | H92: Mehrfamilienhaus
A93: Office building | B93: Bürogebäude | C93: Office building | D93: Utiliteit | E93: Kancelárske priestory | F93: Kontorbygning | G93: Ofisu ēka | H93: Palazzina uffici
A94: Hospital | B94: Krankenhaus | C94: Hospital | D94: Ziekenhuis | E94: Nemocnica | F94: Hospital | G94: Slimnīca | H94: Ospedale
A95: School (without showers) | B95: Schule (ohne Duschen) | C95: School (without showers) | D95: School | E95: Škola (bez spŕch) | F95: Skole (uden brusebad) | G95: Skola (bez dušām) | H95: Scuola (senza docce)
A96: School (with showers) | B96: Schule (mit Duschen) | C96: School (with showers) | D96: School met douchefaciliteit | E96: Škola (so sprchami) | F96: Skole (med brusebad) | G96: Skola (ar dušām) | H96: Scuola (con docce)
A97: Retailer / Store | B97: Einzelhandel/Kaufhaus | C97: Retailer / Store | D97: Handelsbedrijf | E97: Predajňa / obchod | F97: Detailhandel / stormagasin | G97: Lielveikals / Noliktava | H97: Rivendita / Negozio
A98: Garage (with showers) | B98: Werkstatt (mit Duschen) | C98: Garage (with showers) | D98: Werkplaats met douchefaciliteit | E98: Garáže (so sprchami) | F98: Værksted (med brusebad) | G98: Garāža (ar dušām) | H98: Garage (con docce)
A99: Hotel (Standard) | B99: Hotel (Standard) | C99: Hotel (Standard) | D99: Hotel (standaard) | E99: Hotel (štandart) | F99: Hotel (Standard) | G99: Viesnīca (***) | H99: Hotel (medio livello)
A100: Hotel (High standard) | B100: Hotel (Gehobener Standard) | C100: Hotel (High standard) | D100: Hotel (bovengemiddeld Luxe) | E100: Hotel (vysoký štandart) | F100: Hotel (Høj standard) | G100: Viesnīca (****) | H100: Hotel (alto livello)
A101: Hotel (Luxury) | B101: Hotel (Luxus) | C101: Hotel (Luxury) | D101: Hotel (luxe) | E101: Hotel (luxusný) | F101: Hotel (Luksus) | G101: Viesnīca (*****) | H101: Hotel (di lusso)
A102: Restaurant | B102: Gaststätte | C102: Restaurant | D102: Gastenverblijf | E102: Reštaurácia | F102: Restaurant | G102: Restorāns | H102: Ristorante
A103: Nursing home | B103: Heim | C103: Nursing home | D103: Bejaardenhuis | E103: Sanatórium | F103: Plejehjem | G103: Pansionāts | H103: Casa di cura
A104: Barracks | B104: Kaserne | C104: Barracks | D104: Kazerne | E104: Ubytovne | F104: Kaserne | G104: Kazarmas | H104: Caserma
A105: Sports facility (with showers) | B105: Sportanlage (Mit Dusche) | C105: Sports facility (with showers) | D105: Sporthal (Met douchefaciliteit) | E105: Športový komplex (so sprchami) | F105: Sportsanlæg (med brusbad) | G105: Sporta iestāde (ar dušām) | H105: Struttura sportiva (con docce)
A106: Bakery | B106: Bäckerei | C106: Bakery | D106: Bakkerij | E106: Pekáreň | F106: Bageri | G106: Maiznīca | H106: Panificio
A107: Hairdresser | B107: Friseur | C107: Hairdresser | D107: Kapper | E107: Kaderníctvo | F107: Frisør | G107: Frizētava | H107: Parrucchiere
A108: Butcher (with production) | B108: Fleischerei mit Produktion | C108: Butcher (with production) | D108: Slager met slachterij | E108: Mäsiarstvo (s výrobou) | F108: Slagter (med produktion) | G108: Miesnieks (ar ražošanu) | H108: Macellaio (con produzione)
A109: Average room temperature | B109: Mittlere Innentemperatur | C109: Average room temperature | D109: Gemmidelde Ruimtemperatuur | E109: Priemerná teplota miestnosti | F109: Middel rumtemperatur | G109: Vidējā temperatūra telpās | H109: Temperatura ambiente media
A110: Heating system | B110: Heizungsanlage | C110: Heating system | D110: Verwarmingsinstallatie | E110: Vykurovací systém | F110: Varmesystem | G110: Apkures sistēma | H110: Sistema di riscaldamento
A111: Heat generator | B111: Wärmeerzeuger | C111: Heat generator | D111: Verwarmingsbron | E111: Zdroj tepla | F111: Varmeanlæg | G111: Siltuma avots | H111: Generatore di calore
A112: Input Name | B112: Eingabe Name | C112: Input Name | D112: Input Name | E112: Input Name | F112: Input Name | G112: Input Name | H112: Input Name
A113: Gas boiler | B113: NT-Kessel Gas | C113: Gas boiler | D113: VR Gasketel | E113: Plynový kotol | F113: Gaskeddel | G113: Gāzes katls | H113: Caldaia a gas metano
A114: Oil boiler | B114: NT-Kessel Öl | C114: Oil boiler | D114: VR Olieketel | E114: Olejový kotol | F114: Oliekeddel | G114: Dīzeļdegvielas katls | H114: Caldaia a gasolio
A115: Condensing gas boiler | B115: Brennwertkessel Gas | C115: Condensing gas boiler | D115: HR gasketel | E115: Kondenzačný kotol | F115: Kondenserende gaskeddel | G115: Gāzes kondensācijas katls | H115: Caldaia a condensazione a gas metano
A116: Condensing oil boiler | B116: Brennwertkessel Öl | C116: Condensing oil boiler | D116: HR Olieketel | E116: Kondenzačný olejový kotol | F116: Kondenserende oliekeddel | G116: Dīzeļdegvielas kondensācijas katls | H116: Caldaia a condensazione a gasolio
A117: Storage heater | B117: Wärmespeicher | C117: Storage heater | D117: Buffervat | E117: Akumulátor tepla | F117: Storage heater | G117: Krāsns apkure | H117: Riscaldamento ad accumulo
A118: Electric heating | B118: Elektro-Direktheizung | C118: Electric heating | D118: Directe Electrische verwarming | E118: Elektrické kúrenie | F118: Elektrisk opvarmning | G118: Elektriskā apkure | H118: Riscaldamento elettrico
A119: District heating | B119: Fernwärme | C119: District heating | D119: Stadsverwarming | E119: Centrálne vykurovanie | F119: Fjernvarme | G119: Pilsētas siltumtīkli | H119: Teleriscaldamento
A120: Pellet | B120: Pelletkessel | C120: Pellet | D120: Palletketel | E120: Kotol na peletky | F120: Pillefyr | G120: Granulu/malkas katls | H120: Pellet
A121: Other | B121: Sonstige | C121: Other | D121: Overige soorten | E121: Iný | F121: Andet | G121: Cits | H121: Altro
A122: Usage | B122: Nutzungsart | C122: Usage | D122: Bedrijfswijze | E122: Požitie | F122: Brug | G122: Pielietojums | H122: Utilizzo
A123: Heating only | B123: Nur Heizung | C123: Heating only | D123: Alleen verwarming | E123: Len kúrenie | F123: Kun opvarmning | G123: Tikai apkure | H123: Solo riscaldamento
A124: Heating | B124: Heizung | C124: Heating | D124: Verwarming | E124: Kúrenie | F124: Varme | G124: Apkure | H124: Riscaldamento
A125: Heating | DHW | B125: Heizung | Warmwasserbereitung | C125: Heating | DHW | D125: Verwarming/tapwaterbereiding | E125: Kúrenie I TUV | F125: Opvarmning | Varmt brugsvand | G125: Apkure | Karstais ūdens | H125: Riscaldamento | ACS
A126: Age of heating system | B126: Alter Heizungsanlage | C126: Age of heating system | D126: Bestaande Verwarmingsinstallatie | E126: Vek vykurovacieho systému | F126: Varmeanlæggets alder | G126: Apkures sistēmas vecums | H126: Età del sistema di riscaldamento
A127: Before 1980 | B127: Vor 1980 | C127: Before 1980 | D127: Voor 1980 | E127: pred 1980 | F127: Før 1980 | G127: Pirms 1980 | H127: Prima del 1980
A128: 1980 - 1994 | B128: 1980 - 1994 | C128: 1980 - 1994 | D128: 1980-1994 | E128: 1980 - 1994 | F128: 1980 - 1994 | G128: 1980 - 1994 | H128: 1980 - 1994
A129: From 1995 | B129: Ab 1995 | C129: From 1995 | D129: Vanaf 1994 | E129: od 1995 | F129: Fra 1995 | G129: Pēc 1995 | H129: Dal 1995
A130: DHW production | B130: Warmwasserbereitung | C130: DHW production | D130: Tapwaterbereiding | E130: Ohrev TUV | F130: Varmtvandsproduktion | G130: Karstā ūdens ražošana | H130: Produzione di ACS
A131: DHW type | B131: Art der Warmwasserbereitung | C131: DHW type | D131: Type tapwaterbereiding | E131: typ ohrevu TUV | F131: Type varmt brugsvand | G131: Karstā ūdens cirkulācija | H131: Tipologia di produzione ACS
A132: Building-central without circulation | B132: Gebäudezentral ohne Zirkulation | C132: Building-central without circulation | D132: Centrale opwekking zonder circulatieleiding | E132: Budova bez cirkulácie TUV | F132: Centralt-bygning uden cirkulation | G132: Centrālā ūdensapgāde bez cirkulācijas | H132: Centralizzata nell'edificio senza ricircolo
A133: Building-central with circulation | B133: Gebäudezentral mit Zirkulation | C133: Building-central with circulation | D133: Centrale opwekking met circulatieleiding | E133: Budova s cirkulácie TUV | F133: Centralt-bygning med cirkulation | G133: Centrālā ūdensapgāde ar cirkulāciju | H133: Centralizzata nell'edificio con ricircolo
A134: Apartment-central | B134: Wohnungszentral | C134: Apartment-central | D134: Centrale opwekking | E134: Byty s centrálnym zdrojom | F134: centralt-lejlighed | G134: Centrālā ūdensapgāde dzīvoklī | H134: Centralizzata nell'appartamento
A135: Apartment-decentral | B135: Dezentral (Einzelversorgung) | C135: Apartment-decentral | D135: Decentrale opwekking | E135: Byty s vlastným zdrojom | F135: Decentralt lejligheder | G135: Lokāla ūdensapgāde dzīvoklī | H135: Decentralizzata nell'appartamento
A136: Number of residents | B136: Anzahl Personen | C136: Number of residents | D136: Aantal Personen | E136: Počet osôb | F136: Antal personer | G136: iedzīvotāju skaits | H136: Numero di residenti
A137: Demand period | B137: Bedarfszeitraum | C137: Demand period | D137: Periode waarin behoefte is | E137: Vykurovacie obdobie | F137: Behovsperiode | G137: Karstā ūdens sagatavošana | H137: Periodo di fabbisogno
A138: All year | B138: Ganzjährig | C138: All year | D138: Gehele jaar | E138: Celý rok | F138: Hele året | G138: Visu gadu | H138: Tutto anno
A139: 1 month / year | B139: 1 Monat / Jahr | C139: 1 month / year | D139: 1 Maand/Jaar | E139: 1 mesiac / rok | F139: 1 måned / år | G139: Mēnesi / gadā | H139: 1 mese / anno
A140: 2 months / year | B140: 2 Monate / Jahr | C140: 2 months / year | D140: 2 Maanden/Jaar | E140: 2 mesiace / rok | F140: 2 måned / år | G140: 2 Mēnešus / gadā | H140: 2 mesi / anno
A141: 3 months / year | B141: 3 Monate / Jahr | C141: 3 months / year | D141: 3 Maanden/Jaar | E141: 3 mesiace / rok | F141: 3 måned / år | G141: 3 Mēnešus / gadā | H141: 3 mesi / anno
A142: 4 months / year | B142: 4 Monate / Jahr | C142: 4 months / year | D142: 4 Maanden/Jaar | E142: 4 mesiace / rok | F142: 4 måned / år | G142: 4 Mēnešus / gadā | H142: 4 mesi / anno
A143: 5 months / year | B143: 5 Monate / Jahr | C143: 5 months / year | D143: 5 Maanden/Jaar | E143: 5 mesiacov / rok | F143: 5 måned / år | G143: 5 Mēnešus / gadā | H143: 5 mesi / anno
A144: 6 months / year | B144: 6 Monate / Jahr | C144: 6 months / year | D144: 6 Maanden/Jaar | E144: 6 mesiacov / rok | F144: 6 måned / år | G144: 6 Mēnešus / gadā | H144: 6 mesi / anno
A145: 7 months / year | B145: 7 Monate / Jahr | C145: 7 months / year | D145: 7 Maanden/Jaar | E145: 7 mesiacov / rok | F145: 7 måned / år | G145: 7 Mēnešus / gadā | H145: 7 mesi / anno
A146: 8 months / year | B146: 8 Monate / Jahr | C146: 8 months / year | D146: 8 Maanden/Jaar | E146: 8 mesiacov / rok | F146: 8 måned / år | G146: 8 Mēnešus / gadā | H146: 8 mesi / anno
A147: 9 months / year | B147: 9 Monate / Jahr | C147: 9 months / year | D147: 9 Maanden/Jaar | E147: 9 mesiacov / rok | F147: 9 måned / år | G147: 9 Mēnešus / gadā | H147: 9 mesi / anno
A148: 10 months / year | B148: 10 Monate / Jahr | C148: 10 months / year | D148: 10 Maanden/Jaar | E148: 10 mesiacov / rok | F148: 10 måned / år | G148: 10 Mēnešus / gadā | H148: 10 mesi / anno
A149: 11 months / year | B149: 11 Monate / Jahr | C149: 11 months / year | D149: 11 Maanden/Jaar | E149: 11 mesiacov / rok | F149: 11 måned / år | G149: 11 Mēnešus / gadā | H149: 11 mesi / anno
A150: Summary | B150: Ergebnis | C150: Summary | D150: Uitkomst | E150: Sumár | F150: Sammendrag | G150: Kopsavilkums | H150: Sommario
A151: Heat demand * | B151: Gebäudeheizlast * | C151: Heat demand * | D151: Warmteverlies | E151: Tepelná strata | F151: Effektbehov | G151: Siltumslodze * | H151: Fabbisogno termico | Punto di bivalenza
A152: Calculation based on DIN EN 12831 Supplement 2, may 2010 | B152: Entspricht der Wärmeerzeuger-Nennleistung. Die Norm-Gebäudeheizlast kann höher ausfallen, da interne und solare Wärmeeinträge (Fremdwärmegewinne) nicht berücksichtigt sind. | C152: Calculation based on DIN EN 12831 Supplement 2, may 2010 | D152: Is volgens een normberekening, het officiele warmteverlies kan hoger zijn omdat interne warmtelast en externe invloeden zoals zonlichttoetreding niet meegenomen zijn. | F152: Svarer til den varmeproducerende mærkeeffekt. Standard bygning varmelasten kan være højere, da interne og solare varmeindfald (eksterne varmegevinster) ikke betragtes. | G152: Aprēķinos norādītas siltuma ražošanas iekārtu nominālās jaudas. Kopējā siltumslodze ēkā var būt lielāka, jo netiek ņemti iekšējie siltuma pieplūdumi un saules enerģija | H152: Calcli basati su norma DIN EN 12831 Supplemento 2, Maggio 2010
B153: Berechnung nach DIN EN 12831 Beiblatt 2 (Stand Mai 2012) | D153: Berekening volgens DIN EN 12831 Tapblad 2, stand mei 2012 | E153: Návrh vypočítaný podľa DIN EN 12831 článok 2, máj 2010 | F153: Beregning baseret på DIN EN 12831 blad 2, maj 2012 | G153: Aprēķins pēc DIN EN 12831, 2 papildinājuma, 2010. gada Maijs | H153: Calcli basati su norma DIN EN 12831 Supplemento 2, Maggio 2010
A154: Consumption in l/year | B154: Verbrauch in Liter/Jahr | C154: Consumption in l/year | D154: Verbruik in l/jr | E154: Spotreba v l/rok | F154: Forbrug i liter/år | G154: Patēriņš, l/gadā | H154: Consumo in litri/anno
A155: Consumption in m³/year | B155: Verbrauch in m³/Jahr | C155: Consumption in m³/year | D155: Verbruik in m3/jr | E155: Spotreba v m3/rok | F155: Forbrug i m³/år | G155: Patēriņš, m³/gadā | H155: Consumi m³/anno
A156: Consumption in kWh/year | B156: Verbrauch in kWh/Jahr | C156: Consumption in kWh/year | D156: Verbruik in kWh/jr | E156: Spotreba v kWh/rok | F156: Forbrug i kWh/år | G156: Patēriņš, kWh/gadā | H156: Consumo in kWh/anno
A157: Consumption in kg/year | B157: Verbrauch in kg/Jahr | C157: Consumption in kg/year | D157: Verbruik in kg/jr | E157: Spotreba v kg/rok | F157: Forbrug i kg/år | G157: Patēriņš, kg/gadā | H157: Consumo in kg/anno
A158: Number of persons | B158: Anzahl Personen | C158: Number of persons | D158: Aantal Personen | E158: Počet osôb | F158: Antal personer | G158: iedzīvotāju skaits | H158: Numero di persone
A159: Number of beds | B159: Anzahl Betten | C159: Number of beds | D159: Aantal bedden | E159: Počet lôžok | F159: Antal senge | G159: Gultu skaits | H159: Numero di letti
A160: Number of employees | B160: Anzahl Beschäftigte | C160: Number of employees | D160: Aantal medewerkers | E160: Počet zamestnancov | F160: Antal ansatte | G160: Darbinieku skaits | H160: Numero di impiegati
A161: Number of seats | B161: Anzahl Sitzplätze | C161: Number of seats | D161: Aantal zitplaatsen | E161: Počet miest | F161: Antal sæder | G161: Sēdvietu skaits | H161: Numero di posti a sedere
A162: | Back | B162: | zurück | C162: | Back | D162: | terug | E162: I späť | F162: | Tilbage | G162: | Atgriezties | H162: Indietro
A163: Restore to standard values ? | B163: Alle Änderungen werden verworfen. Fortfahren? | C163: Restore to standard values ? | D163: Alle ingegeven waarden worden gereset, doorgaan? | E163: Obnoviť štandardné hodnoty? | F163: Gendan til standard værdier ? | G163: Atjaunot noklusētos iestatījumus ? | H163: Ripristinare i valori standard
A164: Standard values | B164: Standardwerte | C164: Standard values | D164: Standaardwaarden | E164: Predvolené | F164: Standard værdier | G164: Pamatiestatījumi | H164: Valori standard
A165: Select country | B165: Auswahl Land | C165: Select country | D165: Voorlopige keuze land | E165: Vyber krajnu | F165: Vælg land | G165: Izvēlaties valsti | H165: Seleziona nazione
A166: Select fossil energy | B166: Auswahl fossiler Energieträger | C166: Select fossil energy | D166: Keuze fossiele energiedrager | E166: Vyber fosilné palivo | F166: Udvælg fossile brændsler | G166: Izvēlaties fosilo enerģiju | H166: Seleziona energia fossile
A167: Max. setting range heat demand | B167: Max. Einstellbereich Heizlast | C167: Max. setting range heat demand | D167: Max. Instelbereik Transmissieverlies | E167: Max. rozsah tepelných strát | F167: Max indstilling varmeeffekt | G167: Max. setting range heat demand | H167: Max. setting range heat demand
A168: Legal note | B168: Rechtliche Hinweise | C168: Legal note | D168: Juridische informatie | E168: Právna poznámka | F168: Juridiske betingelser | G168: Legal note | H168: Nota legale
A169: Stiebel Eltron shall not provide any guarantees that the information, values and data provided, or values, information and recommendations determined with the aid or on the basis of such information, values and data, are complete, accurate, correct or current in every respect. Stiebel Eltron shall reserve the right to make changes to the data, values and information provided at any time and without prior notification. Errors excepted. Subject to changes. None of the information, values and data provided or the values, information and recommendations determined with the aid or on the basis of such information, values and data constitutes any basis for a financial decision or for any other purpose, but rather is merely initial non-binding information as an initial guide. Under no circumstances should the following design tool be considered a substitute for consultation with Stiebel Eltron or another authorised expert engineer. Please contact Stiebel Eltron or another authorised expert engineer in relation to specific project design. Stiebel Eltron shall accept no liability for losses of any kind that may arise from the use of information, values and data provided, or values, information and recommendations determined with the aid or on the basis of such information, values and data. This exclusion of liability shall not apply if the loss is due to intent or gross negligence on the part of Stiebel Eltron or in the event of a fatality, physical injury or damage to health. | B169: Stiebel Eltron übernimmt keinerlei Gewährleistung oder Garantie dafür, dass die bereitgestellten Angaben, Werte und Informationen oder die mit Hilfe bzw. anhand dieser Informationen, Werte und Angaben ermittelten Werte und Angaben in jeder Hinsicht vollständig, genau, richtig und aktuell sind. Stiebel Eltron behält sich das Recht vor, jederzeit und ohne vorherige Ankündigung Änderungen der bereitgestellten Angaben, Werte und Informationen vorzunehmen. Irrtum und Änderungen sind ausdrücklich vorbehalten. Keine der bereitgestellten Angaben, Werte und Informationen oder der mit Hilfe bzw. anhand dieser Angaben, Werte und Informationen ermittelten Werte und Angaben sind als Grundlage für eine finanzielle Entscheidung oder für einen sonstigen Zweck anzusehen, sondern dienen vielmehr nur als eine erste unverbindliche Information und als Hilfe zur ersten Orientierung. Unter keinen Umständen ersetzt die Planungshilfe die Beratung durch Stiebel Eltron oder einen autorisierten Fachplaner. Bitte wenden Sie sich für die konkrete Planung des Projektes an Stiebel Eltron oder einen anderen autorisierten Fachplaner. Die Haftung von Stiebel Eltron für Schäden jeglicher Art, die sich möglicherweise aus der Nutzung oder Verwendung der bereitgestellten Informationen, Werte und Angaben oder der mit Hilfe bzw. anhand dieser Angaben, Werte und Informationen ermittelten Werte und Angaben, ergeben, ist ausgeschlossen. Dieser Haftungsausschluss gilt nicht, wenn der Schaden auf Vorsatz oder grobe Fahrlässigkeit von Stiebel Eltron zurückzuführen ist sowie bei einer Verletzung des Lebens, des Körpers oder der Gesundheit. | C169: Stiebel Eltron shall not provide any guarantees that the information, values and data provided, or values, information and recommendations determined with the aid or on the basis of such information, values and data, are complete, accurate, correct or current in every respect. Stiebel Eltron shall reserve the right to make changes to the data, values and information provided at any time and without prior notification. Errors excepted. Subject to changes. None of the information, values and data provided or the values, information and recommendations determined with the aid or on the basis of such information, values and data constitutes any basis for a financial decision or for any other purpose, but rather is merely initial non-binding information as an initial guide. Under no circumstances should the following design tool be considered a substitute for consultation with Stiebel Eltron or another authorised expert engineer. Please contact Stiebel Eltron or another authorised expert engineer in relation to specific project design. Stiebel Eltron shall accept no liability for losses of any kind that may arise from the use of information, values and data provided, or values, information and recommendations determined with the aid or on the basis of such information, values and data. This exclusion of liability shall not apply if the loss is due to intent or gross negligence on the part of Stiebel Eltron or in the event of a fatality, physical injury or damage to health. | D169: Stiebel Eltron geeft geen enkele garantie dat de aangeboden informatie, waarden en gegevens of de met behulp van of aan de hand van deze informatie, waarden en gegevens berekende waarden, informatie en aanbevelingen in elk opzicht volledig, nauwkeurig, juist en actueel zijn. Stiebel Eltron behoudt zich het recht voor om op elk moment zonder voorafgaande kennisgeving wijzigingen aan te brengen in de aangeboden gegevens, waarden en informatie. Vergissingen en wijzigingen worden door Stiebel Eltron uitdrukkelijk voorbehouden. De aangeboden informatie, waarden en gegevens of de met behulp van of aan de hand van deze informatie, waarden en gegevens berekende waarden, informatie en aanbevelingen betreffen een eerste Stiebel Eltron niet-bindende informatie voorziening die niet kan worden gebruikt als basis voor een financiële beslissing of voor andere doeleinden dan een eerste oriëntatie. Deze planningshulp kan in geen geval dienen als vervanging voor het persoonlijke advies van Stiebel Eltron of een andere geautoriseerde systeemadviseur. Voor de concrete planning van uw project dient u zich te allen tijde te wenden tot Stiebel Eltron of een andere geautoriseerde systeemadviseur. Stiebel Eltron aanvaardt op geen enkele wijze aansprakelijkheid voor schade en/of ander nadeel, direct dan wel indirect, die voortvloeit uit het gebruik of de toepassing van de aangeboden informatie, waarden en gegevens of de met behulp van of aan de hand van deze informatie, waarden en gegevens van berekende waarden, informatie en aanbevelingen. De hierboven omschreven uitsluitingen gelden niet in geval van grove nalatigheid, opzet of schade aan leven, lichaam of gezondheid. | E169: Stiebel Eltron vil ikke give nogen garantier, at de oplysninger, værdier og data, eller værdier, information og anbefalinger der defineres ved hjælp eller på grundlag af disse oplysninger, værdier og data, er fuldstændige, nøjagtige, korrekte eller anvendelige i enhver henseende. Stiebel Eltron forbeholder sig ret til at foretage ændringer af data, værdier og oplysninger på ethvert tidspunkt og uden varsel. Fejl forbeholdes. Med forbehold for ændringer. Ingen af ​​de oplysninger, værdier og data eller værdier, information og henstillinger bestemt ved hjælp eller på grundlag af disse oplysninger, værdier og data udgør noget grundlag for en økonomisk beslutning, eller til andre formål, men snarere blot ikke oprindeligt -bindende oplysninger som en indledende vejledning. Under ingen omstændigheder bør følgende design værktøj betragtes som en erstatning for konsultation med Stiebel Eltron eller anden autoriseret ekspert ingeniør. Kontakt venligst Stiebel Eltron eller anden autoriseret ekspert ingeniør i forhold til konkrete projekt design. Stiebel Eltron påtager sig intet ansvar for tab af nogen art, der måtte opstå som følge af brugen af information, værdier og data, eller værdier, information og anbefalinger defineres ved hjælp eller på grundlag af disse oplysninger, værdier og data. Denne udelukkelse af ansvar gælder ikke, hvis tabet skyldes forsæt eller grov uagtsomhed på den del af Stiebel Eltron eller i tilfælde af en dødsulykke, fysisk skade eller skade på helbredet. | F169: Stiebel Eltron vil ikke give nogen garantier, at de oplysninger, værdier og data, eller værdier, information og anbefalinger der defineres ved hjælp eller på grundlag af disse oplysninger, værdier og data, er fuldstændige, nøjagtige, korrekte eller anvendelige i enhver henseende. Stiebel Eltron forbeholder sig ret til at foretage ændringer af data, værdier og oplysninger på ethvert tidspunkt og uden varsel. Fejl forbeholdes. Med forbehold for ændringer. Ingen af ​​de oplysninger, værdier og data eller værdier, information og henstillinger bestemt ved hjælp eller på grundlag af disse oplysninger, værdier og data udgør noget grundlag for en økonomisk beslutning, eller til andre formål, men snarere blot ikke oprindeligt -bindende oplysninger som en indledende vejledning. Under ingen omstændigheder bør følgende design værktøj betragtes som en erstatning for konsultation med Stiebel Eltron eller anden autoriseret ekspert ingeniør. Kontakt venligst Stiebel Eltron eller anden autoriseret ekspert ingeniør i forhold til konkrete projekt design. Stiebel Eltron påtager sig intet ansvar for tab af nogen art, der måtte opstå som følge af brugen af information, værdier og data, eller værdier, information og anbefalinger defineres ved hjælp eller på grundlag af disse oplysninger, værdier og data. Denne udelukkelse af ansvar gælder ikke, hvis tabet skyldes forsæt eller grov uagtsomhed på den del af Stiebel Eltron eller i tilfælde af en dødsulykke, fysisk skade eller skade på helbredet. | G169: "Stiebel Eltron negarantē, ka informācija un dati ir pietiekami īpašajām klienta vai lietotāja vajadzībām un darbojas kombinācijā ar citu klienta programmatūru un aparatūru. Klients ir atbildīgs par uzstādīšanu, izmantošanu, un paredzēto rezultātu sasniegšanu. Nepastāv garantija par klienta vai lietotāja pārveidotu vai izmainītu programmas versiju vai klientu gatavotu kopiju, ja vien pircējs nepierāda, ka esošie defekti nav saistīti ar izmaiņām, kopiju vai atvasinātiem darbiem. Stiebel Eltron neuzņemas atbildību un garantijas par piedāvāto informāciju, vērtībām, datiem vai ar to palīdzību iegūto rezultātu, datu un ieteikumu kuri noteikti, lai sniegtu informāciju, pilnīgi visos aspektos, kā arī to precizitāti, pareizību un aktualitāti. Stiebel Eltron patur tiesības izdarīt izmaiņas jebkurā laikā un bez brīdinājuma par sniegto informāciju un rezultātiem. Kļūdas un izmaiņas ir skaidri atrunātas. Sniegtie datiem, vērtības un informācija, kā arī no tās atvasinātās vērtības, nevar būt par pamatu finansiāliem lēmumiem vai citiem līdzīgiem mērķiem, bet gan tikai kā pirmā nesaistošā informācija un orientācijas palīgs. Nekādos apstākļos sekojošais plānošanas palīgs neaizstāj Stiebel Eltron vai cita autorizēta partnera konsultāciju. Konkrēta projekta plānošanā, lūdzam, griezieties pie Stiebel Eltron vai cita autorizēta partnera. Stiebel Eltron noraida atbildību par jebkāda veida zaudējumiem, kuri radušies izmantojot vai lietojot sniegto informāciju, vērtības un datus vai ar to palīdzību iegūto informāciju, vērtības, datus un ieteikumus." | H169: Stiebel Eltron non può fornire alcuna garanzia che le informazioni, i valori ed i dati forniti da questo progamma o che i valori, le informazioni e le raccomandazioni determinati con il supporto o sulla base di essi siano completi, accurati, corretti o aggiornati sotto ogni aspetto. Stiebel Eltron si riserva di effettuare variazioni ai dati, ai valori ed alle informazioni forniti in qualsiasi momento e senza alcun preavviso. Salvo errori. Soggetto a cambbiamenti. I valori, i dati, le informazioni e le raccomandazioni determinati con il supporto o sulla base di informazioni, valori e dati forniti da questo progamma non devono in alcun modo costituire la base per una decisione di investimento o per qualsiasi altro scopo, ma piuttosto devono essere considerati una semplice stima preliminare non vincolante, utile come guida iniziale. In nessuna circostanza questo programma di dimensionamento può essere considerato sostitutivo di una consultazione diretta con Stiebel Eltron, con un partner autorizzato Stiebel Eltron o con un tecnico specializzato. Contattare Stiebel Eltron, un partner autorizzato Stiebel Eltron o un tecnico specializzato per avere un dimensionamento esatto del sistema. Stiebel Eltron non si assume alcuna responsabilità per danni o perdite di qualsiasi genere che possano derivare dall'utilizzo di informazioni, valori e dati forniti o da valori, informazioni o raccomandazioni determinati con il supporto o sulla base di essi. Questa esclusione di responsabilità non si applica se la perdita è dovuta a dolo o colpa grave da parte di Stiebel Eltron o in caso di fatalità, lesioni fisiche o danni alla salute.
A170: Outside temperature | B170: Norm-Außentemperatur | C170: Outside temperature | D170: Buitentemperatuur | E170: Vonkjašia teplota | F170: Udetemperatur | G170: Ārgaisa temperatūra | H170: Temperatura esterna
A171: Forward flow temperature | B171: Vorlauftemperatur | C171: Forward flow temperature | D171: Aanvoertemperatuur | E171: Výstupná teplota | F171: Fremløbstemperatur | G171: Apkures turpgaitas temperatūra | H171: Temperatura di mandata
A172: Boiler efficiency | B172: Wirkungsgrad Kessel | C172: Boiler efficiency | D172: Rendement HR Gasketel | E172: Účinnosť kotla | F172: Virkningsgrad keddel | G172: Katla lietderība | H172: Rendimento della caldaia
A173: Distribution losses DHW | B173: Verteilverluste Warmwasser | C173: Distribution losses DHW | D173: Leidingverlies warm tapwater | E173: Tepelná strata potrubia | F173: Varmtvands distributionstab | G173: Sadales siltumzudumi karstajam ūdenim | H173: Perdite per distribuzione ACS
A174: SPF Heat Pump | B174: Arbeitszahl Wärmepumpe | C174: SPF Heat Pump | D174: COP Warmtepomp | E174: Výkonové číslo tepelného čerpadla | F174: Varmepumpe koefficient | G174: Siltumsūkņa sezonas lietderība [SPF] | H174: Efficienza media stagionale pompa di calore
A175: Project data | B175: Projektdaten | C175: Project data | D175: Projectdata | E175: Dáta projetku | F175: Projekt data | G175: Projekta dati | H175: Dati di progetto
A176: Total | B176: Gesamt | C176: Total | D176: Totaal | E176: Celkovo | F176: Total | G176: Kopā | H176: Totale
A177: Costs per year | B177: Kosten pro Jahr | C177: Costs per year | D177: Kosten per jaar | E177: Náklady za rok | F177: Omkostninger pr. år | G177: Gada izmaksas | H177: Costi annui
A178: Temperature | B178: Temperatur | C178: Temperature | D178: Temperatuur | E178: Teplota | F178: Temperatur | G178: Temperatūra | H178: Temperatura
A179: Heating power | B179: Heizleistung | C179: Heating power | D179: Vermogen | E179: Tepelný príkon | F179: Varmeeffekt | G179: Apkures jauda | H179: Potenza per riscaldamento
A180: Annual hours | B180: Jahresstunden | C180: Annual hours | D180: Uren per jaar | E180: Hodín ročne | F180: Årlige timer | G180: Gada apkures stundas | H180: Ore annue
A181: Heat demand | B181: Heizwärmebedarf | C181: Heat demand | D181: Benodigde verwarmingsvermogen | E181: Potreba tepla | F181: Effektbehov | G181: Siltumslodze | H181: Fabbisogno termico
A182: Electricity price | B182: Strompreis Haushalt | C182: Electricity price | D182: Prijs Electra | E182: Cena elektriky | F182: Elpris husholdning | G182: Elektrības cena | H182: Costo dell'energia elettrica
A183: Electricity price heat pump | B183: Strompreis Wärmepumpe | C183: Electricity price heat pump | D183: Prijs Electra Warmtepomp | E183: Cena elektriky pre tepel.čerpadlo | F183: Elpris varmepumpe | G183: Elektrības cena siltumsūknim | H183: Prezzo dell'energia elettrica per la pompa di calore
A184: Heat pump | B184: Wärmepumpe | C184: Heat pump | D184: Warmtepomp | E184: Tepelné čerpadlo | F184: Varmepumpe | G184: Siltumsūknis | H184: Pompa di calore
A185: Oil price | B185: Ölpreis | C185: Oil price | D185: Olieprijs | E185: Cena vykur. Oleja | F185: Oliepris | G185: Dīzeļdegvielas cena centi/litrā | H185: Prezzo del gasolio
A186: Gas price | B186: Gaspreis | C186: Gas price | D186: Gasprijs | E186: Cena zem. Plynu | F186: Gaspris | G186: Gāzes cena | H186: Prezzo del gas metano
A187: pence/kWh | B187: Cent/kWh | C187: pence/kWh | D187: Cent/kWh | E187: cent/kWh | F187: kr./kWh | G187: centi/kWh | H187: centesimi/kWh
A188: pence/liter | B188: Cent/Liter | C188: pence/liter | D188: Cent/Liter | E188: cent/liter | F188: kr./liter | G188: centi/litrā | H188: centesimi/litro
A189: pence/m³ | B189: Cent/m³ | C189: pence/m³ | D189: Cent/m³ | E189: cent/m³ | F189: kr./m³ | G189: centi/m³ | H189: centesimi/m³
A190: CO2-factor | B190: CO2-Faktor | C190: CO2-factor | D190: CO2-Factor | E190: CO2-Faktor | F190: CO2-faktor | G190: CO2-faktors | H190: fattore CO2
A191: electricity | B191: Strom | C191: electricity | D191: Stroom | E191: elektriny | F191: Elektricitet | G191: Elektrība | H191: elettricità
A192: Oil | B192: Öl | C192: Oil | D192: Olie | E192: Oleja | F192: Olie | G192: Dīzeļdegviela | H192: Gasolio
A193: Gas | B193: Gas | C193: Gas | D193: Gas | E193: zem. plynu | F193: Gas | G193: Gāze | H193: Gas metano
A194: Heating power 1. HS | B194: Heizarbeit 1. WE | C194: Heating power 1. HS | D194: Verwarmingsvermogen toestel | E194: Tepelný príkon 1. zdroja | F194: Varmeeffekt 1. VK | G194: Apkures jauda 1. siltumavots | H194: Potenza termica 1° generatore di calore
A195: Heating power 2. HS | B195: Heizarbeit 2. WE | C195: Heating power 2. HS | D195: Verwarmingsvermogen additioneel toestel | E195: Tepelný príkon 2. zdroja | F195: Varmeeffekt 2. VK | G195: Apkures jauda 2. siltumavots | H195: Potenza termica 2° generatore di calore
A196: m³ Gas/Year | B196: m³ Gas/Jahr | C196: m³ Gas/Year | D196: m³ Gas/Jaar | E196: m³ zem.plynu/rok | F196: m³ gas/år | G196: m³ Gāze/gadā | H196: m³ di gas metano / anno
A197: Liter Oil/Year | B197: Liter Öl/Jahr | C197: Liter Oil/Year | D197: Liter Olie/Jaar | E197: Liter zem.plynu/rok | F197: Liter olie/år | G197: Litri Dīzeļdegviela/gadā | H197: litri di gasolio / anno
A198: liter | B198: Liter | C198: liter | D198: Liter | E198: liter | F198: Liter | G198: Litri | H198: litro
A199: Coefficient of Performance | B199: Leistungszahl | C199: Coefficient of Performance | D199: Rendement | E199: Koeficient účinnosti | F199: Virkningsgrad | G199: Lietderības koeficients | H199: Coefficiente di rendimento
A200: COP [-] | B200: COP [-] | C200: COP [-] | D200: COP [-] | E200: COP [-] | F200: COP [-] | G200: COP [-] | H200: COP [-]
A201: comparison | B201: Vergleich | C201: comparison | D201: Vergelijking | E201: Porovnanie | F201: Sammenligning | G201: salīdzinājums | H201: confronto
... 33 more rows

Sheet Slot1 (hidden)
A2: Comboboxen
A3: Heizung | B3: Betriebsweise | C3: Warmwasser | D3: Betrieb | E3: Betriebsweise | F3: Datenblatt | J3: Warmwasser | O3: EEWärmeG | U3: Berechnung Förderung
J4: Art WWB | K4: Index WWB | L4: Endenergie kWh/a | M4: Kosten €/Ja | N4: CO2 kg/a | O4: erfüllt ?
A5: WPL 25 A | B5: Gaskessel | Parallel | C5: WPL 25 A | D5: =IF(A5=A7,2,IF(B5=B7,1,3)) -> 3 | E5: =IF(C157=-30,Translation!A11,VLOOKUP(B5,B6:E50,4,FALSE)) -> Mono-Mode | F5: ="http://tools.stiebel-eltron.de/pdf/apps/product/"&VLOOKUP($A$5,Leistungsdaten!$A:$J,10,FALSE)&"/"&Translation!$A$3 -> http://tools.stiebel-eltron.de/pdf/apps/product/8725/en_DE | K5: =IF(C5=C9,0,IF(C5=C12,5,IF(C5=C11,2,IF(C5=C7,1,IF(C5=C16,3,4))))) -> 1 | L5: =VLOOKUP(K5,K6:N50,2,FALSE) -> 1258.033333 | M5: =VLOOKUP(K5,K6:N50,3,FALSE) -> 231.045 | N5: =VLOOKUP(K5,K6:N50,4,FALSE) -> 781.2387 | O5: =IF(OR(K5=K11,K5=K12),TRUE,IF(A5=A7,FALSE,IF(O15<0.5,FALSE,TRUE))) -> TRUE | U5: Jahr | V5: Manuell | W5: RHI | X5: gewählt
A7: =Berechnung!C61 -> Gaskessel | B7: =Translation!A9 -> No second heat source | C7: =A5 -> WPL 25 A | D7: 1=Nur WP | E7: =Translation!A10 -> Monoenergetic | J7: Ohne Warmwasser | K7: 0 | L7: 0 | M7: 0 | N7: 0 | U7: 1 | V7: =IF(Berechnung!$N$5<>Berechnung!$N$7,0,IF($D$5=2,0,IF(Einstellungen!$D$51>=T74,Einstellungen!$D$49,0))) -> 0 | W7: =IF($C$85="---",0,IF(Berechnung!$N$5<>Berechnung!$N$8,0,IF(Einstellungen!$D$51>=T74,$W$63,0))) -> 0 | X7: =IF(Berechnung!$N$5=Berechnung!$N$7,V7,W7) -> 0
B8: =A7&" | "&Translation!$A$14 -> Gaskessel | Parallel | C8: =A5&" | "&Translation!$A$206 -> WPL 25 A | Solar | D8: 2=nur Öl/Gas | E8: =Translation!A12 -> Bivalent-parallel | J8: Wärmepumpe | K8: 1 | L8: =L13+L14 -> 1258.033333 | M8: =M13+M14 -> 231.045 | N8: =N13+N14 -> 781.2387 | O8: Wärmebedarf | U8: 2 | V8: =IF(Berechnung!$N$5<>Berechnung!$N$7,0,IF($D$5=2,0,IF(Einstellungen!$D$51>=T75,Einstellungen!$D$49,0))) -> 0 | W8: =IF($C$85="---",0,IF(Berechnung!$N$5<>Berechnung!$N$8,0,IF(Einstellungen!$D$51>=T75,$W$63,0))) -> 0 | X8: =IF(Berechnung!$N$5=Berechnung!$N$7,V8,W8) -> 0
B9: =A7&" | "&Translation!$A$15 -> Gaskessel | Alternativ | C9: =Translation!A41 -> without DHW | D9: 3=Bivalent | E9: =Translation!A13 -> Bivalent-alternativ | J9: Gas/Öl | K9: 2 | L9: =Berechnung!$C$76/(Berechnung!$C$82/100) -> 4106.25 | M9: =L9*Berechnung!$C$72 -> 3490.3125 | N9: =L9*Berechnung!$C$73/1000 -> 1038.88125 | O9: =H146+Berechnung!C76 -> 14311.63636 | U9: 3 | V9: =IF(Berechnung!$N$5<>Berechnung!$N$7,0,IF($D$5=2,0,IF(Einstellungen!$D$51>=T76,Einstellungen!$D$49,0))) -> 0 | W9: =IF($C$85="---",0,IF(Berechnung!$N$5<>Berechnung!$N$8,0,IF(Einstellungen!$D$51>=T76,$W$63,0))) -> 0 | X9: =IF(Berechnung!$N$5=Berechnung!$N$7,V9,W9) -> 0
J10: WP+Gas/Öl | K10: 3 | L10: =L16+L17 -> 2372.5 | M10: =M16+M17 -> 1527.525 | N10: =N16+N17 -> 868.8825 | U10: 4 | V10: =IF(Berechnung!$N$5<>Berechnung!$N$7,0,IF($D$5=2,0,IF(Einstellungen!$D$51>=T77,Einstellungen!$D$49,0))) -> 0 | W10: =IF($C$85="---",0,IF(Berechnung!$N$5<>Berechnung!$N$8,0,IF(Einstellungen!$D$51>=T77,$W$63,0))) -> 0 | X10: =IF(Berechnung!$N$5=Berechnung!$N$7,V10,W10) -> 0
C11: =A7 -> Gaskessel | J11: WP+Solar | K11: 4 | L11: =L19+L20 -> 629.0166667 | M11: =M19+M20 -> 115.5225 | N11: =N19+N20 -> 390.61935 | O11: Umweltwärme | U11: 5 | V11: =IF(Berechnung!$N$5<>Berechnung!$N$7,0,IF($D$5=2,0,IF(Einstellungen!$D$51>=T78,Einstellungen!$D$49,0))) -> 0 | W11: =IF($C$85="---",0,IF(Berechnung!$N$5<>Berechnung!$N$8,0,IF(Einstellungen!$D$51>=T78,$W$63,0))) -> 0 | X11: =IF(Berechnung!$N$5=Berechnung!$N$7,V11,W11) -> 0
C12: =A7&" | "&Translation!$A$206 -> Gaskessel | Solar | J12: Öl/Gas+Solar | K12: 5 | L12: =$J$24*Berechnung!$C$76/(Berechnung!$C$82/100) -> 2053.125 | M12: =L12*Berechnung!$C$72 -> 1745.15625 | N12: =L12*Berechnung!$C$73/1000 -> 519.440625 | O12: =J146+K24*Berechnung!C76 -> 14246.3 | U12: 6 | V12: =IF(Berechnung!$N$5<>Berechnung!$N$7,0,IF($D$5=2,0,IF(Einstellungen!$D$51>=T79,Einstellungen!$D$49,0))) -> 0 | W12: =IF($C$85="---",0,IF(Berechnung!$N$5<>Berechnung!$N$8,0,IF(Einstellungen!$D$51>=T79,$W$63,0))) -> 0 | X12: =IF(Berechnung!$N$5=Berechnung!$N$7,V12,W12) -> 0
C13: =Translation!A41 -> without DHW | J13: Nebenrechnung | K13: Mononenerg. WP | L13: =$C$75*Berechnung!$C$76/$C$74 -> 1192.333333 | M13: =L13*Berechnung!$C$79/100 -> 214.62 | N13: =L13*Berechnung!$C$69/1000 -> 740.439 | U13: 7 | V13: =IF(Berechnung!$N$5<>Berechnung!$N$7,0,IF($D$5=2,0,IF(Einstellungen!$D$51>=T80,Einstellungen!$D$49,0))) -> 0 | W13: =IF($C$85="---",0,IF(Berechnung!$N$5<>Berechnung!$N$8,0,IF(Einstellungen!$D$51>=T80,$W$63,0))) -> 0 | X13: =IF(Berechnung!$N$5=Berechnung!$N$7,V13,W13) -> 0
J14: Nebenrechnung | K14: Mononenerg. DHC | L14: =(1-$C$75)*Berechnung!$C$76 -> 65.7 | M14: =L14*Berechnung!$C$78/100 -> 16.425 | N14: =L14*Berechnung!$C$69/1000 -> 40.7997 | O14: Anteil Umwelt | U14: 8 | V14: =IF(Berechnung!$N$5<>Berechnung!$N$7,0,IF($D$5=2,0,IF(Einstellungen!$D$51>=T81,Einstellungen!$D$49,0))) -> 0 | W14: =IF($C$85="---",0,IF(Berechnung!$N$5<>Berechnung!$N$8,0,IF(Einstellungen!$D$51>=T81,$W$63,0))) -> 0 | X14: =IF(Berechnung!$N$5=Berechnung!$N$7,V14,W14) -> 0
C15: =C7 -> WPL 25 A | O15: =O12/O9 -> 0.9954347384 | U15: 9 | V15: =IF(Berechnung!$N$5<>Berechnung!$N$7,0,IF($D$5=2,0,IF(Einstellungen!$D$51>=T82,Einstellungen!$D$49,0))) -> 0 | W15: =IF($C$85="---",0,IF(Berechnung!$N$5<>Berechnung!$N$8,0,IF(Einstellungen!$D$51>=T82,$W$63,0))) -> 0 | X15: =IF(Berechnung!$N$5=Berechnung!$N$7,V15,W15) -> 0
C16: =A5&" | "&A7 -> WPL 25 A | Gaskessel | J16: Nebenrechnung | K16: Bivalent WP | L16: =$C$76*Berechnung!$C$76/$C$74 -> 730 | M16: =L16*Berechnung!$C$79/100 -> 131.4 | N16: =L16*Berechnung!$C$69/1000 -> 453.33 | U16: 10 | V16: =IF(Berechnung!$N$5<>Berechnung!$N$7,0,IF($D$5=2,0,IF(Einstellungen!$D$51>=T83,Einstellungen!$D$49,0))) -> 0 | W16: =IF($C$85="---",0,IF(Berechnung!$N$5<>Berechnung!$N$8,0,IF(Einstellungen!$D$51>=T83,$W$63,0))) -> 0 | X16: =IF(Berechnung!$N$5=Berechnung!$N$7,V16,W16) -> 0
C17: =C11 -> Gaskessel | J17: Nebenrechnung | K17: Bivalent Kessel | L17: =((1-$C$76)*Berechnung!$C$76)/(Berechnung!$C$82/100) -> 1642.5 | M17: =L17*Berechnung!$C$72 -> 1396.125 | N17: =L17*Berechnung!$C$73/1000 -> 415.5525 | U17: 11 | V17: =IF(Berechnung!$N$5<>Berechnung!$N$7,0,IF($D$5=2,0,IF(Einstellungen!$D$51>=T84,Einstellungen!$D$49,0))) -> 0 | W17: =IF($C$85="---",0,IF(Berechnung!$N$5<>Berechnung!$N$8,0,IF(Einstellungen!$D$51>=T84,$W$63,0))) -> 0 | X17: =IF(Berechnung!$N$5=Berechnung!$N$7,V17,W17) -> 0
C18: =C8 -> WPL 25 A | Solar | U18: 12 | V18: =IF(Berechnung!$N$5<>Berechnung!$N$7,0,IF($D$5=2,0,IF(Einstellungen!$D$51>=T85,Einstellungen!$D$49,0))) -> 0 | W18: =IF($C$85="---",0,IF(Berechnung!$N$5<>Berechnung!$N$8,0,IF(Einstellungen!$D$51>=T85,$W$63,0))) -> 0 | X18: =IF(Berechnung!$N$5=Berechnung!$N$7,V18,W18) -> 0
C19: =C12 -> Gaskessel | Solar | J19: Nebenrechnung | K19: Monoenerg. WP+Solar | L19: =$C$75*$J$24*Berechnung!$C$76/$C$74 -> 596.1666667 | M19: =L19*Berechnung!$C$79/100 -> 107.31 | N19: =L19*Berechnung!$C$69/1000 -> 370.2195 | U19: 13 | V19: =IF(Berechnung!$N$5<>Berechnung!$N$7,0,IF($D$5=2,0,IF(Einstellungen!$D$51>=T86,Einstellungen!$D$49,0))) -> 0 | W19: =IF($C$85="---",0,IF(Berechnung!$N$5<>Berechnung!$N$8,0,IF(Einstellungen!$D$51>=T86,$W$63,0))) -> 0 | X19: =IF(Berechnung!$N$5=Berechnung!$N$7,V19,W19) -> 0
C20: =Translation!A41 -> without DHW | J20: Nebenrechnung | K20: Mononenerg. DHC | L20: =(1-$C$75)*$J$24*Berechnung!$C$76 -> 32.85 | M20: =L20*Berechnung!$C$78/100 -> 8.2125 | N20: =L20*Berechnung!$C$69/1000 -> 20.39985 | U20: 14 | V20: =IF(Berechnung!$N$5<>Berechnung!$N$7,0,IF($D$5=2,0,IF(Einstellungen!$D$51>=T87,Einstellungen!$D$49,0))) -> 0 | W20: =IF($C$85="---",0,IF(Berechnung!$N$5<>Berechnung!$N$8,0,IF(Einstellungen!$D$51>=T87,$W$63,0))) -> 0 | X20: =IF(Berechnung!$N$5=Berechnung!$N$7,V20,W20) -> 0
U21: 15 | V21: =IF(Berechnung!$N$5<>Berechnung!$N$7,0,IF($D$5=2,0,IF(Einstellungen!$D$51>=T88,Einstellungen!$D$49,0))) -> 0 | W21: =IF($C$85="---",0,IF(Berechnung!$N$5<>Berechnung!$N$8,0,IF(Einstellungen!$D$51>=T88,$W$63,0))) -> 0 | X21: =IF(Berechnung!$N$5=Berechnung!$N$7,V21,W21) -> 0
J23: Faktor Solar | K23: Deckung
J24: =(100-Berechnung!$C$77)/100 -> 0.5 | K24: =IF(K5=3,C76,C75) -> 0.98
W44: Ersparnis Öl/Gas | X44: Ausgabe
W45: =ROUND((W89+AC89)-AI89+AA89+U89,-2) -> 271200 | X45: =IF(ISERROR(W45),"---",IF(A5=A7,"---","approx. £"&FIXED(W45,0))) -> approx. £271.200
W47: Invest | X47: Ausgabe
W48: =VLOOKUP(A5,Leistungsdaten!$A:$K,11,FALSE)+Einstellungen!$D$57 -> 11500 | X48: =IF(ISERROR(W48),"---",IF(A5=A7,"---","approx. £"&FIXED(W48,0))) -> approx. £11.500
W50: QH
W51: =IF(D5=2,0,J146) -> 11027 | X51: =FIXED(W51,0)&" kWh/year" -> 11.027 kWh/year
W53: QWW
W54: =IF(OR(K5=K8,K10,K5=K11),Berechnung!C76*K24,0) -> 3219.3 | X54: =FIXED(W54,0)&" kWh/year" -> 3.219 kWh/year
X55: =FIXED(W51+W54,0)&" kWh/year" -> 14.246 kWh/year
W56: COP-RHI
W57: =IF(C73=1,Berechnung!$B$127,Berechnung!$C$127) -> 3.6 | X57: =IF(C73=0,"---",FIXED(W57,1)) -> 3,6
W59: Fördersatz RHI
W60: =IF($C$73=1,Einstellungen!$D$53,Einstellungen!$D$55) -> 0 | X60: =IF(C73=0,"---",FIXED(W60*100,1)&" p/kWh") -> 0,0 p/kWh
W62: Fördersumme | X62: =IF(U89+AA89=0,"---","£"&FIXED(U89+AA89,0)) -> ---
W63: =W60*(W51+W54)*(1-1/W57) -> 0 | X63: =IF(W63=0,"---","£"&FIXED(W63,0)) -> ---
A72: Rechenwerte | F72: Import WP-Leistung | K72: Kosten | U72: Preisentwicklung Heizung | AA72: Preisentwicklung Warmwasser | AI72: Gesamt | AK72: Ergebnisausgabe
A73: Wärmequelle | C73: =VLOOKUP(A5,Leistungsdaten!A:F,6,FALSE) -> 1 | F73: Außentemp | G73: Leistung WP | H73: COP Rechnung | K73: Kategorie | L73: Nur WP | M73: Bivalent | N73: Nur Öl/Gas | O73: WP+Solar | P73: Öl/Gas+Solar | Q73: Gewählt | R73: Ausgabe | T73: Jahr | U73: Förderung | V73: Nur WP | W73: Nur Öl/Gas | X73: Bivalent WP | Y73: Bivalent Öl | Z73: Gewählt | AA73: Förderung | AB73: Nur WP | AC73: Nur Öl/Gas | AD73: Bivalent WP | AE73: Bivalent Öl | AF73: WP+Solar | AG73: Öl/Gas+Solar | AH73: Gewählt | AK73: Auswahl | AL73: Gewählt ? | AM73: Text Hauptergebnis | AN73: Wert Hauptergebnis | AO73: Text Teilergebnis 1 | AP73: Wert Teilergebnis 1 | AQ73: Text Teilergebnis 2 | AR73: Wert Teilergebnis 2 | AS73: Text Teilergebnis 3 | AT73: Wert Teilergebnis 3
A74: JAZ-WWB | C74: =VLOOKUP(A5,Leistungsdaten!A:C,3,FALSE) -> 2.7 | K74: 1. WE | L74: =M146 -> 445.8640067 | M74: =L74 -> 445.8640067 | N74: =AE146 -> 9662.516401 | O74: =L74 -> 445.8640067 | P74: =N74 -> 9662.516401 | Q74: =IF($D$5=1,L74,IF($D$5=2,N74,M74)) -> 445.8640067 | R74: =FIXED(Q74,0)&" "&Translation!$A$77 -> 446 £/Year | T74: 1 | U74: =X7 -> 0 | V74: =L74+L75 -> 445.8640067 | W74: =N74+N75 -> 9662.516401 | X74: =M74 -> 445.8640067 | Y74: =M75 -> 0 | Z74: =(IF($D$5=1,V74,IF($D$5=2,W74,X74+Y74))) -> 445.8640067 | AA74: =IF($K$5<3,0,IF(Einstellungen!$D$55>=T74,Einstellungen!$D$53,0)) -> 0 | AB74: =M8 -> 231.045 | AC74: =M9 -> 3490.3125 | AD74: =M16 -> 131.4 | AE74: =M17 -> 1396.125 | AF74: =M11 -> 115.5225 | AG74: =M12 -> 1745.15625 | AH74: =IF($K$5=0,0,IF($K$5=1,AB74,IF($K$5=2,AC74,IF($K$5=3,AD74+AE74,IF($K$5=4,AF74,AG74))))) -> 231.045 | AI74: =Z74+AH74 -> 676.9090067 | AK74: Energiekosten | AL74: =Berechnung!C85 -> FALSE | AM74: =Translation!A68 -> Energy costs | AN74: =R77 -> 677 £/Year | AO74: =C81 -> WPL 25 A | AP74: =R74 -> 446 £/Year | AQ74: =C82 -> Gaskessel | AR74: =R75 -> 0 £/Year | AS74: =C83 -> DHW | AT74: =R76 -> 231 £/Year
A75: Deckung WP WW Monoenergetisch | C75: =VLOOKUP(A5,Leistungsdaten!A:D,4,FALSE) -> 0.98 | F75: -20 | G75: 8 | H75: 2.5 | K75: 2. WE | L75: =Q146 -> 0 | M75: =U146 -> 0 | N75: 0 | O75: =L75 -> 0 | P75: =N75 -> 0 | Q75: =IF($D$5=1,L75,IF($D$5=2,N75,M75)) -> 0 | R75: =FIXED(Q75,0)&" "&Translation!$A$77 -> 0 £/Year | T75: 2 | U75: =X8 -> 0 | V75: =(1+Berechnung!$C$80/100)*V74 -> 459.2399269 | W75: =(1+Berechnung!$C$74/100)*W74 -> 10145.64222 | X75: =(1+Berechnung!$C$80/100)*X74 -> 459.2399269 | Y75: =(1+Berechnung!$C$74/100)*Y74 -> 0 | Z75: =(IF($D$5=1,V75,IF($D$5=2,W75,X75+Y75))) -> 459.2399269 | AA75: =IF($K$5<3,0,IF(Einstellungen!$D$55>=T75,Einstellungen!$D$53,0)) -> 0 | AB75: =(1+Berechnung!$C$80/100)*AB74 -> 237.97635 | AC75: =(1+Berechnung!$C$74/100)*AC74 -> 3664.828125 | AD75: =(1+Berechnung!$C$80/100)*AD74 -> 135.342 | AE75: =(1+Berechnung!$C$74/100)*AE74 -> 1465.93125 | AF75: =(1+Berechnung!$C$80/100)*AF74 -> 118.988175 | AG75: =(1+Berechnung!$C$74/100)*AG74 -> 1832.414062 | AH75: =IF($K$5=0,0,IF($K$5=1,AB75,IF($K$5=2,AC75,IF($K$5=3,AD75+AE75,IF($K$5=4,AF75,AG75))))) -> 237.97635 | AI75: =Z75+AH75 -> 697.2162769 | AK75: Kostenentwicklung | AL75: =Berechnung!C86 -> FALSE | AM75: =Translation!A82 -> Energy costs 15 years | AN75: =FIXED(AI89-U89-AA89,0)&" "&Translation!$A$209 -> 12.590 £ | AO75: =C80 -> WPL 25 A | Gaskessel | AP75: =FIXED(Z89,0)&" "&Translation!$A$209 -> 8.293 £ | AQ75: =Translation!A40 -> DHW | AR75: =FIXED(AH89,0)&" "&Translation!$A$209 -> 4.297 £ | AS75: =Translation!A212 -> Subvention | AT75: =FIXED(U89+AA89,0)&" "&Translation!$A$209 -> 0 £
A76: Deckung WP WW Bivalent | C76: =VLOOKUP(A5,Leistungsdaten!$A:$E,5,FALSE) -> 0.6 | F76: -17.5 | G76: 9.2 | H76: 2.714285714 | K76: Warmwasser | L76: =M8 -> 231.045 | M76: =M10 -> 1527.525 | N76: =M9 -> 3490.3125 | O76: =M11 -> 115.5225 | P76: =M12 -> 1745.15625 | Q76: =IF($K$5=0,0,IF($K$5=1,L76,IF($K$5=3,M76,IF($K$5=2,N76,IF($K$5=4,O76,P76))))) -> 231.045 | R76: =IF($K$5=0,"",FIXED(Q76,0)&" "&Translation!$A$77) -> 231 £/Year | T76: 3 | U76: 0 | V76: =(1+Berechnung!$C$80/100)*V75 -> 473.0171247 | W76: =(1+Berechnung!$C$74/100)*W75 -> 10652.92433 | X76: =(1+Berechnung!$C$80/100)*X75 -> 473.0171247 | Y76: =(1+Berechnung!$C$74/100)*Y75 -> 0 | Z76: 473.0171247 | AA76: =IF($K$5<3,0,IF(Einstellungen!$D$55>=T76,Einstellungen!$D$53,0)) -> 0 | AB76: =(1+Berechnung!$C$80/100)*AB75 -> 245.1156405 | AC76: =(1+Berechnung!$C$74/100)*AC75 -> 3848.069531 | AD76: =(1+Berechnung!$C$80/100)*AD75 -> 139.40226 | AE76: =(1+Berechnung!$C$74/100)*AE75 -> 1539.227813 | AF76: =(1+Berechnung!$C$80/100)*AF75 -> 122.5578203 | AG76: =(1+Berechnung!$C$74/100)*AG75 -> 1924.034766 | AH76: 245.1156405 | AI76: =Z76+AH76 -> 718.1327652 | AK76: Heizlast/Bivpunkt | AL76: =Berechnung!C87 -> TRUE | AQ76: =Translation!A6 -> Operating mode | AR76: =E5 -> Mono-Mode | AS76: =IF(C157=-30,"",Translation!A38) ->  | AT76: =IF(C157=-30,"",FIXED(C157,1)&" °C") -> 
A77: Startzeile Leistungsdaten WP | C77: =VLOOKUP(A5,Leistungsdaten!$A:$G,7,FALSE) -> 235 | F77: -15 | G77: 10.4 | H77: 2.857142857 | K77: Summe | L77: =SUM(L74:L76) -> 676.9090067 | M77: =SUM(M74:M76) -> 1973.389007 | N77: =SUM(N74:N76) -> 13152.8289 | O77: =SUM(O74:O76) -> 561.3865067 | P77: =SUM(P74:P76) -> 11407.67265 | Q77: =SUM(Q74:Q76) -> 676.9090067 | R77: =FIXED(Q77,0)&" "&Translation!$A$77 -> 677 £/Year | T77: 4 | U77: 0 | V77: =(1+Berechnung!$C$80/100)*V76 -> 487.2076384 | W77: =(1+Berechnung!$C$74/100)*W76 -> 11185.57055 | X77: =(1+Berechnung!$C$80/100)*X76 -> 487.2076384 | Y77: =(1+Berechnung!$C$74/100)*Y76 -> 0 | Z77: 487.2076384 | AA77: =IF($K$5<3,0,IF(Einstellungen!$D$55>=T77,Einstellungen!$D$53,0)) -> 0 | AB77: =(1+Berechnung!$C$80/100)*AB76 -> 252.4691097 | AC77: =(1+Berechnung!$C$74/100)*AC76 -> 4040.473008 | AD77: =(1+Berechnung!$C$80/100)*AD76 -> 143.5843278 | AE77: =(1+Berechnung!$C$74/100)*AE76 -> 1616.189203 | AF77: =(1+Berechnung!$C$80/100)*AF76 -> 126.2345549 | AG77: =(1+Berechnung!$C$74/100)*AG76 -> 2020.236504 | AH77: 252.4691097 | AI77: 739.6767482 | AK77: Jahresheizarbeit | AL77: =Berechnung!C88 -> FALSE | AM77: =Translation!A57 -> Yearly heat demand | AN77: =FIXED(H146,0)&" kWh" -> 11.027 kWh | AO77: =Translation!A66&" "&C81 -> Annual heating WPL 25 A | AP77: =FIXED(S155,0)&" kWh" -> 11.027 kWh | AQ77: =Translation!A66&" "&C82 -> Annual heating Gaskessel | AR77: =FIXED(S156,0)&" kWh" -> 0 kWh | AS77: =IF(K5=0,"",Translation!$A$211) -> Annual heating DHW | AT77: =IF(K5=0,"",FIXED(Berechnung!C76,0)&" kWh") -> 3.285 kWh
A78: Anzahl WP | C78: =VLOOKUP(A5,Leistungsdaten!$A:$H,8,FALSE) -> 1 | F78: -12.5 | G78: 11.6 | H78: 3.056338028 | T78: 5 | U78: 0 | V78: =(1+Berechnung!$C$80/100)*V77 -> 501.8238676 | W78: =(1+Berechnung!$C$74/100)*W77 -> 11744.84908 | X78: =(1+Berechnung!$C$80/100)*X77 -> 501.8238676 | Y78: =(1+Berechnung!$C$74/100)*Y77 -> 0 | Z78: 501.8238676 | AA78: =IF($K$5<3,0,IF(Einstellungen!$D$55>=T78,Einstellungen!$D$53,0)) -> 0 | AB78: =(1+Berechnung!$C$80/100)*AB77 -> 260.043183 | AC78: =(1+Berechnung!$C$74/100)*AC77 -> 4242.496658 | AD78: =(1+Berechnung!$C$80/100)*AD77 -> 147.8918576 | AE78: =(1+Berechnung!$C$74/100)*AE77 -> 1696.998663 | AF78: =(1+Berechnung!$C$80/100)*AF77 -> 130.0215915 | AG78: =(1+Berechnung!$C$74/100)*AG77 -> 2121.248329 | AH78: 260.043183 | AI78: 761.8670506 | AK78: CO2 | AL78: =Berechnung!C89 -> FALSE | AM78: =Translation!A69 -> CO2-emission | AN78: =R95 -> 2.319 kg/year | AO78: =AO74 -> WPL 25 A | AP78: =R92 -> 1.538 kg/year | AQ78: =AQ74 -> Gaskessel | AR78: =R93 -> 0 kg/year | AS78: =AS74 -> DHW | AT78: =R94 -> 781 kg/year
A79: Bivalent einsetzbar ? | C79: =VLOOKUP(A5,Leistungsdaten!$A:$I,9,FALSE) -> TRUE | F79: -10 | G79: 12.8 | H79: 3.186046512 | T79: 6 | U79: 0 | V79: =(1+Berechnung!$C$80/100)*V78 -> 516.8785836 | W79: =(1+Berechnung!$C$74/100)*W78 -> 12332.09153 | X79: =(1+Berechnung!$C$80/100)*X78 -> 516.8785836 | Y79: =(1+Berechnung!$C$74/100)*Y78 -> 0 | Z79: 516.8785836 | AA79: =IF($K$5<3,0,IF(Einstellungen!$D$55>=T79,Einstellungen!$D$53,0)) -> 0 | AB79: =(1+Berechnung!$C$80/100)*AB78 -> 267.8444785 | AC79: =(1+Berechnung!$C$74/100)*AC78 -> 4454.621491 | AD79: =(1+Berechnung!$C$80/100)*AD78 -> 152.3286134 | AE79: =(1+Berechnung!$C$74/100)*AE78 -> 1781.848596 | AF79: =(1+Berechnung!$C$80/100)*AF78 -> 133.9222392 | AG79: =(1+Berechnung!$C$74/100)*AG78 -> 2227.310746 | AH79: 267.8444785 | AI79: 784.7230621 | AK79: Endenergie | AL79: =Berechnung!C90 -> FALSE | AM79: =Translation!A62 -> Final energy | AN79: =R86 -> 3.735 kWh/Year | AO79: =AO74 -> WPL 25 A | AP79: =R83 -> 2.477 kWh/Year | AQ79: =AQ74 -> Gaskessel | AR79: =R84 -> 0 kWh/Year | AS79: =AS74 -> DHW | AT79: =R85 -> 1.258 kWh/Year
A80: Überschrift Slot | C80: =IF(C86=FALSE,"-",IF(D5=1,A5,IF(D5=2,A5,A5&" | "&A7))) -> WPL 25 A | Gaskessel | F80: -7.5 | G80: 14 | H80: 3.417431193 | T80: 7 | U80: 0 | V80: =(1+Berechnung!$C$80/100)*V79 -> 532.3849411 | W80: =(1+Berechnung!$C$74/100)*W79 -> 12948.69611 | X80: =(1+Berechnung!$C$80/100)*X79 -> 532.3849411 | Y80: =(1+Berechnung!$C$74/100)*Y79 -> 0 | Z80: 532.3849411 | AA80: =IF($K$5<3,0,IF(Einstellungen!$D$55>=T80,Einstellungen!$D$53,0)) -> 0 | AB80: =(1+Berechnung!$C$80/100)*AB79 -> 275.8798129 | AC80: =(1+Berechnung!$C$74/100)*AC79 -> 4677.352566 | AD80: =(1+Berechnung!$C$80/100)*AD79 -> 156.8984718 | AE80: =(1+Berechnung!$C$74/100)*AE79 -> 1870.941026 | AF80: =(1+Berechnung!$C$80/100)*AF79 -> 137.9399064 | AG80: =(1+Berechnung!$C$74/100)*AG79 -> 2338.676283 | AH80: 275.8798129 | AI80: 808.264754 | AK80: COP | AL80: =Berechnung!C91 -> FALSE
A81: Ausgabe 1. WE | C81: =A5 -> WPL 25 A | F81: -5 | G81: 15.2 | H81: 3.568181818 | K81: Endenergie | T81: 8 | U81: 0 | V81: =(1+Berechnung!$C$80/100)*V80 -> 548.3564894 | W81: =(1+Berechnung!$C$74/100)*W80 -> 13596.13091 | X81: =(1+Berechnung!$C$80/100)*X80 -> 548.3564894 | Y81: =(1+Berechnung!$C$74/100)*Y80 -> 0 | Z81: 548.3564894 | AA81: =IF($K$5<3,0,IF(Einstellungen!$D$55>=T81,Einstellungen!$D$53,0)) -> 0 | AB81: =(1+Berechnung!$C$80/100)*AB80 -> 284.1562072 | AC81: =(1+Berechnung!$C$74/100)*AC80 -> 4911.220194 | AD81: =(1+Berechnung!$C$80/100)*AD80 -> 161.6054259 | AE81: =(1+Berechnung!$C$74/100)*AE80 -> 1964.488078 | AF81: =(1+Berechnung!$C$80/100)*AF80 -> 142.0781036 | AG81: =(1+Berechnung!$C$74/100)*AG80 -> 2455.610097 | AH81: 284.1562072 | AI81: 832.5126966 | AK81: Ausgabe | AM81: =VLOOKUP(TRUE,$AL$74:$AT$80,2,FALSE) ->  | AN81: =VLOOKUP(TRUE,$AL$74:$AT$80,3,FALSE) ->  | AO81: =VLOOKUP(TRUE,$AL$74:$AT$80,4,FALSE) ->  | AP81: =VLOOKUP(TRUE,$AL$74:$AT$80,5,FALSE) ->  | AQ81: =VLOOKUP(TRUE,$AL$74:$AT$80,6,FALSE) -> Operating mode | AR81: =VLOOKUP(TRUE,$AL$74:$AT$80,7,FALSE) -> Mono-Mode | AS81: =VLOOKUP(TRUE,$AL$74:$AT$80,8,FALSE) ->  | AT81: =VLOOKUP(TRUE,$AL$74:$AT$80,9,FALSE) -> 
A82: Ausgabe 2. WE | C82: =IF(D5=1,Translation!A75,IF(D5=2,Translation!A16,A7)) -> Gaskessel | F82: -2.5 | G82: 16.4 | H82: 3.881818182 | K82: Kategorie | L82: Nur WP | M82: Bivalent | N82: Nur Öl/Gas | O82: WP+Solar | P82: Öl/Gas+Solar | Q82: Gewählt | R82: Ausgabe | T82: 9 | U82: 0 | V82: =(1+Berechnung!$C$80/100)*V81 -> 564.807184 | W82: =(1+Berechnung!$C$74/100)*W81 -> 14275.93746 | X82: =(1+Berechnung!$C$80/100)*X81 -> 564.807184 | Y82: =(1+Berechnung!$C$74/100)*Y81 -> 0 | Z82: 564.807184 | AA82: =IF($K$5<3,0,IF(Einstellungen!$D$55>=T82,Einstellungen!$D$53,0)) -> 0 | AB82: =(1+Berechnung!$C$80/100)*AB81 -> 292.6808935 | AC82: =(1+Berechnung!$C$74/100)*AC81 -> 5156.781204 | AD82: =(1+Berechnung!$C$80/100)*AD81 -> 166.4535887 | AE82: =(1+Berechnung!$C$74/100)*AE81 -> 2062.712481 | AF82: =(1+Berechnung!$C$80/100)*AF81 -> 146.3404467 | AG82: =(1+Berechnung!$C$74/100)*AG81 -> 2578.390602 | AH82: 292.6808935 | AI82: 857.4880775
A83: Ausgabe WWB | C83: =IF(K5=0,"",Translation!A40) -> DHW | F83: 0 | G83: 17.6 | H83: 4.441919192 | K83: 1. WE | L83: =L146 -> 2477.022259 | M83: =L83 -> 2477.022259 | N83: =IF(Berechnung!H5=Berechnung!H7,IF(Berechnung!C95=2,AD146/Berechnung!C101,AD146),IF(Berechnung!C95=2,AD146/Berechnung!C102,AD146)) -> 11367.66635 | O83: =L83 -> 2477.022259 | P83: =N83 -> 11367.66635 | Q83: =IF($D$5=1,L83,IF($D$5=2,N83,M83)) -> 2477.022259 | R83: =IF(Berechnung!H5=Berechnung!H7,IF(AND(D5=2,Berechnung!C95=2),FIXED(Q83,0)&" "&Translation!$A$196,FIXED(Q83,0)&" "&Translation!$A$79),IF(AND(D5=2,Berechnung!C95=2),FIXED(Q83,0)&" "&Translation!$A$197,FIXED(Q83,0)&" "&Translation!$A$79)) -> 2.477 kWh/Year | T83: 10 | U83: 0 | V83: =(1+Berechnung!$C$80/100)*V82 -> 581.7513996 | W83: =(1+Berechnung!$C$74/100)*W82 -> 14989.73433 | X83: =(1+Berechnung!$C$80/100)*X82 -> 581.7513996 | Y83: =(1+Berechnung!$C$74/100)*Y82 -> 0 | Z83: 581.7513996 | AA83: =IF($K$5<3,0,IF(Einstellungen!$D$55>=T83,Einstellungen!$D$53,0)) -> 0 | AB83: =(1+Berechnung!$C$80/100)*AB82 -> 301.4613203 | AC83: =(1+Berechnung!$C$74/100)*AC82 -> 5414.620264 | AD83: =(1+Berechnung!$C$80/100)*AD82 -> 171.4471964 | AE83: =(1+Berechnung!$C$74/100)*AE82 -> 2165.848106 | AF83: =(1+Berechnung!$C$80/100)*AF82 -> 150.7306601 | AG83: =(1+Berechnung!$C$74/100)*AG82 -> 2707.310132 | AH83: =IF($K$5=0,0,IF($K$5=1,AB83,IF($K$5=2,AC83,IF($K$5=3,AD83+AE83,IF($K$5=4,AF83,AG83))))) -> 301.4613203 | AI83: 883.2127198
A84: Ausgabe Wärmepume/Kessel | C84: =IF(A5=A7,A5,Translation!$A$5) -> Heat pump | F84: 2.5 | G84: 18.8 | H84: 4.75993662 | K84: 2. WE | L84: =P146 -> 0 | M84: =T146 -> 0 | N84: 0 | O84: =L84 -> 0 | P84: =N84 -> 0 | Q84: =IF($D$5=1,L84,IF($D$5=2,N84,M84)) -> 0 | R84: =IF(Berechnung!H5=Berechnung!H7,IF(AND(D5=2,Berechnung!C95=2),FIXED(Q84,0)&" "&Translation!$A$196,FIXED(Q84,0)&" "&Translation!$A$79),IF(AND(D5=2,Berechnung!C95=2),FIXED(Q84,0)&" "&Translation!$A$197,FIXED(Q84,0)&" "&Translation!$A$79)) -> 0 kWh/Year | T84: 11 | U84: 0 | V84: =(1+Berechnung!$C$80/100)*V83 -> 599.2039416 | W84: =(1+Berechnung!$C$74/100)*W83 -> 15739.22105 | X84: =(1+Berechnung!$C$80/100)*X83 -> 599.2039416 | Y84: =(1+Berechnung!$C$74/100)*Y83 -> 0 | Z84: 599.2039416 | AA84: =IF($K$5<3,0,IF(Einstellungen!$D$55>=T84,Einstellungen!$D$53,0)) -> 0 | AB84: =(1+Berechnung!$C$80/100)*AB83 -> 310.5051599 | AC84: =(1+Berechnung!$C$74/100)*AC83 -> 5685.351277 | AD84: =(1+Berechnung!$C$80/100)*AD83 -> 176.5906122 | AE84: =(1+Berechnung!$C$74/100)*AE83 -> 2274.140511 | AF84: =(1+Berechnung!$C$80/100)*AF83 -> 155.2525799 | AG84: =(1+Berechnung!$C$74/100)*AG83 -> 2842.675639 | AH84: 310.5051599 | AI84: 909.7091014
A85: Zertifikat MCS | C85: =VLOOKUP(A5,Leistungsdaten!A:L,12,FALSE) -> MCS HP 0046/38 | F85: 5 | G85: 20 | H85: 4.981092437 | K85: Warmwasser | L85: =L8 -> 1258.033333 | M85: =L10 -> 2372.5 | N85: =IF(Berechnung!H5=Berechnung!H7,IF(Berechnung!C95=2,L9/Berechnung!C101,L9),IF(Berechnung!C95=2,L9/Berechnung!C102,L9)) -> 4106.25 | O85: =IF(Berechnung!H5=Berechnung!H7,IF(Berechnung!C95=2,L11/Berechnung!C101,L11),IF(Berechnung!C95=2,L11/Berechnung!C102,L11)) -> 629.0166667 | P85: =IF(Berechnung!H5=Berechnung!H7,IF(Berechnung!C95=2,L12/Berechnung!C101,L12),IF(Berechnung!C95=2,L12/Berechnung!C102,L12)) -> 2053.125 | Q85: =IF($K$5=0,0,IF($K$5=1,L85,IF($K$5=3,M85,IF($K$5=2,N85,IF($K$5=4,O85,P85))))) -> 1258.033333 | R85: =IF(Berechnung!H5=Berechnung!H7,IF(AND(D5=2,Berechnung!C95=2),IF($K$5=0,"",FIXED(Q85,0)&" "&Translation!$A$196),IF($K$5=0,"",FIXED(Q85,0)&" "&Translation!$A$79)),IF(AND(D5=2,Berechnung!C95=2),IF($K$5=0,"",FIXED(Q85,0)&" "&Translation!$A$197),IF($K$5=0,"",FIXED(Q85,0)&" "&Translation!$A$79))) -> 1.258 kWh/Year | T85: 12 | U85: 0 | V85: =(1+Berechnung!$C$80/100)*V84 -> 617.1800598 | W85: =(1+Berechnung!$C$74/100)*W84 -> 16526.1821 | X85: =(1+Berechnung!$C$80/100)*X84 -> 617.1800598 | Y85: =(1+Berechnung!$C$74/100)*Y84 -> 0 | Z85: 617.1800598 | AA85: =IF($K$5<3,0,IF(Einstellungen!$D$55>=T85,Einstellungen!$D$53,0)) -> 0 | AB85: =(1+Berechnung!$C$80/100)*AB84 -> 319.8203147 | AC85: =(1+Berechnung!$C$74/100)*AC84 -> 5969.618841 | AD85: =(1+Berechnung!$C$80/100)*AD84 -> 181.8883306 | AE85: =(1+Berechnung!$C$74/100)*AE84 -> 2387.847536 | AF85: =(1+Berechnung!$C$80/100)*AF84 -> 159.9101573 | AG85: =(1+Berechnung!$C$74/100)*AG84 -> 2984.80942 | AH85: 319.8203147 | AI85: 937.0003745 | AL85: Diagramm Preisentwicklung
A86: Slot anzeigen ? | C86: TRUE | F86: 7.5 | G86: 20.8 | H86: 5.404801022 | K86: Summe | L86: =SUM(L83:L85) -> 3735.055593 | M86: =SUM(M83:M85) -> 4849.522259 | N86: =SUM(N83:N85) -> 15473.91635 | O86: 3106.038926 | P86: 13420.79135 | Q86: =SUM(Q83:Q85) -> 3735.055593 | R86: =IF(Berechnung!H5=Berechnung!H7,IF(AND(D5=2,Berechnung!C95=2),FIXED(Q86,0)&" "&Translation!$A$196,FIXED(Q86,0)&" "&Translation!$A$79),IF(AND(D5=2,Berechnung!C95=2),FIXED(Q86,0)&" "&Translation!$A$197,FIXED(Q86,0)&" "&Translation!$A$79)) -> 3.735 kWh/Year | T86: 13 | U86: 0 | V86: =(1+Berechnung!$C$80/100)*V85 -> 635.6954616 | W86: =(1+Berechnung!$C$74/100)*W85 -> 17352.4912 | X86: =(1+Berechnung!$C$80/100)*X85 -> 635.6954616 | Y86: =(1+Berechnung!$C$74/100)*Y85 -> 0 | Z86: 635.6954616 | AA86: =IF($K$5<3,0,IF(Einstellungen!$D$55>=T86,Einstellungen!$D$53,0)) -> 0 | AB86: =(1+Berechnung!$C$80/100)*AB85 -> 329.4149241 | AC86: =(1+Berechnung!$C$74/100)*AC85 -> 6268.099783 | AD86: =(1+Berechnung!$C$80/100)*AD85 -> 187.3449805 | AE86: =(1+Berechnung!$C$74/100)*AE85 -> 2507.239913 | AF86: =(1+Berechnung!$C$80/100)*AF85 -> 164.7074621 | AG86: =(1+Berechnung!$C$74/100)*AG85 -> 3134.049891 | AH86: 329.4149241 | AI86: 965.1103857 | AK86: Jahr | AL86: Gesamtkosten | AM86: Förderung | AN86: Heizung-Diagr. | AO86: WW-Diagr. | AP86: Förderung
F87: 10 | G87: 21 | H87: 5.722610097 | T87: 14 | U87: 0 | V87: =(1+Berechnung!$C$80/100)*V86 -> 654.7663254 | W87: =(1+Berechnung!$C$74/100)*W86 -> 18220.11576 | X87: =(1+Berechnung!$C$80/100)*X86 -> 654.7663254 | Y87: =(1+Berechnung!$C$74/100)*Y86 -> 0 | Z87: 654.7663254 | AA87: =IF($K$5<3,0,IF(Einstellungen!$D$55>=T87,Einstellungen!$D$53,0)) -> 0 | AB87: =(1+Berechnung!$C$80/100)*AB86 -> 339.2973718 | AC87: =(1+Berechnung!$C$74/100)*AC86 -> 6581.504772 | AD87: =(1+Berechnung!$C$80/100)*AD86 -> 192.9653299 | AE87: =(1+Berechnung!$C$74/100)*AE86 -> 2632.601909 | AF87: =(1+Berechnung!$C$80/100)*AF86 -> 169.6486859 | AG87: =(1+Berechnung!$C$74/100)*AG86 -> 3290.752386 | AH87: 339.2973718 | AI87: 994.0636973 | AK87: 1 | AL87: =AI74 -> 676.9090067 | AM87: =U74+AA74 -> 0 | AN87: =IF(AM87>0,(AL87-AM87)*(Z74/AI74),Z74) -> 445.8640067 | AO87: =IF(AM87>0,(AL87-AM87)*(AH74/AI74),AH74) -> 231.045 | AP87: =MIN(AM87,AL87) -> 0
F88: 12.5 | G88: 21 | H88: 6.102173913 | T88: 15 | U88: 0 | V88: =(1+Berechnung!$C$80/100)*V87 -> 674.4093152 | W88: =(1+Berechnung!$C$74/100)*W87 -> 19131.12155 | X88: =(1+Berechnung!$C$80/100)*X87 -> 674.4093152 | Y88: =(1+Berechnung!$C$74/100)*Y87 -> 0 | Z88: 674.4093152 | AA88: =IF($K$5<3,0,IF(Einstellungen!$D$55>=T88,Einstellungen!$D$53,0)) -> 0 | AB88: =(1+Berechnung!$C$80/100)*AB87 -> 349.476293 | AC88: =(1+Berechnung!$C$74/100)*AC87 -> 6910.580011 | AD88: =(1+Berechnung!$C$80/100)*AD87 -> 198.7542898 | AE88: =(1+Berechnung!$C$74/100)*AE87 -> 2764.232004 | AF88: =(1+Berechnung!$C$80/100)*AF87 -> 174.7381465 | AG88: =(1+Berechnung!$C$74/100)*AG87 -> 3455.290005 | AH88: 349.476293 | AI88: 1023.885608 | AK88: 2 | AL88: 697.2162769 | AM88: 0 | AN88: =IF(AM88>0,(AL88-AM88)*(Z75/AI75),Z75) -> 459.2399269 | AO88: =IF(AM88>0,(AL88-AM88)*(AH75/AI75),AH75) -> 237.97635 | AP88: =MIN(AM88,AL88) -> 0
F89: 15 | G89: 21 | H89: 6.363636364 | T89: Summe | U89: =SUM(U74:U88) -> 0 | V89: =SUM(V74:V88) -> 8292.586266 | W89: =SUM(W74:W88) -> 208503.2246 | X89: =SUM(X74:X88) -> 8292.586266 | Y89: =SUM(Y74:Y88) -> 0 | Z89: =SUM(Z74:Z88) -> 8292.586266 | AA89: =SUM(AA74:AA88) -> 0 | AB89: 4297.186059 | AC89: =SUM(AC74:AC88) -> 75315.93022 | AD89: =SUM(AD74:AD88) -> 2443.897285 | AE89: =SUM(AE74:AE88) -> 30126.37209 | AF89: =SUM(AF74:AF88) -> 2148.593029 | AG89: 37657.96511 | AH89: =SUM(AH74:AH88) -> 4297.186059 | AI89: =SUM(AI74:AI88) -> 12589.77232 | AK89: 3 | AL89: 718.1327652 | AM89: 0 | AN89: 473.0171247 | AO89: 245.1156405 | AP89: =MIN(AM89,AL89) -> 0
F90: 17.5 | G90: 21 | H90: 6.722374657 | K90: CO2 | AK90: 4 | AL90: 739.6767482 | AM90: 0 | AN90: 487.2076384 | AO90: 252.4691097 | AP90: 0
F91: 20 | G91: 21 | H91: 6.984478936 | K91: Kategorie | L91: Nur WP | M91: Bivalent | N91: Nur Öl/Gas | O91: WP+Solar | P91: Öl/Gas+Solar | Q91: Gewählt | R91: Ausgabe | AK91: 5 | AL91: 761.8670506 | AM91: 0 | AN91: 501.8238676 | AO91: 260.043183 | AP91: 0
F92: 22.5 | K92: 1. WE | L92: =N146 -> 1538.230823 | M92: =L92 -> 1538.230823 | N92: =AF146 -> 2876.019588 | O92: =L92 -> 1538.230823 | P92: =N92 -> 2876.019588 | Q92: =IF($D$5=1,L92,IF($D$5=2,N92,M92)) -> 1538.230823 | R92: =FIXED(Q92,0)&" "&Translation!$A$80 -> 1.538 kg/year | AK92: 6 | AL92: 784.7230621 | AM92: 0 | AN92: 516.8785836 | AO92: 267.8444785 | AP92: 0
F93: 25 | K93: 2. WE | L93: =R146 -> 0 | M93: =V146 -> 0 | N93: 0 | O93: =L93 -> 0 | P93: =N93 -> 0 | Q93: =IF($D$5=1,L93,IF($D$5=2,N93,M93)) -> 0 | R93: =FIXED(Q93,0)&" "&Translation!$A$80 -> 0 kg/year | AK93: 7 | AL93: 808.264754 | AM93: 0 | AN93: 532.3849411 | AO93: 275.8798129 | AP93: 0
F94: 27.5 | K94: Warmwasser | L94: =N8 -> 781.2387 | M94: =N10 -> 868.8825 | N94: =N9 -> 1038.88125 | O94: =N11 -> 390.61935 | P94: =N12 -> 519.440625 | Q94: =IF($K$5=0,0,IF($K$5=1,L94,IF($K$5=3,M94,IF($K$5=2,N94,IF($K$5=4,O94,P94))))) -> 781.2387 | R94: =IF($K$5=0,"",FIXED(Q94,0)&" "&Translation!$A$80) -> 781 kg/year | AK94: 8 | AL94: 832.5126966 | AM94: 0 | AN94: =IF(AM94>0,(AL94-AM94)*(Z81/AI81),Z81) -> 548.3564894 | AO94: 284.1562072 | AP94: 0
F95: 30 | K95: Summe | L95: =SUM(L92:L94) -> 2319.469523 | M95: =SUM(M92:M94) -> 2407.113323 | N95: =SUM(N92:N94) -> 3914.900838 | O95: 1928.850173 | P95: =SUM(P92:P94) -> 3395.460213 | Q95: =SUM(Q92:Q94) -> 2319.469523 | R95: =FIXED(Q95,0)&" "&Translation!$A$80 -> 2.319 kg/year | AK95: 9 | AL95: 857.4880775 | AM95: 0 | AN95: 564.807184 | AO95: 292.6808935 | AP95: 0
AK96: 10 | AL96: 883.2127198 | AM96: 0 | AN96: 581.7513996 | AO96: 301.4613203 | AP96: 0
AK97: 11 | AL97: 909.7091014 | AM97: 0 | AN97: 599.2039416 | AO97: 310.5051599 | AP97: 0
AK98: 12 | AL98: 937.0003745 | AM98: 0 | AN98: 617.1800598 | AO98: 319.8203147 | AP98: 0
AK99: 13 | AL99: 965.1103857 | AM99: 0 | AN99: 635.6954616 | AO99: 329.4149241 | AP99: 0
A100: Berechnung Jahresheizarbeit/Heizstunden | J100: Wärmepumpe | O100: 2. WE - DHC monoenergetisch | S100: 2. WE - Öl/Gas bivalent | W100: Gesamt Nur Wärmepumpe | Z100: Gesamt Wärmepumpe+Öl/Gas | AC100: Gasamt Nur Öl/Gas | AK100: 14 | AL100: 994.0636973 | AM100: 0 | AN100: 654.7663254 | AO100: 339.2973718 | AP100: 0
A101: Zähler | B101: Außentemp | C101: Heizlast | D101: Leistung WP | E101: Heizlast minus | F101: Biv.punkt | G101: Stunden bei tau | H101: Heizwärmebedarf | I101: Faktor | J101: Heizarbeit | K101: COP | L101: Endenergie | M101: Energiekosten | N101: CO2-Emission | O101: Heizarbeit | P101: Endenergie | Q101: Energiekosten | R101: CO2-Emission | S101: Heizarbeit | T101: Endenergie | U101: Energiekosten | V101: CO2-Emission | W101: Endenergie | X101: Energiekosten | Y101: CO2-Emission | Z101: Endenergie | AA101: Energiekosten | AB101: CO2-Emission | AC101: Heizarbeit | AD101: Endenergie | AE101: Energiekosten | AF101: CO2-Emission | AK101: 15 | AL101: 1023.885608 | AM101: 0 | AN101: 674.4093152 | AO101: 349.476293 | AP101: 0
B102: °C | C102: KW | D102: KW | E102: WP-Leistung | G102: =Berechnung!$B$5 -> Holzminden | H102: kWh/a | I102: bivalenter Betrieb | J102: kWh/a | K102: - | L102: kWh/a | M102: €/a | N102: kg/a | O102: kWh/a | P102: kWh/a | Q102: €/a | R102: kg/a | S102: kWh/a | T102: kWh/a | U102: €/a | V102: kg/a | AC102: kWh/a | AD102: kWh/a | AE102: €/a | AF102: kg/a
A103: 3 | B103: < -20 | C103: =Berechnung!$C$65 -> 6 | D103: =D104-(D105-D104) -> 7.4 | E103: =C103-D103 -> -1.4 | F103: -20 | G103: =HLOOKUP(Berechnung!$C$66,INDIRECT("Klimadaten!M"&Berechnung!$C$67&":BM"&Berechnung!$C$67+44),A103,FALSE) -> 0 | H103: =C103*G103 -> 0 | I103: =I104 -> 1 | J103: =MIN(H103,I103*D103*G103) -> 0 | K103: =K104-(K105-K104) -> 2.392857143 | L103: =J103/K103 -> 0 | M103: =L103*Berechnung!$C$79/100 -> 0 | N103: =(L103*Berechnung!$C$69/1000) -> 0 | O103: =H103-J103 -> 0 | P103: =O103 -> 0 | Q103: =P103*Berechnung!$C$78/100 -> 0 | R103: =P103*Berechnung!$C$69/1000 -> 0 | S103: =O103 -> 0 | T103: =S103/(Berechnung!$C$81/100) -> 0 | U103: =T103*Berechnung!$C$72 -> 0 | V103: =T103*Berechnung!$C$73/1000 -> 0 | W103: =L103+P103 -> 0 | X103: =M103+Q103 -> 0 | Y103: =N103+R103 -> 0 | Z103: =L103+T103 -> 0 | AA103: =M103+U103 -> 0 | AB103: =N103+V103 -> 0 | AC103: =H103 -> 0 | AD103: =AC103/(Berechnung!$C$81/100) -> 0 | AE103: =AD103*Berechnung!$C$72 -> 0 | AF103: =AD103*Berechnung!$C$73/1000 -> 0
A104: 4 | B104: -20 | C104: =MAX(0,MIN(Berechnung!$C$65,Berechnung!$C$65*(B104-Berechnung!$C$64)/(Berechnung!$C$63-Berechnung!$C$64))) -> 6 | D104: =G75 -> 8 | E104: =C104-D104 -> -2 | F104: =IF(SIGN(E104)-SIGN(E105)<>0,B104,-20) -> -20 | G104: =HLOOKUP(Berechnung!$C$66,INDIRECT("Klimadaten!M"&Berechnung!$C$67&":BM"&Berechnung!$C$67+44),A104,FALSE) -> 0 | H104: =C104*G104 -> 0 | I104: =IF(OR($B$5=$B$7,$B$5=$B$8),1,IF(B104<=$F$146,0,1)) -> 1 | J104: =MIN(H104,I104*D104*G104) -> 0 | K104: =H75 -> 2.5 | L104: 0 | M104: =L104*Berechnung!$C$79/100 -> 0 | N104: =(L104*Berechnung!$C$69/1000) -> 0 | O104: 0 | P104: =O104 -> 0 | Q104: =P104*Berechnung!$C$78/100 -> 0 | R104: =P104*Berechnung!$C$69/1000 -> 0 | S104: =O104 -> 0 | T104: =S104/(Berechnung!$C$81/100) -> 0 | U104: =T104*Berechnung!$C$72 -> 0 | V104: =T104*Berechnung!$C$73/1000 -> 0 | W104: 0 | X104: 0 | Y104: 0 | Z104: =L104+T104 -> 0 | AA104: =M104+U104 -> 0 | AB104: =N104+V104 -> 0 | AC104: =H104 -> 0 | AD104: =AC104/(Berechnung!$C$81/100) -> 0 | AE104: =AD104*Berechnung!$C$72 -> 0 | AF104: =AD104*Berechnung!$C$73/1000 -> 0
A105: 5 | B105: -19 | C105: =MAX(0,MIN(Berechnung!$C$65,Berechnung!$C$65*(B105-Berechnung!$C$64)/(Berechnung!$C$63-Berechnung!$C$64))) -> 6 | D105: =AVERAGE(D104,D106) -> 8.6 | E105: -2.6 | F105: =IF(SIGN(E105)-SIGN(E106)<>0,B105,-20) -> -20 | G105: =HLOOKUP(Berechnung!$C$66,INDIRECT("Klimadaten!M"&Berechnung!$C$67&":BM"&Berechnung!$C$67+44),A105,FALSE) -> 0 | H105: =C105*G105 -> 0 | I105: 1 | J105: 0 | K105: =AVERAGE(K104,K106) -> 2.607142857 | L105: 0 | M105: =L105*Berechnung!$C$79/100 -> 0 | N105: =(L105*Berechnung!$C$69/1000) -> 0 | O105: 0 | P105: 0 | Q105: =P105*Berechnung!$C$78/100 -> 0 | R105: =P105*Berechnung!$C$69/1000 -> 0 | S105: 0 | T105: =S105/(Berechnung!$C$81/100) -> 0 | U105: =T105*Berechnung!$C$72 -> 0 | V105: =T105*Berechnung!$C$73/1000 -> 0 | W105: 0 | X105: 0 | Y105: 0 | Z105: 0 | AA105: 0 | AB105: 0 | AC105: 0 | AD105: =AC105/(Berechnung!$C$81/100) -> 0 | AE105: =AD105*Berechnung!$C$72 -> 0 | AF105: =AD105*Berechnung!$C$73/1000 -> 0
A106: 6 | B106: -18 | C106: =MAX(0,MIN(Berechnung!$C$65,Berechnung!$C$65*(B106-Berechnung!$C$64)/(Berechnung!$C$63-Berechnung!$C$64))) -> 6 | D106: =G76 -> 9.2 | E106: -3.2 | F106: -20 | G106: =HLOOKUP(Berechnung!$C$66,INDIRECT("Klimadaten!M"&Berechnung!$C$67&":BM"&Berechnung!$C$67+44),A106,FALSE) -> 0 | H106: =C106*G106 -> 0 | I106: 1 | J106: =MIN(H106,I106*D106*G106) -> 0 | K106: =H76 -> 2.714285714 | L106: 0 | M106: =L106*Berechnung!$C$79/100 -> 0 | N106: =(L106*Berechnung!$C$69/1000) -> 0 | O106: 0 | P106: 0 | Q106: =P106*Berechnung!$C$78/100 -> 0 | R106: =P106*Berechnung!$C$69/1000 -> 0 | S106: 0 | T106: =S106/(Berechnung!$C$81/100) -> 0 | U106: =T106*Berechnung!$C$72 -> 0 | V106: =T106*Berechnung!$C$73/1000 -> 0 | W106: 0 | X106: 0 | Y106: 0 | Z106: =L106+T106 -> 0 | AA106: 0 | AB106: 0 | AC106: 0 | AD106: =AC106/(Berechnung!$C$81/100) -> 0 | AE106: =AD106*Berechnung!$C$72 -> 0 | AF106: =AD106*Berechnung!$C$73/1000 -> 0
A107: 7 | B107: -17 | C107: =MAX(0,MIN(Berechnung!$C$65,Berechnung!$C$65*(B107-Berechnung!$C$64)/(Berechnung!$C$63-Berechnung!$C$64))) -> 6 | D107: =G76 -> 9.2 | E107: -3.2 | F107: =IF(SIGN(E107)-SIGN(E108)<>0,B107,-20) -> -20 | G107: =HLOOKUP(Berechnung!$C$66,INDIRECT("Klimadaten!M"&Berechnung!$C$67&":BM"&Berechnung!$C$67+44),A107,FALSE) -> 0 | H107: =C107*G107 -> 0 | I107: 1 | J107: =MIN(H107,I107*D107*G107) -> 0 | K107: =H76 -> 2.714285714 | L107: 0 | M107: =L107*Berechnung!$C$79/100 -> 0 | N107: =(L107*Berechnung!$C$69/1000) -> 0 | O107: 0 | P107: 0 | Q107: =P107*Berechnung!$C$78/100 -> 0 | R107: =P107*Berechnung!$C$69/1000 -> 0 | S107: 0 | T107: =S107/(Berechnung!$C$81/100) -> 0 | U107: =T107*Berechnung!$C$72 -> 0 | V107: =T107*Berechnung!$C$73/1000 -> 0 | W107: 0 | X107: 0 | Y107: 0 | Z107: 0 | AA107: 0 | AB107: 0 | AC107: 0 | AD107: =AC107/(Berechnung!$C$81/100) -> 0 | AE107: =AD107*Berechnung!$C$72 -> 0 | AF107: =AD107*Berechnung!$C$73/1000 -> 0
A108: 8 | B108: -16 | C108: =MAX(0,MIN(Berechnung!$C$65,Berechnung!$C$65*(B108-Berechnung!$C$64)/(Berechnung!$C$63-Berechnung!$C$64))) -> 6 | D108: =AVERAGE(D107,D109) -> 9.8 | E108: -3.8 | F108: -20 | G108: =HLOOKUP(Berechnung!$C$66,INDIRECT("Klimadaten!M"&Berechnung!$C$67&":BM"&Berechnung!$C$67+44),A108,FALSE) -> 0 | H108: =C108*G108 -> 0 | I108: 1 | J108: 0 | K108: =AVERAGE(K107,K109) -> 2.785714286 | L108: 0 | M108: =L108*Berechnung!$C$79/100 -> 0 | N108: =(L108*Berechnung!$C$69/1000) -> 0 | O108: 0 | P108: 0 | Q108: =P108*Berechnung!$C$78/100 -> 0 | R108: =P108*Berechnung!$C$69/1000 -> 0 | S108: 0 | T108: =S108/(Berechnung!$C$81/100) -> 0 | U108: =T108*Berechnung!$C$72 -> 0 | V108: =T108*Berechnung!$C$73/1000 -> 0 | W108: 0 | X108: 0 | Y108: 0 | Z108: 0 | AA108: 0 | AB108: 0 | AC108: 0 | AD108: =AC108/(Berechnung!$C$81/100) -> 0 | AE108: =AD108*Berechnung!$C$72 -> 0 | AF108: =AD108*Berechnung!$C$73/1000 -> 0
A109: 9 | B109: -15 | C109: =MAX(0,MIN(Berechnung!$C$65,Berechnung!$C$65*(B109-Berechnung!$C$64)/(Berechnung!$C$63-Berechnung!$C$64))) -> 6 | D109: =G77 -> 10.4 | E109: -4.4 | F109: -20 | G109: =HLOOKUP(Berechnung!$C$66,INDIRECT("Klimadaten!M"&Berechnung!$C$67&":BM"&Berechnung!$C$67+44),A109,FALSE) -> 0 | H109: 0 | I109: 1 | J109: 0 | K109: =H77 -> 2.857142857 | L109: 0 | M109: =L109*Berechnung!$C$79/100 -> 0 | N109: =(L109*Berechnung!$C$69/1000) -> 0 | O109: 0 | P109: 0 | Q109: =P109*Berechnung!$C$78/100 -> 0 | R109: =P109*Berechnung!$C$69/1000 -> 0 | S109: 0 | T109: =S109/(Berechnung!$C$81/100) -> 0 | U109: =T109*Berechnung!$C$72 -> 0 | V109: =T109*Berechnung!$C$73/1000 -> 0 | W109: 0 | X109: 0 | Y109: 0 | Z109: 0 | AA109: 0 | AB109: 0 | AC109: =H109 -> 0 | AD109: =AC109/(Berechnung!$C$81/100) -> 0 | AE109: =AD109*Berechnung!$C$72 -> 0 | AF109: =AD109*Berechnung!$C$73/1000 -> 0
A110: 10 | B110: -14 | C110: =MAX(0,MIN(Berechnung!$C$65,Berechnung!$C$65*(B110-Berechnung!$C$64)/(Berechnung!$C$63-Berechnung!$C$64))) -> 6 | D110: =AVERAGE(D109,D111) -> 11 | E110: -5 | F110: =IF(SIGN(E110)-SIGN(E111)<>0,B110,-20) -> -20 | G110: =HLOOKUP(Berechnung!$C$66,INDIRECT("Klimadaten!M"&Berechnung!$C$67&":BM"&Berechnung!$C$67+44),A110,FALSE) -> 0 | H110: =C110*G110 -> 0 | I110: 1 | J110: 0 | K110: =AVERAGE(K109,K111) -> 2.956740443 | L110: 0 | M110: =L110*Berechnung!$C$79/100 -> 0 | N110: =(L110*Berechnung!$C$69/1000) -> 0 | O110: 0 | P110: 0 | Q110: =P110*Berechnung!$C$78/100 -> 0 | R110: =P110*Berechnung!$C$69/1000 -> 0 | S110: =O110 -> 0 | T110: =S110/(Berechnung!$C$81/100) -> 0 | U110: =T110*Berechnung!$C$72 -> 0 | V110: =T110*Berechnung!$C$73/1000 -> 0 | W110: 0 | X110: 0 | Y110: 0 | Z110: 0 | AA110: 0 | AB110: 0 | AC110: 0 | AD110: =AC110/(Berechnung!$C$81/100) -> 0 | AE110: =AD110*Berechnung!$C$72 -> 0 | AF110: =AD110*Berechnung!$C$73/1000 -> 0
A111: 11 | B111: -13 | C111: =MAX(0,MIN(Berechnung!$C$65,Berechnung!$C$65*(B111-Berechnung!$C$64)/(Berechnung!$C$63-Berechnung!$C$64))) -> 6 | D111: =G78 -> 11.6 | E111: -5.6 | F111: -20 | G111: =HLOOKUP(Berechnung!$C$66,INDIRECT("Klimadaten!M"&Berechnung!$C$67&":BM"&Berechnung!$C$67+44),A111,FALSE) -> 0 | H111: =C111*G111 -> 0 | I111: 1 | J111: 0 | K111: =H78 -> 3.056338028 | L111: 0 | M111: =L111*Berechnung!$C$79/100 -> 0 | N111: =(L111*Berechnung!$C$69/1000) -> 0 | O111: 0 | P111: 0 | Q111: =P111*Berechnung!$C$78/100 -> 0 | R111: =P111*Berechnung!$C$69/1000 -> 0 | S111: 0 | T111: =S111/(Berechnung!$C$81/100) -> 0 | U111: =T111*Berechnung!$C$72 -> 0 | V111: =T111*Berechnung!$C$73/1000 -> 0 | W111: 0 | X111: 0 | Y111: 0 | Z111: 0 | AA111: 0 | AB111: 0 | AC111: 0 | AD111: =AC111/(Berechnung!$C$81/100) -> 0 | AE111: =AD111*Berechnung!$C$72 -> 0 | AF111: =AD111*Berechnung!$C$73/1000 -> 0
A112: 12 | B112: -12 | C112: =MAX(0,MIN(Berechnung!$C$65,Berechnung!$C$65*(B112-Berechnung!$C$64)/(Berechnung!$C$63-Berechnung!$C$64))) -> 6 | D112: =G78 -> 11.6 | E112: -5.6 | F112: -20 | G112: =HLOOKUP(Berechnung!$C$66,INDIRECT("Klimadaten!M"&Berechnung!$C$67&":BM"&Berechnung!$C$67+44),A112,FALSE) -> 0 | H112: 0 | I112: 1 | J112: =MIN(H112,I112*D112*G112) -> 0 | K112: =H78 -> 3.056338028 | L112: 0 | M112: =L112*Berechnung!$C$79/100 -> 0 | N112: =(L112*Berechnung!$C$69/1000) -> 0 | O112: 0 | P112: 0 | Q112: =P112*Berechnung!$C$78/100 -> 0 | R112: =P112*Berechnung!$C$69/1000 -> 0 | S112: 0 | T112: =S112/(Berechnung!$C$81/100) -> 0 | U112: =T112*Berechnung!$C$72 -> 0 | V112: =T112*Berechnung!$C$73/1000 -> 0 | W112: 0 | X112: 0 | Y112: 0 | Z112: 0 | AA112: 0 | AB112: 0 | AC112: 0 | AD112: =AC112/(Berechnung!$C$81/100) -> 0 | AE112: =AD112*Berechnung!$C$72 -> 0 | AF112: =AD112*Berechnung!$C$73/1000 -> 0
A113: 13 | B113: -11 | C113: =MAX(0,MIN(Berechnung!$C$65,Berechnung!$C$65*(B113-Berechnung!$C$64)/(Berechnung!$C$63-Berechnung!$C$64))) -> 6 | D113: =AVERAGE(D112,D114) -> 12.2 | E113: -6.2 | F113: -20 | G113: =HLOOKUP(Berechnung!$C$66,INDIRECT("Klimadaten!M"&Berechnung!$C$67&":BM"&Berechnung!$C$67+44),A113,FALSE) -> 6 | H113: 36 | I113: 1 | J113: 36 | K113: =AVERAGE(K112,K114) -> 3.12119227 | L113: 11.53405394 | M113: =L113*Berechnung!$C$79/100 -> 2.076129709 | N113: =(L113*Berechnung!$C$69/1000) -> 7.162647497 | O113: 0 | P113: 0 | Q113: =P113*Berechnung!$C$78/100 -> 0 | R113: =P113*Berechnung!$C$69/1000 -> 0 | S113: 0 | T113: =S113/(Berechnung!$C$81/100) -> 0 | U113: =T113*Berechnung!$C$72 -> 0 | V113: =T113*Berechnung!$C$73/1000 -> 0 | W113: 11.53405394 | X113: 2.076129709 | Y113: 7.162647497 | Z113: 11.53405394 | AA113: 2.076129709 | AB113: 7.162647497 | AC113: 36 | AD113: =AC113/(Berechnung!$C$81/100) -> 37.11340206 | AE113: =AD113*Berechnung!$C$72 -> 31.54639175 | AF113: =AD113*Berechnung!$C$73/1000 -> 9.389690722
A114: 14 | B114: -10 | C114: =MAX(0,MIN(Berechnung!$C$65,Berechnung!$C$65*(B114-Berechnung!$C$64)/(Berechnung!$C$63-Berechnung!$C$64))) -> 6 | D114: =G79 -> 12.8 | E114: -6.8 | F114: -20 | G114: =HLOOKUP(Berechnung!$C$66,INDIRECT("Klimadaten!M"&Berechnung!$C$67&":BM"&Berechnung!$C$67+44),A114,FALSE) -> 32 | H114: 192 | I114: 1 | J114: =MIN(H114,I114*D114*G114) -> 192 | K114: =H79 -> 3.186046512 | L114: 60.26277372 | M114: =L114*Berechnung!$C$79/100 -> 10.84729927 | N114: =(L114*Berechnung!$C$69/1000) -> 37.42318248 | O114: 0 | P114: 0 | Q114: =P114*Berechnung!$C$78/100 -> 0 | R114: =P114*Berechnung!$C$69/1000 -> 0 | S114: 0 | T114: =S114/(Berechnung!$C$81/100) -> 0 | U114: =T114*Berechnung!$C$72 -> 0 | V114: =T114*Berechnung!$C$73/1000 -> 0 | W114: 60.26277372 | X114: 10.84729927 | Y114: 37.42318248 | Z114: 60.26277372 | AA114: 10.84729927 | AB114: 37.42318248 | AC114: 192 | AD114: =AC114/(Berechnung!$C$81/100) -> 197.9381443 | AE114: =AD114*Berechnung!$C$72 -> 168.2474227 | AF114: =AD114*Berechnung!$C$73/1000 -> 50.07835052
A115: 15 | B115: -9 | C115: =MAX(0,MIN(Berechnung!$C$65,Berechnung!$C$65*(B115-Berechnung!$C$64)/(Berechnung!$C$63-Berechnung!$C$64))) -> 5.727272727 | D115: =AVERAGE(D114,D116) -> 13.4 | E115: -7.672727273 | F115: -20 | G115: =HLOOKUP(Berechnung!$C$66,INDIRECT("Klimadaten!M"&Berechnung!$C$67&":BM"&Berechnung!$C$67+44),A115,FALSE) -> 14 | H115: 80.18181818 | I115: 1 | J115: 80.18181818 | K115: =AVERAGE(K114,K116) -> 3.301738852 | L115: 24.28472444 | M115: =L115*Berechnung!$C$79/100 -> 4.371250398 | N115: =(L115*Berechnung!$C$69/1000) -> 15.08081387 | O115: 0 | P115: =O115 -> 0 | Q115: =P115*Berechnung!$C$78/100 -> 0 | R115: =P115*Berechnung!$C$69/1000 -> 0 | S115: 0 | T115: =S115/(Berechnung!$C$81/100) -> 0 | U115: =T115*Berechnung!$C$72 -> 0 | V115: =T115*Berechnung!$C$73/1000 -> 0 | W115: 24.28472444 | X115: 4.371250398 | Y115: 15.08081387 | Z115: 24.28472444 | AA115: =M115+U115 -> 4.371250398 | AB115: 15.08081387 | AC115: 80.18181818 | AD115: =AC115/(Berechnung!$C$81/100) -> 82.66166823 | AE115: =AD115*Berechnung!$C$72 -> 70.26241799 | AF115: =AD115*Berechnung!$C$73/1000 -> 20.91340206
A116: 16 | B116: -8 | C116: =MAX(0,MIN(Berechnung!$C$65,Berechnung!$C$65*(B116-Berechnung!$C$64)/(Berechnung!$C$63-Berechnung!$C$64))) -> 5.454545455 | D116: =G80 -> 14 | E116: -8.545454545 | F116: -20 | G116: =HLOOKUP(Berechnung!$C$66,INDIRECT("Klimadaten!M"&Berechnung!$C$67&":BM"&Berechnung!$C$67+44),A116,FALSE) -> 23 | H116: 125.4545455 | I116: 1 | J116: 125.4545455 | K116: =H80 -> 3.417431193 | L116: 36.71018914 | M116: =L116*Berechnung!$C$79/100 -> 6.607834045 | N116: =(L116*Berechnung!$C$69/1000) -> 22.79702746 | O116: 0 | P116: 0 | Q116: =P116*Berechnung!$C$78/100 -> 0 | R116: =P116*Berechnung!$C$69/1000 -> 0 | S116: 0 | T116: =S116/(Berechnung!$C$81/100) -> 0 | U116: =T116*Berechnung!$C$72 -> 0 | V116: =T116*Berechnung!$C$73/1000 -> 0 | W116: 36.71018914 | X116: 6.607834045 | Y116: 22.79702746 | Z116: 36.71018914 | AA116: 6.607834045 | AB116: 22.79702746 | AC116: 125.4545455 | AD116: =AC116/(Berechnung!$C$81/100) -> 129.3345829 | AE116: =AD116*Berechnung!$C$72 -> 109.9343955 | AF116: =AD116*Berechnung!$C$73/1000 -> 32.72164948
A117: 17 | B117: -7 | C117: =MAX(0,MIN(Berechnung!$C$65,Berechnung!$C$65*(B117-Berechnung!$C$64)/(Berechnung!$C$63-Berechnung!$C$64))) -> 5.181818182 | D117: =G80 -> 14 | E117: -8.818181818 | F117: -20 | G117: =HLOOKUP(Berechnung!$C$66,INDIRECT("Klimadaten!M"&Berechnung!$C$67&":BM"&Berechnung!$C$67+44),A117,FALSE) -> 44 | H117: 228 | I117: 1 | J117: 228 | K117: =H80 -> 3.417431193 | L117: 66.71677852 | M117: =L117*Berechnung!$C$79/100 -> 12.00902013 | N117: =(L117*Berechnung!$C$69/1000) -> 41.43111946 | O117: 0 | P117: 0 | Q117: =P117*Berechnung!$C$78/100 -> 0 | R117: =P117*Berechnung!$C$69/1000 -> 0 | S117: 0 | T117: =S117/(Berechnung!$C$81/100) -> 0 | U117: =T117*Berechnung!$C$72 -> 0 | V117: =T117*Berechnung!$C$73/1000 -> 0 | W117: 66.71677852 | X117: 12.00902013 | Y117: 41.43111946 | Z117: 66.71677852 | AA117: 12.00902013 | AB117: 41.43111946 | AC117: 228 | AD117: =AC117/(Berechnung!$C$81/100) -> 235.0515464 | AE117: =AD117*Berechnung!$C$72 -> 199.7938144 | AF117: =AD117*Berechnung!$C$73/1000 -> 59.46804124
A118: 18 | B118: -6 | C118: =MAX(0,MIN(Berechnung!$C$65,Berechnung!$C$65*(B118-Berechnung!$C$64)/(Berechnung!$C$63-Berechnung!$C$64))) -> 4.909090909 | D118: =AVERAGE(D117,D119) -> 14.6 | E118: -9.690909091 | F118: -20 | G118: =HLOOKUP(Berechnung!$C$66,INDIRECT("Klimadaten!M"&Berechnung!$C$67&":BM"&Berechnung!$C$67+44),A118,FALSE) -> 49 | H118: 240.5454545 | I118: 1 | J118: 240.5454545 | K118: =AVERAGE(K117,K119) -> 3.492806505 | L118: 68.86881772 | M118: =L118*Berechnung!$C$79/100 -> 12.39638719 | N118: =(L118*Berechnung!$C$69/1000) -> 42.7675358 | O118: 0 | P118: 0 | Q118: =P118*Berechnung!$C$78/100 -> 0 | R118: =P118*Berechnung!$C$69/1000 -> 0 | S118: 0 | T118: =S118/(Berechnung!$C$81/100) -> 0 | U118: =T118*Berechnung!$C$72 -> 0 | V118: =T118*Berechnung!$C$73/1000 -> 0 | W118: 68.86881772 | X118: 12.39638719 | Y118: 42.7675358 | Z118: 68.86881772 | AA118: 12.39638719 | AB118: 42.7675358 | AC118: 240.5454545 | AD118: =AC118/(Berechnung!$C$81/100) -> 247.9850047 | AE118: =AD118*Berechnung!$C$72 -> 210.787254 | AF118: =AD118*Berechnung!$C$73/1000 -> 62.74020619
A119: 19 | B119: -5 | C119: =MAX(0,MIN(Berechnung!$C$65,Berechnung!$C$65*(B119-Berechnung!$C$64)/(Berechnung!$C$63-Berechnung!$C$64))) -> 4.636363636 | D119: =G81 -> 15.2 | E119: -10.56363636 | F119: -20 | G119: =HLOOKUP(Berechnung!$C$66,INDIRECT("Klimadaten!M"&Berechnung!$C$67&":BM"&Berechnung!$C$67+44),A119,FALSE) -> 41 | H119: 190.0909091 | I119: 1 | J119: 190.0909091 | K119: =H81 -> 3.568181818 | L119: 53.27388535 | M119: =L119*Berechnung!$C$79/100 -> 9.589299363 | N119: =(L119*Berechnung!$C$69/1000) -> 33.0830828 | O119: 0 | P119: 0 | Q119: =P119*Berechnung!$C$78/100 -> 0 | R119: =P119*Berechnung!$C$69/1000 -> 0 | S119: 0 | T119: =S119/(Berechnung!$C$81/100) -> 0 | U119: =T119*Berechnung!$C$72 -> 0 | V119: =T119*Berechnung!$C$73/1000 -> 0 | W119: 53.27388535 | X119: 9.589299363 | Y119: 33.0830828 | Z119: 53.27388535 | AA119: 9.589299363 | AB119: 33.0830828 | AC119: 190.0909091 | AD119: =AC119/(Berechnung!$C$81/100) -> 195.9700094 | AE119: =AD119*Berechnung!$C$72 -> 166.574508 | AF119: =AD119*Berechnung!$C$73/1000 -> 49.58041237
A120: 20 | B120: -4 | C120: =MAX(0,MIN(Berechnung!$C$65,Berechnung!$C$65*(B120-Berechnung!$C$64)/(Berechnung!$C$63-Berechnung!$C$64))) -> 4.363636364 | D120: =AVERAGE(D119,D121) -> 15.8 | E120: -11.43636364 | F120: -20 | G120: =HLOOKUP(Berechnung!$C$66,INDIRECT("Klimadaten!M"&Berechnung!$C$67&":BM"&Berechnung!$C$67+44),A120,FALSE) -> 89 | H120: 388.3636364 | I120: 1 | J120: 388.3636364 | K120: =AVERAGE(K119,K121) -> 3.725 | L120: 104.2586943 | M120: =L120*Berechnung!$C$79/100 -> 18.76656498 | N120: =(L120*Berechnung!$C$69/1000) -> 64.74464918 | O120: 0 | P120: 0 | Q120: =P120*Berechnung!$C$78/100 -> 0 | R120: =P120*Berechnung!$C$69/1000 -> 0 | S120: 0 | T120: =S120/(Berechnung!$C$81/100) -> 0 | U120: =T120*Berechnung!$C$72 -> 0 | V120: =T120*Berechnung!$C$73/1000 -> 0 | W120: 104.2586943 | X120: 18.76656498 | Y120: 64.74464918 | Z120: 104.2586943 | AA120: 18.76656498 | AB120: 64.74464918 | AC120: 388.3636364 | AD120: =AC120/(Berechnung!$C$81/100) -> 400.3748828 | AE120: =AD120*Berechnung!$C$72 -> 340.3186504 | AF120: =AD120*Berechnung!$C$73/1000 -> 101.2948454
A121: 21 | B121: -3 | C121: =MAX(0,MIN(Berechnung!$C$65,Berechnung!$C$65*(B121-Berechnung!$C$64)/(Berechnung!$C$63-Berechnung!$C$64))) -> 4.090909091 | D121: =G82 -> 16.4 | E121: -12.30909091 | F121: -20 | G121: =HLOOKUP(Berechnung!$C$66,INDIRECT("Klimadaten!M"&Berechnung!$C$67&":BM"&Berechnung!$C$67+44),A121,FALSE) -> 161 | H121: 658.6363636 | I121: 1 | J121: 658.6363636 | K121: =H82 -> 3.881818182 | L121: 169.6721311 | M121: =L121*Berechnung!$C$79/100 -> 30.54098361 | N121: =(L121*Berechnung!$C$69/1000) -> 105.3663934 | O121: 0 | P121: 0 | Q121: =P121*Berechnung!$C$78/100 -> 0 | R121: =P121*Berechnung!$C$69/1000 -> 0 | S121: 0 | T121: =S121/(Berechnung!$C$81/100) -> 0 | U121: =T121*Berechnung!$C$72 -> 0 | V121: =T121*Berechnung!$C$73/1000 -> 0 | W121: 169.6721311 | X121: 30.54098361 | Y121: 105.3663934 | Z121: 169.6721311 | AA121: 30.54098361 | AB121: 105.3663934 | AC121: 658.6363636 | AD121: =AC121/(Berechnung!$C$81/100) -> 679.0065604 | AE121: =AD121*Berechnung!$C$72 -> 577.1555764 | AF121: =AD121*Berechnung!$C$73/1000 -> 171.7886598
A122: 22 | B122: -2 | C122: =MAX(0,MIN(Berechnung!$C$65,Berechnung!$C$65*(B122-Berechnung!$C$64)/(Berechnung!$C$63-Berechnung!$C$64))) -> 3.818181818 | D122: =G82 -> 16.4 | E122: -12.58181818 | F122: -20 | G122: =HLOOKUP(Berechnung!$C$66,INDIRECT("Klimadaten!M"&Berechnung!$C$67&":BM"&Berechnung!$C$67+44),A122,FALSE) -> 207 | H122: 790.3636364 | I122: 1 | J122: =MIN(H122,I122*D122*G122) -> 790.3636364 | K122: =H82 -> 3.881818182 | L122: =J122/K122 -> 203.6065574 | M122: =L122*Berechnung!$C$79/100 -> 36.64918033 | N122: =(L122*Berechnung!$C$69/1000) -> 126.4396721 | O122: 0 | P122: 0 | Q122: =P122*Berechnung!$C$78/100 -> 0 | R122: =P122*Berechnung!$C$69/1000 -> 0 | S122: 0 | T122: =S122/(Berechnung!$C$81/100) -> 0 | U122: =T122*Berechnung!$C$72 -> 0 | V122: =T122*Berechnung!$C$73/1000 -> 0 | W122: 203.6065574 | X122: 36.64918033 | Y122: 126.4396721 | Z122: 203.6065574 | AA122: 36.64918033 | AB122: 126.4396721 | AC122: 790.3636364 | AD122: =AC122/(Berechnung!$C$81/100) -> 814.8078725 | AE122: =AD122*Berechnung!$C$72 -> 692.5866917 | AF122: =AD122*Berechnung!$C$73/1000 -> 206.1463918
A123: 23 | B123: -1 | C123: =MAX(0,MIN(Berechnung!$C$65,Berechnung!$C$65*(B123-Berechnung!$C$64)/(Berechnung!$C$63-Berechnung!$C$64))) -> 3.545454545 | D123: =AVERAGE(D122,D124) -> 17 | E123: -13.45454545 | F123: -20 | G123: =HLOOKUP(Berechnung!$C$66,INDIRECT("Klimadaten!M"&Berechnung!$C$67&":BM"&Berechnung!$C$67+44),A123,FALSE) -> 248 | H123: 879.2727273 | I123: 1 | J123: 879.2727273 | K123: =AVERAGE(K122,K124) -> 4.161868687 | L123: 211.2687337 | M123: =L123*Berechnung!$C$79/100 -> 38.02837206 | N123: =(L123*Berechnung!$C$69/1000) -> 131.1978836 | O123: 0 | P123: 0 | Q123: =P123*Berechnung!$C$78/100 -> 0 | R123: =P123*Berechnung!$C$69/1000 -> 0 | S123: 0 | T123: =S123/(Berechnung!$C$81/100) -> 0 | U123: =T123*Berechnung!$C$72 -> 0 | V123: =T123*Berechnung!$C$73/1000 -> 0 | W123: 211.2687337 | X123: 38.02837206 | Y123: 131.1978836 | Z123: 211.2687337 | AA123: 38.02837206 | AB123: 131.1978836 | AC123: 879.2727273 | AD123: =AC123/(Berechnung!$C$81/100) -> 906.4667291 | AE123: =AD123*Berechnung!$C$72 -> 770.4967198 | AF123: =AD123*Berechnung!$C$73/1000 -> 229.3360825
A124: 24 | B124: 0 | C124: =MAX(0,MIN(Berechnung!$C$65,Berechnung!$C$65*(B124-Berechnung!$C$64)/(Berechnung!$C$63-Berechnung!$C$64))) -> 3.272727273 | D124: =G83 -> 17.6 | E124: -14.32727273 | F124: -20 | G124: =HLOOKUP(Berechnung!$C$66,INDIRECT("Klimadaten!M"&Berechnung!$C$67&":BM"&Berechnung!$C$67+44),A124,FALSE) -> 263 | H124: 860.7272727 | I124: 1 | J124: 860.7272727 | K124: =H83 -> 4.441919192 | L124: 193.7737351 | M124: =L124*Berechnung!$C$79/100 -> 34.87927231 | N124: =(L124*Berechnung!$C$69/1000) -> 120.3334895 | O124: 0 | P124: 0 | Q124: =P124*Berechnung!$C$78/100 -> 0 | R124: =P124*Berechnung!$C$69/1000 -> 0 | S124: 0 | T124: =S124/(Berechnung!$C$81/100) -> 0 | U124: =T124*Berechnung!$C$72 -> 0 | V124: =T124*Berechnung!$C$73/1000 -> 0 | W124: 193.7737351 | X124: 34.87927231 | Y124: 120.3334895 | Z124: 193.7737351 | AA124: 34.87927231 | AB124: 120.3334895 | AC124: 860.7272727 | AD124: =AC124/(Berechnung!$C$81/100) -> 887.3477038 | AE124: =AD124*Berechnung!$C$72 -> 754.2455483 | AF124: =AD124*Berechnung!$C$73/1000 -> 224.4989691
A125: 25 | B125: 1 | C125: =MAX(0,MIN(Berechnung!$C$65,Berechnung!$C$65*(B125-Berechnung!$C$64)/(Berechnung!$C$63-Berechnung!$C$64))) -> 3 | D125: =AVERAGE(D124,D126) -> 18.2 | E125: -15.2 | F125: -20 | G125: =HLOOKUP(Berechnung!$C$66,INDIRECT("Klimadaten!M"&Berechnung!$C$67&":BM"&Berechnung!$C$67+44),A125,FALSE) -> 270 | H125: 810 | I125: 1 | J125: 810 | K125: =AVERAGE(K124,K126) -> 4.600927906 | L125: 176.0514436 | M125: =L125*Berechnung!$C$79/100 -> 31.68925986 | N125: =(L125*Berechnung!$C$69/1000) -> 109.3279465 | O125: 0 | P125: 0 | Q125: =P125*Berechnung!$C$78/100 -> 0 | R125: =P125*Berechnung!$C$69/1000 -> 0 | S125: 0 | T125: =S125/(Berechnung!$C$81/100) -> 0 | U125: =T125*Berechnung!$C$72 -> 0 | V125: =T125*Berechnung!$C$73/1000 -> 0 | W125: 176.0514436 | X125: 31.68925986 | Y125: 109.3279465 | Z125: 176.0514436 | AA125: 31.68925986 | AB125: 109.3279465 | AC125: 810 | AD125: =AC125/(Berechnung!$C$81/100) -> 835.0515464 | AE125: =AD125*Berechnung!$C$72 -> 709.7938144 | AF125: =AD125*Berechnung!$C$73/1000 -> 211.2680412
A126: 26 | B126: 2 | C126: =MAX(0,MIN(Berechnung!$C$65,Berechnung!$C$65*(B126-Berechnung!$C$64)/(Berechnung!$C$63-Berechnung!$C$64))) -> 2.727272727 | D126: =G84 -> 18.8 | E126: -16.07272727 | F126: -20 | G126: =HLOOKUP(Berechnung!$C$66,INDIRECT("Klimadaten!M"&Berechnung!$C$67&":BM"&Berechnung!$C$67+44),A126,FALSE) -> 328 | H126: 894.5454545 | I126: 1 | J126: 894.5454545 | K126: =H84 -> 4.75993662 | L126: 187.9322197 | M126: =L126*Berechnung!$C$79/100 -> 33.82779954 | N126: =(L126*Berechnung!$C$69/1000) -> 116.7059084 | O126: 0 | P126: 0 | Q126: =P126*Berechnung!$C$78/100 -> 0 | R126: =P126*Berechnung!$C$69/1000 -> 0 | S126: 0 | T126: =S126/(Berechnung!$C$81/100) -> 0 | U126: =T126*Berechnung!$C$72 -> 0 | V126: =T126*Berechnung!$C$73/1000 -> 0 | W126: 187.9322197 | X126: 33.82779954 | Y126: 116.7059084 | Z126: 187.9322197 | AA126: 33.82779954 | AB126: 116.7059084 | AC126: 894.5454545 | AD126: =AC126/(Berechnung!$C$81/100) -> 922.2118088 | AE126: =AD126*Berechnung!$C$72 -> 783.8800375 | AF126: =AD126*Berechnung!$C$73/1000 -> 233.3195876
A127: 27 | B127: 3 | C127: =MAX(0,MIN(Berechnung!$C$65,Berechnung!$C$65*(B127-Berechnung!$C$64)/(Berechnung!$C$63-Berechnung!$C$64))) -> 2.454545455 | D127: =G84 -> 18.8 | E127: -16.34545455 | F127: -20 | G127: =HLOOKUP(Berechnung!$C$66,INDIRECT("Klimadaten!M"&Berechnung!$C$67&":BM"&Berechnung!$C$67+44),A127,FALSE) -> 344 | H127: 844.3636364 | I127: 1 | J127: 844.3636364 | K127: =H84 -> 4.75993662 | L127: 177.3896805 | M127: =L127*Berechnung!$C$79/100 -> 31.93014249 | N127: =(L127*Berechnung!$C$69/1000) -> 110.1589916 | O127: 0 | P127: 0 | Q127: =P127*Berechnung!$C$78/100 -> 0 | R127: =P127*Berechnung!$C$69/1000 -> 0 | S127: 0 | T127: =S127/(Berechnung!$C$81/100) -> 0 | U127: =T127*Berechnung!$C$72 -> 0 | V127: =T127*Berechnung!$C$73/1000 -> 0 | W127: 177.3896805 | X127: 31.93014249 | Y127: 110.1589916 | Z127: 177.3896805 | AA127: 31.93014249 | AB127: 110.1589916 | AC127: 844.3636364 | AD127: =AC127/(Berechnung!$C$81/100) -> 870.4779756 | AE127: =AD127*Berechnung!$C$72 -> 739.9062793 | AF127: =AD127*Berechnung!$C$73/1000 -> 220.2309278
A128: 28 | B128: 4 | C128: =MAX(0,MIN(Berechnung!$C$65,Berechnung!$C$65*(B128-Berechnung!$C$64)/(Berechnung!$C$63-Berechnung!$C$64))) -> 2.181818182 | D128: =AVERAGE(D127,D129) -> 19.4 | E128: -17.21818182 | F128: -20 | G128: =HLOOKUP(Berechnung!$C$66,INDIRECT("Klimadaten!M"&Berechnung!$C$67&":BM"&Berechnung!$C$67+44),A128,FALSE) -> 343 | H128: 748.3636364 | I128: 1 | J128: 748.3636364 | K128: =AVERAGE(K127,K129) -> 4.870514529 | L128: 153.6518641 | M128: =L128*Berechnung!$C$79/100 -> 27.65733553 | N128: =(L128*Berechnung!$C$69/1000) -> 95.41780759 | O128: 0 | P128: 0 | Q128: =P128*Berechnung!$C$78/100 -> 0 | R128: =P128*Berechnung!$C$69/1000 -> 0 | S128: 0 | T128: =S128/(Berechnung!$C$81/100) -> 0 | U128: =T128*Berechnung!$C$72 -> 0 | V128: =T128*Berechnung!$C$73/1000 -> 0 | W128: 153.6518641 | X128: 27.65733553 | Y128: 95.41780759 | Z128: 153.6518641 | AA128: 27.65733553 | AB128: 95.41780759 | AC128: 748.3636364 | AD128: =AC128/(Berechnung!$C$81/100) -> 771.5089035 | AE128: =AD128*Berechnung!$C$72 -> 655.7825679 | AF128: =AD128*Berechnung!$C$73/1000 -> 195.1917526
A129: 29 | B129: 5 | C129: =MAX(0,MIN(Berechnung!$C$65,Berechnung!$C$65*(B129-Berechnung!$C$64)/(Berechnung!$C$63-Berechnung!$C$64))) -> 1.909090909 | D129: =G85 -> 20 | E129: -18.09090909 | F129: -20 | G129: =HLOOKUP(Berechnung!$C$66,INDIRECT("Klimadaten!M"&Berechnung!$C$67&":BM"&Berechnung!$C$67+44),A129,FALSE) -> 414 | H129: 790.3636364 | I129: 1 | J129: 790.3636364 | K129: =H85 -> 4.981092437 | L129: 158.6727503 | M129: =L129*Berechnung!$C$79/100 -> 28.56109505 | N129: =(L129*Berechnung!$C$69/1000) -> 98.53577792 | O129: 0 | P129: 0 | Q129: =P129*Berechnung!$C$78/100 -> 0 | R129: =P129*Berechnung!$C$69/1000 -> 0 | S129: 0 | T129: =S129/(Berechnung!$C$81/100) -> 0 | U129: =T129*Berechnung!$C$72 -> 0 | V129: =T129*Berechnung!$C$73/1000 -> 0 | W129: 158.6727503 | X129: 28.56109505 | Y129: 98.53577792 | Z129: 158.6727503 | AA129: 28.56109505 | AB129: 98.53577792 | AC129: 790.3636364 | AD129: =AC129/(Berechnung!$C$81/100) -> 814.8078725 | AE129: =AD129*Berechnung!$C$72 -> 692.5866917 | AF129: =AD129*Berechnung!$C$73/1000 -> 206.1463918
A130: 30 | B130: 6 | C130: =MAX(0,MIN(Berechnung!$C$65,Berechnung!$C$65*(B130-Berechnung!$C$64)/(Berechnung!$C$63-Berechnung!$C$64))) -> 1.636363636 | D130: =AVERAGE(D129,D131) -> 20.4 | E130: -18.76363636 | F130: -20 | G130: =HLOOKUP(Berechnung!$C$66,INDIRECT("Klimadaten!M"&Berechnung!$C$67&":BM"&Berechnung!$C$67+44),A130,FALSE) -> 397 | H130: 649.6363636 | I130: 1 | J130: 649.6363636 | K130: =AVERAGE(K129,K131) -> 5.19294673 | L130: 125.099755 | M130: =L130*Berechnung!$C$79/100 -> 22.5179559 | N130: =(L130*Berechnung!$C$69/1000) -> 77.68694786 | O130: 0 | P130: 0 | Q130: =P130*Berechnung!$C$78/100 -> 0 | R130: =P130*Berechnung!$C$69/1000 -> 0 | S130: =O130 -> 0 | T130: =S130/(Berechnung!$C$81/100) -> 0 | U130: =T130*Berechnung!$C$72 -> 0 | V130: =T130*Berechnung!$C$73/1000 -> 0 | W130: 125.099755 | X130: 22.5179559 | Y130: 77.68694786 | Z130: 125.099755 | AA130: 22.5179559 | AB130: 77.68694786 | AC130: 649.6363636 | AD130: =AC130/(Berechnung!$C$81/100) -> 669.7282099 | AE130: =AD130*Berechnung!$C$72 -> 569.2689784 | AF130: =AD130*Berechnung!$C$73/1000 -> 169.4412371
A131: 31 | B131: 7 | C131: =MAX(0,MIN(Berechnung!$C$65,Berechnung!$C$65*(B131-Berechnung!$C$64)/(Berechnung!$C$63-Berechnung!$C$64))) -> 1.363636364 | D131: =G86 -> 20.8 | E131: -19.43636364 | F131: -20 | G131: =HLOOKUP(Berechnung!$C$66,INDIRECT("Klimadaten!M"&Berechnung!$C$67&":BM"&Berechnung!$C$67+44),A131,FALSE) -> 406 | H131: 553.6363636 | I131: 1 | J131: 553.6363636 | K131: =H86 -> 5.404801022 | L131: 102.4341805 | M131: =L131*Berechnung!$C$79/100 -> 18.4381525 | N131: =(L131*Berechnung!$C$69/1000) -> 63.61162611 | O131: 0 | P131: 0 | Q131: =P131*Berechnung!$C$78/100 -> 0 | R131: =P131*Berechnung!$C$69/1000 -> 0 | S131: =O131 -> 0 | T131: =S131/(Berechnung!$C$81/100) -> 0 | U131: =T131*Berechnung!$C$72 -> 0 | V131: =T131*Berechnung!$C$73/1000 -> 0 | W131: 102.4341805 | X131: 18.4381525 | Y131: 63.61162611 | Z131: 102.4341805 | AA131: 18.4381525 | AB131: 63.61162611 | AC131: 553.6363636 | AD131: =AC131/(Berechnung!$C$81/100) -> 570.7591378 | AE131: =AD131*Berechnung!$C$72 -> 485.1452671 | AF131: =AD131*Berechnung!$C$73/1000 -> 144.4020619
A132: 32 | B132: 8 | C132: =MAX(0,MIN(Berechnung!$C$65,Berechnung!$C$65*(B132-Berechnung!$C$64)/(Berechnung!$C$63-Berechnung!$C$64))) -> 1.090909091 | D132: =G86 -> 20.8 | E132: -19.70909091 | F132: -20 | G132: =HLOOKUP(Berechnung!$C$66,INDIRECT("Klimadaten!M"&Berechnung!$C$67&":BM"&Berechnung!$C$67+44),A132,FALSE) -> 378 | H132: 412.3636364 | I132: 1 | J132: 412.3636364 | K132: =H86 -> 5.404801022 | L132: 76.29580343 | M132: =L132*Berechnung!$C$79/100 -> 13.73324462 | N132: =(L132*Berechnung!$C$69/1000) -> 47.37969393 | O132: 0 | P132: 0 | Q132: =P132*Berechnung!$C$78/100 -> 0 | R132: =P132*Berechnung!$C$69/1000 -> 0 | S132: 0 | T132: =S132/(Berechnung!$C$81/100) -> 0 | U132: =T132*Berechnung!$C$72 -> 0 | V132: =T132*Berechnung!$C$73/1000 -> 0 | W132: 76.29580343 | X132: 13.73324462 | Y132: 47.37969393 | Z132: 76.29580343 | AA132: 13.73324462 | AB132: 47.37969393 | AC132: 412.3636364 | AD132: =AC132/(Berechnung!$C$81/100) -> 425.1171509 | AE132: =AD132*Berechnung!$C$72 -> 361.3495783 | AF132: =AD132*Berechnung!$C$73/1000 -> 107.5546392
A133: 33 | B133: 9 | C133: =MAX(0,MIN(Berechnung!$C$65,Berechnung!$C$65*(B133-Berechnung!$C$64)/(Berechnung!$C$63-Berechnung!$C$64))) -> 0.8181818182 | D133: =AVERAGE(D132,D134) -> 20.9 | E133: -20.08181818 | F133: -20 | G133: =HLOOKUP(Berechnung!$C$66,INDIRECT("Klimadaten!M"&Berechnung!$C$67&":BM"&Berechnung!$C$67+44),A133,FALSE) -> 409 | H133: 334.6363636 | I133: 1 | J133: 334.6363636 | K133: =AVERAGE(K132,K134) -> 5.563705559 | L133: 60.14631077 | M133: =L133*Berechnung!$C$79/100 -> 10.82633594 | N133: =(L133*Berechnung!$C$69/1000) -> 37.35085899 | O133: 0 | P133: 0 | Q133: =P133*Berechnung!$C$78/100 -> 0 | R133: =P133*Berechnung!$C$69/1000 -> 0 | S133: 0 | T133: =S133/(Berechnung!$C$81/100) -> 0 | U133: =T133*Berechnung!$C$72 -> 0 | V133: =T133*Berechnung!$C$73/1000 -> 0 | W133: 60.14631077 | X133: 10.82633594 | Y133: 37.35085899 | Z133: 60.14631077 | AA133: 10.82633594 | AB133: 37.35085899 | AC133: 334.6363636 | AD133: =AC133/(Berechnung!$C$81/100) -> 344.9859419 | AE133: =AD133*Berechnung!$C$72 -> 293.2380506 | AF133: =AD133*Berechnung!$C$73/1000 -> 87.2814433
A134: 34 | B134: 10 | C134: =MAX(0,MIN(Berechnung!$C$65,Berechnung!$C$65*(B134-Berechnung!$C$64)/(Berechnung!$C$63-Berechnung!$C$64))) -> 0.5454545455 | D134: =G87 -> 21 | E134: -20.45454545 | F134: -20 | G134: =HLOOKUP(Berechnung!$C$66,INDIRECT("Klimadaten!M"&Berechnung!$C$67&":BM"&Berechnung!$C$67+44),A134,FALSE) -> 375 | H134: 204.5454545 | I134: 1 | J134: =MIN(H134,I134*D134*G134) -> 204.5454545 | K134: =H87 -> 5.722610097 | L134: 35.74338477 | M134: =L134*Berechnung!$C$79/100 -> 6.433809258 | N134: =(L134*Berechnung!$C$69/1000) -> 22.19664194 | O134: 0 | P134: 0 | Q134: =P134*Berechnung!$C$78/100 -> 0 | R134: =P134*Berechnung!$C$69/1000 -> 0 | S134: 0 | T134: =S134/(Berechnung!$C$81/100) -> 0 | U134: =T134*Berechnung!$C$72 -> 0 | V134: =T134*Berechnung!$C$73/1000 -> 0 | W134: 35.74338477 | X134: 6.433809258 | Y134: 22.19664194 | Z134: 35.74338477 | AA134: 6.433809258 | AB134: 22.19664194 | AC134: 204.5454545 | AD134: =AC134/(Berechnung!$C$81/100) -> 210.8716026 | AE134: =AD134*Berechnung!$C$72 -> 179.2408622 | AF134: =AD134*Berechnung!$C$73/1000 -> 53.35051546
A135: 35 | B135: 11 | C135: =MAX(0,MIN(Berechnung!$C$65,Berechnung!$C$65*(B135-Berechnung!$C$64)/(Berechnung!$C$63-Berechnung!$C$64))) -> 0.2727272727 | D135: =AVERAGE(D134,D136) -> 21 | E135: -20.72727273 | F135: -20 | G135: =HLOOKUP(Berechnung!$C$66,INDIRECT("Klimadaten!M"&Berechnung!$C$67&":BM"&Berechnung!$C$67+44),A135,FALSE) -> 420 | H135: 114.5454545 | I135: 1 | J135: 114.5454545 | K135: =AVERAGE(K134,K136) -> 5.912392005 | L135: 19.37379227 | M135: =L135*Berechnung!$C$79/100 -> 3.487282609 | N135: =(L135*Berechnung!$C$69/1000) -> 12.031125 | O135: 0 | P135: 0 | Q135: =P135*Berechnung!$C$78/100 -> 0 | R135: =P135*Berechnung!$C$69/1000 -> 0 | S135: 0 | T135: =S135/(Berechnung!$C$81/100) -> 0 | U135: =T135*Berechnung!$C$72 -> 0 | V135: =T135*Berechnung!$C$73/1000 -> 0 | W135: 19.37379227 | X135: 3.487282609 | Y135: 12.031125 | Z135: 19.37379227 | AA135: 3.487282609 | AB135: 12.031125 | AC135: 114.5454545 | AD135: =AC135/(Berechnung!$C$81/100) -> 118.0880975 | AE135: =AD135*Berechnung!$C$72 -> 100.3748828 | AF135: =AD135*Berechnung!$C$73/1000 -> 29.87628866
A136: 36 | B136: 12 | C136: =MAX(0,MIN(Berechnung!$C$65,Berechnung!$C$65*(B136-Berechnung!$C$64)/(Berechnung!$C$63-Berechnung!$C$64))) -> 0 | D136: =G88 -> 21 | E136: -21 | F136: -20 | G136: =HLOOKUP(Berechnung!$C$66,INDIRECT("Klimadaten!M"&Berechnung!$C$67&":BM"&Berechnung!$C$67+44),A136,FALSE) -> 378 | H136: 0 | I136: 1 | J136: 0 | K136: =H88 -> 6.102173913 | L136: 0 | M136: =L136*Berechnung!$C$79/100 -> 0 | N136: =(L136*Berechnung!$C$69/1000) -> 0 | O136: 0 | P136: 0 | Q136: =P136*Berechnung!$C$78/100 -> 0 | R136: =P136*Berechnung!$C$69/1000 -> 0 | S136: 0 | T136: =S136/(Berechnung!$C$81/100) -> 0 | U136: =T136*Berechnung!$C$72 -> 0 | V136: =T136*Berechnung!$C$73/1000 -> 0 | W136: 0 | X136: 0 | Y136: 0 | Z136: 0 | AA136: 0 | AB136: 0 | AC136: 0 | AD136: =AC136/(Berechnung!$C$81/100) -> 0 | AE136: =AD136*Berechnung!$C$72 -> 0 | AF136: =AD136*Berechnung!$C$73/1000 -> 0
A137: 37 | B137: 13 | C137: =MAX(0,MIN(Berechnung!$C$65,Berechnung!$C$65*(B137-Berechnung!$C$64)/(Berechnung!$C$63-Berechnung!$C$64))) -> 0 | D137: =G88 -> 21 | E137: -21 | F137: -20 | G137: =HLOOKUP(Berechnung!$C$66,INDIRECT("Klimadaten!M"&Berechnung!$C$67&":BM"&Berechnung!$C$67+44),A137,FALSE) -> 349 | H137: 0 | I137: 1 | J137: 0 | K137: =H88 -> 6.102173913 | L137: 0 | M137: =L137*Berechnung!$C$79/100 -> 0 | N137: =(L137*Berechnung!$C$69/1000) -> 0 | O137: 0 | P137: 0 | Q137: =P137*Berechnung!$C$78/100 -> 0 | R137: =P137*Berechnung!$C$69/1000 -> 0 | S137: 0 | T137: =S137/(Berechnung!$C$81/100) -> 0 | U137: =T137*Berechnung!$C$72 -> 0 | V137: =T137*Berechnung!$C$73/1000 -> 0 | W137: 0 | X137: 0 | Y137: 0 | Z137: 0 | AA137: 0 | AB137: 0 | AC137: 0 | AD137: =AC137/(Berechnung!$C$81/100) -> 0 | AE137: =AD137*Berechnung!$C$72 -> 0 | AF137: =AD137*Berechnung!$C$73/1000 -> 0
A138: 38 | B138: 14 | C138: =MAX(0,MIN(Berechnung!$C$65,Berechnung!$C$65*(B138-Berechnung!$C$64)/(Berechnung!$C$63-Berechnung!$C$64))) -> 0 | D138: =AVERAGE(D137,D139) -> 21 | E138: -21 | F138: -20 | G138: =HLOOKUP(Berechnung!$C$66,INDIRECT("Klimadaten!M"&Berechnung!$C$67&":BM"&Berechnung!$C$67+44),A138,FALSE) -> 370 | H138: 0 | I138: 1 | J138: 0 | K138: =AVERAGE(K137,K139) -> 6.232905138 | L138: 0 | M138: =L138*Berechnung!$C$79/100 -> 0 | N138: =(L138*Berechnung!$C$69/1000) -> 0 | O138: 0 | P138: 0 | Q138: =P138*Berechnung!$C$78/100 -> 0 | R138: =P138*Berechnung!$C$69/1000 -> 0 | S138: 0 | T138: =S138/(Berechnung!$C$81/100) -> 0 | U138: =T138*Berechnung!$C$72 -> 0 | V138: =T138*Berechnung!$C$73/1000 -> 0 | W138: 0 | X138: 0 | Y138: 0 | Z138: 0 | AA138: 0 | AB138: 0 | AC138: 0 | AD138: =AC138/(Berechnung!$C$81/100) -> 0 | AE138: =AD138*Berechnung!$C$72 -> 0 | AF138: =AD138*Berechnung!$C$73/1000 -> 0
A139: 39 | B139: 15 | C139: =MAX(0,MIN(Berechnung!$C$65,Berechnung!$C$65*(B139-Berechnung!$C$64)/(Berechnung!$C$63-Berechnung!$C$64))) -> 0 | D139: =G89 -> 21 | E139: -21 | F139: -20 | G139: =HLOOKUP(Berechnung!$C$66,INDIRECT("Klimadaten!M"&Berechnung!$C$67&":BM"&Berechnung!$C$67+44),A139,FALSE) -> 333 | H139: 0 | I139: 1 | J139: 0 | K139: =H89 -> 6.363636364 | L139: 0 | M139: =L139*Berechnung!$C$79/100 -> 0 | N139: =(L139*Berechnung!$C$69/1000) -> 0 | O139: 0 | P139: 0 | Q139: =P139*Berechnung!$C$78/100 -> 0 | R139: =P139*Berechnung!$C$69/1000 -> 0 | S139: 0 | T139: =S139/(Berechnung!$C$81/100) -> 0 | U139: =T139*Berechnung!$C$72 -> 0 | V139: =T139*Berechnung!$C$73/1000 -> 0 | W139: 0 | X139: 0 | Y139: 0 | Z139: 0 | AA139: 0 | AB139: 0 | AC139: 0 | AD139: =AC139/(Berechnung!$C$81/100) -> 0 | AE139: =AD139*Berechnung!$C$72 -> 0 | AF139: =AD139*Berechnung!$C$73/1000 -> 0
A140: 40 | B140: 16 | C140: =MAX(0,MIN(Berechnung!$C$65,Berechnung!$C$65*(B140-Berechnung!$C$64)/(Berechnung!$C$63-Berechnung!$C$64))) -> 0 | D140: =AVERAGE(D139,D141) -> 21 | E140: -21 | F140: -20 | G140: =HLOOKUP(Berechnung!$C$66,INDIRECT("Klimadaten!M"&Berechnung!$C$67&":BM"&Berechnung!$C$67+44),A140,FALSE) -> 310 | H140: 0 | I140: 1 | J140: 0 | K140: =AVERAGE(K139,K141) -> 6.54300551 | L140: 0 | M140: =L140*Berechnung!$C$79/100 -> 0 | N140: =(L140*Berechnung!$C$69/1000) -> 0 | O140: 0 | P140: 0 | Q140: =P140*Berechnung!$C$78/100 -> 0 | R140: =P140*Berechnung!$C$69/1000 -> 0 | S140: 0 | T140: =S140/(Berechnung!$C$81/100) -> 0 | U140: =T140*Berechnung!$C$72 -> 0 | V140: =T140*Berechnung!$C$73/1000 -> 0 | W140: 0 | X140: 0 | Y140: 0 | Z140: 0 | AA140: 0 | AB140: 0 | AC140: 0 | AD140: =AC140/(Berechnung!$C$81/100) -> 0 | AE140: =AD140*Berechnung!$C$72 -> 0 | AF140: =AD140*Berechnung!$C$73/1000 -> 0
A141: 41 | B141: 17 | C141: =MAX(0,MIN(Berechnung!$C$65,Berechnung!$C$65*(B141-Berechnung!$C$64)/(Berechnung!$C$63-Berechnung!$C$64))) -> 0 | D141: =G90 -> 21 | E141: -21 | F141: -20 | G141: =HLOOKUP(Berechnung!$C$66,INDIRECT("Klimadaten!M"&Berechnung!$C$67&":BM"&Berechnung!$C$67+44),A141,FALSE) -> 322 | H141: 0 | I141: 1 | J141: 0 | K141: =H90 -> 6.722374657 | L141: 0 | M141: =L141*Berechnung!$C$79/100 -> 0 | N141: =(L141*Berechnung!$C$69/1000) -> 0 | O141: 0 | P141: 0 | Q141: =P141*Berechnung!$C$78/100 -> 0 | R141: =P141*Berechnung!$C$69/1000 -> 0 | S141: 0 | T141: =S141/(Berechnung!$C$81/100) -> 0 | U141: =T141*Berechnung!$C$72 -> 0 | V141: =T141*Berechnung!$C$73/1000 -> 0 | W141: 0 | X141: 0 | Y141: 0 | Z141: 0 | AA141: 0 | AB141: 0 | AC141: 0 | AD141: =AC141/(Berechnung!$C$81/100) -> 0 | AE141: =AD141*Berechnung!$C$72 -> 0 | AF141: =AD141*Berechnung!$C$73/1000 -> 0
A142: 42 | B142: 18 | C142: =MAX(0,MIN(Berechnung!$C$65,Berechnung!$C$65*(B142-Berechnung!$C$64)/(Berechnung!$C$63-Berechnung!$C$64))) -> 0 | D142: =G90 -> 21 | E142: -21 | F142: -20 | G142: =HLOOKUP(Berechnung!$C$66,INDIRECT("Klimadaten!M"&Berechnung!$C$67&":BM"&Berechnung!$C$67+44),A142,FALSE) -> 280 | H142: 0 | I142: 1 | J142: 0 | K142: =H90 -> 6.722374657 | L142: 0 | M142: =L142*Berechnung!$C$79/100 -> 0 | N142: =(L142*Berechnung!$C$69/1000) -> 0 | O142: 0 | P142: 0 | Q142: =P142*Berechnung!$C$78/100 -> 0 | R142: =P142*Berechnung!$C$69/1000 -> 0 | S142: 0 | T142: =S142/(Berechnung!$C$81/100) -> 0 | U142: =T142*Berechnung!$C$72 -> 0 | V142: =T142*Berechnung!$C$73/1000 -> 0 | W142: 0 | X142: 0 | Y142: 0 | Z142: 0 | AA142: 0 | AB142: 0 | AC142: 0 | AD142: =AC142/(Berechnung!$C$81/100) -> 0 | AE142: =AD142*Berechnung!$C$72 -> 0 | AF142: =AD142*Berechnung!$C$73/1000 -> 0
A143: 43 | B143: 19 | C143: =MAX(0,MIN(Berechnung!$C$65,Berechnung!$C$65*(B143-Berechnung!$C$64)/(Berechnung!$C$63-Berechnung!$C$64))) -> 0 | D143: =AVERAGE(D142,D144) -> 21 | E143: -21 | F143: -20 | G143: =HLOOKUP(Berechnung!$C$66,INDIRECT("Klimadaten!M"&Berechnung!$C$67&":BM"&Berechnung!$C$67+44),A143,FALSE) -> 217 | H143: =C143*G143 -> 0 | I143: 1 | J143: 0 | K143: =AVERAGE(K142,K144) -> 6.853426796 | L143: 0 | M143: =L143*Berechnung!$C$79/100 -> 0 | N143: =(L143*Berechnung!$C$69/1000) -> 0 | O143: 0 | P143: 0 | Q143: =P143*Berechnung!$C$78/100 -> 0 | R143: =P143*Berechnung!$C$69/1000 -> 0 | S143: 0 | T143: =S143/(Berechnung!$C$81/100) -> 0 | U143: =T143*Berechnung!$C$72 -> 0 | V143: =T143*Berechnung!$C$73/1000 -> 0 | W143: 0 | X143: 0 | Y143: 0 | Z143: 0 | AA143: 0 | AB143: 0 | AC143: 0 | AD143: =AC143/(Berechnung!$C$81/100) -> 0 | AE143: =AD143*Berechnung!$C$72 -> 0 | AF143: =AD143*Berechnung!$C$73/1000 -> 0
A144: 44 | B144: 20 | C144: =MAX(0,MIN(Berechnung!$C$65,Berechnung!$C$65*(B144-Berechnung!$C$64)/(Berechnung!$C$63-Berechnung!$C$64))) -> 0 | D144: =G91 -> 21 | E144: -21 | F144: -20 | G144: =HLOOKUP(Berechnung!$C$66,INDIRECT("Klimadaten!M"&Berechnung!$C$67&":BM"&Berechnung!$C$67+44),A144,FALSE) -> 196 | H144: 0 | I144: 1 | J144: 0 | K144: =H91 -> 6.984478936 | L144: 0 | M144: =L144*Berechnung!$C$79/100 -> 0 | N144: =(L144*Berechnung!$C$69/1000) -> 0 | O144: 0 | P144: 0 | Q144: =P144*Berechnung!$C$78/100 -> 0 | R144: =P144*Berechnung!$C$69/1000 -> 0 | S144: 0 | T144: =S144/(Berechnung!$C$81/100) -> 0 | U144: =T144*Berechnung!$C$72 -> 0 | V144: =T144*Berechnung!$C$73/1000 -> 0 | W144: 0 | X144: 0 | Y144: 0 | Z144: 0 | AA144: 0 | AB144: 0 | AC144: 0 | AD144: =AC144/(Berechnung!$C$81/100) -> 0 | AE144: =AD144*Berechnung!$C$72 -> 0 | AF144: =AD144*Berechnung!$C$73/1000 -> 0
A145: 45 | B145: > 20 | C145: 0 | D145: =D144+(D144-D143) -> 21 | E145: -21 | F145: > 20 | G145: =HLOOKUP(Berechnung!$C$66,INDIRECT("Klimadaten!M"&Berechnung!$C$67&":BM"&Berechnung!$C$67+44),A145,FALSE) -> 744 | H145: 0 | I145: 1 | J145: 0 | K145: =K144+(K144-K143) -> 7.115531075 | L145: 0 | M145: =L145*Berechnung!$C$79/100 -> 0 | N145: =(L145*Berechnung!$C$69/1000) -> 0 | O145: 0 | P145: 0 | Q145: =P145*Berechnung!$C$78/100 -> 0 | R145: =P145*Berechnung!$C$69/1000 -> 0 | S145: 0 | T145: =S145/(Berechnung!$C$81/100) -> 0 | U145: =T145*Berechnung!$C$72 -> 0 | V145: =T145*Berechnung!$C$73/1000 -> 0 | W145: 0 | X145: 0 | Y145: 0 | Z145: 0 | AA145: 0 | AB145: 0 | AC145: 0 | AD145: =AC145/(Berechnung!$C$81/100) -> 0 | AE145: =AD145*Berechnung!$C$72 -> 0 | AF145: =AD145*Berechnung!$C$73/1000 -> 0
F146: =MAX(F103:F145) -> -20 | G146: =SUM(G103:G145) -> 8760 | H146: =SUM(H104:H144) -> 11026.63636 | J146: =ROUND(SUM(J103:J145),0) -> 11027 | K146: =AVERAGE(K104:K144) -> 4.503547682 | L146: =SUM(L103:L145) -> 2477.022259 | M146: 445.8640067 | N146: 1538.230823 | O146: 0 | P146: 0 | Q146: 0 | R146: 0 | S146: =SUM(S103:S145) -> 0 | T146: 0 | U146: 0 | V146: 0 | W146: =SUM(W103:W145) -> 2477.022259 | X146: 445.8640067 | Y146: 1538.230823 | Z146: =SUM(Z103:Z145) -> 2477.022259 | AA146: =SUM(AA103:AA145) -> 445.8640067 | AB146: =SUM(AB103:AB145) -> 1538.230823 | AC146: =SUM(AC103:AC145) -> 11026.63636 | AD146: =SUM(AD103:AD145) -> 11367.66635 | AE146: =SUM(AE103:AE145) -> 9662.516401 | AF146: =SUM(AF103:AF145) -> 2876.019588
B152: Darstellung Diagramm Heizlast/Heizwärmebedarf
C153: Bivalenzpunkt genauer berechnen für Darstellung | H153: Kennlinie Heizlast | L153: Hilfslinie Bivalenzpunkt | N153: Punktdarstellung Biv.Punkt | P153: Linie Bivalenzpunkt Heizarbeit | R153: Heizarbeit | T153: Ausdr. Vergleich | U153: Ausdr. Preisentw.
C154: Temp | D154: Differenz | E154: Leistung WP | F154: m | G154: n | H154: Temp | I154: Leistung | J154: m | K154: n | L154: Temp | M154: Leistung | N154: Temp | O154: Leistung | P154: Temp | Q154: kWh | U154: Öl/Gas
B155: Heizgrenze | C155: =F146 -> -20 | D155: =VLOOKUP(C155,$B$103:$E$145,4,FALSE) -> -2 | E155: =VLOOKUP(C155,$B$103:$E$145,3,FALSE) -> 8 | F155: =(D156-D155)/(C156-C155) -> -0.6 | G155: =D155-C155*F155 -> -14 | H155: =IF(Berechnung!$C$65=0,-30,Berechnung!$C$64) -> 12 | I155: 0 | J155: =(M156-I155)/(L156-H155) -> -0.2727272727 | K155: =M156-J155*L156 -> 3.272727273 | L155: =L156 -> -30 | M155: 0 | P155: =IF(OR(L156<-20,O146=0),0,ROUND(L156,0)+21) -> 0 | Q155: 0 | R155: 1. WE | S155: =IF(D5=2,AC146,J146) -> 11027 | T155: =Translation!A203 -> Heating | U155: =W74+AC74 -> 13152.8289
B156: Außentemp | C156: =C155+1 -> -19 | D156: =VLOOKUP(C156,$B$103:$E$145,4,FALSE) -> -2.6 | E156: =VLOOKUP(C156,$B$103:$E$145,3,FALSE) -> 8.6 | H156: =IF(Berechnung!$C$65=0,-30,Berechnung!$C$63) -> -10 | I156: =Berechnung!$C$65 -> 6 | L156: =C157 -> -30 | M156: =Berechnung!$C$65*(L156-Berechnung!$C$64)/(Berechnung!$C$63-Berechnung!$C$64) -> 11.45454545 | N156: =C157 -> -30 | O156: =M156 -> 11.45454545 | P156: =P155 -> 0 | Q156: =IF(ISERROR(VLOOKUP(P156-21,B104:H144,7,FALSE)),0,VLOOKUP(P156-21,B104:H144,7,FALSE)) -> 0 | R156: 2. WE | S156: =IF(D5=2,0,O146) -> 0 | T156: =Translation!A16 -> 2nd heat source | U156: 13810.47035
C157: =IF(OR(F155=0,F146<=Berechnung!$C$63),-30,ROUND(-G155/F155,1)) -> -30 | D157: 0 | E157: =IF(ROUND(C157/5,1)*5=C155,E155,IF(ROUND(C157/5,1)*5=C156,E156,AVERAGE(E155:E156))) -> 8.3 | T157: =Translation!A40 -> DHW | U157: 14500.99386
U158: 15226.04356
U159: 15987.34573
U160: 16786.71302
U161: 17626.04867
U162: 18507.35111
U163: 19432.71866
U164: 20404.35459
U165: 21424.57232
U166: 22495.80094
U167: 23620.59099
U168: 24801.62054
U169: 26041.70156

Sheet Slot2 (hidden)
A2: Comboboxen
A3: Heizung | B3: Betriebsweise | C3: Warmwasser | D3: Betrieb | E3: Betriebsweise | F3: Datenblatt | J3: Warmwasser | O3: EEWärmeG | U3: Berechnung Förderung
J4: Art WWB | K4: Index WWB | L4: Endenergie kWh/a | M4: Kosten €/Ja | N4: CO2 kg/a | O4: erfüllt ?
A5: Gaskessel | B5: No second heat source | C5: Gaskessel | D5: =IF(A5=A7,2,IF(B5=B7,1,3)) -> 2 | E5: =IF(C157=-30,Translation!A11,VLOOKUP(B5,B6:E50,4,FALSE)) -> Mono-Mode | F5: ="http://tools.stiebel-eltron.de/pdf/apps/product/"&VLOOKUP($A$5,Leistungsdaten!$A:$J,10,FALSE)&"/"&Translation!$A$3 ->  | K5: =IF(C5=C9,0,IF(C5=C12,5,IF(C5=C11,2,IF(C5=C7,1,IF(C5=C16,3,4))))) -> 2 | L5: =VLOOKUP(K5,K6:N50,2,FALSE) -> 4106.25 | M5: =VLOOKUP(K5,K6:N50,3,FALSE) -> 3490.3125 | N5: =VLOOKUP(K5,K6:N50,4,FALSE) -> 1038.88125 | O5: =IF(OR(K5=K11,K5=K12),TRUE,IF(A5=A7,FALSE,IF(O15<0.5,FALSE,TRUE))) -> FALSE | U5: Jahr | V5: Manuell | W5: RHI | X5: gewählt
A7: =Berechnung!C61 -> Gaskessel | B7: =Translation!A9 -> No second heat source | C7: =A5 -> Gaskessel | D7: 1=Nur WP | E7: =Translation!A10 -> Monoenergetic | J7: Ohne Warmwasser | K7: 0 | L7: 0 | M7: 0 | N7: 0 | U7: 1 | V7: =IF(Berechnung!$N$5<>Berechnung!$N$7,0,IF($D$5=2,0,IF(Einstellungen!$D$51>=T74,Einstellungen!$D$49,0))) -> 0 | W7: =IF($C$85="---",0,IF(Berechnung!$N$5<>Berechnung!$N$8,0,IF(Einstellungen!$D$51>=T74,$W$63,0))) ->  | X7: =IF(Berechnung!$N$5=Berechnung!$N$7,V7,W7) -> 
B8: =A7&" | "&Translation!$A$14 -> Gaskessel | Parallel | C8: =A5&" | "&Translation!$A$206 -> Gaskessel | Solar | D8: 2=nur Öl/Gas | E8: =Translation!A12 -> Bivalent-parallel | J8: Wärmepumpe | K8: 1 | L8: =L13+L14 ->  | M8: =M13+M14 ->  | N8: =N13+N14 ->  | O8: Wärmebedarf | U8: 2 | V8: =IF(Berechnung!$N$5<>Berechnung!$N$7,0,IF($D$5=2,0,IF(Einstellungen!$D$51>=T75,Einstellungen!$D$49,0))) -> 0 | W8: =IF($C$85="---",0,IF(Berechnung!$N$5<>Berechnung!$N$8,0,IF(Einstellungen!$D$51>=T75,$W$63,0))) ->  | X8: =IF(Berechnung!$N$5=Berechnung!$N$7,V8,W8) -> 
B9: =A7&" | "&Translation!$A$15 -> Gaskessel | Alternativ | C9: =Translation!A41 -> without DHW | D9: 3=Bivalent | E9: =Translation!A13 -> Bivalent-alternativ | J9: Gas/Öl | K9: 2 | L9: =Berechnung!$C$76/(Berechnung!$C$82/100) -> 4106.25 | M9: =L9*Berechnung!$C$72 -> 3490.3125 | N9: =L9*Berechnung!$C$73/1000 -> 1038.88125 | O9: =H146+Berechnung!C76 -> 14311.63636 | U9: 3 | V9: =IF(Berechnung!$N$5<>Berechnung!$N$7,0,IF($D$5=2,0,IF(Einstellungen!$D$51>=T76,Einstellungen!$D$49,0))) -> 0 | W9: =IF($C$85="---",0,IF(Berechnung!$N$5<>Berechnung!$N$8,0,IF(Einstellungen!$D$51>=T76,$W$63,0))) ->  | X9: =IF(Berechnung!$N$5=Berechnung!$N$7,V9,W9) -> 
J10: WP+Gas/Öl | K10: 3 | L10: =L16+L17 ->  | M10: =M16+M17 ->  | N10: =N16+N17 ->  | U10: 4 | V10: =IF(Berechnung!$N$5<>Berechnung!$N$7,0,IF($D$5=2,0,IF(Einstellungen!$D$51>=T77,Einstellungen!$D$49,0))) -> 0 | W10: =IF($C$85="---",0,IF(Berechnung!$N$5<>Berechnung!$N$8,0,IF(Einstellungen!$D$51>=T77,$W$63,0))) ->  | X10: =IF(Berechnung!$N$5=Berechnung!$N$7,V10,W10) -> 
C11: =A7 -> Gaskessel | J11: WP+Solar | K11: 4 | L11: =L19+L20 ->  | M11: =M19+M20 ->  | N11: =N19+N20 ->  | O11: Umweltwärme | U11: 5 | V11: =IF(Berechnung!$N$5<>Berechnung!$N$7,0,IF($D$5=2,0,IF(Einstellungen!$D$51>=T78,Einstellungen!$D$49,0))) -> 0 | W11: =IF($C$85="---",0,IF(Berechnung!$N$5<>Berechnung!$N$8,0,IF(Einstellungen!$D$51>=T78,$W$63,0))) ->  | X11: =IF(Berechnung!$N$5=Berechnung!$N$7,V11,W11) -> 
C12: =A7&" | "&Translation!$A$206 -> Gaskessel | Solar | J12: Öl/Gas+Solar | K12: 5 | L12: =$J$24*Berechnung!$C$76/(Berechnung!$C$82/100) -> 2053.125 | M12: =L12*Berechnung!$C$72 -> 1745.15625 | N12: =L12*Berechnung!$C$73/1000 -> 519.440625 | O12: =J146+K24*Berechnung!C76 ->  | U12: 6 | V12: =IF(Berechnung!$N$5<>Berechnung!$N$7,0,IF($D$5=2,0,IF(Einstellungen!$D$51>=T79,Einstellungen!$D$49,0))) -> 0 | W12: =IF($C$85="---",0,IF(Berechnung!$N$5<>Berechnung!$N$8,0,IF(Einstellungen!$D$51>=T79,$W$63,0))) ->  | X12: =IF(Berechnung!$N$5=Berechnung!$N$7,V12,W12) -> 
C13: =Translation!A41 -> without DHW | J13: Nebenrechnung | K13: Mononenerg. WP | L13: =$C$75*Berechnung!$C$76/$C$74 ->  | M13: =L13*Berechnung!$C$79/100 ->  | N13: =L13*Berechnung!$C$69/1000 ->  | U13: 7 | V13: =IF(Berechnung!$N$5<>Berechnung!$N$7,0,IF($D$5=2,0,IF(Einstellungen!$D$51>=T80,Einstellungen!$D$49,0))) -> 0 | W13: =IF($C$85="---",0,IF(Berechnung!$N$5<>Berechnung!$N$8,0,IF(Einstellungen!$D$51>=T80,$W$63,0))) ->  | X13: =IF(Berechnung!$N$5=Berechnung!$N$7,V13,W13) -> 
J14: Nebenrechnung | K14: Mononenerg. DHC | L14: =(1-$C$75)*Berechnung!$C$76 ->  | M14: =L14*Berechnung!$C$78/100 ->  | N14: =L14*Berechnung!$C$69/1000 ->  | O14: Anteil Umwelt | U14: 8 | V14: =IF(Berechnung!$N$5<>Berechnung!$N$7,0,IF($D$5=2,0,IF(Einstellungen!$D$51>=T81,Einstellungen!$D$49,0))) -> 0 | W14: =IF($C$85="---",0,IF(Berechnung!$N$5<>Berechnung!$N$8,0,IF(Einstellungen!$D$51>=T81,$W$63,0))) ->  | X14: =IF(Berechnung!$N$5=Berechnung!$N$7,V14,W14) -> 
C15: =C7 -> Gaskessel | O15: =O12/O9 ->  | U15: 9 | V15: =IF(Berechnung!$N$5<>Berechnung!$N$7,0,IF($D$5=2,0,IF(Einstellungen!$D$51>=T82,Einstellungen!$D$49,0))) -> 0 | W15: =IF($C$85="---",0,IF(Berechnung!$N$5<>Berechnung!$N$8,0,IF(Einstellungen!$D$51>=T82,$W$63,0))) ->  | X15: =IF(Berechnung!$N$5=Berechnung!$N$7,V15,W15) -> 
C16: =A5&" | "&A7 -> Gaskessel | Gaskessel | J16: Nebenrechnung | K16: Bivalent WP | L16: =$C$76*Berechnung!$C$76/$C$74 ->  | M16: =L16*Berechnung!$C$79/100 ->  | N16: =L16*Berechnung!$C$69/1000 ->  | U16: 10 | V16: =IF(Berechnung!$N$5<>Berechnung!$N$7,0,IF($D$5=2,0,IF(Einstellungen!$D$51>=T83,Einstellungen!$D$49,0))) -> 0 | W16: =IF($C$85="---",0,IF(Berechnung!$N$5<>Berechnung!$N$8,0,IF(Einstellungen!$D$51>=T83,$W$63,0))) ->  | X16: =IF(Berechnung!$N$5=Berechnung!$N$7,V16,W16) -> 
C17: =C11 -> Gaskessel | J17: Nebenrechnung | K17: Bivalent Kessel | L17: =((1-$C$76)*Berechnung!$C$76)/(Berechnung!$C$82/100) ->  | M17: =L17*Berechnung!$C$72 ->  | N17: =L17*Berechnung!$C$73/1000 ->  | U17: 11 | V17: =IF(Berechnung!$N$5<>Berechnung!$N$7,0,IF($D$5=2,0,IF(Einstellungen!$D$51>=T84,Einstellungen!$D$49,0))) -> 0 | W17: =IF($C$85="---",0,IF(Berechnung!$N$5<>Berechnung!$N$8,0,IF(Einstellungen!$D$51>=T84,$W$63,0))) ->  | X17: =IF(Berechnung!$N$5=Berechnung!$N$7,V17,W17) -> 
C18: =C8 -> Gaskessel | Solar | U18: 12 | V18: =IF(Berechnung!$N$5<>Berechnung!$N$7,0,IF($D$5=2,0,IF(Einstellungen!$D$51>=T85,Einstellungen!$D$49,0))) -> 0 | W18: =IF($C$85="---",0,IF(Berechnung!$N$5<>Berechnung!$N$8,0,IF(Einstellungen!$D$51>=T85,$W$63,0))) ->  | X18: =IF(Berechnung!$N$5=Berechnung!$N$7,V18,W18) -> 
C19: =C12 -> Gaskessel | Solar | J19: Nebenrechnung | K19: Monoenerg. WP+Solar | L19: =$C$75*$J$24*Berechnung!$C$76/$C$74 ->  | M19: =L19*Berechnung!$C$79/100 ->  | N19: =L19*Berechnung!$C$69/1000 ->  | U19: 13 | V19: =IF(Berechnung!$N$5<>Berechnung!$N$7,0,IF($D$5=2,0,IF(Einstellungen!$D$51>=T86,Einstellungen!$D$49,0))) -> 0 | W19: =IF($C$85="---",0,IF(Berechnung!$N$5<>Berechnung!$N$8,0,IF(Einstellungen!$D$51>=T86,$W$63,0))) ->  | X19: =IF(Berechnung!$N$5=Berechnung!$N$7,V19,W19) -> 
C20: =Translation!A41 -> without DHW | J20: Nebenrechnung | K20: Mononenerg. DHC | L20: =(1-$C$75)*$J$24*Berechnung!$C$76 ->  | M20: =L20*Berechnung!$C$78/100 ->  | N20: =L20*Berechnung!$C$69/1000 ->  | U20: 14 | V20: =IF(Berechnung!$N$5<>Berechnung!$N$7,0,IF($D$5=2,0,IF(Einstellungen!$D$51>=T87,Einstellungen!$D$49,0))) -> 0 | W20: =IF($C$85="---",0,IF(Berechnung!$N$5<>Berechnung!$N$8,0,IF(Einstellungen!$D$51>=T87,$W$63,0))) ->  | X20: =IF(Berechnung!$N$5=Berechnung!$N$7,V20,W20) -> 
U21: 15 | V21: =IF(Berechnung!$N$5<>Berechnung!$N$7,0,IF($D$5=2,0,IF(Einstellungen!$D$51>=T88,Einstellungen!$D$49,0))) -> 0 | W21: =IF($C$85="---",0,IF(Berechnung!$N$5<>Berechnung!$N$8,0,IF(Einstellungen!$D$51>=T88,$W$63,0))) ->  | X21: =IF(Berechnung!$N$5=Berechnung!$N$7,V21,W21) -> 
J23: Faktor Solar | K23: Deckung
J24: =(100-Berechnung!$C$77)/100 -> 0.5 | K24: =IF(K5=3,C76,C75) -> 
W44: Ersparnis Öl/Gas | X44: Ausgabe
W45: =ROUND((W89+AC89)-AI89+AA89+U89,-2) ->  | X45: =IF(ISERROR(W45),"---",IF(A5=A7,"---","approx. £"&FIXED(W45,0))) -> ---
W47: Invest | X47: Ausgabe
W48: =VLOOKUP(A5,Leistungsdaten!$A:$K,11,FALSE)+Einstellungen!$D$57 ->  | X48: =IF(ISERROR(W48),"---",IF(A5=A7,"---","approx. £"&FIXED(W48,0))) -> ---
W50: QH | X50: Ausgabe
W51: =IF(D5=2,0,J146) -> 0 | X51: =FIXED(W51,0)&" kWh/year" -> 0 kWh/year
W53: QWW
W54: =IF(OR(K5=K8,K10,K5=K11),Berechnung!C76*K24,0) ->  | X54: =FIXED(W54,0)&" kWh/year" -> 
X55: =FIXED(W51+W54,0)&" kWh/year" -> 
W56: COP-RHI
W57: =IF(C73=1,Berechnung!$B$127,Berechnung!$C$127) ->  | X57: =IF(C73=0,"---",FIXED(W57,1)) -> 
W59: Fördersatz RHI
W60: =IF($C$73=1,Einstellungen!$D$53,Einstellungen!$D$55) ->  | X60: =IF(C73=0,"---",FIXED(W60*100,1)&" p/kWh") -> 
W62: Fördersumme | X62: =IF(U89+AA89=0,"---","£"&FIXED(U89+AA89,0)) -> 
W63: =W60*(W51+W54)*(1-1/W57) ->  | X63: =IF(W63=0,"---","£"&FIXED(W63,0)) -> 
A72: Rechenwerte | F72: Import WP-Leistung | K72: Kosten | U72: Preisentwicklung Heizung | AA72: Preisentwicklung Warmwasser | AI72: Gesamt | AK72: Ergebnisausgabe
A73: Wärmequelle | C73: =VLOOKUP(A5,Leistungsdaten!A:F,6,FALSE) ->  | F73: Außentemp | G73: Leistung WP | H73: COP WP | K73: Kategorie | L73: Nur WP | M73: Bivalent | N73: Nur Öl/Gas | O73: WP+Solar | P73: Öl/Gas+Solar | Q73: Gewählt | R73: Ausgabe | T73: Jahr | U73: Förderung | V73: Nur WP | W73: Nur Öl/Gas | X73: Bivalent WP | Y73: Bivalent Öl | Z73: Gewählt | AA73: Förderung | AB73: Nur WP | AC73: Nur Öl/Gas | AD73: Bivalent WP | AE73: Bivalent Öl | AF73: WP+Solar | AG73: Öl/Gas+Solar | AH73: Gewählt | AK73: Auswahl | AL73: Gewählt ? | AM73: Text Hauptergebnis | AN73: Wert Hauptergebnis | AO73: Text Teilergebnis 1 | AP73: Wert Teilergebnis 1 | AQ73: Text Teilergebnis 2 | AR73: Wert Teilergebnis 2 | AS73: Text Teilergebnis 3 | AT73: Wert Teilergebnis 3
A74: JAZ-WWB | C74: =VLOOKUP(A5,Leistungsdaten!A:C,3,FALSE) ->  | K74: 1. WE | L74: =M146 -> 1984.794545 | M74: =L74 -> 1984.794545 | N74: =AE146 -> 9662.516401 | O74: =L74 -> 1984.794545 | P74: =N74 -> 9662.516401 | Q74: =IF($D$5=1,L74,IF($D$5=2,N74,M74)) -> 9662.516401 | R74: =FIXED(Q74,0)&" "&Translation!$A$77 -> 9.663 £/Year | T74: 1 | U74: =X7 ->  | V74: =L74+L75 -> 1984.794545 | W74: =N74+N75 -> 9662.516401 | X74: =M74 -> 1984.794545 | Y74: =M75 -> 0 | Z74: =IF($D$5=1,V74,IF($D$5=2,W74,X74+Y74)) -> 9662.516401 | AA74: =IF($K$5<3,0,IF(Einstellungen!$D$55>=T74,Einstellungen!$D$53,0)) -> 0 | AB74: =M8 ->  | AC74: =M9 -> 3490.3125 | AD74: =M16 ->  | AE74: =M17 ->  | AF74: =M11 ->  | AG74: =M12 -> 1745.15625 | AH74: =IF($K$5=0,0,IF($K$5=1,AB74,IF($K$5=2,AC74,IF($K$5=3,AD74+AE74,IF($K$5=4,AF74,AG74))))) -> 3490.3125 | AI74: =Z74+AH74 -> 13152.8289 | AK74: Energiekosten | AL74: =Berechnung!C85 -> FALSE | AM74: =Translation!A68 -> Energy costs | AN74: =R77 -> 13.153 £/Year | AO74: =C81 -> Gaskessel | AP74: =R74 -> 9.663 £/Year | AQ74: =C82 -> 2nd heat source | AR74: =R75 -> 0 £/Year | AS74: =C83 -> DHW | AT74: =R76 -> 3.490 £/Year
A75: Deckung WP WW Monoenergetisch | C75: =VLOOKUP(A5,Leistungsdaten!A:D,4,FALSE) ->  | F75: -20 | G75: 6 | H75: 1 | K75: 2. WE | L75: =Q146 -> 0 | M75: =U146 -> 0 | N75: 0 | O75: =L75 -> 0 | P75: =N75 -> 0 | Q75: =IF($D$5=1,L75,IF($D$5=2,N75,M75)) -> 0 | R75: =FIXED(Q75,0)&" "&Translation!$A$77 -> 0 £/Year | T75: 2 | U75: =X8 ->  | V75: =(1+Berechnung!$C$80/100)*V74 -> 2044.338382 | W75: =(1+Berechnung!$C$74/100)*W74 -> 10145.64222 | X75: =(1+Berechnung!$C$80/100)*X74 -> 2044.338382 | Y75: =(1+Berechnung!$C$74/100)*Y74 -> 0 | Z75: =IF($D$5=1,V75,IF($D$5=2,W75,X75+Y75)) -> 10145.64222 | AA75: =IF($K$5<3,0,IF(Einstellungen!$D$55>=T75,Einstellungen!$D$53,0)) -> 0 | AB75: =(1+Berechnung!$C$80/100)*AB74 ->  | AC75: =(1+Berechnung!$C$74/100)*AC74 -> 3664.828125 | AD75: =(1+Berechnung!$C$80/100)*AD74 ->  | AE75: =(1+Berechnung!$C$74/100)*AE74 ->  | AF75: =(1+Berechnung!$C$80/100)*AF74 ->  | AG75: =(1+Berechnung!$C$74/100)*AG74 -> 1832.414062 | AH75: =IF($K$5=0,0,IF($K$5=1,AB75,IF($K$5=2,AC75,IF($K$5=3,AD75+AE75,IF($K$5=4,AF75,AG75))))) -> 3664.828125 | AI75: 13810.47035 | AK75: Kostenentwicklung | AL75: =Berechnung!C86 -> FALSE | AM75: =Translation!A82 -> Energy costs 15 years | AN75: =FIXED(AI89-U89-AA89,0)&" "&Translation!$A$209 ->  | AO75: =C80 -> - | AP75: =FIXED(Z89,0)&" "&Translation!$A$209 -> 208.503 £ | AQ75: =Translation!A40 -> DHW | AR75: =FIXED(AH89,0)&" "&Translation!$A$209 -> 75.316 £ | AS75: =Translation!A212 -> Subvention | AT75: =FIXED(U89+AA89,0)&" "&Translation!$A$209 -> 
A76: Deckung WP WW Bivalent | C76: =VLOOKUP(A5,Leistungsdaten!$A:$E,5,FALSE) ->  | F76: -17.5 | G76: 6 | H76: 1 | K76: Warmwasser | L76: =M8 ->  | M76: =M10 ->  | N76: =M9 -> 3490.3125 | O76: =M11 ->  | P76: =M12 -> 1745.15625 | Q76: =IF($K$5=0,0,IF($K$5=1,L76,IF($K$5=3,M76,IF($K$5=2,N76,IF($K$5=4,O76,P76))))) -> 3490.3125 | R76: =IF($K$5=0,"",FIXED(Q76,0)&" "&Translation!$A$77) -> 3.490 £/Year | T76: 3 | V76: =(1+Berechnung!$C$80/100)*V75 -> 2105.668533 | W76: =(1+Berechnung!$C$74/100)*W75 -> 10652.92433 | X76: =(1+Berechnung!$C$80/100)*X75 -> 2105.668533 | Y76: =(1+Berechnung!$C$74/100)*Y75 -> 0 | Z76: 10652.92433 | AA76: =IF($K$5<3,0,IF(Einstellungen!$D$55>=T76,Einstellungen!$D$53,0)) -> 0 | AB76: =(1+Berechnung!$C$80/100)*AB75 ->  | AC76: =(1+Berechnung!$C$74/100)*AC75 -> 3848.069531 | AD76: =(1+Berechnung!$C$80/100)*AD75 ->  | AE76: =(1+Berechnung!$C$74/100)*AE75 ->  | AF76: =(1+Berechnung!$C$80/100)*AF75 ->  | AG76: =(1+Berechnung!$C$74/100)*AG75 -> 1924.034766 | AH76: 3848.069531 | AI76: 14500.99386 | AK76: Heizlast/Bivpunkt | AL76: =Berechnung!C87 -> TRUE | AQ76: =Translation!A6 -> Operating mode | AR76: =E5 -> Mono-Mode | AS76: =IF(C157=-30,"",Translation!A38) ->  | AT76: =IF(C157=-30,"",FIXED(C157,1)&" °C") -> 
A77: Startzeile Leistungsdaten WP | C77: =VLOOKUP(A5,Leistungsdaten!$A:$G,7,FALSE) ->  | F77: -15 | G77: 6 | H77: 1 | K77: Summe | L77: =SUM(L74:L76) ->  | M77: =SUM(M74:M76) ->  | N77: =SUM(N74:N76) -> 13152.8289 | O77: =SUM(O74:O76) ->  | P77: =SUM(P74:P76) -> 11407.67265 | Q77: =SUM(Q74:Q76) -> 13152.8289 | R77: =FIXED(Q77,0)&" "&Translation!$A$77 -> 13.153 £/Year | T77: 4 | V77: =(1+Berechnung!$C$80/100)*V76 -> 2168.838589 | W77: =(1+Berechnung!$C$74/100)*W76 -> 11185.57055 | X77: =(1+Berechnung!$C$80/100)*X76 -> 2168.838589 | Y77: =(1+Berechnung!$C$74/100)*Y76 -> 0 | Z77: 11185.57055 | AA77: =IF($K$5<3,0,IF(Einstellungen!$D$55>=T77,Einstellungen!$D$53,0)) -> 0 | AB77: =(1+Berechnung!$C$80/100)*AB76 ->  | AC77: =(1+Berechnung!$C$74/100)*AC76 -> 4040.473008 | AD77: =(1+Berechnung!$C$80/100)*AD76 ->  | AE77: =(1+Berechnung!$C$74/100)*AE76 ->  | AF77: =(1+Berechnung!$C$80/100)*AF76 ->  | AG77: =(1+Berechnung!$C$74/100)*AG76 -> 2020.236504 | AH77: =IF($K$5=0,0,IF($K$5=1,AB77,IF($K$5=2,AC77,IF($K$5=3,AD77+AE77,IF($K$5=4,AF77,AG77))))) -> 4040.473008 | AI77: 15226.04356 | AK77: Jahresheizarbeit | AL77: =Berechnung!C88 -> FALSE | AM77: =Translation!A57 -> Yearly heat demand | AN77: =FIXED(H146,0)&" kWh" -> 11.027 kWh | AO77: =Translation!A66&" "&C81 -> Annual heating Gaskessel | AP77: =FIXED(S155,0)&" kWh" -> 11.027 kWh | AQ77: =Translation!A66&" "&C82 -> Annual heating 2nd heat source | AR77: =FIXED(S156,0)&" kWh" -> 0 kWh | AS77: =IF(K5=0,"",Translation!$A$211) -> Annual heating DHW | AT77: =IF(K5=0,"",FIXED(Berechnung!C76,0)&" kWh") -> 3.285 kWh
A78: Anzahl WP | C78: =VLOOKUP(A5,Leistungsdaten!$A:$H,8,FALSE) ->  | F78: -12.5 | G78: 6 | H78: 1 | T78: 5 | V78: =(1+Berechnung!$C$80/100)*V77 -> 2233.903747 | W78: =(1+Berechnung!$C$74/100)*W77 -> 11744.84908 | X78: =(1+Berechnung!$C$80/100)*X77 -> 2233.903747 | Y78: =(1+Berechnung!$C$74/100)*Y77 -> 0 | Z78: 11744.84908 | AA78: =IF($K$5<3,0,IF(Einstellungen!$D$55>=T78,Einstellungen!$D$53,0)) -> 0 | AB78: =(1+Berechnung!$C$80/100)*AB77 ->  | AC78: =(1+Berechnung!$C$74/100)*AC77 -> 4242.496658 | AD78: =(1+Berechnung!$C$80/100)*AD77 ->  | AE78: =(1+Berechnung!$C$74/100)*AE77 ->  | AF78: =(1+Berechnung!$C$80/100)*AF77 ->  | AG78: =(1+Berechnung!$C$74/100)*AG77 -> 2121.248329 | AH78: 4242.496658 | AI78: 15987.34573 | AK78: CO2 | AL78: =Berechnung!C89 -> FALSE | AM78: =Translation!A69 -> CO2-emission | AN78: =R95 -> 3.915 kg/year | AO78: =AO74 -> Gaskessel | AP78: =R92 -> 2.876 kg/year | AQ78: =AQ74 -> 2nd heat source | AR78: =R93 -> 0 kg/year | AS78: =AS74 -> DHW | AT78: =R94 -> 1.039 kg/year
A79: Bivalent einsetzbar ? | C79: =VLOOKUP(A5,Leistungsdaten!$A:$I,9,FALSE) ->  | F79: -10 | G79: 6 | H79: 1 | T79: 6 | V79: =(1+Berechnung!$C$80/100)*V78 -> 2300.920859 | W79: =(1+Berechnung!$C$74/100)*W78 -> 12332.09153 | X79: =(1+Berechnung!$C$80/100)*X78 -> 2300.920859 | Y79: =(1+Berechnung!$C$74/100)*Y78 -> 0 | Z79: 12332.09153 | AA79: =IF($K$5<3,0,IF(Einstellungen!$D$55>=T79,Einstellungen!$D$53,0)) -> 0 | AB79: =(1+Berechnung!$C$80/100)*AB78 ->  | AC79: =(1+Berechnung!$C$74/100)*AC78 -> 4454.621491 | AD79: =(1+Berechnung!$C$80/100)*AD78 ->  | AE79: =(1+Berechnung!$C$74/100)*AE78 ->  | AF79: =(1+Berechnung!$C$80/100)*AF78 ->  | AG79: =(1+Berechnung!$C$74/100)*AG78 -> 2227.310746 | AH79: 4454.621491 | AI79: 16786.71302 | AK79: Endenergie | AL79: =Berechnung!C90 -> FALSE | AM79: =Translation!A62 -> Final energy | AN79: =R86 -> 15.474 kWh/Year | AO79: =AO74 -> Gaskessel | AP79: =R83 -> 11.368 kWh/Year | AQ79: =AQ74 -> 2nd heat source | AR79: =R84 -> 0 kWh/Year | AS79: =AS74 -> DHW | AT79: =R85 -> 4.106 kWh/Year
A80: Überschrift Slot | C80: =IF(C86=FALSE,"-",IF(D5=1,A5,IF(D5=2,A5,A5&" | "&A7))) -> - | F80: -7.5 | G80: 6 | H80: 1 | T80: 7 | V80: =(1+Berechnung!$C$80/100)*V79 -> 2369.948485 | W80: =(1+Berechnung!$C$74/100)*W79 -> 12948.69611 | X80: =(1+Berechnung!$C$80/100)*X79 -> 2369.948485 | Y80: =(1+Berechnung!$C$74/100)*Y79 -> 0 | Z80: 12948.69611 | AA80: =IF($K$5<3,0,IF(Einstellungen!$D$55>=T80,Einstellungen!$D$53,0)) -> 0 | AB80: =(1+Berechnung!$C$80/100)*AB79 ->  | AC80: =(1+Berechnung!$C$74/100)*AC79 -> 4677.352566 | AD80: =(1+Berechnung!$C$80/100)*AD79 ->  | AE80: =(1+Berechnung!$C$74/100)*AE79 ->  | AF80: =(1+Berechnung!$C$80/100)*AF79 ->  | AG80: =(1+Berechnung!$C$74/100)*AG79 -> 2338.676283 | AH80: 4677.352566 | AI80: 17626.04867 | AK80: COP | AL80: =Berechnung!C91 -> FALSE
A81: Ausgabe 1. WE | C81: =A5 -> Gaskessel | F81: -5 | G81: 6 | H81: 1 | K81: Endenergie | T81: 8 | V81: =(1+Berechnung!$C$80/100)*V80 -> 2441.04694 | W81: =(1+Berechnung!$C$74/100)*W80 -> 13596.13091 | X81: =(1+Berechnung!$C$80/100)*X80 -> 2441.04694 | Y81: =(1+Berechnung!$C$74/100)*Y80 -> 0 | Z81: 13596.13091 | AA81: =IF($K$5<3,0,IF(Einstellungen!$D$55>=T81,Einstellungen!$D$53,0)) -> 0 | AB81: =(1+Berechnung!$C$80/100)*AB80 ->  | AC81: =(1+Berechnung!$C$74/100)*AC80 -> 4911.220194 | AD81: =(1+Berechnung!$C$80/100)*AD80 ->  | AE81: =(1+Berechnung!$C$74/100)*AE80 ->  | AF81: =(1+Berechnung!$C$80/100)*AF80 ->  | AG81: =(1+Berechnung!$C$74/100)*AG80 -> 2455.610097 | AH81: 4911.220194 | AI81: 18507.35111 | AK81: Ausgabe | AM81: =VLOOKUP(TRUE,$AL$74:$AT$80,2,FALSE) ->  | AN81: =VLOOKUP(TRUE,$AL$74:$AT$80,3,FALSE) ->  | AO81: =VLOOKUP(TRUE,$AL$74:$AT$80,4,FALSE) ->  | AP81: =VLOOKUP(TRUE,$AL$74:$AT$80,5,FALSE) ->  | AQ81: =VLOOKUP(TRUE,$AL$74:$AT$80,6,FALSE) -> Operating mode | AR81: =VLOOKUP(TRUE,$AL$74:$AT$80,7,FALSE) -> Mono-Mode | AS81: =VLOOKUP(TRUE,$AL$74:$AT$80,8,FALSE) ->  | AT81: =VLOOKUP(TRUE,$AL$74:$AT$80,9,FALSE) -> 
A82: Ausgabe 2. WE | C82: =IF(D5=1,Translation!A75,IF(D5=2,Translation!A16,A7)) -> 2nd heat source | F82: -2.5 | G82: 6 | H82: 1 | K82: Kategorie | L82: Nur WP | M82: Bivalent | N82: Nur Öl/Gas | O82: WP+Solar | P82: Öl/Gas+Solar | Q82: Gewählt | R82: Ausgabe | T82: 9 | V82: =(1+Berechnung!$C$80/100)*V81 -> 2514.278348 | W82: =(1+Berechnung!$C$74/100)*W81 -> 14275.93746 | X82: =(1+Berechnung!$C$80/100)*X81 -> 2514.278348 | Y82: =(1+Berechnung!$C$74/100)*Y81 -> 0 | Z82: 14275.93746 | AA82: =IF($K$5<3,0,IF(Einstellungen!$D$55>=T82,Einstellungen!$D$53,0)) -> 0 | AB82: =(1+Berechnung!$C$80/100)*AB81 ->  | AC82: =(1+Berechnung!$C$74/100)*AC81 -> 5156.781204 | AD82: =(1+Berechnung!$C$80/100)*AD81 ->  | AE82: =(1+Berechnung!$C$74/100)*AE81 ->  | AF82: =(1+Berechnung!$C$80/100)*AF81 ->  | AG82: =(1+Berechnung!$C$74/100)*AG81 -> 2578.390602 | AH82: 5156.781204 | AI82: 19432.71866
A83: Ausgabe WWB | C83: =IF(K5=0,"",Translation!A40) -> DHW | F83: 0 | G83: 6 | H83: 1 | K83: 1. WE | L83: =L146 -> 11026.63636 | M83: =L83 -> 11026.63636 | N83: =IF(Berechnung!H5=Berechnung!H7,IF(Berechnung!C95=2,AD146/Berechnung!C101,AD146),IF(Berechnung!C95=2,AD146/Berechnung!C102,AD146)) -> 11367.66635 | O83: =L83 -> 11026.63636 | P83: =N83 -> 11367.66635 | Q83: =IF($D$5=1,L83,IF($D$5=2,N83,M83)) -> 11367.66635 | R83: =IF(Berechnung!H5=Berechnung!H7,IF(AND(D5=2,Berechnung!C96=2),FIXED(Q83,0)&" "&Translation!$A$196,FIXED(Q83,0)&" "&Translation!$A$79),IF(AND(D5=2,Berechnung!C96=2),FIXED(Q83,0)&" "&Translation!$A$197,FIXED(Q83,0)&" "&Translation!$A$79)) -> 11.368 kWh/Year | T83: 10 | V83: =(1+Berechnung!$C$80/100)*V82 -> 2589.706698 | W83: =(1+Berechnung!$C$74/100)*W82 -> 14989.73433 | X83: =(1+Berechnung!$C$80/100)*X82 -> 2589.706698 | Y83: =(1+Berechnung!$C$74/100)*Y82 -> 0 | Z83: 14989.73433 | AA83: =IF($K$5<3,0,IF(Einstellungen!$D$55>=T83,Einstellungen!$D$53,0)) -> 0 | AB83: =(1+Berechnung!$C$80/100)*AB82 ->  | AC83: =(1+Berechnung!$C$74/100)*AC82 -> 5414.620264 | AD83: =(1+Berechnung!$C$80/100)*AD82 ->  | AE83: =(1+Berechnung!$C$74/100)*AE82 ->  | AF83: =(1+Berechnung!$C$80/100)*AF82 ->  | AG83: =(1+Berechnung!$C$74/100)*AG82 -> 2707.310132 | AH83: 5414.620264 | AI83: 20404.35459
A84: Ausgabe Wärmepume/Kessel | C84: =IF(A5=A7,A5,Translation!$A$5) -> Gaskessel | F84: 2.5 | G84: 6 | H84: 1 | K84: 2. WE | L84: =P146 -> 0 | M84: =T146 -> 0 | N84: 0 | O84: =L84 -> 0 | P84: =N84 -> 0 | Q84: =IF($D$5=1,L84,IF($D$5=2,N84,M84)) -> 0 | R84: =IF(Berechnung!H5=Berechnung!H7,IF(AND(D5=2,Berechnung!C96=2),FIXED(Q84,0)&" "&Translation!$A$196,FIXED(Q84,0)&" "&Translation!$A$79),IF(AND(D5=2,Berechnung!C96=2),FIXED(Q84,0)&" "&Translation!$A$197,FIXED(Q84,0)&" "&Translation!$A$79)) -> 0 kWh/Year | T84: 11 | V84: =(1+Berechnung!$C$80/100)*V83 -> 2667.397899 | W84: =(1+Berechnung!$C$74/100)*W83 -> 15739.22105 | X84: =(1+Berechnung!$C$80/100)*X83 -> 2667.397899 | Y84: =(1+Berechnung!$C$74/100)*Y83 -> 0 | Z84: 15739.22105 | AA84: =IF($K$5<3,0,IF(Einstellungen!$D$55>=T84,Einstellungen!$D$53,0)) -> 0 | AB84: =(1+Berechnung!$C$80/100)*AB83 ->  | AC84: =(1+Berechnung!$C$74/100)*AC83 -> 5685.351277 | AD84: =(1+Berechnung!$C$80/100)*AD83 ->  | AE84: =(1+Berechnung!$C$74/100)*AE83 ->  | AF84: =(1+Berechnung!$C$80/100)*AF83 ->  | AG84: =(1+Berechnung!$C$74/100)*AG83 -> 2842.675639 | AH84: 5685.351277 | AI84: 21424.57232
A85: Zertifikat MCS | C85: =VLOOKUP(A5,Leistungsdaten!A:L,12,FALSE) ->  | F85: 5 | G85: 6 | H85: 1 | K85: Warmwasser | L85: =L8 ->  | M85: =L10 ->  | N85: =IF(Berechnung!H5=Berechnung!H7,IF(Berechnung!C95=2,L9/Berechnung!C101,L9),IF(Berechnung!C95=2,L9/Berechnung!C102,L9)) -> 4106.25 | O85: =IF(Berechnung!H5=Berechnung!H7,IF(Berechnung!C95=2,L11/Berechnung!C101,L11),IF(Berechnung!C95=2,L11/Berechnung!C102,L11)) ->  | P85: =IF(Berechnung!H5=Berechnung!H7,IF(Berechnung!C95=2,L12/Berechnung!C101,L12),IF(Berechnung!C95=2,L12/Berechnung!C102,L12)) -> 2053.125 | Q85: =IF($K$5=1,L85,IF($K$5=3,M85,IF($K$5=2,N85,IF($K$5=4,O85,P85)))) -> 4106.25 | R85: =IF(Berechnung!H5=Berechnung!H7,IF(AND(D5=2,Berechnung!C96=2),IF($K$5=0,"",FIXED(Q85,0)&" "&Translation!$A$196),IF($K$5=0,"",FIXED(Q85,0)&" "&Translation!$A$79)),IF(AND(D5=2,Berechnung!C96=2),IF($K$5=0,"",FIXED(Q85,0)&" "&Translation!$A$197),IF($K$5=0,"",FIXED(Q85,0)&" "&Translation!$A$79))) -> 4.106 kWh/Year | T85: 12 | V85: =(1+Berechnung!$C$80/100)*V84 -> 2747.419836 | W85: =(1+Berechnung!$C$74/100)*W84 -> 16526.1821 | X85: =(1+Berechnung!$C$80/100)*X84 -> 2747.419836 | Y85: =(1+Berechnung!$C$74/100)*Y84 -> 0 | Z85: 16526.1821 | AA85: =IF($K$5<3,0,IF(Einstellungen!$D$55>=T85,Einstellungen!$D$53,0)) -> 0 | AB85: =(1+Berechnung!$C$80/100)*AB84 ->  | AC85: =(1+Berechnung!$C$74/100)*AC84 -> 5969.618841 | AD85: =(1+Berechnung!$C$80/100)*AD84 ->  | AE85: =(1+Berechnung!$C$74/100)*AE84 ->  | AF85: =(1+Berechnung!$C$80/100)*AF84 ->  | AG85: =(1+Berechnung!$C$74/100)*AG84 -> 2984.80942 | AH85: 5969.618841 | AI85: 22495.80094 | AL85: Diagramm Preisentwicklung
A86: Slot anzeigen ? | C86: FALSE | F86: 7.5 | G86: 6 | H86: 1 | K86: Summe | L86: =SUM(L83:L85) ->  | M86: =SUM(M83:M85) ->  | N86: 15473.91635 | P86: 13420.79135 | Q86: =SUM(Q83:Q85) -> 15473.91635 | R86: =IF(Berechnung!H5=Berechnung!H7,IF(AND(D5=2,Berechnung!C96=2),FIXED(Q86,0)&" "&Translation!$A$196,FIXED(Q86,0)&" "&Translation!$A$79),IF(AND(D5=2,Berechnung!C96=2),FIXED(Q86,0)&" "&Translation!$A$197,FIXED(Q86,0)&" "&Translation!$A$79)) -> 15.474 kWh/Year | T86: 13 | V86: =(1+Berechnung!$C$80/100)*V85 -> 2829.842431 | W86: =(1+Berechnung!$C$74/100)*W85 -> 17352.4912 | X86: =(1+Berechnung!$C$80/100)*X85 -> 2829.842431 | Y86: =(1+Berechnung!$C$74/100)*Y85 -> 0 | Z86: 17352.4912 | AA86: =IF($K$5<3,0,IF(Einstellungen!$D$55>=T86,Einstellungen!$D$53,0)) -> 0 | AB86: =(1+Berechnung!$C$80/100)*AB85 ->  | AC86: =(1+Berechnung!$C$74/100)*AC85 -> 6268.099783 | AD86: =(1+Berechnung!$C$80/100)*AD85 ->  | AE86: =(1+Berechnung!$C$74/100)*AE85 ->  | AF86: =(1+Berechnung!$C$80/100)*AF85 ->  | AG86: =(1+Berechnung!$C$74/100)*AG85 -> 3134.049891 | AH86: 6268.099783 | AI86: 23620.59099 | AK86: Jahr | AL86: Gesamtkosten | AM86: Förderung | AN86: Heizung-Diagr. | AO86: WW-Diagr. | AP86: Förderung
F87: 10 | G87: 6 | H87: 1 | T87: 14 | V87: =(1+Berechnung!$C$80/100)*V86 -> 2914.737704 | W87: =(1+Berechnung!$C$74/100)*W86 -> 18220.11576 | X87: =(1+Berechnung!$C$80/100)*X86 -> 2914.737704 | Y87: =(1+Berechnung!$C$74/100)*Y86 -> 0 | Z87: 18220.11576 | AA87: =IF($K$5<3,0,IF(Einstellungen!$D$55>=T87,Einstellungen!$D$53,0)) -> 0 | AB87: =(1+Berechnung!$C$80/100)*AB86 ->  | AC87: =(1+Berechnung!$C$74/100)*AC86 -> 6581.504772 | AD87: =(1+Berechnung!$C$80/100)*AD86 ->  | AE87: =(1+Berechnung!$C$74/100)*AE86 ->  | AF87: =(1+Berechnung!$C$80/100)*AF86 ->  | AG87: =(1+Berechnung!$C$74/100)*AG86 -> 3290.752386 | AH87: 6581.504772 | AI87: 24801.62054 | AK87: 1 | AL87: =AI74 -> 13152.8289 | AM87: =U74+AA74 ->  | AN87: =IF(AM87>0,(AL87-AM87)*(Z74/AI74),Z74) ->  | AO87: =IF(AM87>0,(AL87-AM87)*(AH74/AI74),AH74) ->  | AP87: =MIN(AM87,AL87) -> 
F88: 12.5 | G88: 6 | H88: 1 | T88: 15 | V88: =(1+Berechnung!$C$80/100)*V87 -> 3002.179835 | W88: =(1+Berechnung!$C$74/100)*W87 -> 19131.12155 | X88: =(1+Berechnung!$C$80/100)*X87 -> 3002.179835 | Y88: =(1+Berechnung!$C$74/100)*Y87 -> 0 | Z88: 19131.12155 | AA88: =IF($K$5<3,0,IF(Einstellungen!$D$55>=T88,Einstellungen!$D$53,0)) -> 0 | AB88: =(1+Berechnung!$C$80/100)*AB87 ->  | AC88: =(1+Berechnung!$C$74/100)*AC87 -> 6910.580011 | AD88: =(1+Berechnung!$C$80/100)*AD87 ->  | AE88: =(1+Berechnung!$C$74/100)*AE87 ->  | AF88: =(1+Berechnung!$C$80/100)*AF87 ->  | AG88: =(1+Berechnung!$C$74/100)*AG87 -> 3455.290005 | AH88: 6910.580011 | AI88: 26041.70156 | AK88: 2 | AL88: 13810.47035 | AN88: =IF(AM88>0,(AL88-AM88)*(Z75/AI75),Z75) ->  | AO88: =IF(AM88>0,(AL88-AM88)*(AH75/AI75),AH75) ->  | AP88: =MIN(AM88,AL88) -> 
F89: 15 | G89: 6 | H89: 1 | T89: Summe | U89: =SUM(U74:U88) ->  | V89: =SUM(V74:V88) -> 36915.02283 | W89: =SUM(W74:W88) -> 208503.2246 | X89: =SUM(X74:X88) -> 36915.02283 | Y89: =SUM(Y74:Y88) -> 0 | Z89: =SUM(Z74:Z88) -> 208503.2246 | AA89: =SUM(AA74:AA88) -> 0 | AC89: =SUM(AC74:AC88) -> 75315.93022 | AD89: =SUM(AD74:AD88) ->  | AE89: =SUM(AE74:AE88) ->  | AF89: =SUM(AF74:AF88) ->  | AG89: 37657.96511 | AH89: =SUM(AH74:AH88) -> 75315.93022 | AI89: =SUM(AI74:AI88) -> 283819.1548 | AK89: 3 | AL89: 14500.99386
F90: 17.5 | G90: 6 | H90: 1 | K90: CO2 | AK90: 4 | AL90: 15226.04356
F91: 20 | G91: 6 | H91: 1 | K91: Kategorie | L91: Nur WP | M91: Bivalent | N91: Nur Öl/Gas | O91: WP+Solar | P91: Öl/Gas+Solar | Q91: Gewählt | R91: Ausgabe | AK91: 5 | AL91: 15987.34573
F92: 22.5 | G92: 6 | H92: 1 | K92: 1. WE | L92: =N146 -> 6847.541182 | M92: =L92 -> 6847.541182 | N92: =AF146 -> 2876.019588 | O92: =L92 -> 6847.541182 | P92: =N92 -> 2876.019588 | Q92: =IF($D$5=1,L92,IF($D$5=2,N92,M92)) -> 2876.019588 | R92: =FIXED(Q92,0)&" "&Translation!$A$80 -> 2.876 kg/year | AK92: 6 | AL92: 16786.71302
F93: 25 | G93: 6 | H93: 1 | K93: 2. WE | L93: =R146 -> 0 | M93: =V146 -> 0 | N93: 0 | O93: =L93 -> 0 | P93: =N93 -> 0 | Q93: =IF($D$5=1,L93,IF($D$5=2,N93,M93)) -> 0 | R93: =FIXED(Q93,0)&" "&Translation!$A$80 -> 0 kg/year | AK93: 7 | AL93: 17626.04867
F94: 27.5 | G94: 6 | H94: 1 | K94: Warmwasser | L94: =N8 ->  | M94: =N10 ->  | N94: =N9 -> 1038.88125 | O94: =N11 ->  | P94: =N12 -> 519.440625 | Q94: =IF($K$5=1,L94,IF($K$5=3,M94,IF($K$5=2,N94,IF($K$5=4,O94,P94)))) -> 1038.88125 | R94: =IF($K$5=0,"",FIXED(Q94,0)&" "&Translation!$A$80) -> 1.039 kg/year | AK94: 8 | AL94: 18507.35111 | AN94: =IF(AM94>0,(AL94-AM94)*(Z81/AI81),Z81) -> 
F95: 30 | G95: 6 | H95: 1 | K95: Summe | L95: =SUM(L92:L94) ->  | M95: =SUM(M92:M94) ->  | N95: 3914.900838 | P95: =SUM(P92:P94) -> 3395.460213 | Q95: =SUM(Q92:Q94) -> 3914.900838 | R95: =FIXED(Q95,0)&" "&Translation!$A$80 -> 3.915 kg/year | AK95: 9 | AL95: 19432.71866
AK96: 10 | AL96: 20404.35459
AK97: 11 | AL97: 21424.57232
AK98: 12 | AL98: 22495.80094
AK99: 13 | AL99: 23620.59099
A100: Berechnung Jahresheizarbeit/Heizstunden | J100: Wärmepumpe | O100: 2. WE - DHC monoenergetisch | S100: 2. WE - Öl/Gas bivalent | W100: Gesamt Nur Wärmepumpe | Z100: Gesamt Wärmepumpe+Öl/Gas | AC100: Gasamt Nur Öl/Gas | AK100: 14 | AL100: 24801.62054
A101: Zähler | B101: Außentemp | C101: Heizlast | D101: Leistung WP | E101: Heizlast minus | F101: Biv.punkt | G101: Stunden bei tau | H101: Heizwärmebedarf | I101: Faktor | J101: Heizarbeit | K101: COP | L101: Endenergie | M101: Energiekosten | N101: CO2-Emission | O101: Heizarbeit | P101: Endenergie | Q101: Energiekosten | R101: CO2-Emission | S101: Heizarbeit | T101: Endenergie | U101: Energiekosten | V101: CO2-Emission | W101: Endenergie | X101: Energiekosten | Y101: CO2-Emission | Z101: Endenergie | AA101: Energiekosten | AB101: CO2-Emission | AC101: Heizarbeit | AD101: Endenergie | AE101: Energiekosten | AF101: CO2-Emission | AK101: 15 | AL101: 26041.70156
B102: °C | C102: KW | D102: KW | E102: WP-Leistung | G102: =Berechnung!$B$5 -> Holzminden | H102: kWh/a | I102: bivalenter Betrieb | J102: kWh/a | K102: - | L102: kWh/a | M102: €/a | N102: kg/a | O102: kWh/a | P102: kWh/a | Q102: €/a | R102: kg/a | S102: kWh/a | T102: kWh/a | U102: €/a | V102: kg/a | AC102: kWh/a | AD102: kWh/a | AE102: €/a | AF102: kg/a
A103: 3 | B103: < -20 | C103: =Berechnung!$C$65 -> 6 | D103: =D104-(D105-D104) -> 6 | E103: =C103-D103 -> 0 | F103: -20 | G103: =HLOOKUP(Berechnung!$C$66,INDIRECT("Klimadaten!M"&Berechnung!$C$67&":BM"&Berechnung!$C$67+44),A103,FALSE) -> 0 | H103: =C103*G103 -> 0 | I103: =I104 -> 1 | J103: =MIN(H103,I103*D103*G103) -> 0 | K103: =K104-(K105-K104) -> 1 | L103: =J103/K103 -> 0 | M103: =L103*Berechnung!$C$79/100 -> 0 | N103: =(L103*Berechnung!$C$69/1000) -> 0 | O103: =H103-J103 -> 0 | P103: =O103 -> 0 | Q103: =P103*Berechnung!$C$78/100 -> 0 | R103: =P103*Berechnung!$C$69/1000 -> 0 | S103: =O103 -> 0 | T103: =S103/(Berechnung!$C$81/100) -> 0 | U103: =T103*Berechnung!$C$72 -> 0 | V103: =T103*Berechnung!$C$73/1000 -> 0 | W103: =L103+P103 -> 0 | X103: 0 | Y103: 0 | Z103: =L103+T103 -> 0 | AA103: =M103+U103 -> 0 | AB103: =N103+V103 -> 0 | AC103: =H103 -> 0 | AD103: =AC103/(Berechnung!$C$81/100) -> 0 | AE103: =AD103*Berechnung!$C$72 -> 0 | AF103: =AD103*Berechnung!$C$73/1000 -> 0
A104: 4 | B104: -20 | C104: =MAX(0,MIN(Berechnung!$C$65,Berechnung!$C$65*(B104-Berechnung!$C$64)/(Berechnung!$C$63-Berechnung!$C$64))) -> 6 | D104: =G75 -> 6 | E104: =C104-D104 -> 0 | F104: =IF(SIGN(E104)-SIGN(E105)<>0,B104,-20) -> -20 | G104: =HLOOKUP(Berechnung!$C$66,INDIRECT("Klimadaten!M"&Berechnung!$C$67&":BM"&Berechnung!$C$67+44),A104,FALSE) -> 0 | H104: =C104*G104 -> 0 | I104: =IF(OR($B$5=$B$7,$B$5=$B$8),1,IF(B104<=$F$146,0,1)) -> 1 | J104: =MIN(H104,I104*D104*G104) -> 0 | K104: =H75 -> 1 | L104: 0 | M104: =L104*Berechnung!$C$79/100 -> 0 | N104: =(L104*Berechnung!$C$69/1000) -> 0 | O104: 0 | P104: =O104 -> 0 | Q104: =P104*Berechnung!$C$78/100 -> 0 | R104: =P104*Berechnung!$C$69/1000 -> 0 | S104: =O104 -> 0 | T104: =S104/(Berechnung!$C$81/100) -> 0 | U104: =T104*Berechnung!$C$72 -> 0 | V104: =T104*Berechnung!$C$73/1000 -> 0 | W104: 0 | X104: 0 | Y104: 0 | Z104: =L104+T104 -> 0 | AA104: 0 | AB104: 0 | AC104: =H104 -> 0 | AD104: =AC104/(Berechnung!$C$81/100) -> 0 | AE104: =AD104*Berechnung!$C$72 -> 0 | AF104: =AD104*Berechnung!$C$73/1000 -> 0
A105: 5 | B105: -19 | C105: =MAX(0,MIN(Berechnung!$C$65,Berechnung!$C$65*(B105-Berechnung!$C$64)/(Berechnung!$C$63-Berechnung!$C$64))) -> 6 | D105: =AVERAGE(D104,D106) -> 6 | E105: 0 | F105: =IF(SIGN(E105)-SIGN(E106)<>0,B105,-20) -> -20 | G105: =HLOOKUP(Berechnung!$C$66,INDIRECT("Klimadaten!M"&Berechnung!$C$67&":BM"&Berechnung!$C$67+44),A105,FALSE) -> 0 | H105: =C105*G105 -> 0 | I105: 1 | J105: 0 | K105: =AVERAGE(K104,K106) -> 1 | L105: 0 | M105: =L105*Berechnung!$C$79/100 -> 0 | N105: =(L105*Berechnung!$C$69/1000) -> 0 | O105: 0 | P105: 0 | Q105: =P105*Berechnung!$C$78/100 -> 0 | R105: =P105*Berechnung!$C$69/1000 -> 0 | S105: 0 | T105: =S105/(Berechnung!$C$81/100) -> 0 | U105: =T105*Berechnung!$C$72 -> 0 | V105: =T105*Berechnung!$C$73/1000 -> 0 | W105: 0 | X105: 0 | Y105: 0 | Z105: 0 | AA105: 0 | AB105: 0 | AC105: 0 | AD105: =AC105/(Berechnung!$C$81/100) -> 0 | AE105: =AD105*Berechnung!$C$72 -> 0 | AF105: =AD105*Berechnung!$C$73/1000 -> 0
A106: 6 | B106: -18 | C106: =MAX(0,MIN(Berechnung!$C$65,Berechnung!$C$65*(B106-Berechnung!$C$64)/(Berechnung!$C$63-Berechnung!$C$64))) -> 6 | D106: =G76 -> 6 | E106: 0 | F106: -20 | G106: =HLOOKUP(Berechnung!$C$66,INDIRECT("Klimadaten!M"&Berechnung!$C$67&":BM"&Berechnung!$C$67+44),A106,FALSE) -> 0 | H106: =C106*G106 -> 0 | I106: 1 | J106: =MIN(H106,I106*D106*G106) -> 0 | K106: =H76 -> 1 | L106: 0 | M106: =L106*Berechnung!$C$79/100 -> 0 | N106: =(L106*Berechnung!$C$69/1000) -> 0 | O106: 0 | P106: 0 | Q106: =P106*Berechnung!$C$78/100 -> 0 | R106: =P106*Berechnung!$C$69/1000 -> 0 | S106: 0 | T106: =S106/(Berechnung!$C$81/100) -> 0 | U106: =T106*Berechnung!$C$72 -> 0 | V106: =T106*Berechnung!$C$73/1000 -> 0 | W106: 0 | X106: 0 | Y106: 0 | Z106: 0 | AA106: 0 | AB106: 0 | AC106: 0 | AD106: =AC106/(Berechnung!$C$81/100) -> 0 | AE106: =AD106*Berechnung!$C$72 -> 0 | AF106: =AD106*Berechnung!$C$73/1000 -> 0
A107: 7 | B107: -17 | C107: =MAX(0,MIN(Berechnung!$C$65,Berechnung!$C$65*(B107-Berechnung!$C$64)/(Berechnung!$C$63-Berechnung!$C$64))) -> 6 | D107: =G76 -> 6 | E107: 0 | F107: =IF(SIGN(E107)-SIGN(E108)<>0,B107,-20) -> -20 | G107: =HLOOKUP(Berechnung!$C$66,INDIRECT("Klimadaten!M"&Berechnung!$C$67&":BM"&Berechnung!$C$67+44),A107,FALSE) -> 0 | H107: =C107*G107 -> 0 | I107: 1 | J107: =MIN(H107,I107*D107*G107) -> 0 | K107: =H76 -> 1 | L107: 0 | M107: =L107*Berechnung!$C$79/100 -> 0 | N107: =(L107*Berechnung!$C$69/1000) -> 0 | O107: 0 | P107: 0 | Q107: =P107*Berechnung!$C$78/100 -> 0 | R107: =P107*Berechnung!$C$69/1000 -> 0 | S107: 0 | T107: =S107/(Berechnung!$C$81/100) -> 0 | U107: =T107*Berechnung!$C$72 -> 0 | V107: =T107*Berechnung!$C$73/1000 -> 0 | W107: 0 | X107: 0 | Y107: 0 | Z107: 0 | AA107: 0 | AB107: 0 | AC107: 0 | AD107: =AC107/(Berechnung!$C$81/100) -> 0 | AE107: =AD107*Berechnung!$C$72 -> 0 | AF107: =AD107*Berechnung!$C$73/1000 -> 0
A108: 8 | B108: -16 | C108: =MAX(0,MIN(Berechnung!$C$65,Berechnung!$C$65*(B108-Berechnung!$C$64)/(Berechnung!$C$63-Berechnung!$C$64))) -> 6 | D108: =AVERAGE(D107,D109) -> 6 | E108: 0 | F108: -20 | G108: =HLOOKUP(Berechnung!$C$66,INDIRECT("Klimadaten!M"&Berechnung!$C$67&":BM"&Berechnung!$C$67+44),A108,FALSE) -> 0 | H108: =C108*G108 -> 0 | I108: 1 | J108: 0 | K108: =AVERAGE(K107,K109) -> 1 | L108: 0 | M108: =L108*Berechnung!$C$79/100 -> 0 | N108: =(L108*Berechnung!$C$69/1000) -> 0 | O108: 0 | P108: 0 | Q108: =P108*Berechnung!$C$78/100 -> 0 | R108: =P108*Berechnung!$C$69/1000 -> 0 | S108: 0 | T108: =S108/(Berechnung!$C$81/100) -> 0 | U108: =T108*Berechnung!$C$72 -> 0 | V108: =T108*Berechnung!$C$73/1000 -> 0 | W108: 0 | X108: 0 | Y108: 0 | Z108: 0 | AA108: 0 | AB108: 0 | AC108: 0 | AD108: =AC108/(Berechnung!$C$81/100) -> 0 | AE108: =AD108*Berechnung!$C$72 -> 0 | AF108: =AD108*Berechnung!$C$73/1000 -> 0
A109: 9 | B109: -15 | C109: =MAX(0,MIN(Berechnung!$C$65,Berechnung!$C$65*(B109-Berechnung!$C$64)/(Berechnung!$C$63-Berechnung!$C$64))) -> 6 | D109: =G77 -> 6 | E109: 0 | F109: -20 | G109: =HLOOKUP(Berechnung!$C$66,INDIRECT("Klimadaten!M"&Berechnung!$C$67&":BM"&Berechnung!$C$67+44),A109,FALSE) -> 0 | H109: 0 | I109: 1 | J109: 0 | K109: =H77 -> 1 | L109: 0 | M109: =L109*Berechnung!$C$79/100 -> 0 | N109: =(L109*Berechnung!$C$69/1000) -> 0 | O109: 0 | P109: 0 | Q109: =P109*Berechnung!$C$78/100 -> 0 | R109: =P109*Berechnung!$C$69/1000 -> 0 | S109: 0 | T109: =S109/(Berechnung!$C$81/100) -> 0 | U109: =T109*Berechnung!$C$72 -> 0 | V109: =T109*Berechnung!$C$73/1000 -> 0 | W109: 0 | X109: 0 | Y109: 0 | Z109: 0 | AA109: 0 | AB109: 0 | AC109: 0 | AD109: =AC109/(Berechnung!$C$81/100) -> 0 | AE109: =AD109*Berechnung!$C$72 -> 0 | AF109: =AD109*Berechnung!$C$73/1000 -> 0
A110: 10 | B110: -14 | C110: =MAX(0,MIN(Berechnung!$C$65,Berechnung!$C$65*(B110-Berechnung!$C$64)/(Berechnung!$C$63-Berechnung!$C$64))) -> 6 | D110: =AVERAGE(D109,D111) -> 6 | E110: 0 | F110: =IF(SIGN(E110)-SIGN(E111)<>0,B110,-20) -> -20 | G110: =HLOOKUP(Berechnung!$C$66,INDIRECT("Klimadaten!M"&Berechnung!$C$67&":BM"&Berechnung!$C$67+44),A110,FALSE) -> 0 | H110: =C110*G110 -> 0 | I110: 1 | J110: 0 | K110: =AVERAGE(K109,K111) -> 1 | L110: 0 | M110: =L110*Berechnung!$C$79/100 -> 0 | N110: =(L110*Berechnung!$C$69/1000) -> 0 | O110: 0 | P110: 0 | Q110: =P110*Berechnung!$C$78/100 -> 0 | R110: =P110*Berechnung!$C$69/1000 -> 0 | S110: =O110 -> 0 | T110: =S110/(Berechnung!$C$81/100) -> 0 | U110: =T110*Berechnung!$C$72 -> 0 | V110: =T110*Berechnung!$C$73/1000 -> 0 | W110: 0 | X110: 0 | Y110: 0 | Z110: 0 | AA110: 0 | AB110: 0 | AC110: 0 | AD110: =AC110/(Berechnung!$C$81/100) -> 0 | AE110: =AD110*Berechnung!$C$72 -> 0 | AF110: =AD110*Berechnung!$C$73/1000 -> 0
A111: 11 | B111: -13 | C111: =MAX(0,MIN(Berechnung!$C$65,Berechnung!$C$65*(B111-Berechnung!$C$64)/(Berechnung!$C$63-Berechnung!$C$64))) -> 6 | D111: =G78 -> 6 | E111: 0 | F111: -20 | G111: =HLOOKUP(Berechnung!$C$66,INDIRECT("Klimadaten!M"&Berechnung!$C$67&":BM"&Berechnung!$C$67+44),A111,FALSE) -> 0 | H111: =C111*G111 -> 0 | I111: 1 | J111: 0 | K111: =H78 -> 1 | L111: 0 | M111: =L111*Berechnung!$C$79/100 -> 0 | N111: =(L111*Berechnung!$C$69/1000) -> 0 | O111: 0 | P111: 0 | Q111: =P111*Berechnung!$C$78/100 -> 0 | R111: =P111*Berechnung!$C$69/1000 -> 0 | S111: 0 | T111: =S111/(Berechnung!$C$81/100) -> 0 | U111: =T111*Berechnung!$C$72 -> 0 | V111: =T111*Berechnung!$C$73/1000 -> 0 | W111: 0 | X111: 0 | Y111: 0 | Z111: 0 | AA111: 0 | AB111: 0 | AC111: 0 | AD111: =AC111/(Berechnung!$C$81/100) -> 0 | AE111: =AD111*Berechnung!$C$72 -> 0 | AF111: =AD111*Berechnung!$C$73/1000 -> 0
A112: 12 | B112: -12 | C112: =MAX(0,MIN(Berechnung!$C$65,Berechnung!$C$65*(B112-Berechnung!$C$64)/(Berechnung!$C$63-Berechnung!$C$64))) -> 6 | D112: =G78 -> 6 | E112: 0 | F112: -20 | G112: =HLOOKUP(Berechnung!$C$66,INDIRECT("Klimadaten!M"&Berechnung!$C$67&":BM"&Berechnung!$C$67+44),A112,FALSE) -> 0 | H112: 0 | I112: 1 | J112: =MIN(H112,I112*D112*G112) -> 0 | K112: =H78 -> 1 | L112: 0 | M112: =L112*Berechnung!$C$79/100 -> 0 | N112: =(L112*Berechnung!$C$69/1000) -> 0 | O112: 0 | P112: 0 | Q112: =P112*Berechnung!$C$78/100 -> 0 | R112: =P112*Berechnung!$C$69/1000 -> 0 | S112: 0 | T112: =S112/(Berechnung!$C$81/100) -> 0 | U112: =T112*Berechnung!$C$72 -> 0 | V112: =T112*Berechnung!$C$73/1000 -> 0 | W112: 0 | X112: 0 | Y112: 0 | Z112: 0 | AA112: 0 | AB112: 0 | AC112: 0 | AD112: =AC112/(Berechnung!$C$81/100) -> 0 | AE112: =AD112*Berechnung!$C$72 -> 0 | AF112: =AD112*Berechnung!$C$73/1000 -> 0
A113: 13 | B113: -11 | C113: =MAX(0,MIN(Berechnung!$C$65,Berechnung!$C$65*(B113-Berechnung!$C$64)/(Berechnung!$C$63-Berechnung!$C$64))) -> 6 | D113: =AVERAGE(D112,D114) -> 6 | E113: 0 | F113: -20 | G113: =HLOOKUP(Berechnung!$C$66,INDIRECT("Klimadaten!M"&Berechnung!$C$67&":BM"&Berechnung!$C$67+44),A113,FALSE) -> 6 | H113: 36 | I113: 1 | J113: 36 | K113: =AVERAGE(K112,K114) -> 1 | L113: 36 | M113: =L113*Berechnung!$C$79/100 -> 6.48 | N113: =(L113*Berechnung!$C$69/1000) -> 22.356 | O113: 0 | P113: 0 | Q113: =P113*Berechnung!$C$78/100 -> 0 | R113: =P113*Berechnung!$C$69/1000 -> 0 | S113: 0 | T113: =S113/(Berechnung!$C$81/100) -> 0 | U113: =T113*Berechnung!$C$72 -> 0 | V113: =T113*Berechnung!$C$73/1000 -> 0 | W113: 36 | X113: 6.48 | Y113: 22.356 | Z113: 36 | AA113: 6.48 | AB113: 22.356 | AC113: 36 | AD113: =AC113/(Berechnung!$C$81/100) -> 37.11340206 | AE113: =AD113*Berechnung!$C$72 -> 31.54639175 | AF113: =AD113*Berechnung!$C$73/1000 -> 9.389690722
A114: 14 | B114: -10 | C114: =MAX(0,MIN(Berechnung!$C$65,Berechnung!$C$65*(B114-Berechnung!$C$64)/(Berechnung!$C$63-Berechnung!$C$64))) -> 6 | D114: =G79 -> 6 | E114: 0 | F114: -10 | G114: =HLOOKUP(Berechnung!$C$66,INDIRECT("Klimadaten!M"&Berechnung!$C$67&":BM"&Berechnung!$C$67+44),A114,FALSE) -> 32 | H114: 192 | I114: 1 | J114: =MIN(H114,I114*D114*G114) -> 192 | K114: =H79 -> 1 | L114: 192 | M114: =L114*Berechnung!$C$79/100 -> 34.56 | N114: =(L114*Berechnung!$C$69/1000) -> 119.232 | O114: 0 | P114: 0 | Q114: =P114*Berechnung!$C$78/100 -> 0 | R114: =P114*Berechnung!$C$69/1000 -> 0 | S114: 0 | T114: =S114/(Berechnung!$C$81/100) -> 0 | U114: =T114*Berechnung!$C$72 -> 0 | V114: =T114*Berechnung!$C$73/1000 -> 0 | W114: 192 | X114: 34.56 | Y114: 119.232 | Z114: 192 | AA114: 34.56 | AB114: 119.232 | AC114: 192 | AD114: =AC114/(Berechnung!$C$81/100) -> 197.9381443 | AE114: =AD114*Berechnung!$C$72 -> 168.2474227 | AF114: =AD114*Berechnung!$C$73/1000 -> 50.07835052
A115: 15 | B115: -9 | C115: =MAX(0,MIN(Berechnung!$C$65,Berechnung!$C$65*(B115-Berechnung!$C$64)/(Berechnung!$C$63-Berechnung!$C$64))) -> 5.727272727 | D115: =AVERAGE(D114,D116) -> 6 | E115: -0.2727272727 | F115: -20 | G115: =HLOOKUP(Berechnung!$C$66,INDIRECT("Klimadaten!M"&Berechnung!$C$67&":BM"&Berechnung!$C$67+44),A115,FALSE) -> 14 | H115: 80.18181818 | I115: 1 | J115: 80.18181818 | K115: =AVERAGE(K114,K116) -> 1 | L115: 80.18181818 | M115: =L115*Berechnung!$C$79/100 -> 14.43272727 | N115: =(L115*Berechnung!$C$69/1000) -> 49.79290909 | O115: 0 | P115: =O115 -> 0 | Q115: =P115*Berechnung!$C$78/100 -> 0 | R115: =P115*Berechnung!$C$69/1000 -> 0 | S115: 0 | T115: =S115/(Berechnung!$C$81/100) -> 0 | U115: =T115*Berechnung!$C$72 -> 0 | V115: =T115*Berechnung!$C$73/1000 -> 0 | W115: 80.18181818 | X115: 14.43272727 | Y115: 49.79290909 | Z115: 80.18181818 | AA115: =M115+U115 -> 14.43272727 | AB115: 49.79290909 | AC115: 80.18181818 | AD115: =AC115/(Berechnung!$C$81/100) -> 82.66166823 | AE115: =AD115*Berechnung!$C$72 -> 70.26241799 | AF115: =AD115*Berechnung!$C$73/1000 -> 20.91340206
A116: 16 | B116: -8 | C116: =MAX(0,MIN(Berechnung!$C$65,Berechnung!$C$65*(B116-Berechnung!$C$64)/(Berechnung!$C$63-Berechnung!$C$64))) -> 5.454545455 | D116: =G80 -> 6 | E116: -0.5454545455 | F116: -20 | G116: =HLOOKUP(Berechnung!$C$66,INDIRECT("Klimadaten!M"&Berechnung!$C$67&":BM"&Berechnung!$C$67+44),A116,FALSE) -> 23 | H116: 125.4545455 | I116: 1 | J116: 125.4545455 | K116: =H80 -> 1 | L116: 125.4545455 | M116: =L116*Berechnung!$C$79/100 -> 22.58181818 | N116: =(L116*Berechnung!$C$69/1000) -> 77.90727273 | O116: 0 | P116: 0 | Q116: =P116*Berechnung!$C$78/100 -> 0 | R116: =P116*Berechnung!$C$69/1000 -> 0 | S116: 0 | T116: =S116/(Berechnung!$C$81/100) -> 0 | U116: =T116*Berechnung!$C$72 -> 0 | V116: =T116*Berechnung!$C$73/1000 -> 0 | W116: 125.4545455 | X116: 22.58181818 | Y116: 77.90727273 | Z116: 125.4545455 | AA116: 22.58181818 | AB116: 77.90727273 | AC116: 125.4545455 | AD116: =AC116/(Berechnung!$C$81/100) -> 129.3345829 | AE116: =AD116*Berechnung!$C$72 -> 109.9343955 | AF116: =AD116*Berechnung!$C$73/1000 -> 32.72164948
A117: 17 | B117: -7 | C117: =MAX(0,MIN(Berechnung!$C$65,Berechnung!$C$65*(B117-Berechnung!$C$64)/(Berechnung!$C$63-Berechnung!$C$64))) -> 5.181818182 | D117: =G80 -> 6 | E117: -0.8181818182 | F117: -20 | G117: =HLOOKUP(Berechnung!$C$66,INDIRECT("Klimadaten!M"&Berechnung!$C$67&":BM"&Berechnung!$C$67+44),A117,FALSE) -> 44 | H117: 228 | I117: 1 | J117: 228 | K117: =H80 -> 1 | L117: 228 | M117: =L117*Berechnung!$C$79/100 -> 41.04 | N117: =(L117*Berechnung!$C$69/1000) -> 141.588 | O117: 0 | P117: 0 | Q117: =P117*Berechnung!$C$78/100 -> 0 | R117: =P117*Berechnung!$C$69/1000 -> 0 | S117: 0 | T117: =S117/(Berechnung!$C$81/100) -> 0 | U117: =T117*Berechnung!$C$72 -> 0 | V117: =T117*Berechnung!$C$73/1000 -> 0 | W117: 228 | X117: =M117+Q117 -> 41.04 | Y117: 141.588 | Z117: 228 | AA117: 41.04 | AB117: 141.588 | AC117: 228 | AD117: =AC117/(Berechnung!$C$81/100) -> 235.0515464 | AE117: =AD117*Berechnung!$C$72 -> 199.7938144 | AF117: =AD117*Berechnung!$C$73/1000 -> 59.46804124
A118: 18 | B118: -6 | C118: =MAX(0,MIN(Berechnung!$C$65,Berechnung!$C$65*(B118-Berechnung!$C$64)/(Berechnung!$C$63-Berechnung!$C$64))) -> 4.909090909 | D118: =AVERAGE(D117,D119) -> 6 | E118: -1.090909091 | F118: -20 | G118: =HLOOKUP(Berechnung!$C$66,INDIRECT("Klimadaten!M"&Berechnung!$C$67&":BM"&Berechnung!$C$67+44),A118,FALSE) -> 49 | H118: 240.5454545 | I118: 1 | J118: 240.5454545 | K118: =AVERAGE(K117,K119) -> 1 | L118: 240.5454545 | M118: =L118*Berechnung!$C$79/100 -> 43.29818182 | N118: =(L118*Berechnung!$C$69/1000) -> 149.3787273 | O118: 0 | P118: 0 | Q118: =P118*Berechnung!$C$78/100 -> 0 | R118: =P118*Berechnung!$C$69/1000 -> 0 | S118: 0 | T118: =S118/(Berechnung!$C$81/100) -> 0 | U118: =T118*Berechnung!$C$72 -> 0 | V118: =T118*Berechnung!$C$73/1000 -> 0 | W118: 240.5454545 | X118: 43.29818182 | Y118: 149.3787273 | Z118: 240.5454545 | AA118: 43.29818182 | AB118: 149.3787273 | AC118: 240.5454545 | AD118: =AC118/(Berechnung!$C$81/100) -> 247.9850047 | AE118: =AD118*Berechnung!$C$72 -> 210.787254 | AF118: =AD118*Berechnung!$C$73/1000 -> 62.74020619
A119: 19 | B119: -5 | C119: =MAX(0,MIN(Berechnung!$C$65,Berechnung!$C$65*(B119-Berechnung!$C$64)/(Berechnung!$C$63-Berechnung!$C$64))) -> 4.636363636 | D119: =G81 -> 6 | E119: -1.363636364 | F119: -20 | G119: =HLOOKUP(Berechnung!$C$66,INDIRECT("Klimadaten!M"&Berechnung!$C$67&":BM"&Berechnung!$C$67+44),A119,FALSE) -> 41 | H119: 190.0909091 | I119: 1 | J119: 190.0909091 | K119: =H81 -> 1 | L119: 190.0909091 | M119: =L119*Berechnung!$C$79/100 -> 34.21636364 | N119: =(L119*Berechnung!$C$69/1000) -> 118.0464545 | O119: 0 | P119: 0 | Q119: =P119*Berechnung!$C$78/100 -> 0 | R119: =P119*Berechnung!$C$69/1000 -> 0 | S119: 0 | T119: =S119/(Berechnung!$C$81/100) -> 0 | U119: =T119*Berechnung!$C$72 -> 0 | V119: =T119*Berechnung!$C$73/1000 -> 0 | W119: 190.0909091 | X119: 34.21636364 | Y119: 118.0464545 | Z119: 190.0909091 | AA119: 34.21636364 | AB119: 118.0464545 | AC119: 190.0909091 | AD119: =AC119/(Berechnung!$C$81/100) -> 195.9700094 | AE119: =AD119*Berechnung!$C$72 -> 166.574508 | AF119: =AD119*Berechnung!$C$73/1000 -> 49.58041237
A120: 20 | B120: -4 | C120: =MAX(0,MIN(Berechnung!$C$65,Berechnung!$C$65*(B120-Berechnung!$C$64)/(Berechnung!$C$63-Berechnung!$C$64))) -> 4.363636364 | D120: =AVERAGE(D119,D121) -> 6 | E120: -1.636363636 | F120: -20 | G120: =HLOOKUP(Berechnung!$C$66,INDIRECT("Klimadaten!M"&Berechnung!$C$67&":BM"&Berechnung!$C$67+44),A120,FALSE) -> 89 | H120: 388.3636364 | I120: 1 | J120: =MIN(H120,I120*D120*G120) -> 388.3636364 | K120: =AVERAGE(K119,K121) -> 1 | L120: 388.3636364 | M120: =L120*Berechnung!$C$79/100 -> 69.90545455 | N120: =(L120*Berechnung!$C$69/1000) -> 241.1738182 | O120: 0 | P120: 0 | Q120: =P120*Berechnung!$C$78/100 -> 0 | R120: =P120*Berechnung!$C$69/1000 -> 0 | S120: 0 | T120: =S120/(Berechnung!$C$81/100) -> 0 | U120: =T120*Berechnung!$C$72 -> 0 | V120: =T120*Berechnung!$C$73/1000 -> 0 | W120: 388.3636364 | X120: 69.90545455 | Y120: 241.1738182 | Z120: 388.3636364 | AA120: 69.90545455 | AB120: 241.1738182 | AC120: 388.3636364 | AD120: =AC120/(Berechnung!$C$81/100) -> 400.3748828 | AE120: =AD120*Berechnung!$C$72 -> 340.3186504 | AF120: =AD120*Berechnung!$C$73/1000 -> 101.2948454
A121: 21 | B121: -3 | C121: =MAX(0,MIN(Berechnung!$C$65,Berechnung!$C$65*(B121-Berechnung!$C$64)/(Berechnung!$C$63-Berechnung!$C$64))) -> 4.090909091 | D121: =G82 -> 6 | E121: -1.909090909 | F121: -20 | G121: =HLOOKUP(Berechnung!$C$66,INDIRECT("Klimadaten!M"&Berechnung!$C$67&":BM"&Berechnung!$C$67+44),A121,FALSE) -> 161 | H121: 658.6363636 | I121: 1 | J121: 658.6363636 | K121: =H82 -> 1 | L121: 658.6363636 | M121: =L121*Berechnung!$C$79/100 -> 118.5545455 | N121: =(L121*Berechnung!$C$69/1000) -> 409.0131818 | O121: 0 | P121: 0 | Q121: =P121*Berechnung!$C$78/100 -> 0 | R121: =P121*Berechnung!$C$69/1000 -> 0 | S121: 0 | T121: =S121/(Berechnung!$C$81/100) -> 0 | U121: =T121*Berechnung!$C$72 -> 0 | V121: =T121*Berechnung!$C$73/1000 -> 0 | W121: 658.6363636 | X121: 118.5545455 | Y121: 409.0131818 | Z121: 658.6363636 | AA121: 118.5545455 | AB121: 409.0131818 | AC121: 658.6363636 | AD121: =AC121/(Berechnung!$C$81/100) -> 679.0065604 | AE121: =AD121*Berechnung!$C$72 -> 577.1555764 | AF121: =AD121*Berechnung!$C$73/1000 -> 171.7886598
A122: 22 | B122: -2 | C122: =MAX(0,MIN(Berechnung!$C$65,Berechnung!$C$65*(B122-Berechnung!$C$64)/(Berechnung!$C$63-Berechnung!$C$64))) -> 3.818181818 | D122: =G82 -> 6 | E122: -2.181818182 | F122: -20 | G122: =HLOOKUP(Berechnung!$C$66,INDIRECT("Klimadaten!M"&Berechnung!$C$67&":BM"&Berechnung!$C$67+44),A122,FALSE) -> 207 | H122: 790.3636364 | I122: 1 | J122: =MIN(H122,I122*D122*G122) -> 790.3636364 | K122: =H82 -> 1 | L122: 790.3636364 | M122: =L122*Berechnung!$C$79/100 -> 142.2654545 | N122: =(L122*Berechnung!$C$69/1000) -> 490.8158182 | O122: 0 | P122: 0 | Q122: =P122*Berechnung!$C$78/100 -> 0 | R122: =P122*Berechnung!$C$69/1000 -> 0 | S122: 0 | T122: =S122/(Berechnung!$C$81/100) -> 0 | U122: =T122*Berechnung!$C$72 -> 0 | V122: =T122*Berechnung!$C$73/1000 -> 0 | W122: 790.3636364 | X122: 142.2654545 | Y122: 490.8158182 | Z122: 790.3636364 | AA122: 142.2654545 | AB122: 490.8158182 | AC122: 790.3636364 | AD122: =AC122/(Berechnung!$C$81/100) -> 814.8078725 | AE122: =AD122*Berechnung!$C$72 -> 692.5866917 | AF122: =AD122*Berechnung!$C$73/1000 -> 206.1463918
A123: 23 | B123: -1 | C123: =MAX(0,MIN(Berechnung!$C$65,Berechnung!$C$65*(B123-Berechnung!$C$64)/(Berechnung!$C$63-Berechnung!$C$64))) -> 3.545454545 | D123: =AVERAGE(D122,D124) -> 6 | E123: -2.454545455 | F123: -20 | G123: =HLOOKUP(Berechnung!$C$66,INDIRECT("Klimadaten!M"&Berechnung!$C$67&":BM"&Berechnung!$C$67+44),A123,FALSE) -> 248 | H123: 879.2727273 | I123: 1 | J123: 879.2727273 | K123: =AVERAGE(K122,K124) -> 1 | L123: 879.2727273 | M123: =L123*Berechnung!$C$79/100 -> 158.2690909 | N123: =(L123*Berechnung!$C$69/1000) -> 546.0283636 | O123: 0 | P123: 0 | Q123: =P123*Berechnung!$C$78/100 -> 0 | R123: =P123*Berechnung!$C$69/1000 -> 0 | S123: 0 | T123: =S123/(Berechnung!$C$81/100) -> 0 | U123: =T123*Berechnung!$C$72 -> 0 | V123: =T123*Berechnung!$C$73/1000 -> 0 | W123: 879.2727273 | X123: 158.2690909 | Y123: 546.0283636 | Z123: 879.2727273 | AA123: 158.2690909 | AB123: 546.0283636 | AC123: 879.2727273 | AD123: =AC123/(Berechnung!$C$81/100) -> 906.4667291 | AE123: =AD123*Berechnung!$C$72 -> 770.4967198 | AF123: =AD123*Berechnung!$C$73/1000 -> 229.3360825
A124: 24 | B124: 0 | C124: =MAX(0,MIN(Berechnung!$C$65,Berechnung!$C$65*(B124-Berechnung!$C$64)/(Berechnung!$C$63-Berechnung!$C$64))) -> 3.272727273 | D124: =G83 -> 6 | E124: -2.727272727 | F124: -20 | G124: =HLOOKUP(Berechnung!$C$66,INDIRECT("Klimadaten!M"&Berechnung!$C$67&":BM"&Berechnung!$C$67+44),A124,FALSE) -> 263 | H124: 860.7272727 | I124: 1 | J124: 860.7272727 | K124: =H83 -> 1 | L124: 860.7272727 | M124: =L124*Berechnung!$C$79/100 -> 154.9309091 | N124: =(L124*Berechnung!$C$69/1000) -> 534.5116364 | O124: 0 | P124: 0 | Q124: =P124*Berechnung!$C$78/100 -> 0 | R124: =P124*Berechnung!$C$69/1000 -> 0 | S124: 0 | T124: =S124/(Berechnung!$C$81/100) -> 0 | U124: =T124*Berechnung!$C$72 -> 0 | V124: =T124*Berechnung!$C$73/1000 -> 0 | W124: 860.7272727 | X124: 154.9309091 | Y124: 534.5116364 | Z124: 860.7272727 | AA124: 154.9309091 | AB124: 534.5116364 | AC124: 860.7272727 | AD124: =AC124/(Berechnung!$C$81/100) -> 887.3477038 | AE124: =AD124*Berechnung!$C$72 -> 754.2455483 | AF124: =AD124*Berechnung!$C$73/1000 -> 224.4989691
A125: 25 | B125: 1 | C125: =MAX(0,MIN(Berechnung!$C$65,Berechnung!$C$65*(B125-Berechnung!$C$64)/(Berechnung!$C$63-Berechnung!$C$64))) -> 3 | D125: =AVERAGE(D124,D126) -> 6 | E125: -3 | F125: -20 | G125: =HLOOKUP(Berechnung!$C$66,INDIRECT("Klimadaten!M"&Berechnung!$C$67&":BM"&Berechnung!$C$67+44),A125,FALSE) -> 270 | H125: 810 | I125: 1 | J125: 810 | K125: =AVERAGE(K124,K126) -> 1 | L125: 810 | M125: =L125*Berechnung!$C$79/100 -> 145.8 | N125: =(L125*Berechnung!$C$69/1000) -> 503.01 | O125: 0 | P125: 0 | Q125: =P125*Berechnung!$C$78/100 -> 0 | R125: =P125*Berechnung!$C$69/1000 -> 0 | S125: 0 | T125: =S125/(Berechnung!$C$81/100) -> 0 | U125: =T125*Berechnung!$C$72 -> 0 | V125: =T125*Berechnung!$C$73/1000 -> 0 | W125: 810 | X125: 145.8 | Y125: 503.01 | Z125: 810 | AA125: 145.8 | AB125: 503.01 | AC125: 810 | AD125: =AC125/(Berechnung!$C$81/100) -> 835.0515464 | AE125: =AD125*Berechnung!$C$72 -> 709.7938144 | AF125: =AD125*Berechnung!$C$73/1000 -> 211.2680412
A126: 26 | B126: 2 | C126: =MAX(0,MIN(Berechnung!$C$65,Berechnung!$C$65*(B126-Berechnung!$C$64)/(Berechnung!$C$63-Berechnung!$C$64))) -> 2.727272727 | D126: =G84 -> 6 | E126: -3.272727273 | F126: -20 | G126: =HLOOKUP(Berechnung!$C$66,INDIRECT("Klimadaten!M"&Berechnung!$C$67&":BM"&Berechnung!$C$67+44),A126,FALSE) -> 328 | H126: 894.5454545 | I126: 1 | J126: 894.5454545 | K126: =H84 -> 1 | L126: 894.5454545 | M126: =L126*Berechnung!$C$79/100 -> 161.0181818 | N126: =(L126*Berechnung!$C$69/1000) -> 555.5127273 | O126: 0 | P126: 0 | Q126: =P126*Berechnung!$C$78/100 -> 0 | R126: =P126*Berechnung!$C$69/1000 -> 0 | S126: 0 | T126: =S126/(Berechnung!$C$81/100) -> 0 | U126: =T126*Berechnung!$C$72 -> 0 | V126: =T126*Berechnung!$C$73/1000 -> 0 | W126: 894.5454545 | X126: 161.0181818 | Y126: 555.5127273 | Z126: 894.5454545 | AA126: 161.0181818 | AB126: 555.5127273 | AC126: 894.5454545 | AD126: =AC126/(Berechnung!$C$81/100) -> 922.2118088 | AE126: =AD126*Berechnung!$C$72 -> 783.8800375 | AF126: =AD126*Berechnung!$C$73/1000 -> 233.3195876
A127: 27 | B127: 3 | C127: =MAX(0,MIN(Berechnung!$C$65,Berechnung!$C$65*(B127-Berechnung!$C$64)/(Berechnung!$C$63-Berechnung!$C$64))) -> 2.454545455 | D127: =G84 -> 6 | E127: -3.545454545 | F127: -20 | G127: =HLOOKUP(Berechnung!$C$66,INDIRECT("Klimadaten!M"&Berechnung!$C$67&":BM"&Berechnung!$C$67+44),A127,FALSE) -> 344 | H127: 844.3636364 | I127: 1 | J127: 844.3636364 | K127: =H84 -> 1 | L127: 844.3636364 | M127: =L127*Berechnung!$C$79/100 -> 151.9854545 | N127: =(L127*Berechnung!$C$69/1000) -> 524.3498182 | O127: 0 | P127: 0 | Q127: =P127*Berechnung!$C$78/100 -> 0 | R127: =P127*Berechnung!$C$69/1000 -> 0 | S127: 0 | T127: =S127/(Berechnung!$C$81/100) -> 0 | U127: =T127*Berechnung!$C$72 -> 0 | V127: =T127*Berechnung!$C$73/1000 -> 0 | W127: 844.3636364 | X127: 151.9854545 | Y127: 524.3498182 | Z127: 844.3636364 | AA127: 151.9854545 | AB127: 524.3498182 | AC127: 844.3636364 | AD127: =AC127/(Berechnung!$C$81/100) -> 870.4779756 | AE127: =AD127*Berechnung!$C$72 -> 739.9062793 | AF127: =AD127*Berechnung!$C$73/1000 -> 220.2309278
A128: 28 | B128: 4 | C128: =MAX(0,MIN(Berechnung!$C$65,Berechnung!$C$65*(B128-Berechnung!$C$64)/(Berechnung!$C$63-Berechnung!$C$64))) -> 2.181818182 | D128: =AVERAGE(D127,D129) -> 6 | E128: -3.818181818 | F128: -20 | G128: =HLOOKUP(Berechnung!$C$66,INDIRECT("Klimadaten!M"&Berechnung!$C$67&":BM"&Berechnung!$C$67+44),A128,FALSE) -> 343 | H128: 748.3636364 | I128: 1 | J128: 748.3636364 | K128: =AVERAGE(K127,K129) -> 1 | L128: 748.3636364 | M128: =L128*Berechnung!$C$79/100 -> 134.7054545 | N128: =(L128*Berechnung!$C$69/1000) -> 464.7338182 | O128: 0 | P128: 0 | Q128: =P128*Berechnung!$C$78/100 -> 0 | R128: =P128*Berechnung!$C$69/1000 -> 0 | S128: 0 | T128: =S128/(Berechnung!$C$81/100) -> 0 | U128: =T128*Berechnung!$C$72 -> 0 | V128: =T128*Berechnung!$C$73/1000 -> 0 | W128: 748.3636364 | X128: 134.7054545 | Y128: 464.7338182 | Z128: 748.3636364 | AA128: 134.7054545 | AB128: 464.7338182 | AC128: 748.3636364 | AD128: =AC128/(Berechnung!$C$81/100) -> 771.5089035 | AE128: =AD128*Berechnung!$C$72 -> 655.7825679 | AF128: =AD128*Berechnung!$C$73/1000 -> 195.1917526
A129: 29 | B129: 5 | C129: =MAX(0,MIN(Berechnung!$C$65,Berechnung!$C$65*(B129-Berechnung!$C$64)/(Berechnung!$C$63-Berechnung!$C$64))) -> 1.909090909 | D129: =G85 -> 6 | E129: -4.090909091 | F129: -20 | G129: =HLOOKUP(Berechnung!$C$66,INDIRECT("Klimadaten!M"&Berechnung!$C$67&":BM"&Berechnung!$C$67+44),A129,FALSE) -> 414 | H129: 790.3636364 | I129: 1 | J129: 790.3636364 | K129: =H85 -> 1 | L129: 790.3636364 | M129: =L129*Berechnung!$C$79/100 -> 142.2654545 | N129: =(L129*Berechnung!$C$69/1000) -> 490.8158182 | O129: 0 | P129: 0 | Q129: =P129*Berechnung!$C$78/100 -> 0 | R129: =P129*Berechnung!$C$69/1000 -> 0 | S129: 0 | T129: =S129/(Berechnung!$C$81/100) -> 0 | U129: =T129*Berechnung!$C$72 -> 0 | V129: =T129*Berechnung!$C$73/1000 -> 0 | W129: 790.3636364 | X129: 142.2654545 | Y129: 490.8158182 | Z129: 790.3636364 | AA129: 142.2654545 | AB129: 490.8158182 | AC129: =H129 -> 790.3636364 | AD129: =AC129/(Berechnung!$C$81/100) -> 814.8078725 | AE129: =AD129*Berechnung!$C$72 -> 692.5866917 | AF129: =AD129*Berechnung!$C$73/1000 -> 206.1463918
A130: 30 | B130: 6 | C130: =MAX(0,MIN(Berechnung!$C$65,Berechnung!$C$65*(B130-Berechnung!$C$64)/(Berechnung!$C$63-Berechnung!$C$64))) -> 1.636363636 | D130: =AVERAGE(D129,D131) -> 6 | E130: -4.363636364 | F130: -20 | G130: =HLOOKUP(Berechnung!$C$66,INDIRECT("Klimadaten!M"&Berechnung!$C$67&":BM"&Berechnung!$C$67+44),A130,FALSE) -> 397 | H130: 649.6363636 | I130: 1 | J130: 649.6363636 | K130: =AVERAGE(K129,K131) -> 1 | L130: 649.6363636 | M130: =L130*Berechnung!$C$79/100 -> 116.9345455 | N130: =(L130*Berechnung!$C$69/1000) -> 403.4241818 | O130: 0 | P130: 0 | Q130: =P130*Berechnung!$C$78/100 -> 0 | R130: =P130*Berechnung!$C$69/1000 -> 0 | S130: =O130 -> 0 | T130: =S130/(Berechnung!$C$81/100) -> 0 | U130: =T130*Berechnung!$C$72 -> 0 | V130: =T130*Berechnung!$C$73/1000 -> 0 | W130: 649.6363636 | X130: 116.9345455 | Y130: 403.4241818 | Z130: 649.6363636 | AA130: 116.9345455 | AB130: 403.4241818 | AC130: 649.6363636 | AD130: =AC130/(Berechnung!$C$81/100) -> 669.7282099 | AE130: =AD130*Berechnung!$C$72 -> 569.2689784 | AF130: =AD130*Berechnung!$C$73/1000 -> 169.4412371
A131: 31 | B131: 7 | C131: =MAX(0,MIN(Berechnung!$C$65,Berechnung!$C$65*(B131-Berechnung!$C$64)/(Berechnung!$C$63-Berechnung!$C$64))) -> 1.363636364 | D131: =G86 -> 6 | E131: -4.636363636 | F131: -20 | G131: =HLOOKUP(Berechnung!$C$66,INDIRECT("Klimadaten!M"&Berechnung!$C$67&":BM"&Berechnung!$C$67+44),A131,FALSE) -> 406 | H131: 553.6363636 | I131: 1 | J131: 553.6363636 | K131: =H86 -> 1 | L131: 553.6363636 | M131: =L131*Berechnung!$C$79/100 -> 99.65454545 | N131: =(L131*Berechnung!$C$69/1000) -> 343.8081818 | O131: 0 | P131: 0 | Q131: =P131*Berechnung!$C$78/100 -> 0 | R131: =P131*Berechnung!$C$69/1000 -> 0 | S131: =O131 -> 0 | T131: =S131/(Berechnung!$C$81/100) -> 0 | U131: =T131*Berechnung!$C$72 -> 0 | V131: =T131*Berechnung!$C$73/1000 -> 0 | W131: 553.6363636 | X131: 99.65454545 | Y131: 343.8081818 | Z131: 553.6363636 | AA131: 99.65454545 | AB131: 343.8081818 | AC131: 553.6363636 | AD131: =AC131/(Berechnung!$C$81/100) -> 570.7591378 | AE131: =AD131*Berechnung!$C$72 -> 485.1452671 | AF131: =AD131*Berechnung!$C$73/1000 -> 144.4020619
A132: 32 | B132: 8 | C132: =MAX(0,MIN(Berechnung!$C$65,Berechnung!$C$65*(B132-Berechnung!$C$64)/(Berechnung!$C$63-Berechnung!$C$64))) -> 1.090909091 | D132: =G86 -> 6 | E132: -4.909090909 | F132: -20 | G132: =HLOOKUP(Berechnung!$C$66,INDIRECT("Klimadaten!M"&Berechnung!$C$67&":BM"&Berechnung!$C$67+44),A132,FALSE) -> 378 | H132: 412.3636364 | I132: 1 | J132: 412.3636364 | K132: =H86 -> 1 | L132: 412.3636364 | M132: =L132*Berechnung!$C$79/100 -> 74.22545455 | N132: =(L132*Berechnung!$C$69/1000) -> 256.0778182 | O132: 0 | P132: 0 | Q132: =P132*Berechnung!$C$78/100 -> 0 | R132: =P132*Berechnung!$C$69/1000 -> 0 | S132: 0 | T132: =S132/(Berechnung!$C$81/100) -> 0 | U132: =T132*Berechnung!$C$72 -> 0 | V132: =T132*Berechnung!$C$73/1000 -> 0 | W132: 412.3636364 | X132: 74.22545455 | Y132: 256.0778182 | Z132: 412.3636364 | AA132: 74.22545455 | AB132: 256.0778182 | AC132: 412.3636364 | AD132: =AC132/(Berechnung!$C$81/100) -> 425.1171509 | AE132: =AD132*Berechnung!$C$72 -> 361.3495783 | AF132: =AD132*Berechnung!$C$73/1000 -> 107.5546392
A133: 33 | B133: 9 | C133: =MAX(0,MIN(Berechnung!$C$65,Berechnung!$C$65*(B133-Berechnung!$C$64)/(Berechnung!$C$63-Berechnung!$C$64))) -> 0.8181818182 | D133: =AVERAGE(D132,D134) -> 6 | E133: -5.181818182 | F133: -20 | G133: =HLOOKUP(Berechnung!$C$66,INDIRECT("Klimadaten!M"&Berechnung!$C$67&":BM"&Berechnung!$C$67+44),A133,FALSE) -> 409 | H133: 334.6363636 | I133: 1 | J133: 334.6363636 | K133: =AVERAGE(K132,K134) -> 1 | L133: 334.6363636 | M133: =L133*Berechnung!$C$79/100 -> 60.23454545 | N133: =(L133*Berechnung!$C$69/1000) -> 207.8091818 | O133: 0 | P133: 0 | Q133: =P133*Berechnung!$C$78/100 -> 0 | R133: =P133*Berechnung!$C$69/1000 -> 0 | S133: 0 | T133: =S133/(Berechnung!$C$81/100) -> 0 | U133: =T133*Berechnung!$C$72 -> 0 | V133: =T133*Berechnung!$C$73/1000 -> 0 | W133: 334.6363636 | X133: 60.23454545 | Y133: 207.8091818 | Z133: 334.6363636 | AA133: 60.23454545 | AB133: 207.8091818 | AC133: 334.6363636 | AD133: =AC133/(Berechnung!$C$81/100) -> 344.9859419 | AE133: =AD133*Berechnung!$C$72 -> 293.2380506 | AF133: =AD133*Berechnung!$C$73/1000 -> 87.2814433
A134: 34 | B134: 10 | C134: =MAX(0,MIN(Berechnung!$C$65,Berechnung!$C$65*(B134-Berechnung!$C$64)/(Berechnung!$C$63-Berechnung!$C$64))) -> 0.5454545455 | D134: =G87 -> 6 | E134: -5.454545455 | F134: -20 | G134: =HLOOKUP(Berechnung!$C$66,INDIRECT("Klimadaten!M"&Berechnung!$C$67&":BM"&Berechnung!$C$67+44),A134,FALSE) -> 375 | H134: 204.5454545 | I134: 1 | J134: 204.5454545 | K134: =H87 -> 1 | L134: 204.5454545 | M134: =L134*Berechnung!$C$79/100 -> 36.81818182 | N134: =(L134*Berechnung!$C$69/1000) -> 127.0227273 | O134: 0 | P134: 0 | Q134: =P134*Berechnung!$C$78/100 -> 0 | R134: =P134*Berechnung!$C$69/1000 -> 0 | S134: 0 | T134: =S134/(Berechnung!$C$81/100) -> 0 | U134: =T134*Berechnung!$C$72 -> 0 | V134: =T134*Berechnung!$C$73/1000 -> 0 | W134: 204.5454545 | X134: 36.81818182 | Y134: 127.0227273 | Z134: 204.5454545 | AA134: 36.81818182 | AB134: 127.0227273 | AC134: 204.5454545 | AD134: =AC134/(Berechnung!$C$81/100) -> 210.8716026 | AE134: =AD134*Berechnung!$C$72 -> 179.2408622 | AF134: =AD134*Berechnung!$C$73/1000 -> 53.35051546
A135: 35 | B135: 11 | C135: =MAX(0,MIN(Berechnung!$C$65,Berechnung!$C$65*(B135-Berechnung!$C$64)/(Berechnung!$C$63-Berechnung!$C$64))) -> 0.2727272727 | D135: =AVERAGE(D134,D136) -> 6 | E135: -5.727272727 | F135: -20 | G135: =HLOOKUP(Berechnung!$C$66,INDIRECT("Klimadaten!M"&Berechnung!$C$67&":BM"&Berechnung!$C$67+44),A135,FALSE) -> 420 | H135: 114.5454545 | I135: 1 | J135: 114.5454545 | K135: =AVERAGE(K134,K136) -> 1 | L135: 114.5454545 | M135: =L135*Berechnung!$C$79/100 -> 20.61818182 | N135: =(L135*Berechnung!$C$69/1000) -> 71.13272727 | O135: 0 | P135: 0 | Q135: =P135*Berechnung!$C$78/100 -> 0 | R135: =P135*Berechnung!$C$69/1000 -> 0 | S135: 0 | T135: =S135/(Berechnung!$C$81/100) -> 0 | U135: =T135*Berechnung!$C$72 -> 0 | V135: =T135*Berechnung!$C$73/1000 -> 0 | W135: 114.5454545 | X135: 20.61818182 | Y135: 71.13272727 | Z135: 114.5454545 | AA135: 20.61818182 | AB135: 71.13272727 | AC135: 114.5454545 | AD135: =AC135/(Berechnung!$C$81/100) -> 118.0880975 | AE135: =AD135*Berechnung!$C$72 -> 100.3748828 | AF135: =AD135*Berechnung!$C$73/1000 -> 29.87628866
A136: 36 | B136: 12 | C136: =MAX(0,MIN(Berechnung!$C$65,Berechnung!$C$65*(B136-Berechnung!$C$64)/(Berechnung!$C$63-Berechnung!$C$64))) -> 0 | D136: =G88 -> 6 | E136: -6 | F136: -20 | G136: =HLOOKUP(Berechnung!$C$66,INDIRECT("Klimadaten!M"&Berechnung!$C$67&":BM"&Berechnung!$C$67+44),A136,FALSE) -> 378 | H136: 0 | I136: 1 | J136: 0 | K136: =H88 -> 1 | L136: 0 | M136: =L136*Berechnung!$C$79/100 -> 0 | N136: =(L136*Berechnung!$C$69/1000) -> 0 | O136: 0 | P136: 0 | Q136: =P136*Berechnung!$C$78/100 -> 0 | R136: =P136*Berechnung!$C$69/1000 -> 0 | S136: 0 | T136: =S136/(Berechnung!$C$81/100) -> 0 | U136: =T136*Berechnung!$C$72 -> 0 | V136: =T136*Berechnung!$C$73/1000 -> 0 | W136: 0 | X136: 0 | Y136: 0 | Z136: 0 | AA136: 0 | AB136: 0 | AC136: 0 | AD136: =AC136/(Berechnung!$C$81/100) -> 0 | AE136: =AD136*Berechnung!$C$72 -> 0 | AF136: =AD136*Berechnung!$C$73/1000 -> 0
A137: 37 | B137: 13 | C137: =MAX(0,MIN(Berechnung!$C$65,Berechnung!$C$65*(B137-Berechnung!$C$64)/(Berechnung!$C$63-Berechnung!$C$64))) -> 0 | D137: =G88 -> 6 | E137: -6 | F137: -20 | G137: =HLOOKUP(Berechnung!$C$66,INDIRECT("Klimadaten!M"&Berechnung!$C$67&":BM"&Berechnung!$C$67+44),A137,FALSE) -> 349 | H137: 0 | I137: 1 | J137: 0 | K137: =H88 -> 1 | L137: 0 | M137: =L137*Berechnung!$C$79/100 -> 0 | N137: =(L137*Berechnung!$C$69/1000) -> 0 | O137: 0 | P137: 0 | Q137: =P137*Berechnung!$C$78/100 -> 0 | R137: =P137*Berechnung!$C$69/1000 -> 0 | S137: 0 | T137: =S137/(Berechnung!$C$81/100) -> 0 | U137: =T137*Berechnung!$C$72 -> 0 | V137: =T137*Berechnung!$C$73/1000 -> 0 | W137: 0 | X137: 0 | Y137: 0 | Z137: 0 | AA137: 0 | AB137: 0 | AC137: 0 | AD137: =AC137/(Berechnung!$C$81/100) -> 0 | AE137: =AD137*Berechnung!$C$72 -> 0 | AF137: =AD137*Berechnung!$C$73/1000 -> 0
A138: 38 | B138: 14 | C138: =MAX(0,MIN(Berechnung!$C$65,Berechnung!$C$65*(B138-Berechnung!$C$64)/(Berechnung!$C$63-Berechnung!$C$64))) -> 0 | D138: =AVERAGE(D137,D139) -> 6 | E138: -6 | F138: -20 | G138: =HLOOKUP(Berechnung!$C$66,INDIRECT("Klimadaten!M"&Berechnung!$C$67&":BM"&Berechnung!$C$67+44),A138,FALSE) -> 370 | H138: 0 | I138: 1 | J138: 0 | K138: =AVERAGE(K137,K139) -> 1 | L138: 0 | M138: =L138*Berechnung!$C$79/100 -> 0 | N138: =(L138*Berechnung!$C$69/1000) -> 0 | O138: 0 | P138: 0 | Q138: =P138*Berechnung!$C$78/100 -> 0 | R138: =P138*Berechnung!$C$69/1000 -> 0 | S138: 0 | T138: =S138/(Berechnung!$C$81/100) -> 0 | U138: =T138*Berechnung!$C$72 -> 0 | V138: =T138*Berechnung!$C$73/1000 -> 0 | W138: 0 | X138: 0 | Y138: 0 | Z138: 0 | AA138: 0 | AB138: 0 | AC138: 0 | AD138: =AC138/(Berechnung!$C$81/100) -> 0 | AE138: =AD138*Berechnung!$C$72 -> 0 | AF138: =AD138*Berechnung!$C$73/1000 -> 0
A139: 39 | B139: 15 | C139: =MAX(0,MIN(Berechnung!$C$65,Berechnung!$C$65*(B139-Berechnung!$C$64)/(Berechnung!$C$63-Berechnung!$C$64))) -> 0 | D139: =G89 -> 6 | E139: -6 | F139: -20 | G139: =HLOOKUP(Berechnung!$C$66,INDIRECT("Klimadaten!M"&Berechnung!$C$67&":BM"&Berechnung!$C$67+44),A139,FALSE) -> 333 | H139: 0 | I139: 1 | J139: 0 | K139: =H89 -> 1 | L139: 0 | M139: =L139*Berechnung!$C$79/100 -> 0 | N139: =(L139*Berechnung!$C$69/1000) -> 0 | O139: 0 | P139: 0 | Q139: =P139*Berechnung!$C$78/100 -> 0 | R139: =P139*Berechnung!$C$69/1000 -> 0 | S139: 0 | T139: =S139/(Berechnung!$C$81/100) -> 0 | U139: =T139*Berechnung!$C$72 -> 0 | V139: =T139*Berechnung!$C$73/1000 -> 0 | W139: 0 | X139: 0 | Y139: 0 | Z139: 0 | AA139: 0 | AB139: 0 | AC139: 0 | AD139: =AC139/(Berechnung!$C$81/100) -> 0 | AE139: =AD139*Berechnung!$C$72 -> 0 | AF139: =AD139*Berechnung!$C$73/1000 -> 0
A140: 40 | B140: 16 | C140: =MAX(0,MIN(Berechnung!$C$65,Berechnung!$C$65*(B140-Berechnung!$C$64)/(Berechnung!$C$63-Berechnung!$C$64))) -> 0 | D140: =AVERAGE(D139,D141) -> 6 | E140: -6 | F140: -20 | G140: =HLOOKUP(Berechnung!$C$66,INDIRECT("Klimadaten!M"&Berechnung!$C$67&":BM"&Berechnung!$C$67+44),A140,FALSE) -> 310 | H140: 0 | I140: 1 | J140: 0 | K140: =AVERAGE(K139,K141) -> 1 | L140: 0 | M140: =L140*Berechnung!$C$79/100 -> 0 | N140: =(L140*Berechnung!$C$69/1000) -> 0 | O140: 0 | P140: 0 | Q140: =P140*Berechnung!$C$78/100 -> 0 | R140: =P140*Berechnung!$C$69/1000 -> 0 | S140: 0 | T140: =S140/(Berechnung!$C$81/100) -> 0 | U140: =T140*Berechnung!$C$72 -> 0 | V140: =T140*Berechnung!$C$73/1000 -> 0 | W140: 0 | X140: 0 | Y140: 0 | Z140: 0 | AA140: 0 | AB140: 0 | AC140: 0 | AD140: =AC140/(Berechnung!$C$81/100) -> 0 | AE140: =AD140*Berechnung!$C$72 -> 0 | AF140: =AD140*Berechnung!$C$73/1000 -> 0
A141: 41 | B141: 17 | C141: =MAX(0,MIN(Berechnung!$C$65,Berechnung!$C$65*(B141-Berechnung!$C$64)/(Berechnung!$C$63-Berechnung!$C$64))) -> 0 | D141: =G90 -> 6 | E141: -6 | F141: -20 | G141: =HLOOKUP(Berechnung!$C$66,INDIRECT("Klimadaten!M"&Berechnung!$C$67&":BM"&Berechnung!$C$67+44),A141,FALSE) -> 322 | H141: 0 | I141: 1 | J141: 0 | K141: =H90 -> 1 | L141: 0 | M141: =L141*Berechnung!$C$79/100 -> 0 | N141: =(L141*Berechnung!$C$69/1000) -> 0 | O141: 0 | P141: 0 | Q141: =P141*Berechnung!$C$78/100 -> 0 | R141: =P141*Berechnung!$C$69/1000 -> 0 | S141: 0 | T141: =S141/(Berechnung!$C$81/100) -> 0 | U141: =T141*Berechnung!$C$72 -> 0 | V141: =T141*Berechnung!$C$73/1000 -> 0 | W141: 0 | X141: 0 | Y141: 0 | Z141: 0 | AA141: 0 | AB141: 0 | AC141: 0 | AD141: =AC141/(Berechnung!$C$81/100) -> 0 | AE141: =AD141*Berechnung!$C$72 -> 0 | AF141: =AD141*Berechnung!$C$73/1000 -> 0
A142: 42 | B142: 18 | C142: =MAX(0,MIN(Berechnung!$C$65,Berechnung!$C$65*(B142-Berechnung!$C$64)/(Berechnung!$C$63-Berechnung!$C$64))) -> 0 | D142: =G90 -> 6 | E142: -6 | F142: -20 | G142: =HLOOKUP(Berechnung!$C$66,INDIRECT("Klimadaten!M"&Berechnung!$C$67&":BM"&Berechnung!$C$67+44),A142,FALSE) -> 280 | H142: 0 | I142: 1 | J142: 0 | K142: =H90 -> 1 | L142: 0 | M142: =L142*Berechnung!$C$79/100 -> 0 | N142: =(L142*Berechnung!$C$69/1000) -> 0 | O142: 0 | P142: 0 | Q142: =P142*Berechnung!$C$78/100 -> 0 | R142: =P142*Berechnung!$C$69/1000 -> 0 | S142: 0 | T142: =S142/(Berechnung!$C$81/100) -> 0 | U142: =T142*Berechnung!$C$72 -> 0 | V142: =T142*Berechnung!$C$73/1000 -> 0 | W142: 0 | X142: 0 | Y142: 0 | Z142: 0 | AA142: 0 | AB142: 0 | AC142: 0 | AD142: =AC142/(Berechnung!$C$81/100) -> 0 | AE142: =AD142*Berechnung!$C$72 -> 0 | AF142: =AD142*Berechnung!$C$73/1000 -> 0
A143: 43 | B143: 19 | C143: =MAX(0,MIN(Berechnung!$C$65,Berechnung!$C$65*(B143-Berechnung!$C$64)/(Berechnung!$C$63-Berechnung!$C$64))) -> 0 | D143: =AVERAGE(D142,D144) -> 6 | E143: -6 | F143: -20 | G143: =HLOOKUP(Berechnung!$C$66,INDIRECT("Klimadaten!M"&Berechnung!$C$67&":BM"&Berechnung!$C$67+44),A143,FALSE) -> 217 | H143: =C143*G143 -> 0 | I143: 1 | J143: 0 | K143: =AVERAGE(K142,K144) -> 1 | L143: 0 | M143: =L143*Berechnung!$C$79/100 -> 0 | N143: =(L143*Berechnung!$C$69/1000) -> 0 | O143: 0 | P143: 0 | Q143: =P143*Berechnung!$C$78/100 -> 0 | R143: =P143*Berechnung!$C$69/1000 -> 0 | S143: 0 | T143: =S143/(Berechnung!$C$81/100) -> 0 | U143: =T143*Berechnung!$C$72 -> 0 | V143: =T143*Berechnung!$C$73/1000 -> 0 | W143: 0 | X143: 0 | Y143: 0 | Z143: 0 | AA143: 0 | AB143: 0 | AC143: 0 | AD143: =AC143/(Berechnung!$C$81/100) -> 0 | AE143: =AD143*Berechnung!$C$72 -> 0 | AF143: =AD143*Berechnung!$C$73/1000 -> 0
A144: 44 | B144: 20 | C144: =MAX(0,MIN(Berechnung!$C$65,Berechnung!$C$65*(B144-Berechnung!$C$64)/(Berechnung!$C$63-Berechnung!$C$64))) -> 0 | D144: =G91 -> 6 | E144: -6 | F144: -20 | G144: =HLOOKUP(Berechnung!$C$66,INDIRECT("Klimadaten!M"&Berechnung!$C$67&":BM"&Berechnung!$C$67+44),A144,FALSE) -> 196 | H144: 0 | I144: 1 | J144: 0 | K144: =H91 -> 1 | L144: 0 | M144: =L144*Berechnung!$C$79/100 -> 0 | N144: =(L144*Berechnung!$C$69/1000) -> 0 | O144: 0 | P144: 0 | Q144: =P144*Berechnung!$C$78/100 -> 0 | R144: =P144*Berechnung!$C$69/1000 -> 0 | S144: 0 | T144: =S144/(Berechnung!$C$81/100) -> 0 | U144: =T144*Berechnung!$C$72 -> 0 | V144: =T144*Berechnung!$C$73/1000 -> 0 | W144: 0 | X144: 0 | Y144: 0 | Z144: 0 | AA144: 0 | AB144: 0 | AC144: 0 | AD144: =AC144/(Berechnung!$C$81/100) -> 0 | AE144: =AD144*Berechnung!$C$72 -> 0 | AF144: =AD144*Berechnung!$C$73/1000 -> 0
A145: 45 | B145: > 20 | C145: 0 | D145: =D144+(D144-D143) -> 6 | E145: -6 | F145: > 20 | G145: =HLOOKUP(Berechnung!$C$66,INDIRECT("Klimadaten!M"&Berechnung!$C$67&":BM"&Berechnung!$C$67+44),A145,FALSE) -> 744 | H145: 0 | I145: 1 | J145: 0 | K145: =K144+(K144-K143) -> 1 | L145: 0 | M145: =L145*Berechnung!$C$79/100 -> 0 | N145: =(L145*Berechnung!$C$69/1000) -> 0 | O145: 0 | P145: 0 | Q145: =P145*Berechnung!$C$78/100 -> 0 | R145: =P145*Berechnung!$C$69/1000 -> 0 | S145: 0 | T145: =S145/(Berechnung!$C$81/100) -> 0 | U145: =T145*Berechnung!$C$72 -> 0 | V145: =T145*Berechnung!$C$73/1000 -> 0 | W145: 0 | X145: 0 | Y145: 0 | Z145: 0 | AA145: 0 | AB145: 0 | AC145: 0 | AD145: =AC145/(Berechnung!$C$81/100) -> 0 | AE145: =AD145*Berechnung!$C$72 -> 0 | AF145: =AD145*Berechnung!$C$73/1000 -> 0
F146: =MAX(F103:F145) -> -10 | G146: =SUM(G103:G145) -> 8760 | H146: =SUM(H104:H144) -> 11026.63636 | J146: =ROUND(SUM(J103:J145),0) -> 11027 | K146: =AVERAGE(K104:K144) -> 1 | L146: =SUM(L103:L145) -> 11026.63636 | M146: 1984.794545 | N146: 6847.541182 | O146: 0 | P146: 0 | Q146: 0 | R146: 0 | S146: 0 | T146: 0 | U146: 0 | V146: 0 | W146: 11026.63636 | X146: 1984.794545 | Y146: 6847.541182 | Z146: 11026.63636 | AA146: 1984.794545 | AB146: 6847.541182 | AC146: 11026.63636 | AD146: 11367.66635 | AE146: 9662.516401 | AF146: 2876.019588
B152: Darstellung Diagramm Heizlast/Heizwärmebedarf
C153: Bivalenzpunkt genauer berechnen für Darstellung | H153: Kennlinie Heizlast | L153: Hilfslinie Bivalenzpunkt | N153: Punktdarstellung Biv.Punkt | P153: Linie Bivalenzpunkt Heizarbeit | R153: Heizarbeit | T153: Ausdr. Vergleich | U153: Ausdr. Preisentw.
C154: Temp | D154: Differenz | E154: Leistung WP | F154: m | G154: n | H154: Temp | I154: Leistung | J154: m | K154: n | L154: Temp | M154: Leistung | N154: Temp | O154: Leistung | P154: Temp | Q154: kWh | U154: Öl/Gas
B155: Heizgrenze | C155: =F146 -> -10 | D155: =VLOOKUP(C155,$B$103:$E$145,4,FALSE) -> 0 | E155: =VLOOKUP(C155,$B$103:$E$145,3,FALSE) -> 6 | F155: =(D156-D155)/(C156-C155) -> -0.2727272727 | G155: =D155-C155*F155 -> -2.727272727 | H155: =IF(Berechnung!$C$65=0,-30,Berechnung!$C$64) -> 12 | I155: 0 | J155: =(M156-I155)/(L156-H155) -> -0.2727272727 | K155: =M156-J155*L156 -> 3.272727273 | L155: =L156 -> -30 | M155: 0 | P155: =IF(OR(L156<-20,O146=0),0,ROUND(L156,0)+21) -> 0 | Q155: 0 | R155: 1. WE | S155: =IF(D5=2,AC146,J146) -> 11026.63636 | T155: =Translation!A203 -> Heating | U155: =W74+AC74 -> 13152.8289
B156: Außentemp | C156: =C155+1 -> -9 | D156: =VLOOKUP(C156,$B$103:$E$145,4,FALSE) -> -0.2727272727 | E156: =VLOOKUP(C156,$B$103:$E$145,3,FALSE) -> 6 | H156: =IF(Berechnung!$C$65=0,-30,Berechnung!$C$63) -> -10 | I156: =Berechnung!$C$65 -> 6 | L156: =C157 -> -30 | M156: =Berechnung!$C$65*(L156-Berechnung!$C$64)/(Berechnung!$C$63-Berechnung!$C$64) -> 11.45454545 | N156: =C157 -> -30 | O156: =M156 -> 11.45454545 | P156: =P155 -> 0 | Q156: =IF(ISERROR(VLOOKUP(P156-21,B104:H144,7,FALSE)),0,VLOOKUP(P156-21,B104:H144,7,FALSE)) -> 0 | R156: 2. WE | S156: =IF(D5=2,0,O146) -> 0 | T156: =Translation!A16 -> 2nd heat source | U156: 13810.47035
C157: =IF(OR(F155=0,F146<=Berechnung!$C$63),-30,ROUND(-G155/F155,1)) -> -30 | D157: 0 | E157: =IF(ROUND(C157/5,1)*5=C155,E155,IF(ROUND(C157/5,1)*5=C156,E156,AVERAGE(E155:E156))) -> 6 | T157: =Translation!A40 -> DHW | U157: 14500.99386
U158: 15226.04356
U159: 15987.34573
U160: 16786.71302
U161: 17626.04867
U162: 18507.35111
U163: 19432.71866
U164: 20404.35459
U165: 21424.57232
U166: 22495.80094
U167: 23620.59099
U168: 24801.62054
U169: 26041.70156

Sheet Slot3 (hidden)
A2: Comboboxen
A3: Heizung | B3: Betriebsweise | C3: Warmwasser | D3: Betrieb | E3: Betriebsweise | F3: Datenblatt | J3: Warmwasser | O3: EEWärmeG | U3: Berechnung Förderung
J4: Art WWB | K4: Index WWB | L4: Endenergie kWh/a | M4: Kosten €/Ja | N4: CO2 kg/a | O4: erfüllt ?
A5: WPL 10 AC | B5: Gaskessel | Parallel | C5: Gaskessel | D5: =IF(A5=A7,2,IF(B5=B7,1,3)) -> 3 | E5: =IF(C157=-30,Translation!A11,VLOOKUP(B5,B6:E50,4,FALSE)) -> Bivalent-parallel | F5: ="http://tools.stiebel-eltron.de/pdf/apps/product/"&VLOOKUP($A$5,Leistungsdaten!$A:$J,10,FALSE)&"/"&Translation!$A$3 -> http://tools.stiebel-eltron.de/pdf/apps/product/8427/en_DE | K5: =IF(C5=C9,0,IF(C5=C12,5,IF(C5=C11,2,IF(C5=C7,1,IF(C5=C16,3,4))))) -> 2 | L5: =VLOOKUP(K5,K6:N50,2,FALSE) -> 4106.25 | M5: =VLOOKUP(K5,K6:N50,3,FALSE) -> 3490.3125 | N5: =VLOOKUP(K5,K6:N50,4,FALSE) -> 1038.88125 | O5: =IF(OR(K5=K11,K5=K12),TRUE,IF(A5=A7,FALSE,IF(O15<0.5,FALSE,TRUE))) -> TRUE | U5: Jahr | V5: Manuell | W5: RHI | X5: gewählt
A7: =Berechnung!C61 -> Gaskessel | B7: =Translation!A9 -> No second heat source | C7: =A5 -> WPL 10 AC | D7: 1=Nur WP | E7: =Translation!A10 -> Monoenergetic | J7: Ohne Warmwasser | K7: 0 | L7: 0 | M7: 0 | N7: 0 | U7: 1 | V7: =IF(Berechnung!$N$5<>Berechnung!$N$7,0,IF($D$5=2,0,IF(Einstellungen!$D$51>=T74,Einstellungen!$D$49,0))) -> 0 | W7: =IF($C$85="---",0,IF(Berechnung!$N$5<>Berechnung!$N$8,0,IF(Einstellungen!$D$51>=T74,$W$63,0))) -> 0 | X7: =IF(Berechnung!$N$5=Berechnung!$N$7,V7,W7) -> 0
B8: =A7&" | "&Translation!$A$14 -> Gaskessel | Parallel | C8: =A5&" | "&Translation!$A$206 -> WPL 10 AC | Solar | D8: 2=nur Öl/Gas | E8: =Translation!A12 -> Bivalent-parallel | J8: Wärmepumpe | K8: 1 | L8: =L13+L14 -> 1320.083333 | M8: =M13+M14 -> 249.1125 | N8: =N13+N14 -> 819.77175 | O8: Wärmebedarf | U8: 2 | V8: =IF(Berechnung!$N$5<>Berechnung!$N$7,0,IF($D$5=2,0,IF(Einstellungen!$D$51>=T75,Einstellungen!$D$49,0))) -> 0 | W8: =IF($C$85="---",0,IF(Berechnung!$N$5<>Berechnung!$N$8,0,IF(Einstellungen!$D$51>=T75,$W$63,0))) -> 0 | X8: =IF(Berechnung!$N$5=Berechnung!$N$7,V8,W8) -> 0
B9: =A7&" | "&Translation!$A$15 -> Gaskessel | Alternativ | C9: =Translation!A41 -> without DHW | D9: 3=Bivalent | E9: =Translation!A13 -> Bivalent-alternativ | J9: Gas/Öl | K9: 2 | L9: =Berechnung!$C$76/(Berechnung!$C$82/100) -> 4106.25 | M9: =L9*Berechnung!$C$72 -> 3490.3125 | N9: =L9*Berechnung!$C$73/1000 -> 1038.88125 | O9: =H146+Berechnung!C76 -> 14311.63636 | U9: 3 | V9: =IF(Berechnung!$N$5<>Berechnung!$N$7,0,IF($D$5=2,0,IF(Einstellungen!$D$51>=T76,Einstellungen!$D$49,0))) -> 0 | W9: =IF($C$85="---",0,IF(Berechnung!$N$5<>Berechnung!$N$8,0,IF(Einstellungen!$D$51>=T76,$W$63,0))) -> 0 | X9: =IF(Berechnung!$N$5=Berechnung!$N$7,V9,W9) -> 0
J10: WP+Gas/Öl | K10: 3 | L10: =L16+L17 -> 2372.5 | M10: =M16+M17 -> 1527.525 | N10: =N16+N17 -> 868.8825 | U10: 4 | V10: =IF(Berechnung!$N$5<>Berechnung!$N$7,0,IF($D$5=2,0,IF(Einstellungen!$D$51>=T77,Einstellungen!$D$49,0))) -> 0 | W10: =IF($C$85="---",0,IF(Berechnung!$N$5<>Berechnung!$N$8,0,IF(Einstellungen!$D$51>=T77,$W$63,0))) -> 0 | X10: =IF(Berechnung!$N$5=Berechnung!$N$7,V10,W10) -> 0
C11: =A7 -> Gaskessel | J11: WP+Solar | K11: 4 | L11: =L19+L20 -> 660.0416667 | M11: =M19+M20 -> 124.55625 | N11: =N19+N20 -> 409.885875 | O11: Umweltwärme | U11: 5 | V11: =IF(Berechnung!$N$5<>Berechnung!$N$7,0,IF($D$5=2,0,IF(Einstellungen!$D$51>=T78,Einstellungen!$D$49,0))) -> 0 | W11: =IF($C$85="---",0,IF(Berechnung!$N$5<>Berechnung!$N$8,0,IF(Einstellungen!$D$51>=T78,$W$63,0))) -> 0 | X11: =IF(Berechnung!$N$5=Berechnung!$N$7,V11,W11) -> 0
C12: =A7&" | "&Translation!$A$206 -> Gaskessel | Solar | J12: Öl/Gas+Solar | K12: 5 | L12: =$J$24*Berechnung!$C$76/(Berechnung!$C$82/100) -> 2053.125 | M12: =L12*Berechnung!$C$72 -> 1745.15625 | N12: =L12*Berechnung!$C$73/1000 -> 519.440625 | O12: =J146+K24*Berechnung!C76 -> 14013.75 | U12: 6 | V12: =IF(Berechnung!$N$5<>Berechnung!$N$7,0,IF($D$5=2,0,IF(Einstellungen!$D$51>=T79,Einstellungen!$D$49,0))) -> 0 | W12: =IF($C$85="---",0,IF(Berechnung!$N$5<>Berechnung!$N$8,0,IF(Einstellungen!$D$51>=T79,$W$63,0))) -> 0 | X12: =IF(Berechnung!$N$5=Berechnung!$N$7,V12,W12) -> 0
C13: =Translation!A41 -> without DHW | J13: Nebenrechnung | K13: Mononenerg. WP | L13: =$C$75*Berechnung!$C$76/$C$74 -> 1155.833333 | M13: =L13*Berechnung!$C$79/100 -> 208.05 | N13: =L13*Berechnung!$C$69/1000 -> 717.7725 | U13: 7 | V13: =IF(Berechnung!$N$5<>Berechnung!$N$7,0,IF($D$5=2,0,IF(Einstellungen!$D$51>=T80,Einstellungen!$D$49,0))) -> 0 | W13: =IF($C$85="---",0,IF(Berechnung!$N$5<>Berechnung!$N$8,0,IF(Einstellungen!$D$51>=T80,$W$63,0))) -> 0 | X13: =IF(Berechnung!$N$5=Berechnung!$N$7,V13,W13) -> 0
J14: Nebenrechnung | K14: Mononenerg. DHC | L14: =(1-$C$75)*Berechnung!$C$76 -> 164.25 | M14: =L14*Berechnung!$C$78/100 -> 41.0625 | N14: =L14*Berechnung!$C$69/1000 -> 101.99925 | O14: Anteil Umwelt | U14: 8 | V14: =IF(Berechnung!$N$5<>Berechnung!$N$7,0,IF($D$5=2,0,IF(Einstellungen!$D$51>=T81,Einstellungen!$D$49,0))) -> 0 | W14: =IF($C$85="---",0,IF(Berechnung!$N$5<>Berechnung!$N$8,0,IF(Einstellungen!$D$51>=T81,$W$63,0))) -> 0 | X14: =IF(Berechnung!$N$5=Berechnung!$N$7,V14,W14) -> 0
C15: =C7 -> WPL 10 AC | O15: =O12/O9 -> 0.979185723 | U15: 9 | V15: =IF(Berechnung!$N$5<>Berechnung!$N$7,0,IF($D$5=2,0,IF(Einstellungen!$D$51>=T82,Einstellungen!$D$49,0))) -> 0 | W15: =IF($C$85="---",0,IF(Berechnung!$N$5<>Berechnung!$N$8,0,IF(Einstellungen!$D$51>=T82,$W$63,0))) -> 0 | X15: =IF(Berechnung!$N$5=Berechnung!$N$7,V15,W15) -> 0
C16: =A5&" | "&A7 -> WPL 10 AC | Gaskessel | J16: Nebenrechnung | K16: Bivalent WP | L16: =$C$76*Berechnung!$C$76/$C$74 -> 730 | M16: =L16*Berechnung!$C$79/100 -> 131.4 | N16: =L16*Berechnung!$C$69/1000 -> 453.33 | U16: 10 | V16: =IF(Berechnung!$N$5<>Berechnung!$N$7,0,IF($D$5=2,0,IF(Einstellungen!$D$51>=T83,Einstellungen!$D$49,0))) -> 0 | W16: =IF($C$85="---",0,IF(Berechnung!$N$5<>Berechnung!$N$8,0,IF(Einstellungen!$D$51>=T83,$W$63,0))) -> 0 | X16: =IF(Berechnung!$N$5=Berechnung!$N$7,V16,W16) -> 0
C17: =C11 -> Gaskessel | J17: Nebenrechnung | K17: Bivalent Kessel | L17: =((1-$C$76)*Berechnung!$C$76)/(Berechnung!$C$82/100) -> 1642.5 | M17: =L17*Berechnung!$C$72 -> 1396.125 | N17: =L17*Berechnung!$C$73/1000 -> 415.5525 | U17: 11 | V17: =IF(Berechnung!$N$5<>Berechnung!$N$7,0,IF($D$5=2,0,IF(Einstellungen!$D$51>=T84,Einstellungen!$D$49,0))) -> 0 | W17: =IF($C$85="---",0,IF(Berechnung!$N$5<>Berechnung!$N$8,0,IF(Einstellungen!$D$51>=T84,$W$63,0))) -> 0 | X17: =IF(Berechnung!$N$5=Berechnung!$N$7,V17,W17) -> 0
C18: =C8 -> WPL 10 AC | Solar | U18: 12 | V18: =IF(Berechnung!$N$5<>Berechnung!$N$7,0,IF($D$5=2,0,IF(Einstellungen!$D$51>=T85,Einstellungen!$D$49,0))) -> 0 | W18: =IF($C$85="---",0,IF(Berechnung!$N$5<>Berechnung!$N$8,0,IF(Einstellungen!$D$51>=T85,$W$63,0))) -> 0 | X18: =IF(Berechnung!$N$5=Berechnung!$N$7,V18,W18) -> 0
C19: =C12 -> Gaskessel | Solar | J19: Nebenrechnung | K19: Monoenerg. WP+Solar | L19: =$C$75*$J$24*Berechnung!$C$76/$C$74 -> 577.9166667 | M19: =L19*Berechnung!$C$79/100 -> 104.025 | N19: =L19*Berechnung!$C$69/1000 -> 358.88625 | U19: 13 | V19: =IF(Berechnung!$N$5<>Berechnung!$N$7,0,IF($D$5=2,0,IF(Einstellungen!$D$51>=T86,Einstellungen!$D$49,0))) -> 0 | W19: =IF($C$85="---",0,IF(Berechnung!$N$5<>Berechnung!$N$8,0,IF(Einstellungen!$D$51>=T86,$W$63,0))) -> 0 | X19: =IF(Berechnung!$N$5=Berechnung!$N$7,V19,W19) -> 0
C20: =Translation!A41 -> without DHW | J20: Nebenrechnung | K20: Mononenerg. DHC | L20: =(1-$C$75)*$J$24*Berechnung!$C$76 -> 82.125 | M20: =L20*Berechnung!$C$78/100 -> 20.53125 | N20: =L20*Berechnung!$C$69/1000 -> 50.999625 | U20: 14 | V20: =IF(Berechnung!$N$5<>Berechnung!$N$7,0,IF($D$5=2,0,IF(Einstellungen!$D$51>=T87,Einstellungen!$D$49,0))) -> 0 | W20: =IF($C$85="---",0,IF(Berechnung!$N$5<>Berechnung!$N$8,0,IF(Einstellungen!$D$51>=T87,$W$63,0))) -> 0 | X20: =IF(Berechnung!$N$5=Berechnung!$N$7,V20,W20) -> 0
U21: 15 | V21: =IF(Berechnung!$N$5<>Berechnung!$N$7,0,IF($D$5=2,0,IF(Einstellungen!$D$51>=T88,Einstellungen!$D$49,0))) -> 0 | W21: =IF($C$85="---",0,IF(Berechnung!$N$5<>Berechnung!$N$8,0,IF(Einstellungen!$D$51>=T88,$W$63,0))) -> 0 | X21: =IF(Berechnung!$N$5=Berechnung!$N$7,V21,W21) -> 0
J23: Faktor Solar | K23: Deckung
J24: =(100-Berechnung!$C$77)/100 -> 0.5 | K24: =IF(K5=3,C76,C75) -> 0.95
W44: Ersparnis Öl/Gas | X44: Ausgabe
W45: =ROUND((W89+AC89)-AI89+AA89+U89,-2) -> 196200 | X45: =IF(ISERROR(W45),"---",IF(A5=A7,"---","approx. £"&FIXED(W45,0))) -> approx. £196.200
W47: Invest | X47: Ausgabe
W48: =VLOOKUP(A5,Leistungsdaten!$A:$K,11,FALSE)+Einstellungen!$D$57 -> 4900 | X48: =IF(ISERROR(W48),"---",IF(A5=A7,"---","approx. £"&FIXED(W48,0))) -> approx. £4.900
W50: QH | X50: Ausgabe
W51: =IF(D5=2,0,J146) -> 10893 | X51: =FIXED(W51,0)&" kWh/year" -> 10.893 kWh/year
W53: QWW
W54: =IF(OR(K5=K8,K10,K5=K11),Berechnung!C76*K24,0) -> 3120.75 | X54: =FIXED(W54,0)&" kWh/year" -> 3.121 kWh/year
X55: =FIXED(W51+W54,0)&" kWh/year" -> 14.014 kWh/year
W56: COP-RHI
W57: =IF(C73=1,Berechnung!$B$127,Berechnung!$C$127) -> 3.6 | X57: =IF(C73=0,"---",FIXED(W57,1)) -> 3,6
W59: Fördersatz RHI
W60: =IF($C$73=1,Einstellungen!$D$53,Einstellungen!$D$55) -> 0 | X60: =IF(C73=0,"---",FIXED(W60*100,1)&" p/kWh") -> 0,0 p/kWh
W62: Fördersumme | X62: =IF(U89+AA89=0,"---","£"&FIXED(U89+AA89,0)) -> ---
W63: =W60*(W51+W54)*(1-1/W57) -> 0 | X63: =IF(W63=0,"---","£"&FIXED(W63,0)) -> ---
A72: Rechenwerte | F72: Import WP-Leistung | K72: Kosten | U72: Preisentwicklung Heizung | AA72: Preisentwicklung Warmwasser | AI72: Gesamt | AK72: Ergebnisausgabe
A73: Wärmequelle | C73: =VLOOKUP(A5,Leistungsdaten!A:F,6,FALSE) -> 1 | F73: Außentemp | G73: Leistung WP | H73: COP WP | K73: Kategorie | L73: Nur WP | M73: Bivalent | N73: Nur Öl/Gas | O73: WP+Solar | P73: Öl/Gas+Solar | Q73: Gewählt | R73: Ausgabe | T73: Jahr | U73: Förderung | V73: Nur WP | W73: Nur Öl/Gas | X73: Bivalent WP | Y73: Bivalent Öl | Z73: Gewählt | AA73: Förderung | AB73: Nur WP | AC73: Nur Öl/Gas | AD73: Bivalent WP | AE73: Bivalent Öl | AF73: WP+Solar | AG73: Öl/Gas+Solar | AH73: Gewählt | AK73: Auswahl | AL73: Gewählt ? | AM73: Text Hauptergebnis | AN73: Wert Hauptergebnis | AO73: Text Teilergebnis 1 | AP73: Wert Teilergebnis 1 | AQ73: Text Teilergebnis 2 | AR73: Wert Teilergebnis 2 | AS73: Text Teilergebnis 3 | AT73: Wert Teilergebnis 3
A74: JAZ-WWB | C74: =VLOOKUP(A5,Leistungsdaten!A:C,3,FALSE) -> 2.7 | K74: 1. WE | L74: =M146 -> 523.2846516 | M74: =L74 -> 523.2846516 | N74: =AE146 -> 9662.516401 | O74: =L74 -> 523.2846516 | P74: =N74 -> 9662.516401 | Q74: =IF($D$5=1,L74,IF($D$5=2,N74,M74)) -> 523.2846516 | R74: =FIXED(Q74,0)&" "&Translation!$A$77 -> 523 £/Year | T74: 1 | U74: =X7 -> 0 | V74: =L74+L75 -> 556.8176061 | W74: =N74+N75 -> 9662.516401 | X74: =M74 -> 523.2846516 | Y74: =M75 -> 117.5381912 | Z74: =IF($D$5=1,V74,IF($D$5=2,W74,X74+Y74)) -> 640.8228428 | AA74: =IF($K$5<3,0,IF(Einstellungen!$D$55>=T74,Einstellungen!$D$53,0)) -> 0 | AB74: =M8 -> 249.1125 | AC74: =M9 -> 3490.3125 | AD74: =M16 -> 131.4 | AE74: =M17 -> 1396.125 | AF74: =M11 -> 124.55625 | AG74: =M12 -> 1745.15625 | AH74: =IF($K$5=0,0,IF($K$5=1,AB74,IF($K$5=2,AC74,IF($K$5=3,AD74+AE74,IF($K$5=4,AF74,AG74))))) -> 3490.3125 | AI74: =Z74+AH74 -> 4131.135343 | AK74: Energiekosten | AL74: =Berechnung!C85 -> FALSE | AM74: =Translation!A68 -> Energy costs | AN74: =R77 -> 4.131 £/Year | AO74: =C81 -> WPL 10 AC | AP74: =R74 -> 523 £/Year | AQ74: =C82 -> Gaskessel | AR74: =R75 -> 118 £/Year | AS74: =C83 -> DHW | AT74: =R76 -> 3.490 £/Year
A75: Deckung WP WW Monoenergetisch | C75: =VLOOKUP(A5,Leistungsdaten!A:D,4,FALSE) -> 0.95 | F75: -20 | G75: 2.4 | H75: 2.230769231 | K75: 2. WE | L75: =Q146 -> 33.53295455 | M75: =U146 -> 117.5381912 | N75: 0 | O75: =L75 -> 33.53295455 | P75: =N75 -> 0 | Q75: =IF($D$5=1,L75,IF($D$5=2,N75,M75)) -> 117.5381912 | R75: =FIXED(Q75,0)&" "&Translation!$A$77 -> 118 £/Year | T75: 2 | U75: =X8 -> 0 | V75: =(1+Berechnung!$C$80/100)*V74 -> 573.5221343 | W75: =(1+Berechnung!$C$74/100)*W74 -> 10145.64222 | X75: =(1+Berechnung!$C$80/100)*X74 -> 538.9831911 | Y75: =(1+Berechnung!$C$74/100)*Y74 -> 123.4151007 | Z75: =IF($D$5=1,V75,IF($D$5=2,W75,X75+Y75)) -> 662.3982919 | AA75: =IF($K$5<3,0,IF(Einstellungen!$D$55>=T75,Einstellungen!$D$53,0)) -> 0 | AB75: =(1+Berechnung!$C$80/100)*AB74 -> 256.585875 | AC75: =(1+Berechnung!$C$74/100)*AC74 -> 3664.828125 | AD75: =(1+Berechnung!$C$80/100)*AD74 -> 135.342 | AE75: =(1+Berechnung!$C$74/100)*AE74 -> 1465.93125 | AF75: =(1+Berechnung!$C$80/100)*AF74 -> 128.2929375 | AG75: =(1+Berechnung!$C$74/100)*AG74 -> 1832.414062 | AH75: =IF($K$5=0,0,IF($K$5=1,AB75,IF($K$5=2,AC75,IF($K$5=3,AD75+AE75,IF($K$5=4,AF75,AG75))))) -> 3664.828125 | AI75: 4327.226417 | AK75: Kostenentwicklung | AL75: =Berechnung!C86 -> FALSE | AM75: =Translation!A82 -> Energy costs 15 years | AN75: =FIXED(AI89-U89-AA89,0)&" "&Translation!$A$209 -> 87.585 £ | AO75: =C80 -> - | AP75: =FIXED(Z89,0)&" "&Translation!$A$209 -> 12.269 £ | AQ75: =Translation!A40 -> DHW | AR75: =FIXED(AH89,0)&" "&Translation!$A$209 -> 75.316 £ | AS75: =Translation!A212 -> Subvention | AT75: =FIXED(U89+AA89,0)&" "&Translation!$A$209 -> 0 £
A76: Deckung WP WW Bivalent | C76: =VLOOKUP(A5,Leistungsdaten!$A:$E,5,FALSE) -> 0.6 | F76: -17.5 | G76: 3 | H76: 2.529411765 | K76: Warmwasser | L76: =M8 -> 249.1125 | M76: =M10 -> 1527.525 | N76: =M9 -> 3490.3125 | O76: =M11 -> 124.55625 | P76: =M12 -> 1745.15625 | Q76: =IF($K$5=0,0,IF($K$5=1,L76,IF($K$5=3,M76,IF($K$5=2,N76,IF($K$5=4,O76,P76))))) -> 3490.3125 | R76: =IF($K$5=0,"",FIXED(Q76,0)&" "&Translation!$A$77) -> 3.490 £/Year | T76: 3 | U76: 0 | V76: =(1+Berechnung!$C$80/100)*V75 -> 590.7277983 | W76: =(1+Berechnung!$C$74/100)*W75 -> 10652.92433 | X76: =(1+Berechnung!$C$80/100)*X75 -> 555.1526869 | Y76: =(1+Berechnung!$C$74/100)*Y75 -> 129.5858558 | Z76: 684.7385426 | AA76: =IF($K$5<3,0,IF(Einstellungen!$D$55>=T76,Einstellungen!$D$53,0)) -> 0 | AB76: =(1+Berechnung!$C$80/100)*AB75 -> 264.2834513 | AC76: =(1+Berechnung!$C$74/100)*AC75 -> 3848.069531 | AD76: =(1+Berechnung!$C$80/100)*AD75 -> 139.40226 | AE76: =(1+Berechnung!$C$74/100)*AE75 -> 1539.227813 | AF76: =(1+Berechnung!$C$80/100)*AF75 -> 132.1417256 | AG76: =(1+Berechnung!$C$74/100)*AG75 -> 1924.034766 | AH76: 3848.069531 | AI76: 4532.808074 | AK76: Heizlast/Bivpunkt | AL76: =Berechnung!C87 -> TRUE | AQ76: =Translation!A6 -> Operating mode | AR76: =E5 -> Bivalent-parallel | AS76: =IF(C157=-30,"",Translation!A38) -> Dual-mode point | AT76: =IF(C157=-30,"",FIXED(C157,1)&" °C") -> -5,8 °C
A77: Startzeile Leistungsdaten WP | C77: =VLOOKUP(A5,Leistungsdaten!$A:$G,7,FALSE) -> 5 | F77: -15 | G77: 3.5 | H77: 2.714285714 | K77: Summe | L77: =SUM(L74:L76) -> 805.9301061 | M77: =SUM(M74:M76) -> 2168.347843 | N77: =SUM(N74:N76) -> 13152.8289 | O77: =SUM(O74:O76) -> 681.3738561 | P77: =SUM(P74:P76) -> 11407.67265 | Q77: =SUM(Q74:Q76) -> 4131.135343 | R77: =FIXED(Q77,0)&" "&Translation!$A$77 -> 4.131 £/Year | T77: 4 | U77: 0 | V77: =(1+Berechnung!$C$80/100)*V76 -> 608.4496323 | W77: =(1+Berechnung!$C$74/100)*W76 -> 11185.57055 | X77: =(1+Berechnung!$C$80/100)*X76 -> 571.8072675 | Y77: =(1+Berechnung!$C$74/100)*Y76 -> 136.0651486 | Z77: 707.872416 | AA77: =IF($K$5<3,0,IF(Einstellungen!$D$55>=T77,Einstellungen!$D$53,0)) -> 0 | AB77: =(1+Berechnung!$C$80/100)*AB76 -> 272.2119548 | AC77: =(1+Berechnung!$C$74/100)*AC76 -> 4040.473008 | AD77: =(1+Berechnung!$C$80/100)*AD76 -> 143.5843278 | AE77: =(1+Berechnung!$C$74/100)*AE76 -> 1616.189203 | AF77: =(1+Berechnung!$C$80/100)*AF76 -> 136.1059774 | AG77: =(1+Berechnung!$C$74/100)*AG76 -> 2020.236504 | AH77: =IF($K$5=0,0,IF($K$5=1,AB77,IF($K$5=2,AC77,IF($K$5=3,AD77+AE77,IF($K$5=4,AF77,AG77))))) -> 4040.473008 | AI77: 4748.345424 | AK77: Jahresheizarbeit | AL77: =Berechnung!C88 -> FALSE | AM77: =Translation!A57 -> Yearly heat demand | AN77: =FIXED(H146,0)&" kWh" -> 11.027 kWh | AO77: =Translation!A66&" "&C81 -> Annual heating WPL 10 AC | AP77: =FIXED(S155,0)&" kWh" -> 10.893 kWh | AQ77: =Translation!A66&" "&C82 -> Annual heating Gaskessel | AR77: =FIXED(S156,0)&" kWh" -> 134 kWh | AS77: =IF(K5=0,"",Translation!$A$211) -> Annual heating DHW | AT77: =IF(K5=0,"",FIXED(Berechnung!C76,0)&" kWh") -> 3.285 kWh
A78: Anzahl WP | C78: =VLOOKUP(A5,Leistungsdaten!$A:$H,8,FALSE) -> 1 | F78: -12.5 | G78: 3.95 | H78: 2.815789474 | T78: 5 | U78: 0 | V78: =(1+Berechnung!$C$80/100)*V77 -> 626.7031213 | W78: =(1+Berechnung!$C$74/100)*W77 -> 11744.84908 | X78: =(1+Berechnung!$C$80/100)*X77 -> 588.9614855 | Y78: =(1+Berechnung!$C$74/100)*Y77 -> 142.868406 | Z78: 731.8298915 | AA78: =IF($K$5<3,0,IF(Einstellungen!$D$55>=T78,Einstellungen!$D$53,0)) -> 0 | AB78: =(1+Berechnung!$C$80/100)*AB77 -> 280.3783134 | AC78: =(1+Berechnung!$C$74/100)*AC77 -> 4242.496658 | AD78: =(1+Berechnung!$C$80/100)*AD77 -> 147.8918576 | AE78: =(1+Berechnung!$C$74/100)*AE77 -> 1696.998663 | AF78: =(1+Berechnung!$C$80/100)*AF77 -> 140.1891567 | AG78: =(1+Berechnung!$C$74/100)*AG77 -> 2121.248329 | AH78: 4242.496658 | AI78: 4974.32655 | AK78: CO2 | AL78: =Berechnung!C89 -> FALSE | AM78: =Translation!A69 -> CO2-emission | AN78: =R95 -> 2.879 kg/year | AO78: =AO74 -> WPL 10 AC | AP78: =R92 -> 1.805 kg/year | AQ78: =AQ74 -> Gaskessel | AR78: =R93 -> 35 kg/year | AS78: =AS74 -> DHW | AT78: =R94 -> 1.039 kg/year
A79: Bivalent einsetzbar ? | C79: =VLOOKUP(A5,Leistungsdaten!$A:$I,9,FALSE) -> TRUE | F79: -10 | G79: 4.3 | H79: 2.875 | T79: 6 | U79: 0 | V79: =(1+Berechnung!$C$80/100)*V78 -> 645.5042149 | W79: =(1+Berechnung!$C$74/100)*W78 -> 12332.09153 | X79: =(1+Berechnung!$C$80/100)*X78 -> 606.63033 | Y79: =(1+Berechnung!$C$74/100)*Y78 -> 150.0118263 | Z79: 756.6421564 | AA79: =IF($K$5<3,0,IF(Einstellungen!$D$55>=T79,Einstellungen!$D$53,0)) -> 0 | AB79: =(1+Berechnung!$C$80/100)*AB78 -> 288.7896628 | AC79: =(1+Berechnung!$C$74/100)*AC78 -> 4454.621491 | AD79: =(1+Berechnung!$C$80/100)*AD78 -> 152.3286134 | AE79: =(1+Berechnung!$C$74/100)*AE78 -> 1781.848596 | AF79: =(1+Berechnung!$C$80/100)*AF78 -> 144.3948314 | AG79: =(1+Berechnung!$C$74/100)*AG78 -> 2227.310746 | AH79: 4454.621491 | AI79: 5211.263647 | AK79: Endenergie | AL79: =Berechnung!C90 -> FALSE | AM79: =Translation!A62 -> Final energy | AN79: =R86 -> 7.152 kWh/Year | AO79: =AO74 -> WPL 10 AC | AP79: =R83 -> 2.907 kWh/Year | AQ79: =AQ74 -> Gaskessel | AR79: =R84 -> 138 kWh/Year | AS79: =AS74 -> DHW | AT79: =R85 -> 4.106 kWh/Year
A80: Überschrift Slot | C80: =IF(C86=FALSE,"-",IF(D5=1,A5,IF(D5=2,A5,A5&" | "&A7))) -> - | F80: -7.5 | G80: 4.6 | H80: 3 | T80: 7 | U80: 0 | V80: =(1+Berechnung!$C$80/100)*V79 -> 664.8693413 | W80: =(1+Berechnung!$C$74/100)*W79 -> 12948.69611 | X80: =(1+Berechnung!$C$80/100)*X79 -> 624.82924 | Y80: =(1+Berechnung!$C$74/100)*Y79 -> 157.5124176 | Z80: 782.3416576 | AA80: =IF($K$5<3,0,IF(Einstellungen!$D$55>=T80,Einstellungen!$D$53,0)) -> 0 | AB80: =(1+Berechnung!$C$80/100)*AB79 -> 297.4533527 | AC80: =(1+Berechnung!$C$74/100)*AC79 -> 4677.352566 | AD80: =(1+Berechnung!$C$80/100)*AD79 -> 156.8984718 | AE80: =(1+Berechnung!$C$74/100)*AE79 -> 1870.941026 | AF80: =(1+Berechnung!$C$80/100)*AF79 -> 148.7266764 | AG80: =(1+Berechnung!$C$74/100)*AG79 -> 2338.676283 | AH80: 4677.352566 | AI80: 5459.694223 | AK80: COP | AL80: =Berechnung!C91 -> FALSE
A81: Ausgabe 1. WE | C81: =A5 -> WPL 10 AC | F81: -5 | G81: 5 | H81: 3.127388535 | K81: Endenergie | T81: 8 | U81: 0 | V81: =(1+Berechnung!$C$80/100)*V80 -> 684.8154216 | W81: =(1+Berechnung!$C$74/100)*W80 -> 13596.13091 | X81: =(1+Berechnung!$C$80/100)*X80 -> 643.5741171 | Y81: =(1+Berechnung!$C$74/100)*Y80 -> 165.3880385 | Z81: 808.9621557 | AA81: =IF($K$5<3,0,IF(Einstellungen!$D$55>=T81,Einstellungen!$D$53,0)) -> 0 | AB81: =(1+Berechnung!$C$80/100)*AB80 -> 306.3769533 | AC81: =(1+Berechnung!$C$74/100)*AC80 -> 4911.220194 | AD81: =(1+Berechnung!$C$80/100)*AD80 -> 161.6054259 | AE81: =(1+Berechnung!$C$74/100)*AE80 -> 1964.488078 | AF81: =(1+Berechnung!$C$80/100)*AF80 -> 153.1884767 | AG81: =(1+Berechnung!$C$74/100)*AG80 -> 2455.610097 | AH81: 4911.220194 | AI81: 5720.18235 | AK81: Ausgabe | AM81: =VLOOKUP(TRUE,$AL$74:$AT$80,2,FALSE) ->  | AN81: =VLOOKUP(TRUE,$AL$74:$AT$80,3,FALSE) ->  | AO81: =VLOOKUP(TRUE,$AL$74:$AT$80,4,FALSE) ->  | AP81: =VLOOKUP(TRUE,$AL$74:$AT$80,5,FALSE) ->  | AQ81: =VLOOKUP(TRUE,$AL$74:$AT$80,6,FALSE) -> Operating mode | AR81: =VLOOKUP(TRUE,$AL$74:$AT$80,7,FALSE) -> Bivalent-parallel | AS81: =VLOOKUP(TRUE,$AL$74:$AT$80,8,FALSE) -> Dual-mode point | AT81: =VLOOKUP(TRUE,$AL$74:$AT$80,9,FALSE) -> -5,8 °C
A82: Ausgabe 2. WE | C82: =IF(D5=1,Translation!A75,IF(D5=2,Translation!A16,A7)) -> Gaskessel | F82: -2.5 | G82: 5.4 | H82: 3.306748466 | K82: Kategorie | L82: Nur WP | M82: Bivalent | N82: Nur Öl/Gas | O82: WP+Solar | P82: Öl/Gas+Solar | Q82: Gewählt | R82: Ausgabe | T82: 9 | U82: 0 | V82: =(1+Berechnung!$C$80/100)*V81 -> 705.3598842 | W82: =(1+Berechnung!$C$74/100)*W81 -> 14275.93746 | X82: =(1+Berechnung!$C$80/100)*X81 -> 662.8813407 | Y82: =(1+Berechnung!$C$74/100)*Y81 -> 173.6574404 | Z82: 836.5387811 | AA82: =IF($K$5<3,0,IF(Einstellungen!$D$55>=T82,Einstellungen!$D$53,0)) -> 0 | AB82: =(1+Berechnung!$C$80/100)*AB81 -> 315.5682619 | AC82: =(1+Berechnung!$C$74/100)*AC81 -> 5156.781204 | AD82: =(1+Berechnung!$C$80/100)*AD81 -> 166.4535887 | AE82: =(1+Berechnung!$C$74/100)*AE81 -> 2062.712481 | AF82: =(1+Berechnung!$C$80/100)*AF81 -> 157.7841309 | AG82: =(1+Berechnung!$C$74/100)*AG81 -> 2578.390602 | AH82: 5156.781204 | AI82: 5993.319985
A83: Ausgabe WWB | C83: =IF(K5=0,"",Translation!A40) -> DHW | F83: 0 | G83: 5.95 | H83: 3.758576769 | K83: 1. WE | L83: =L146 -> 2907.136953 | M83: =L83 -> 2907.136953 | N83: =IF(Berechnung!H5=Berechnung!H7,IF(Berechnung!C95=2,AD146/Berechnung!C101,AD146),IF(Berechnung!C95=2,AD146/Berechnung!C102,AD146)) -> 11367.66635 | O83: =L83 -> 2907.136953 | P83: =N83 -> 11367.66635 | Q83: =IF($D$5=1,L83,IF($D$5=2,N83,M83)) -> 2907.136953 | R83: =IF(Berechnung!H5=Berechnung!H7,IF(AND(D5=2,Berechnung!C97=2),FIXED(Q83,0)&" "&Translation!$A$196,FIXED(Q83,0)&" "&Translation!$A$79),IF(AND(D5=2,Berechnung!C97=2),FIXED(Q83,0)&" "&Translation!$A$197,FIXED(Q83,0)&" "&Translation!$A$79)) -> 2.907 kWh/Year | T83: 10 | U83: 0 | V83: =(1+Berechnung!$C$80/100)*V82 -> 726.5206807 | W83: =(1+Berechnung!$C$74/100)*W82 -> 14989.73433 | X83: =(1+Berechnung!$C$80/100)*X82 -> 682.7677809 | Y83: =(1+Berechnung!$C$74/100)*Y82 -> 182.3403124 | Z83: 865.1080933 | AA83: =IF($K$5<3,0,IF(Einstellungen!$D$55>=T83,Einstellungen!$D$53,0)) -> 0 | AB83: =(1+Berechnung!$C$80/100)*AB82 -> 325.0353098 | AC83: =(1+Berechnung!$C$74/100)*AC82 -> 5414.620264 | AD83: =(1+Berechnung!$C$80/100)*AD82 -> 171.4471964 | AE83: =(1+Berechnung!$C$74/100)*AE82 -> 2165.848106 | AF83: =(1+Berechnung!$C$80/100)*AF82 -> 162.5176549 | AG83: =(1+Berechnung!$C$74/100)*AG82 -> 2707.310132 | AH83: 5414.620264 | AI83: 6279.728357
A84: Ausgabe Wärmepume/Kessel | C84: =IF(A5=A7,A5,Translation!$A$5) -> Heat pump | F84: 2.5 | G84: 6.45 | H84: 3.974766355 | K84: 2. WE | L84: =P146 -> 134.1318182 | M84: =T146 -> 138.2802249 | N84: 0 | O84: =L84 -> 134.1318182 | P84: =N84 -> 0 | Q84: =IF($D$5=1,L84,IF($D$5=2,N84,M84)) -> 138.2802249 | R84: =IF(Berechnung!H5=Berechnung!H7,IF(AND(D5=2,Berechnung!C97=2),FIXED(Q84,0)&" "&Translation!$A$196,FIXED(Q84,0)&" "&Translation!$A$79),IF(AND(D5=2,Berechnung!C97=2),FIXED(Q84,0)&" "&Translation!$A$197,FIXED(Q84,0)&" "&Translation!$A$79)) -> 138 kWh/Year | T84: 11 | U84: 0 | V84: =(1+Berechnung!$C$80/100)*V83 -> 748.3163012 | W84: =(1+Berechnung!$C$74/100)*W83 -> 15739.22105 | X84: =(1+Berechnung!$C$80/100)*X83 -> 703.2508143 | Y84: =(1+Berechnung!$C$74/100)*Y83 -> 191.4573281 | Z84: 894.7081424 | AA84: =IF($K$5<3,0,IF(Einstellungen!$D$55>=T84,Einstellungen!$D$53,0)) -> 0 | AB84: =(1+Berechnung!$C$80/100)*AB83 -> 334.786369 | AC84: =(1+Berechnung!$C$74/100)*AC83 -> 5685.351277 | AD84: =(1+Berechnung!$C$80/100)*AD83 -> 176.5906122 | AE84: =(1+Berechnung!$C$74/100)*AE83 -> 2274.140511 | AF84: =(1+Berechnung!$C$80/100)*AF83 -> 167.3931845 | AG84: =(1+Berechnung!$C$74/100)*AG83 -> 2842.675639 | AH84: 5685.351277 | AI84: 6580.059419
A85: Zertifikat MCS | C85: =VLOOKUP(A5,Leistungsdaten!A:L,12,FALSE) -> --- | F85: 5 | G85: 7.1 | H85: 4.190990991 | K85: Warmwasser | L85: =L8 -> 1320.083333 | M85: =L10 -> 2372.5 | N85: =IF(Berechnung!H5=Berechnung!H7,IF(Berechnung!C95=2,L9/Berechnung!C101,L9),IF(Berechnung!C95=2,L9/Berechnung!C102,L9)) -> 4106.25 | O85: =IF(Berechnung!H5=Berechnung!H7,IF(Berechnung!C95=2,L11/Berechnung!C101,L11),IF(Berechnung!C95=2,L11/Berechnung!C102,L11)) -> 660.0416667 | P85: =IF(Berechnung!H5=Berechnung!H7,IF(Berechnung!C95=2,L12/Berechnung!C101,L12),IF(Berechnung!C95=2,L12/Berechnung!C102,L12)) -> 2053.125 | Q85: =IF($K$5=1,L85,IF($K$5=3,M85,IF($K$5=2,N85,IF($K$5=4,O85,P85)))) -> 4106.25 | R85: =IF(Berechnung!H5=Berechnung!H7,IF(AND(D5=2,Berechnung!C97=2),IF($K$5=0,"",FIXED(Q85,0)&" "&Translation!$A$196),IF($K$5=0,"",FIXED(Q85,0)&" "&Translation!$A$79)),IF(AND(D5=2,Berechnung!C97=2),IF($K$5=0,"",FIXED(Q85,0)&" "&Translation!$A$197),IF($K$5=0,"",FIXED(Q85,0)&" "&Translation!$A$79))) -> 4.106 kWh/Year | T85: 12 | U85: 0 | V85: =(1+Berechnung!$C$80/100)*V84 -> 770.7657902 | W85: =(1+Berechnung!$C$74/100)*W84 -> 16526.1821 | X85: =(1+Berechnung!$C$80/100)*X84 -> 724.3483387 | Y85: =(1+Berechnung!$C$74/100)*Y84 -> 201.0301945 | Z85: 925.3785332 | AA85: =IF($K$5<3,0,IF(Einstellungen!$D$55>=T85,Einstellungen!$D$53,0)) -> 0 | AB85: =(1+Berechnung!$C$80/100)*AB84 -> 344.8299601 | AC85: =(1+Berechnung!$C$74/100)*AC84 -> 5969.618841 | AD85: =(1+Berechnung!$C$80/100)*AD84 -> 181.8883306 | AE85: =(1+Berechnung!$C$74/100)*AE84 -> 2387.847536 | AF85: =(1+Berechnung!$C$80/100)*AF84 -> 172.4149801 | AG85: =(1+Berechnung!$C$74/100)*AG84 -> 2984.80942 | AH85: 5969.618841 | AI85: 6894.997374 | AL85: Diagramm Preisentwicklung
A86: Slot eingeblendet ? | C86: FALSE | F86: 7.5 | G86: 7.8 | H86: 4.262763466 | K86: Summe | L86: =SUM(L83:L85) -> 4361.352105 | M86: =SUM(M83:M85) -> 5417.917178 | N86: 15473.91635 | O86: 3701.310438 | P86: 13420.79135 | Q86: =SUM(Q83:Q85) -> 7151.667178 | R86: =IF(Berechnung!H5=Berechnung!H7,IF(AND(D5=2,Berechnung!C97=2),FIXED(Q86,0)&" "&Translation!$A$196,FIXED(Q86,0)&" "&Translation!$A$79),IF(AND(D5=2,Berechnung!C97=2),FIXED(Q86,0)&" "&Translation!$A$197,FIXED(Q86,0)&" "&Translation!$A$79)) -> 7.152 kWh/Year | T86: 13 | U86: 0 | V86: =(1+Berechnung!$C$80/100)*V85 -> 793.8887639 | W86: =(1+Berechnung!$C$74/100)*W85 -> 17352.4912 | X86: =(1+Berechnung!$C$80/100)*X85 -> 746.0787889 | Y86: =(1+Berechnung!$C$74/100)*Y85 -> 211.0817042 | Z86: 957.1604931 | AA86: =IF($K$5<3,0,IF(Einstellungen!$D$55>=T86,Einstellungen!$D$53,0)) -> 0 | AB86: =(1+Berechnung!$C$80/100)*AB85 -> 355.1748589 | AC86: =(1+Berechnung!$C$74/100)*AC85 -> 6268.099783 | AD86: =(1+Berechnung!$C$80/100)*AD85 -> 187.3449805 | AE86: =(1+Berechnung!$C$74/100)*AE85 -> 2507.239913 | AF86: =(1+Berechnung!$C$80/100)*AF85 -> 177.5874295 | AG86: =(1+Berechnung!$C$74/100)*AG85 -> 3134.049891 | AH86: 6268.099783 | AI86: 7225.260276 | AK86: Jahr | AL86: Gesamtkosten | AM86: Förderung | AN86: Heizung-Diagr. | AO86: WW-Diagr. | AP86: Förderung
F87: 10 | G87: 8.3 | H87: 4.261904762 | T87: 14 | U87: 0 | V87: =(1+Berechnung!$C$80/100)*V86 -> 817.7054268 | W87: =(1+Berechnung!$C$74/100)*W86 -> 18220.11576 | X87: =(1+Berechnung!$C$80/100)*X86 -> 768.4611526 | Y87: =(1+Berechnung!$C$74/100)*Y86 -> 221.6357894 | Z87: 990.096942 | AA87: =IF($K$5<3,0,IF(Einstellungen!$D$55>=T87,Einstellungen!$D$53,0)) -> 0 | AB87: =(1+Berechnung!$C$80/100)*AB86 -> 365.8301047 | AC87: =(1+Berechnung!$C$74/100)*AC86 -> 6581.504772 | AD87: =(1+Berechnung!$C$80/100)*AD86 -> 192.9653299 | AE87: =(1+Berechnung!$C$74/100)*AE86 -> 2632.601909 | AF87: =(1+Berechnung!$C$80/100)*AF86 -> 182.9150523 | AG87: =(1+Berechnung!$C$74/100)*AG86 -> 3290.752386 | AH87: 6581.504772 | AI87: 7571.601714 | AK87: 1 | AL87: =AI74 -> 4131.135343 | AM87: =U74+AA74 -> 0 | AN87: =IF(AM87>0,(AL87-AM87)*(Z74/AI74),Z74) -> 640.8228428 | AO87: =IF(AM87>0,(AL87-AM87)*(AH74/AI74),AH74) -> 3490.3125 | AP87: =MIN(AM87,AL87) -> 0
F88: 12.5 | G88: 8.8625 | H88: 4.347704848 | T88: 15 | U88: 0 | V88: =(1+Berechnung!$C$80/100)*V87 -> 842.2365896 | W88: =(1+Berechnung!$C$74/100)*W87 -> 19131.12155 | X88: =(1+Berechnung!$C$80/100)*X87 -> 791.5149871 | Y88: =(1+Berechnung!$C$74/100)*Y87 -> 232.7175789 | Z88: 1024.232566 | AA88: =IF($K$5<3,0,IF(Einstellungen!$D$55>=T88,Einstellungen!$D$53,0)) -> 0 | AB88: =(1+Berechnung!$C$80/100)*AB87 -> 376.8050078 | AC88: =(1+Berechnung!$C$74/100)*AC87 -> 6910.580011 | AD88: =(1+Berechnung!$C$80/100)*AD87 -> 198.7542898 | AE88: =(1+Berechnung!$C$74/100)*AE87 -> 2764.232004 | AF88: =(1+Berechnung!$C$80/100)*AF87 -> 188.4025039 | AG88: =(1+Berechnung!$C$74/100)*AG87 -> 3455.290005 | AH88: 6910.580011 | AI88: 7934.812577 | AK88: 2 | AL88: 4327.226417 | AM88: 0 | AN88: =IF(AM88>0,(AL88-AM88)*(Z75/AI75),Z75) -> 662.3982919 | AO88: =IF(AM88>0,(AL88-AM88)*(AH75/AI75),AH75) -> 3664.828125 | AP88: =MIN(AM88,AL88) -> 0
F89: 15 | G89: 9.425 | H89: 4.399665552 | T89: Summe | U89: =SUM(U74:U88) -> 0 | V89: 10356.20271 | W89: =SUM(W74:W88) -> 208503.2246 | X89: =SUM(X74:X88) -> 9732.526173 | Y89: =SUM(Y74:Y88) -> 2536.305333 | Z89: =SUM(Z74:Z88) -> 12268.83151 | AA89: =SUM(AA74:AA88) -> 0 | AB89: 4633.221936 | AC89: =SUM(AC74:AC88) -> 75315.93022 | AD89: =SUM(AD74:AD88) -> 2443.897285 | AE89: =SUM(AE74:AE88) -> 30126.37209 | AF89: =SUM(AF74:AF88) -> 2316.610968 | AG89: 37657.96511 | AH89: =SUM(AH74:AH88) -> 75315.93022 | AI89: =SUM(AI74:AI88) -> 87584.76173 | AK89: 3 | AL89: 4532.808074 | AM89: 0 | AN89: 684.7385426 | AO89: 3848.069531 | AP89: 0
F90: 17.5 | G90: 9.9875 | H90: 4.878914835 | K90: CO2 | AK90: 4 | AL90: 4748.345424 | AM90: 0 | AN90: 707.872416 | AO90: 4040.473008 | AP90: 0
F91: 20 | G91: 10.55 | H91: 5.216783217 | K91: Kategorie | L91: Nur WP | M91: Bivalent | N91: Nur Öl/Gas | O91: WP+Solar | P91: Öl/Gas+Solar | Q91: Gewählt | R91: Ausgabe | AK91: 5 | AL91: 4974.32655 | AM91: 0 | AN91: 731.8298915 | AO91: 4242.496658 | AP91: 0
F92: 22.5 | G92: 11.1125 | K92: 1. WE | L92: =N146 -> 1805.332048 | M92: =L92 -> 1805.332048 | N92: =AF146 -> 2876.019588 | O92: =L92 -> 1805.332048 | P92: =N92 -> 2876.019588 | Q92: =IF($D$5=1,L92,IF($D$5=2,N92,M92)) -> 1805.332048 | R92: =FIXED(Q92,0)&" "&Translation!$A$80 -> 1.805 kg/year | AK92: 6 | AL92: 5211.263647 | AM92: 0 | AN92: 756.6421564 | AO92: 4454.621491 | AP92: 0
F93: 25 | G93: 11.675 | K93: 2. WE | L93: =R146 -> 83.29585909 | M93: =V146 -> 34.98489691 | N93: 0 | O93: =L93 -> 83.29585909 | P93: =N93 -> 0 | Q93: =IF($D$5=1,L93,IF($D$5=2,N93,M93)) -> 34.98489691 | R93: =FIXED(Q93,0)&" "&Translation!$A$80 -> 35 kg/year | AK93: 7 | AL93: 5459.694223 | AM93: 0 | AN93: 782.3416576 | AO93: 4677.352566 | AP93: 0
F94: 27.5 | G94: 12.2375 | K94: Warmwasser | L94: =N8 -> 819.77175 | M94: =N10 -> 868.8825 | N94: =N9 -> 1038.88125 | O94: =N11 -> 409.885875 | P94: =N12 -> 519.440625 | Q94: =IF($K$5=1,L94,IF($K$5=3,M94,IF($K$5=2,N94,IF($K$5=4,O94,P94)))) -> 1038.88125 | R94: =IF($K$5=0,"",FIXED(Q94,0)&" "&Translation!$A$80) -> 1.039 kg/year | AK94: 8 | AL94: 5720.18235 | AM94: 0 | AN94: =IF(AM94>0,(AL94-AM94)*(Z81/AI81),Z81) -> 808.9621557 | AO94: 4911.220194 | AP94: 0
F95: 30 | G95: 12.8 | K95: Summe | L95: =SUM(L92:L94) -> 2708.399657 | M95: =SUM(M92:M94) -> 2709.199445 | N95: 3914.900838 | O95: 2298.513782 | P95: =SUM(P92:P94) -> 3395.460213 | Q95: =SUM(Q92:Q94) -> 2879.198195 | R95: =FIXED(Q95,0)&" "&Translation!$A$80 -> 2.879 kg/year | AK95: 9 | AL95: 5993.319985 | AM95: 0 | AN95: 836.5387811 | AO95: 5156.781204 | AP95: 0
AK96: 10 | AL96: 6279.728357 | AM96: 0 | AN96: 865.1080933 | AO96: 5414.620264 | AP96: 0
AK97: 11 | AL97: 6580.059419 | AM97: 0 | AN97: 894.7081424 | AO97: 5685.351277 | AP97: 0
AK98: 12 | AL98: 6894.997374 | AM98: 0 | AN98: 925.3785332 | AO98: 5969.618841 | AP98: 0
AK99: 13 | AL99: 7225.260276 | AM99: 0 | AN99: 957.1604931 | AO99: 6268.099783 | AP99: 0
A100: Berechnung Jahresheizarbeit/Heizstunden | J100: Wärmepumpe | O100: 2. WE - DHC monoenergetisch | S100: 2. WE - Öl/Gas bivalent | W100: Gesamt Nur Wärmepumpe | Z100: Gesamt Wärmepumpe+Öl/Gas | AC100: Gasamt Nur Öl/Gas | AK100: 14 | AL100: 7571.601714 | AM100: 0 | AN100: 990.096942 | AO100: 6581.504772 | AP100: 0
A101: Zähler | B101: Außentemp | C101: Heizlast | D101: Leistung WP | E101: Heizlast minus | F101: Biv.punkt | G101: Stunden bei tau | H101: Heizwärmebedarf | I101: Faktor | J101: Heizarbeit | K101: COP | L101: Endenergie | M101: Energiekosten | N101: CO2-Emission | O101: Heizarbeit | P101: Endenergie | Q101: Energiekosten | R101: CO2-Emission | S101: Heizarbeit | T101: Endenergie | U101: Energiekosten | V101: CO2-Emission | W101: Endenergie | X101: Energiekosten | Y101: CO2-Emission | Z101: Endenergie | AA101: Energiekosten | AB101: CO2-Emission | AC101: Heizarbeit | AD101: Endenergie | AE101: Energiekosten | AF101: CO2-Emission | AK101: 15 | AL101: 7934.812577 | AM101: 0 | AN101: 1024.232566 | AO101: 6910.580011 | AP101: 0
B102: °C | C102: KW | D102: KW | E102: WP-Leistung | G102: =Berechnung!$B$5 -> Holzminden | H102: kWh/a | I102: bivalenter Betrieb | J102: kWh/a | K102: - | L102: kWh/a | M102: €/a | N102: kg/a | O102: kWh/a | P102: kWh/a | Q102: €/a | R102: kg/a | S102: kWh/a | T102: kWh/a | U102: €/a | V102: kg/a | AC102: kWh/a | AD102: kWh/a | AE102: €/a | AF102: kg/a
A103: 3 | B103: < -20 | C103: =Berechnung!$C$65 -> 6 | D103: =D104-(D105-D104) -> 2.1 | E103: =C103-D103 -> 3.9 | F103: -20 | G103: =HLOOKUP(Berechnung!$C$66,INDIRECT("Klimadaten!M"&Berechnung!$C$67&":BM"&Berechnung!$C$67+44),A103,FALSE) -> 0 | H103: =C103*G103 -> 0 | I103: =I104 -> 1 | J103: =MIN(H103,I103*D103*G103) -> 0 | K103: =K104-(K105-K104) -> 2.081447964 | L103: =J103/K103 -> 0 | M103: =L103*Berechnung!$C$79/100 -> 0 | N103: =(L103*Berechnung!$C$69/1000) -> 0 | O103: =H103-J103 -> 0 | P103: =O103 -> 0 | Q103: =P103*Berechnung!$C$78/100 -> 0 | R103: =P103*Berechnung!$C$69/1000 -> 0 | S103: =O103 -> 0 | T103: =S103/(Berechnung!$C$81/100) -> 0 | U103: =T103*Berechnung!$C$72 -> 0 | V103: =T103*Berechnung!$C$73/1000 -> 0 | W103: =L103+P103 -> 0 | X103: 0 | Y103: 0 | Z103: =L103+T103 -> 0 | AA103: =M103+U103 -> 0 | AB103: =N103+V103 -> 0 | AC103: =H103 -> 0 | AD103: =AC103/(Berechnung!$C$81/100) -> 0 | AE103: =AD103*Berechnung!$C$72 -> 0 | AF103: =AD103*Berechnung!$C$73/1000 -> 0
A104: 4 | B104: -20 | C104: =MAX(0,MIN(Berechnung!$C$65,Berechnung!$C$65*(B104-Berechnung!$C$64)/(Berechnung!$C$63-Berechnung!$C$64))) -> 6 | D104: =G75 -> 2.4 | E104: =C104-D104 -> 3.6 | F104: =IF(SIGN(E104)-SIGN(E105)<>0,B104,-20) -> -20 | G104: =HLOOKUP(Berechnung!$C$66,INDIRECT("Klimadaten!M"&Berechnung!$C$67&":BM"&Berechnung!$C$67+44),A104,FALSE) -> 0 | H104: =C104*G104 -> 0 | I104: =IF(OR($B$5=$B$7,$B$5=$B$8),1,IF(B104<=$F$146,0,1)) -> 1 | J104: =MIN(H104,I104*D104*G104) -> 0 | K104: =H75 -> 2.230769231 | L104: 0 | M104: =L104*Berechnung!$C$79/100 -> 0 | N104: =(L104*Berechnung!$C$69/1000) -> 0 | O104: 0 | P104: =O104 -> 0 | Q104: =P104*Berechnung!$C$78/100 -> 0 | R104: =P104*Berechnung!$C$69/1000 -> 0 | S104: =O104 -> 0 | T104: =S104/(Berechnung!$C$81/100) -> 0 | U104: =T104*Berechnung!$C$72 -> 0 | V104: =T104*Berechnung!$C$73/1000 -> 0 | W104: 0 | X104: 0 | Y104: 0 | Z104: =L104+T104 -> 0 | AA104: 0 | AB104: 0 | AC104: =H104 -> 0 | AD104: =AC104/(Berechnung!$C$81/100) -> 0 | AE104: =AD104*Berechnung!$C$72 -> 0 | AF104: =AD104*Berechnung!$C$73/1000 -> 0
A105: 5 | B105: -19 | C105: =MAX(0,MIN(Berechnung!$C$65,Berechnung!$C$65*(B105-Berechnung!$C$64)/(Berechnung!$C$63-Berechnung!$C$64))) -> 6 | D105: =AVERAGE(D104,D106) -> 2.7 | E105: 3.3 | F105: =IF(SIGN(E105)-SIGN(E106)<>0,B105,-20) -> -20 | G105: =HLOOKUP(Berechnung!$C$66,INDIRECT("Klimadaten!M"&Berechnung!$C$67&":BM"&Berechnung!$C$67+44),A105,FALSE) -> 0 | H105: =C105*G105 -> 0 | I105: 1 | J105: 0 | K105: =AVERAGE(K104,K106) -> 2.380090498 | L105: 0 | M105: =L105*Berechnung!$C$79/100 -> 0 | N105: =(L105*Berechnung!$C$69/1000) -> 0 | O105: 0 | P105: 0 | Q105: =P105*Berechnung!$C$78/100 -> 0 | R105: =P105*Berechnung!$C$69/1000 -> 0 | S105: 0 | T105: =S105/(Berechnung!$C$81/100) -> 0 | U105: =T105*Berechnung!$C$72 -> 0 | V105: =T105*Berechnung!$C$73/1000 -> 0 | W105: 0 | X105: 0 | Y105: 0 | Z105: 0 | AA105: 0 | AB105: 0 | AC105: 0 | AD105: =AC105/(Berechnung!$C$81/100) -> 0 | AE105: =AD105*Berechnung!$C$72 -> 0 | AF105: =AD105*Berechnung!$C$73/1000 -> 0
A106: 6 | B106: -18 | C106: =MAX(0,MIN(Berechnung!$C$65,Berechnung!$C$65*(B106-Berechnung!$C$64)/(Berechnung!$C$63-Berechnung!$C$64))) -> 6 | D106: =G76 -> 3 | E106: 3 | F106: -20 | G106: =HLOOKUP(Berechnung!$C$66,INDIRECT("Klimadaten!M"&Berechnung!$C$67&":BM"&Berechnung!$C$67+44),A106,FALSE) -> 0 | H106: =C106*G106 -> 0 | I106: 1 | J106: =MIN(H106,I106*D106*G106) -> 0 | K106: =H76 -> 2.529411765 | L106: 0 | M106: =L106*Berechnung!$C$79/100 -> 0 | N106: =(L106*Berechnung!$C$69/1000) -> 0 | O106: 0 | P106: 0 | Q106: =P106*Berechnung!$C$78/100 -> 0 | R106: =P106*Berechnung!$C$69/1000 -> 0 | S106: 0 | T106: =S106/(Berechnung!$C$81/100) -> 0 | U106: =T106*Berechnung!$C$72 -> 0 | V106: =T106*Berechnung!$C$73/1000 -> 0 | W106: 0 | X106: 0 | Y106: 0 | Z106: 0 | AA106: 0 | AB106: 0 | AC106: 0 | AD106: =AC106/(Berechnung!$C$81/100) -> 0 | AE106: =AD106*Berechnung!$C$72 -> 0 | AF106: =AD106*Berechnung!$C$73/1000 -> 0
A107: 7 | B107: -17 | C107: =MAX(0,MIN(Berechnung!$C$65,Berechnung!$C$65*(B107-Berechnung!$C$64)/(Berechnung!$C$63-Berechnung!$C$64))) -> 6 | D107: =G76 -> 3 | E107: 3 | F107: =IF(SIGN(E107)-SIGN(E108)<>0,B107,-20) -> -20 | G107: =HLOOKUP(Berechnung!$C$66,INDIRECT("Klimadaten!M"&Berechnung!$C$67&":BM"&Berechnung!$C$67+44),A107,FALSE) -> 0 | H107: =C107*G107 -> 0 | I107: 1 | J107: =MIN(H107,I107*D107*G107) -> 0 | K107: =H76 -> 2.529411765 | L107: 0 | M107: =L107*Berechnung!$C$79/100 -> 0 | N107: =(L107*Berechnung!$C$69/1000) -> 0 | O107: 0 | P107: 0 | Q107: =P107*Berechnung!$C$78/100 -> 0 | R107: =P107*Berechnung!$C$69/1000 -> 0 | S107: 0 | T107: =S107/(Berechnung!$C$81/100) -> 0 | U107: =T107*Berechnung!$C$72 -> 0 | V107: =T107*Berechnung!$C$73/1000 -> 0 | W107: 0 | X107: 0 | Y107: 0 | Z107: 0 | AA107: 0 | AB107: 0 | AC107: 0 | AD107: =AC107/(Berechnung!$C$81/100) -> 0 | AE107: =AD107*Berechnung!$C$72 -> 0 | AF107: =AD107*Berechnung!$C$73/1000 -> 0
A108: 8 | B108: -16 | C108: =MAX(0,MIN(Berechnung!$C$65,Berechnung!$C$65*(B108-Berechnung!$C$64)/(Berechnung!$C$63-Berechnung!$C$64))) -> 6 | D108: =AVERAGE(D107,D109) -> 3.25 | E108: 2.75 | F108: -20 | G108: =HLOOKUP(Berechnung!$C$66,INDIRECT("Klimadaten!M"&Berechnung!$C$67&":BM"&Berechnung!$C$67+44),A108,FALSE) -> 0 | H108: =C108*G108 -> 0 | I108: 1 | J108: 0 | K108: =AVERAGE(K107,K109) -> 2.621848739 | L108: 0 | M108: =L108*Berechnung!$C$79/100 -> 0 | N108: =(L108*Berechnung!$C$69/1000) -> 0 | O108: 0 | P108: 0 | Q108: =P108*Berechnung!$C$78/100 -> 0 | R108: =P108*Berechnung!$C$69/1000 -> 0 | S108: 0 | T108: =S108/(Berechnung!$C$81/100) -> 0 | U108: =T108*Berechnung!$C$72 -> 0 | V108: =T108*Berechnung!$C$73/1000 -> 0 | W108: 0 | X108: 0 | Y108: 0 | Z108: 0 | AA108: 0 | AB108: 0 | AC108: 0 | AD108: =AC108/(Berechnung!$C$81/100) -> 0 | AE108: =AD108*Berechnung!$C$72 -> 0 | AF108: =AD108*Berechnung!$C$73/1000 -> 0
A109: 9 | B109: -15 | C109: =MAX(0,MIN(Berechnung!$C$65,Berechnung!$C$65*(B109-Berechnung!$C$64)/(Berechnung!$C$63-Berechnung!$C$64))) -> 6 | D109: =G77 -> 3.5 | E109: 2.5 | F109: -20 | G109: =HLOOKUP(Berechnung!$C$66,INDIRECT("Klimadaten!M"&Berechnung!$C$67&":BM"&Berechnung!$C$67+44),A109,FALSE) -> 0 | H109: 0 | I109: 1 | J109: 0 | K109: =H77 -> 2.714285714 | L109: 0 | M109: =L109*Berechnung!$C$79/100 -> 0 | N109: =(L109*Berechnung!$C$69/1000) -> 0 | O109: 0 | P109: 0 | Q109: =P109*Berechnung!$C$78/100 -> 0 | R109: =P109*Berechnung!$C$69/1000 -> 0 | S109: 0 | T109: =S109/(Berechnung!$C$81/100) -> 0 | U109: =T109*Berechnung!$C$72 -> 0 | V109: =T109*Berechnung!$C$73/1000 -> 0 | W109: 0 | X109: 0 | Y109: 0 | Z109: 0 | AA109: 0 | AB109: 0 | AC109: 0 | AD109: =AC109/(Berechnung!$C$81/100) -> 0 | AE109: =AD109*Berechnung!$C$72 -> 0 | AF109: =AD109*Berechnung!$C$73/1000 -> 0
A110: 10 | B110: -14 | C110: =MAX(0,MIN(Berechnung!$C$65,Berechnung!$C$65*(B110-Berechnung!$C$64)/(Berechnung!$C$63-Berechnung!$C$64))) -> 6 | D110: =AVERAGE(D109,D111) -> 3.725 | E110: 2.275 | F110: =IF(SIGN(E110)-SIGN(E111)<>0,B110,-20) -> -20 | G110: =HLOOKUP(Berechnung!$C$66,INDIRECT("Klimadaten!M"&Berechnung!$C$67&":BM"&Berechnung!$C$67+44),A110,FALSE) -> 0 | H110: =C110*G110 -> 0 | I110: 1 | J110: 0 | K110: =AVERAGE(K109,K111) -> 2.765037594 | L110: 0 | M110: =L110*Berechnung!$C$79/100 -> 0 | N110: =(L110*Berechnung!$C$69/1000) -> 0 | O110: 0 | P110: 0 | Q110: =P110*Berechnung!$C$78/100 -> 0 | R110: =P110*Berechnung!$C$69/1000 -> 0 | S110: =O110 -> 0 | T110: =S110/(Berechnung!$C$81/100) -> 0 | U110: =T110*Berechnung!$C$72 -> 0 | V110: =T110*Berechnung!$C$73/1000 -> 0 | W110: 0 | X110: 0 | Y110: 0 | Z110: 0 | AA110: 0 | AB110: 0 | AC110: 0 | AD110: =AC110/(Berechnung!$C$81/100) -> 0 | AE110: =AD110*Berechnung!$C$72 -> 0 | AF110: =AD110*Berechnung!$C$73/1000 -> 0
A111: 11 | B111: -13 | C111: =MAX(0,MIN(Berechnung!$C$65,Berechnung!$C$65*(B111-Berechnung!$C$64)/(Berechnung!$C$63-Berechnung!$C$64))) -> 6 | D111: =G78 -> 3.95 | E111: 2.05 | F111: -20 | G111: =HLOOKUP(Berechnung!$C$66,INDIRECT("Klimadaten!M"&Berechnung!$C$67&":BM"&Berechnung!$C$67+44),A111,FALSE) -> 0 | H111: =C111*G111 -> 0 | I111: 1 | J111: 0 | K111: =H78 -> 2.815789474 | L111: 0 | M111: =L111*Berechnung!$C$79/100 -> 0 | N111: =(L111*Berechnung!$C$69/1000) -> 0 | O111: 0 | P111: 0 | Q111: =P111*Berechnung!$C$78/100 -> 0 | R111: =P111*Berechnung!$C$69/1000 -> 0 | S111: 0 | T111: =S111/(Berechnung!$C$81/100) -> 0 | U111: =T111*Berechnung!$C$72 -> 0 | V111: =T111*Berechnung!$C$73/1000 -> 0 | W111: 0 | X111: 0 | Y111: 0 | Z111: 0 | AA111: 0 | AB111: 0 | AC111: 0 | AD111: =AC111/(Berechnung!$C$81/100) -> 0 | AE111: =AD111*Berechnung!$C$72 -> 0 | AF111: =AD111*Berechnung!$C$73/1000 -> 0
A112: 12 | B112: -12 | C112: =MAX(0,MIN(Berechnung!$C$65,Berechnung!$C$65*(B112-Berechnung!$C$64)/(Berechnung!$C$63-Berechnung!$C$64))) -> 6 | D112: =G78 -> 3.95 | E112: 2.05 | F112: -20 | G112: =HLOOKUP(Berechnung!$C$66,INDIRECT("Klimadaten!M"&Berechnung!$C$67&":BM"&Berechnung!$C$67+44),A112,FALSE) -> 0 | H112: 0 | I112: 1 | J112: =MIN(H112,I112*D112*G112) -> 0 | K112: =H78 -> 2.815789474 | L112: 0 | M112: =L112*Berechnung!$C$79/100 -> 0 | N112: =(L112*Berechnung!$C$69/1000) -> 0 | O112: 0 | P112: 0 | Q112: =P112*Berechnung!$C$78/100 -> 0 | R112: =P112*Berechnung!$C$69/1000 -> 0 | S112: 0 | T112: =S112/(Berechnung!$C$81/100) -> 0 | U112: =T112*Berechnung!$C$72 -> 0 | V112: =T112*Berechnung!$C$73/1000 -> 0 | W112: 0 | X112: 0 | Y112: 0 | Z112: 0 | AA112: 0 | AB112: 0 | AC112: 0 | AD112: =AC112/(Berechnung!$C$81/100) -> 0 | AE112: =AD112*Berechnung!$C$72 -> 0 | AF112: =AD112*Berechnung!$C$73/1000 -> 0
A113: 13 | B113: -11 | C113: =MAX(0,MIN(Berechnung!$C$65,Berechnung!$C$65*(B113-Berechnung!$C$64)/(Berechnung!$C$63-Berechnung!$C$64))) -> 6 | D113: =AVERAGE(D112,D114) -> 4.125 | E113: 1.875 | F113: -20 | G113: =HLOOKUP(Berechnung!$C$66,INDIRECT("Klimadaten!M"&Berechnung!$C$67&":BM"&Berechnung!$C$67+44),A113,FALSE) -> 6 | H113: 36 | I113: 1 | J113: 24.75 | K113: =AVERAGE(K112,K114) -> 2.845394737 | L113: 8.698265896 | M113: =L113*Berechnung!$C$79/100 -> 1.565687861 | N113: =(L113*Berechnung!$C$69/1000) -> 5.401623121 | O113: 11.25 | P113: 11.25 | Q113: =P113*Berechnung!$C$78/100 -> 2.8125 | R113: =P113*Berechnung!$C$69/1000 -> 6.98625 | S113: 11.25 | T113: =S113/(Berechnung!$C$81/100) -> 11.59793814 | U113: =T113*Berechnung!$C$72 -> 9.858247423 | V113: =T113*Berechnung!$C$73/1000 -> 2.934278351 | W113: 19.9482659 | X113: 4.378187861 | Y113: 12.38787312 | Z113: 20.29620404 | AA113: 11.42393528 | AB113: 8.335901472 | AC113: 36 | AD113: =AC113/(Berechnung!$C$81/100) -> 37.11340206 | AE113: =AD113*Berechnung!$C$72 -> 31.54639175 | AF113: =AD113*Berechnung!$C$73/1000 -> 9.389690722
A114: 14 | B114: -10 | C114: =MAX(0,MIN(Berechnung!$C$65,Berechnung!$C$65*(B114-Berechnung!$C$64)/(Berechnung!$C$63-Berechnung!$C$64))) -> 6 | D114: =G79 -> 4.3 | E114: 1.7 | F114: -20 | G114: =HLOOKUP(Berechnung!$C$66,INDIRECT("Klimadaten!M"&Berechnung!$C$67&":BM"&Berechnung!$C$67+44),A114,FALSE) -> 32 | H114: 192 | I114: 1 | J114: =MIN(H114,I114*D114*G114) -> 137.6 | K114: =H79 -> 2.875 | L114: 47.86086957 | M114: =L114*Berechnung!$C$79/100 -> 8.614956522 | N114: =(L114*Berechnung!$C$69/1000) -> 29.7216 | O114: 54.4 | P114: 54.4 | Q114: =P114*Berechnung!$C$78/100 -> 13.6 | R114: =P114*Berechnung!$C$69/1000 -> 33.7824 | S114: 54.4 | T114: =S114/(Berechnung!$C$81/100) -> 56.08247423 | U114: =T114*Berechnung!$C$72 -> 47.67010309 | V114: =T114*Berechnung!$C$73/1000 -> 14.18886598 | W114: 102.2608696 | X114: 22.21495652 | Y114: 63.504 | Z114: 103.9433438 | AA114: 56.28505961 | AB114: 43.91046598 | AC114: 192 | AD114: =AC114/(Berechnung!$C$81/100) -> 197.9381443 | AE114: =AD114*Berechnung!$C$72 -> 168.2474227 | AF114: =AD114*Berechnung!$C$73/1000 -> 50.07835052
A115: 15 | B115: -9 | C115: =MAX(0,MIN(Berechnung!$C$65,Berechnung!$C$65*(B115-Berechnung!$C$64)/(Berechnung!$C$63-Berechnung!$C$64))) -> 5.727272727 | D115: =AVERAGE(D114,D116) -> 4.45 | E115: 1.277272727 | F115: -20 | G115: =HLOOKUP(Berechnung!$C$66,INDIRECT("Klimadaten!M"&Berechnung!$C$67&":BM"&Berechnung!$C$67+44),A115,FALSE) -> 14 | H115: 80.18181818 | I115: 1 | J115: 62.3 | K115: =AVERAGE(K114,K116) -> 2.9375 | L115: 21.20851064 | M115: =L115*Berechnung!$C$79/100 -> 3.817531915 | N115: =(L115*Berechnung!$C$69/1000) -> 13.17048511 | O115: 17.88181818 | P115: =O115 -> 17.88181818 | Q115: =P115*Berechnung!$C$78/100 -> 4.470454545 | R115: =P115*Berechnung!$C$69/1000 -> 11.10460909 | S115: 17.88181818 | T115: =S115/(Berechnung!$C$81/100) -> 18.4348641 | U115: =T115*Berechnung!$C$72 -> 15.66963449 | V115: =T115*Berechnung!$C$73/1000 -> 4.664020619 | W115: 39.09032882 | X115: 8.28798646 | Y115: 24.2750942 | Z115: 39.64337474 | AA115: =M115+U115 -> 19.4871664 | AB115: 17.83450572 | AC115: 80.18181818 | AD115: =AC115/(Berechnung!$C$81/100) -> 82.66166823 | AE115: =AD115*Berechnung!$C$72 -> 70.26241799 | AF115: =AD115*Berechnung!$C$73/1000 -> 20.91340206
A116: 16 | B116: -8 | C116: =MAX(0,MIN(Berechnung!$C$65,Berechnung!$C$65*(B116-Berechnung!$C$64)/(Berechnung!$C$63-Berechnung!$C$64))) -> 5.454545455 | D116: =G80 -> 4.6 | E116: 0.8545454545 | F116: -20 | G116: =HLOOKUP(Berechnung!$C$66,INDIRECT("Klimadaten!M"&Berechnung!$C$67&":BM"&Berechnung!$C$67+44),A116,FALSE) -> 23 | H116: 125.4545455 | I116: 1 | J116: 105.8 | K116: =H80 -> 3 | L116: 35.26666667 | M116: =L116*Berechnung!$C$79/100 -> 6.348 | N116: =(L116*Berechnung!$C$69/1000) -> 21.9006 | O116: 19.65454545 | P116: 19.65454545 | Q116: =P116*Berechnung!$C$78/100 -> 4.913636364 | R116: =P116*Berechnung!$C$69/1000 -> 12.20547273 | S116: 19.65454545 | T116: =S116/(Berechnung!$C$81/100) -> 20.26241799 | U116: =T116*Berechnung!$C$72 -> 17.2230553 | V116: =T116*Berechnung!$C$73/1000 -> 5.126391753 | W116: 54.92121212 | X116: 11.26163636 | Y116: 34.10607273 | Z116: 55.52908466 | AA116: 23.5710553 | AB116: 27.02699175 | AC116: 125.4545455 | AD116: =AC116/(Berechnung!$C$81/100) -> 129.3345829 | AE116: =AD116*Berechnung!$C$72 -> 109.9343955 | AF116: =AD116*Berechnung!$C$73/1000 -> 32.72164948
A117: 17 | B117: -7 | C117: =MAX(0,MIN(Berechnung!$C$65,Berechnung!$C$65*(B117-Berechnung!$C$64)/(Berechnung!$C$63-Berechnung!$C$64))) -> 5.181818182 | D117: =G80 -> 4.6 | E117: 0.5818181818 | F117: -20 | G117: =HLOOKUP(Berechnung!$C$66,INDIRECT("Klimadaten!M"&Berechnung!$C$67&":BM"&Berechnung!$C$67+44),A117,FALSE) -> 44 | H117: 228 | I117: 1 | J117: 202.4 | K117: =H80 -> 3 | L117: 67.46666667 | M117: =L117*Berechnung!$C$79/100 -> 12.144 | N117: =(L117*Berechnung!$C$69/1000) -> 41.8968 | O117: 25.6 | P117: 25.6 | Q117: =P117*Berechnung!$C$78/100 -> 6.4 | R117: =P117*Berechnung!$C$69/1000 -> 15.8976 | S117: 25.6 | T117: =S117/(Berechnung!$C$81/100) -> 26.39175258 | U117: =T117*Berechnung!$C$72 -> 22.43298969 | V117: =T117*Berechnung!$C$73/1000 -> 6.677113402 | W117: 93.06666667 | X117: 18.544 | Y117: 57.7944 | Z117: 93.85841924 | AA117: 34.57698969 | AB117: 48.5739134 | AC117: 228 | AD117: =AC117/(Berechnung!$C$81/100) -> 235.0515464 | AE117: =AD117*Berechnung!$C$72 -> 199.7938144 | AF117: =AD117*Berechnung!$C$73/1000 -> 59.46804124
A118: 18 | B118: -6 | C118: =MAX(0,MIN(Berechnung!$C$65,Berechnung!$C$65*(B118-Berechnung!$C$64)/(Berechnung!$C$63-Berechnung!$C$64))) -> 4.909090909 | D118: =AVERAGE(D117,D119) -> 4.8 | E118: 0.1090909091 | F118: -6 | G118: =HLOOKUP(Berechnung!$C$66,INDIRECT("Klimadaten!M"&Berechnung!$C$67&":BM"&Berechnung!$C$67+44),A118,FALSE) -> 49 | H118: 240.5454545 | I118: 1 | J118: 235.2 | K118: =AVERAGE(K117,K119) -> 3.063694268 | L118: 76.77006237 | M118: =L118*Berechnung!$C$79/100 -> 13.81861123 | N118: =(L118*Berechnung!$C$69/1000) -> 47.67420873 | O118: 5.345454545 | P118: 5.345454545 | Q118: =P118*Berechnung!$C$78/100 -> 1.336363636 | R118: =P118*Berechnung!$C$69/1000 -> 3.319527273 | S118: 5.345454545 | T118: =S118/(Berechnung!$C$81/100) -> 5.510777882 | U118: =T118*Berechnung!$C$72 -> 4.6841612 | V118: =T118*Berechnung!$C$73/1000 -> 1.394226804 | W118: 82.11551692 | X118: 15.15497486 | Y118: 50.993736 | Z118: 82.28084025 | AA118: 18.50277243 | AB118: 49.06843554 | AC118: 240.5454545 | AD118: =AC118/(Berechnung!$C$81/100) -> 247.9850047 | AE118: =AD118*Berechnung!$C$72 -> 210.787254 | AF118: =AD118*Berechnung!$C$73/1000 -> 62.74020619
A119: 19 | B119: -5 | C119: =MAX(0,MIN(Berechnung!$C$65,Berechnung!$C$65*(B119-Berechnung!$C$64)/(Berechnung!$C$63-Berechnung!$C$64))) -> 4.636363636 | D119: =G81 -> 5 | E119: -0.3636363636 | F119: -20 | G119: =HLOOKUP(Berechnung!$C$66,INDIRECT("Klimadaten!M"&Berechnung!$C$67&":BM"&Berechnung!$C$67+44),A119,FALSE) -> 41 | H119: 190.0909091 | I119: 1 | J119: 190.0909091 | K119: =H81 -> 3.127388535 | L119: 60.78263285 | M119: =L119*Berechnung!$C$79/100 -> 10.94087391 | N119: =(L119*Berechnung!$C$69/1000) -> 37.746015 | O119: 0 | P119: 0 | Q119: =P119*Berechnung!$C$78/100 -> 0 | R119: =P119*Berechnung!$C$69/1000 -> 0 | S119: 0 | T119: =S119/(Berechnung!$C$81/100) -> 0 | U119: =T119*Berechnung!$C$72 -> 0 | V119: =T119*Berechnung!$C$73/1000 -> 0 | W119: 60.78263285 | X119: 10.94087391 | Y119: 37.746015 | Z119: 60.78263285 | AA119: 10.94087391 | AB119: 37.746015 | AC119: 190.0909091 | AD119: =AC119/(Berechnung!$C$81/100) -> 195.9700094 | AE119: =AD119*Berechnung!$C$72 -> 166.574508 | AF119: =AD119*Berechnung!$C$73/1000 -> 49.58041237
A120: 20 | B120: -4 | C120: =MAX(0,MIN(Berechnung!$C$65,Berechnung!$C$65*(B120-Berechnung!$C$64)/(Berechnung!$C$63-Berechnung!$C$64))) -> 4.363636364 | D120: =AVERAGE(D119,D121) -> 5.2 | E120: -0.8363636364 | F120: -20 | G120: =HLOOKUP(Berechnung!$C$66,INDIRECT("Klimadaten!M"&Berechnung!$C$67&":BM"&Berechnung!$C$67+44),A120,FALSE) -> 89 | H120: 388.3636364 | I120: 1 | J120: 388.3636364 | K120: =AVERAGE(K119,K121) -> 3.217068501 | L120: 120.7197286 | M120: =L120*Berechnung!$C$79/100 -> 21.72955115 | N120: =(L120*Berechnung!$C$69/1000) -> 74.96695148 | O120: 0 | P120: 0 | Q120: =P120*Berechnung!$C$78/100 -> 0 | R120: =P120*Berechnung!$C$69/1000 -> 0 | S120: 0 | T120: =S120/(Berechnung!$C$81/100) -> 0 | U120: =T120*Berechnung!$C$72 -> 0 | V120: =T120*Berechnung!$C$73/1000 -> 0 | W120: 120.7197286 | X120: 21.72955115 | Y120: 74.96695148 | Z120: 120.7197286 | AA120: 21.72955115 | AB120: 74.96695148 | AC120: 388.3636364 | AD120: =AC120/(Berechnung!$C$81/100) -> 400.3748828 | AE120: =AD120*Berechnung!$C$72 -> 340.3186504 | AF120: =AD120*Berechnung!$C$73/1000 -> 101.2948454
A121: 21 | B121: -3 | C121: =MAX(0,MIN(Berechnung!$C$65,Berechnung!$C$65*(B121-Berechnung!$C$64)/(Berechnung!$C$63-Berechnung!$C$64))) -> 4.090909091 | D121: =G82 -> 5.4 | E121: -1.309090909 | F121: -20 | G121: =HLOOKUP(Berechnung!$C$66,INDIRECT("Klimadaten!M"&Berechnung!$C$67&":BM"&Berechnung!$C$67+44),A121,FALSE) -> 161 | H121: 658.6363636 | I121: 1 | J121: 658.6363636 | K121: =H82 -> 3.306748466 | L121: 199.1794569 | M121: =L121*Berechnung!$C$79/100 -> 35.85230224 | N121: =(L121*Berechnung!$C$69/1000) -> 123.6904427 | O121: 0 | P121: 0 | Q121: =P121*Berechnung!$C$78/100 -> 0 | R121: =P121*Berechnung!$C$69/1000 -> 0 | S121: 0 | T121: =S121/(Berechnung!$C$81/100) -> 0 | U121: =T121*Berechnung!$C$72 -> 0 | V121: =T121*Berechnung!$C$73/1000 -> 0 | W121: 199.1794569 | X121: 35.85230224 | Y121: 123.6904427 | Z121: 199.1794569 | AA121: 35.85230224 | AB121: 123.6904427 | AC121: 658.6363636 | AD121: =AC121/(Berechnung!$C$81/100) -> 679.0065604 | AE121: =AD121*Berechnung!$C$72 -> 577.1555764 | AF121: =AD121*Berechnung!$C$73/1000 -> 171.7886598
A122: 22 | B122: -2 | C122: =MAX(0,MIN(Berechnung!$C$65,Berechnung!$C$65*(B122-Berechnung!$C$64)/(Berechnung!$C$63-Berechnung!$C$64))) -> 3.818181818 | D122: =G82 -> 5.4 | E122: -1.581818182 | F122: -20 | G122: =HLOOKUP(Berechnung!$C$66,INDIRECT("Klimadaten!M"&Berechnung!$C$67&":BM"&Berechnung!$C$67+44),A122,FALSE) -> 207 | H122: 790.3636364 | I122: 1 | J122: =MIN(H122,I122*D122*G122) -> 790.3636364 | K122: =H82 -> 3.306748466 | L122: 239.0153483 | M122: =L122*Berechnung!$C$79/100 -> 43.02276269 | N122: =(L122*Berechnung!$C$69/1000) -> 148.4285313 | O122: 0 | P122: 0 | Q122: =P122*Berechnung!$C$78/100 -> 0 | R122: =P122*Berechnung!$C$69/1000 -> 0 | S122: 0 | T122: =S122/(Berechnung!$C$81/100) -> 0 | U122: =T122*Berechnung!$C$72 -> 0 | V122: =T122*Berechnung!$C$73/1000 -> 0 | W122: 239.0153483 | X122: 43.02276269 | Y122: 148.4285313 | Z122: 239.0153483 | AA122: 43.02276269 | AB122: 148.4285313 | AC122: 790.3636364 | AD122: =AC122/(Berechnung!$C$81/100) -> 814.8078725 | AE122: =AD122*Berechnung!$C$72 -> 692.5866917 | AF122: =AD122*Berechnung!$C$73/1000 -> 206.1463918
A123: 23 | B123: -1 | C123: =MAX(0,MIN(Berechnung!$C$65,Berechnung!$C$65*(B123-Berechnung!$C$64)/(Berechnung!$C$63-Berechnung!$C$64))) -> 3.545454545 | D123: =AVERAGE(D122,D124) -> 5.675 | E123: -2.129545455 | F123: -20 | G123: =HLOOKUP(Berechnung!$C$66,INDIRECT("Klimadaten!M"&Berechnung!$C$67&":BM"&Berechnung!$C$67+44),A123,FALSE) -> 248 | H123: 879.2727273 | I123: 1 | J123: 879.2727273 | K123: =AVERAGE(K122,K124) -> 3.532662618 | L123: 248.898019 | M123: =L123*Berechnung!$C$79/100 -> 44.80164342 | N123: =(L123*Berechnung!$C$69/1000) -> 154.5656698 | O123: 0 | P123: 0 | Q123: =P123*Berechnung!$C$78/100 -> 0 | R123: =P123*Berechnung!$C$69/1000 -> 0 | S123: 0 | T123: =S123/(Berechnung!$C$81/100) -> 0 | U123: =T123*Berechnung!$C$72 -> 0 | V123: =T123*Berechnung!$C$73/1000 -> 0 | W123: 248.898019 | X123: 44.80164342 | Y123: 154.5656698 | Z123: 248.898019 | AA123: 44.80164342 | AB123: 154.5656698 | AC123: 879.2727273 | AD123: =AC123/(Berechnung!$C$81/100) -> 906.4667291 | AE123: =AD123*Berechnung!$C$72 -> 770.4967198 | AF123: =AD123*Berechnung!$C$73/1000 -> 229.3360825
A124: 24 | B124: 0 | C124: =MAX(0,MIN(Berechnung!$C$65,Berechnung!$C$65*(B124-Berechnung!$C$64)/(Berechnung!$C$63-Berechnung!$C$64))) -> 3.272727273 | D124: =G83 -> 5.95 | E124: -2.677272727 | F124: -20 | G124: =HLOOKUP(Berechnung!$C$66,INDIRECT("Klimadaten!M"&Berechnung!$C$67&":BM"&Berechnung!$C$67+44),A124,FALSE) -> 263 | H124: 860.7272727 | I124: 1 | J124: 860.7272727 | K124: =H83 -> 3.758576769 | L124: 229.00351 | M124: =L124*Berechnung!$C$79/100 -> 41.2206318 | N124: =(L124*Berechnung!$C$69/1000) -> 142.2111797 | O124: 0 | P124: 0 | Q124: =P124*Berechnung!$C$78/100 -> 0 | R124: =P124*Berechnung!$C$69/1000 -> 0 | S124: 0 | T124: =S124/(Berechnung!$C$81/100) -> 0 | U124: =T124*Berechnung!$C$72 -> 0 | V124: =T124*Berechnung!$C$73/1000 -> 0 | W124: 229.00351 | X124: 41.2206318 | Y124: 142.2111797 | Z124: 229.00351 | AA124: 41.2206318 | AB124: 142.2111797 | AC124: 860.7272727 | AD124: =AC124/(Berechnung!$C$81/100) -> 887.3477038 | AE124: =AD124*Berechnung!$C$72 -> 754.2455483 | AF124: =AD124*Berechnung!$C$73/1000 -> 224.4989691
A125: 25 | B125: 1 | C125: =MAX(0,MIN(Berechnung!$C$65,Berechnung!$C$65*(B125-Berechnung!$C$64)/(Berechnung!$C$63-Berechnung!$C$64))) -> 3 | D125: =AVERAGE(D124,D126) -> 6.2 | E125: -3.2 | F125: -20 | G125: =HLOOKUP(Berechnung!$C$66,INDIRECT("Klimadaten!M"&Berechnung!$C$67&":BM"&Berechnung!$C$67+44),A125,FALSE) -> 270 | H125: 810 | I125: 1 | J125: 810 | K125: =AVERAGE(K124,K126) -> 3.866671562 | L125: 209.4824934 | M125: =L125*Berechnung!$C$79/100 -> 37.70684881 | N125: =(L125*Berechnung!$C$69/1000) -> 130.0886284 | O125: 0 | P125: 0 | Q125: =P125*Berechnung!$C$78/100 -> 0 | R125: =P125*Berechnung!$C$69/1000 -> 0 | S125: 0 | T125: =S125/(Berechnung!$C$81/100) -> 0 | U125: =T125*Berechnung!$C$72 -> 0 | V125: =T125*Berechnung!$C$73/1000 -> 0 | W125: 209.4824934 | X125: 37.70684881 | Y125: 130.0886284 | Z125: 209.4824934 | AA125: 37.70684881 | AB125: 130.0886284 | AC125: 810 | AD125: =AC125/(Berechnung!$C$81/100) -> 835.0515464 | AE125: =AD125*Berechnung!$C$72 -> 709.7938144 | AF125: =AD125*Berechnung!$C$73/1000 -> 211.2680412
A126: 26 | B126: 2 | C126: =MAX(0,MIN(Berechnung!$C$65,Berechnung!$C$65*(B126-Berechnung!$C$64)/(Berechnung!$C$63-Berechnung!$C$64))) -> 2.727272727 | D126: =G84 -> 6.45 | E126: -3.722727273 | F126: -20 | G126: =HLOOKUP(Berechnung!$C$66,INDIRECT("Klimadaten!M"&Berechnung!$C$67&":BM"&Berechnung!$C$67+44),A126,FALSE) -> 328 | H126: 894.5454545 | I126: 1 | J126: 894.5454545 | K126: =H84 -> 3.974766355 | L126: 225.0561101 | M126: =L126*Berechnung!$C$79/100 -> 40.51009982 | N126: =(L126*Berechnung!$C$69/1000) -> 139.7598444 | O126: 0 | P126: 0 | Q126: =P126*Berechnung!$C$78/100 -> 0 | R126: =P126*Berechnung!$C$69/1000 -> 0 | S126: 0 | T126: =S126/(Berechnung!$C$81/100) -> 0 | U126: =T126*Berechnung!$C$72 -> 0 | V126: =T126*Berechnung!$C$73/1000 -> 0 | W126: 225.0561101 | X126: 40.51009982 | Y126: 139.7598444 | Z126: 225.0561101 | AA126: 40.51009982 | AB126: 139.7598444 | AC126: 894.5454545 | AD126: =AC126/(Berechnung!$C$81/100) -> 922.2118088 | AE126: =AD126*Berechnung!$C$72 -> 783.8800375 | AF126: =AD126*Berechnung!$C$73/1000 -> 233.3195876
A127: 27 | B127: 3 | C127: =MAX(0,MIN(Berechnung!$C$65,Berechnung!$C$65*(B127-Berechnung!$C$64)/(Berechnung!$C$63-Berechnung!$C$64))) -> 2.454545455 | D127: =G84 -> 6.45 | E127: -3.995454545 | F127: -20 | G127: =HLOOKUP(Berechnung!$C$66,INDIRECT("Klimadaten!M"&Berechnung!$C$67&":BM"&Berechnung!$C$67+44),A127,FALSE) -> 344 | H127: 844.3636364 | I127: 1 | J127: 844.3636364 | K127: =H84 -> 3.974766355 | L127: 212.4310113 | M127: =L127*Berechnung!$C$79/100 -> 38.23758203 | N127: =(L127*Berechnung!$C$69/1000) -> 131.919658 | O127: 0 | P127: 0 | Q127: =P127*Berechnung!$C$78/100 -> 0 | R127: =P127*Berechnung!$C$69/1000 -> 0 | S127: 0 | T127: =S127/(Berechnung!$C$81/100) -> 0 | U127: =T127*Berechnung!$C$72 -> 0 | V127: =T127*Berechnung!$C$73/1000 -> 0 | W127: 212.4310113 | X127: 38.23758203 | Y127: 131.919658 | Z127: 212.4310113 | AA127: 38.23758203 | AB127: 131.919658 | AC127: 844.3636364 | AD127: =AC127/(Berechnung!$C$81/100) -> 870.4779756 | AE127: =AD127*Berechnung!$C$72 -> 739.9062793 | AF127: =AD127*Berechnung!$C$73/1000 -> 220.2309278
A128: 28 | B128: 4 | C128: =MAX(0,MIN(Berechnung!$C$65,Berechnung!$C$65*(B128-Berechnung!$C$64)/(Berechnung!$C$63-Berechnung!$C$64))) -> 2.181818182 | D128: =AVERAGE(D127,D129) -> 6.775 | E128: -4.593181818 | F128: -20 | G128: =HLOOKUP(Berechnung!$C$66,INDIRECT("Klimadaten!M"&Berechnung!$C$67&":BM"&Berechnung!$C$67+44),A128,FALSE) -> 343 | H128: 748.3636364 | I128: 1 | J128: 748.3636364 | K128: =AVERAGE(K127,K129) -> 4.082878673 | L128: 183.2931361 | M128: =L128*Berechnung!$C$79/100 -> 32.9927645 | N128: =(L128*Berechnung!$C$69/1000) -> 113.8250375 | O128: 0 | P128: 0 | Q128: =P128*Berechnung!$C$78/100 -> 0 | R128: =P128*Berechnung!$C$69/1000 -> 0 | S128: 0 | T128: =S128/(Berechnung!$C$81/100) -> 0 | U128: =T128*Berechnung!$C$72 -> 0 | V128: =T128*Berechnung!$C$73/1000 -> 0 | W128: 183.2931361 | X128: 32.9927645 | Y128: 113.8250375 | Z128: 183.2931361 | AA128: 32.9927645 | AB128: 113.8250375 | AC128: 748.3636364 | AD128: =AC128/(Berechnung!$C$81/100) -> 771.5089035 | AE128: =AD128*Berechnung!$C$72 -> 655.7825679 | AF128: =AD128*Berechnung!$C$73/1000 -> 195.1917526
A129: 29 | B129: 5 | C129: =MAX(0,MIN(Berechnung!$C$65,Berechnung!$C$65*(B129-Berechnung!$C$64)/(Berechnung!$C$63-Berechnung!$C$64))) -> 1.909090909 | D129: =G85 -> 7.1 | E129: -5.190909091 | F129: -20 | G129: =HLOOKUP(Berechnung!$C$66,INDIRECT("Klimadaten!M"&Berechnung!$C$67&":BM"&Berechnung!$C$67+44),A129,FALSE) -> 414 | H129: 790.3636364 | I129: 1 | J129: 790.3636364 | K129: =H85 -> 4.190990991 | L129: 188.5863363 | M129: =L129*Berechnung!$C$79/100 -> 33.94554053 | N129: =(L129*Berechnung!$C$69/1000) -> 117.1121148 | O129: 0 | P129: 0 | Q129: =P129*Berechnung!$C$78/100 -> 0 | R129: =P129*Berechnung!$C$69/1000 -> 0 | S129: 0 | T129: =S129/(Berechnung!$C$81/100) -> 0 | U129: =T129*Berechnung!$C$72 -> 0 | V129: =T129*Berechnung!$C$73/1000 -> 0 | W129: 188.5863363 | X129: 33.94554053 | Y129: 117.1121148 | Z129: 188.5863363 | AA129: 33.94554053 | AB129: 117.1121148 | AC129: 790.3636364 | AD129: =AC129/(Berechnung!$C$81/100) -> 814.8078725 | AE129: =AD129*Berechnung!$C$72 -> 692.5866917 | AF129: =AD129*Berechnung!$C$73/1000 -> 206.1463918
A130: 30 | B130: 6 | C130: =MAX(0,MIN(Berechnung!$C$65,Berechnung!$C$65*(B130-Berechnung!$C$64)/(Berechnung!$C$63-Berechnung!$C$64))) -> 1.636363636 | D130: =AVERAGE(D129,D131) -> 7.45 | E130: -5.813636364 | F130: -20 | G130: =HLOOKUP(Berechnung!$C$66,INDIRECT("Klimadaten!M"&Berechnung!$C$67&":BM"&Berechnung!$C$67+44),A130,FALSE) -> 397 | H130: 649.6363636 | I130: 1 | J130: 649.6363636 | K130: =AVERAGE(K129,K131) -> 4.226877229 | L130: 153.6917986 | M130: =L130*Berechnung!$C$79/100 -> 27.66452374 | N130: =(L130*Berechnung!$C$69/1000) -> 95.44260692 | O130: 0 | P130: 0 | Q130: =P130*Berechnung!$C$78/100 -> 0 | R130: =P130*Berechnung!$C$69/1000 -> 0 | S130: =O130 -> 0 | T130: =S130/(Berechnung!$C$81/100) -> 0 | U130: =T130*Berechnung!$C$72 -> 0 | V130: =T130*Berechnung!$C$73/1000 -> 0 | W130: 153.6917986 | X130: 27.66452374 | Y130: 95.44260692 | Z130: 153.6917986 | AA130: 27.66452374 | AB130: 95.44260692 | AC130: 649.6363636 | AD130: =AC130/(Berechnung!$C$81/100) -> 669.7282099 | AE130: =AD130*Berechnung!$C$72 -> 569.2689784 | AF130: =AD130*Berechnung!$C$73/1000 -> 169.4412371
A131: 31 | B131: 7 | C131: =MAX(0,MIN(Berechnung!$C$65,Berechnung!$C$65*(B131-Berechnung!$C$64)/(Berechnung!$C$63-Berechnung!$C$64))) -> 1.363636364 | D131: =G86 -> 7.8 | E131: -6.436363636 | F131: -20 | G131: =HLOOKUP(Berechnung!$C$66,INDIRECT("Klimadaten!M"&Berechnung!$C$67&":BM"&Berechnung!$C$67+44),A131,FALSE) -> 406 | H131: 553.6363636 | I131: 1 | J131: 553.6363636 | K131: =H86 -> 4.262763466 | L131: 129.8773362 | M131: =L131*Berechnung!$C$79/100 -> 23.37792051 | N131: =(L131*Berechnung!$C$69/1000) -> 80.65382575 | O131: 0 | P131: 0 | Q131: =P131*Berechnung!$C$78/100 -> 0 | R131: =P131*Berechnung!$C$69/1000 -> 0 | S131: =O131 -> 0 | T131: =S131/(Berechnung!$C$81/100) -> 0 | U131: =T131*Berechnung!$C$72 -> 0 | V131: =T131*Berechnung!$C$73/1000 -> 0 | W131: 129.8773362 | X131: 23.37792051 | Y131: 80.65382575 | Z131: 129.8773362 | AA131: 23.37792051 | AB131: 80.65382575 | AC131: 553.6363636 | AD131: =AC131/(Berechnung!$C$81/100) -> 570.7591378 | AE131: =AD131*Berechnung!$C$72 -> 485.1452671 | AF131: =AD131*Berechnung!$C$73/1000 -> 144.4020619
A132: 32 | B132: 8 | C132: =MAX(0,MIN(Berechnung!$C$65,Berechnung!$C$65*(B132-Berechnung!$C$64)/(Berechnung!$C$63-Berechnung!$C$64))) -> 1.090909091 | D132: =G86 -> 7.8 | E132: -6.709090909 | F132: -20 | G132: =HLOOKUP(Berechnung!$C$66,INDIRECT("Klimadaten!M"&Berechnung!$C$67&":BM"&Berechnung!$C$67+44),A132,FALSE) -> 378 | H132: 412.3636364 | I132: 1 | J132: 412.3636364 | K132: =H86 -> 4.262763466 | L132: 96.73622279 | M132: =L132*Berechnung!$C$79/100 -> 17.4125201 | N132: =(L132*Berechnung!$C$69/1000) -> 60.07319435 | O132: 0 | P132: 0 | Q132: =P132*Berechnung!$C$78/100 -> 0 | R132: =P132*Berechnung!$C$69/1000 -> 0 | S132: 0 | T132: =S132/(Berechnung!$C$81/100) -> 0 | U132: =T132*Berechnung!$C$72 -> 0 | V132: =T132*Berechnung!$C$73/1000 -> 0 | W132: 96.73622279 | X132: 17.4125201 | Y132: 60.07319435 | Z132: 96.73622279 | AA132: 17.4125201 | AB132: 60.07319435 | AC132: 412.3636364 | AD132: =AC132/(Berechnung!$C$81/100) -> 425.1171509 | AE132: =AD132*Berechnung!$C$72 -> 361.3495783 | AF132: =AD132*Berechnung!$C$73/1000 -> 107.5546392
A133: 33 | B133: 9 | C133: =MAX(0,MIN(Berechnung!$C$65,Berechnung!$C$65*(B133-Berechnung!$C$64)/(Berechnung!$C$63-Berechnung!$C$64))) -> 0.8181818182 | D133: =AVERAGE(D132,D134) -> 8.05 | E133: -7.231818182 | F133: -20 | G133: =HLOOKUP(Berechnung!$C$66,INDIRECT("Klimadaten!M"&Berechnung!$C$67&":BM"&Berechnung!$C$67+44),A133,FALSE) -> 409 | H133: 334.6363636 | I133: 1 | J133: 334.6363636 | K133: =AVERAGE(K132,K134) -> 4.262334114 | L133: 78.5101202 | M133: =L133*Berechnung!$C$79/100 -> 14.13182164 | N133: =(L133*Berechnung!$C$69/1000) -> 48.75478465 | O133: 0 | P133: 0 | Q133: =P133*Berechnung!$C$78/100 -> 0 | R133: =P133*Berechnung!$C$69/1000 -> 0 | S133: 0 | T133: =S133/(Berechnung!$C$81/100) -> 0 | U133: =T133*Berechnung!$C$72 -> 0 | V133: =T133*Berechnung!$C$73/1000 -> 0 | W133: 78.5101202 | X133: 14.13182164 | Y133: 48.75478465 | Z133: 78.5101202 | AA133: 14.13182164 | AB133: 48.75478465 | AC133: 334.6363636 | AD133: =AC133/(Berechnung!$C$81/100) -> 344.9859419 | AE133: =AD133*Berechnung!$C$72 -> 293.2380506 | AF133: =AD133*Berechnung!$C$73/1000 -> 87.2814433
A134: 34 | B134: 10 | C134: =MAX(0,MIN(Berechnung!$C$65,Berechnung!$C$65*(B134-Berechnung!$C$64)/(Berechnung!$C$63-Berechnung!$C$64))) -> 0.5454545455 | D134: =G87 -> 8.3 | E134: -7.754545455 | F134: -20 | G134: =HLOOKUP(Berechnung!$C$66,INDIRECT("Klimadaten!M"&Berechnung!$C$67&":BM"&Berechnung!$C$67+44),A134,FALSE) -> 375 | H134: 204.5454545 | I134: 1 | J134: 204.5454545 | K134: =H87 -> 4.261904762 | L134: 47.99390554 | M134: =L134*Berechnung!$C$79/100 -> 8.638902996 | N134: =(L134*Berechnung!$C$69/1000) -> 29.80421534 | O134: 0 | P134: 0 | Q134: =P134*Berechnung!$C$78/100 -> 0 | R134: =P134*Berechnung!$C$69/1000 -> 0 | S134: 0 | T134: =S134/(Berechnung!$C$81/100) -> 0 | U134: =T134*Berechnung!$C$72 -> 0 | V134: =T134*Berechnung!$C$73/1000 -> 0 | W134: 47.99390554 | X134: 8.638902996 | Y134: 29.80421534 | Z134: 47.99390554 | AA134: 8.638902996 | AB134: 29.80421534 | AC134: 204.5454545 | AD134: =AC134/(Berechnung!$C$81/100) -> 210.8716026 | AE134: =AD134*Berechnung!$C$72 -> 179.2408622 | AF134: =AD134*Berechnung!$C$73/1000 -> 53.35051546
A135: 35 | B135: 11 | C135: =MAX(0,MIN(Berechnung!$C$65,Berechnung!$C$65*(B135-Berechnung!$C$64)/(Berechnung!$C$63-Berechnung!$C$64))) -> 0.2727272727 | D135: =AVERAGE(D134,D136) -> 8.58125 | E135: -8.308522727 | F135: -20 | G135: =HLOOKUP(Berechnung!$C$66,INDIRECT("Klimadaten!M"&Berechnung!$C$67&":BM"&Berechnung!$C$67+44),A135,FALSE) -> 420 | H135: 114.5454545 | I135: 1 | J135: 114.5454545 | K135: =AVERAGE(K134,K136) -> 4.304804805 | L135: 26.60874528 | M135: =L135*Berechnung!$C$79/100 -> 4.789574151 | N135: =(L135*Berechnung!$C$69/1000) -> 16.52403082 | O135: 0 | P135: 0 | Q135: =P135*Berechnung!$C$78/100 -> 0 | R135: =P135*Berechnung!$C$69/1000 -> 0 | S135: 0 | T135: =S135/(Berechnung!$C$81/100) -> 0 | U135: =T135*Berechnung!$C$72 -> 0 | V135: =T135*Berechnung!$C$73/1000 -> 0 | W135: 26.60874528 | X135: 4.789574151 | Y135: 16.52403082 | Z135: 26.60874528 | AA135: 4.789574151 | AB135: 16.52403082 | AC135: 114.5454545 | AD135: =AC135/(Berechnung!$C$81/100) -> 118.0880975 | AE135: =AD135*Berechnung!$C$72 -> 100.3748828 | AF135: =AD135*Berechnung!$C$73/1000 -> 29.87628866
A136: 36 | B136: 12 | C136: =MAX(0,MIN(Berechnung!$C$65,Berechnung!$C$65*(B136-Berechnung!$C$64)/(Berechnung!$C$63-Berechnung!$C$64))) -> 0 | D136: =G88 -> 8.8625 | E136: -8.8625 | F136: -20 | G136: =HLOOKUP(Berechnung!$C$66,INDIRECT("Klimadaten!M"&Berechnung!$C$67&":BM"&Berechnung!$C$67+44),A136,FALSE) -> 378 | H136: 0 | I136: 1 | J136: 0 | K136: =H88 -> 4.347704848 | L136: 0 | M136: =L136*Berechnung!$C$79/100 -> 0 | N136: =(L136*Berechnung!$C$69/1000) -> 0 | O136: 0 | P136: 0 | Q136: =P136*Berechnung!$C$78/100 -> 0 | R136: =P136*Berechnung!$C$69/1000 -> 0 | S136: 0 | T136: =S136/(Berechnung!$C$81/100) -> 0 | U136: =T136*Berechnung!$C$72 -> 0 | V136: =T136*Berechnung!$C$73/1000 -> 0 | W136: 0 | X136: 0 | Y136: 0 | Z136: 0 | AA136: 0 | AB136: 0 | AC136: 0 | AD136: =AC136/(Berechnung!$C$81/100) -> 0 | AE136: =AD136*Berechnung!$C$72 -> 0 | AF136: =AD136*Berechnung!$C$73/1000 -> 0
A137: 37 | B137: 13 | C137: =MAX(0,MIN(Berechnung!$C$65,Berechnung!$C$65*(B137-Berechnung!$C$64)/(Berechnung!$C$63-Berechnung!$C$64))) -> 0 | D137: =G88 -> 8.8625 | E137: -8.8625 | F137: -20 | G137: =HLOOKUP(Berechnung!$C$66,INDIRECT("Klimadaten!M"&Berechnung!$C$67&":BM"&Berechnung!$C$67+44),A137,FALSE) -> 349 | H137: 0 | I137: 1 | J137: 0 | K137: =H88 -> 4.347704848 | L137: 0 | M137: =L137*Berechnung!$C$79/100 -> 0 | N137: =(L137*Berechnung!$C$69/1000) -> 0 | O137: 0 | P137: 0 | Q137: =P137*Berechnung!$C$78/100 -> 0 | R137: =P137*Berechnung!$C$69/1000 -> 0 | S137: 0 | T137: =S137/(Berechnung!$C$81/100) -> 0 | U137: =T137*Berechnung!$C$72 -> 0 | V137: =T137*Berechnung!$C$73/1000 -> 0 | W137: 0 | X137: 0 | Y137: 0 | Z137: 0 | AA137: 0 | AB137: 0 | AC137: 0 | AD137: =AC137/(Berechnung!$C$81/100) -> 0 | AE137: =AD137*Berechnung!$C$72 -> 0 | AF137: =AD137*Berechnung!$C$73/1000 -> 0
A138: 38 | B138: 14 | C138: =MAX(0,MIN(Berechnung!$C$65,Berechnung!$C$65*(B138-Berechnung!$C$64)/(Berechnung!$C$63-Berechnung!$C$64))) -> 0 | D138: =AVERAGE(D137,D139) -> 9.14375 | E138: -9.14375 | F138: -20 | G138: =HLOOKUP(Berechnung!$C$66,INDIRECT("Klimadaten!M"&Berechnung!$C$67&":BM"&Berechnung!$C$67+44),A138,FALSE) -> 370 | H138: 0 | I138: 1 | J138: 0 | K138: =AVERAGE(K137,K139) -> 4.3736852 | L138: 0 | M138: =L138*Berechnung!$C$79/100 -> 0 | N138: =(L138*Berechnung!$C$69/1000) -> 0 | O138: 0 | P138: 0 | Q138: =P138*Berechnung!$C$78/100 -> 0 | R138: =P138*Berechnung!$C$69/1000 -> 0 | S138: 0 | T138: =S138/(Berechnung!$C$81/100) -> 0 | U138: =T138*Berechnung!$C$72 -> 0 | V138: =T138*Berechnung!$C$73/1000 -> 0 | W138: 0 | X138: 0 | Y138: 0 | Z138: 0 | AA138: 0 | AB138: 0 | AC138: 0 | AD138: =AC138/(Berechnung!$C$81/100) -> 0 | AE138: =AD138*Berechnung!$C$72 -> 0 | AF138: =AD138*Berechnung!$C$73/1000 -> 0
A139: 39 | B139: 15 | C139: =MAX(0,MIN(Berechnung!$C$65,Berechnung!$C$65*(B139-Berechnung!$C$64)/(Berechnung!$C$63-Berechnung!$C$64))) -> 0 | D139: =G89 -> 9.425 | E139: -9.425 | F139: -20 | G139: =HLOOKUP(Berechnung!$C$66,INDIRECT("Klimadaten!M"&Berechnung!$C$67&":BM"&Berechnung!$C$67+44),A139,FALSE) -> 333 | H139: 0 | I139: 1 | J139: 0 | K139: =H89 -> 4.399665552 | L139: 0 | M139: =L139*Berechnung!$C$79/100 -> 0 | N139: =(L139*Berechnung!$C$69/1000) -> 0 | O139: 0 | P139: 0 | Q139: =P139*Berechnung!$C$78/100 -> 0 | R139: =P139*Berechnung!$C$69/1000 -> 0 | S139: 0 | T139: =S139/(Berechnung!$C$81/100) -> 0 | U139: =T139*Berechnung!$C$72 -> 0 | V139: =T139*Berechnung!$C$73/1000 -> 0 | W139: 0 | X139: 0 | Y139: 0 | Z139: 0 | AA139: 0 | AB139: 0 | AC139: 0 | AD139: =AC139/(Berechnung!$C$81/100) -> 0 | AE139: =AD139*Berechnung!$C$72 -> 0 | AF139: =AD139*Berechnung!$C$73/1000 -> 0
A140: 40 | B140: 16 | C140: =MAX(0,MIN(Berechnung!$C$65,Berechnung!$C$65*(B140-Berechnung!$C$64)/(Berechnung!$C$63-Berechnung!$C$64))) -> 0 | D140: =AVERAGE(D139,D141) -> 9.70625 | E140: -9.70625 | F140: -20 | G140: =HLOOKUP(Berechnung!$C$66,INDIRECT("Klimadaten!M"&Berechnung!$C$67&":BM"&Berechnung!$C$67+44),A140,FALSE) -> 310 | H140: 0 | I140: 1 | J140: 0 | K140: =AVERAGE(K139,K141) -> 4.639290194 | L140: 0 | M140: =L140*Berechnung!$C$79/100 -> 0 | N140: =(L140*Berechnung!$C$69/1000) -> 0 | O140: 0 | P140: 0 | Q140: =P140*Berechnung!$C$78/100 -> 0 | R140: =P140*Berechnung!$C$69/1000 -> 0 | S140: 0 | T140: =S140/(Berechnung!$C$81/100) -> 0 | U140: =T140*Berechnung!$C$72 -> 0 | V140: =T140*Berechnung!$C$73/1000 -> 0 | W140: 0 | X140: 0 | Y140: 0 | Z140: 0 | AA140: 0 | AB140: 0 | AC140: 0 | AD140: =AC140/(Berechnung!$C$81/100) -> 0 | AE140: =AD140*Berechnung!$C$72 -> 0 | AF140: =AD140*Berechnung!$C$73/1000 -> 0
A141: 41 | B141: 17 | C141: =MAX(0,MIN(Berechnung!$C$65,Berechnung!$C$65*(B141-Berechnung!$C$64)/(Berechnung!$C$63-Berechnung!$C$64))) -> 0 | D141: =G90 -> 9.9875 | E141: -9.9875 | F141: -20 | G141: =HLOOKUP(Berechnung!$C$66,INDIRECT("Klimadaten!M"&Berechnung!$C$67&":BM"&Berechnung!$C$67+44),A141,FALSE) -> 322 | H141: 0 | I141: 1 | J141: 0 | K141: =H90 -> 4.878914835 | L141: 0 | M141: =L141*Berechnung!$C$79/100 -> 0 | N141: =(L141*Berechnung!$C$69/1000) -> 0 | O141: 0 | P141: 0 | Q141: =P141*Berechnung!$C$78/100 -> 0 | R141: =P141*Berechnung!$C$69/1000 -> 0 | S141: 0 | T141: =S141/(Berechnung!$C$81/100) -> 0 | U141: =T141*Berechnung!$C$72 -> 0 | V141: =T141*Berechnung!$C$73/1000 -> 0 | W141: 0 | X141: 0 | Y141: 0 | Z141: 0 | AA141: 0 | AB141: 0 | AC141: 0 | AD141: =AC141/(Berechnung!$C$81/100) -> 0 | AE141: =AD141*Berechnung!$C$72 -> 0 | AF141: =AD141*Berechnung!$C$73/1000 -> 0
A142: 42 | B142: 18 | C142: =MAX(0,MIN(Berechnung!$C$65,Berechnung!$C$65*(B142-Berechnung!$C$64)/(Berechnung!$C$63-Berechnung!$C$64))) -> 0 | D142: =G90 -> 9.9875 | E142: -9.9875 | F142: -20 | G142: =HLOOKUP(Berechnung!$C$66,INDIRECT("Klimadaten!M"&Berechnung!$C$67&":BM"&Berechnung!$C$67+44),A142,FALSE) -> 280 | H142: 0 | I142: 1 | J142: 0 | K142: =H90 -> 4.878914835 | L142: 0 | M142: =L142*Berechnung!$C$79/100 -> 0 | N142: =(L142*Berechnung!$C$69/1000) -> 0 | O142: 0 | P142: 0 | Q142: =P142*Berechnung!$C$78/100 -> 0 | R142: =P142*Berechnung!$C$69/1000 -> 0 | S142: 0 | T142: =S142/(Berechnung!$C$81/100) -> 0 | U142: =T142*Berechnung!$C$72 -> 0 | V142: =T142*Berechnung!$C$73/1000 -> 0 | W142: 0 | X142: 0 | Y142: 0 | Z142: 0 | AA142: 0 | AB142: 0 | AC142: 0 | AD142: =AC142/(Berechnung!$C$81/100) -> 0 | AE142: =AD142*Berechnung!$C$72 -> 0 | AF142: =AD142*Berechnung!$C$73/1000 -> 0
A143: 43 | B143: 19 | C143: =MAX(0,MIN(Berechnung!$C$65,Berechnung!$C$65*(B143-Berechnung!$C$64)/(Berechnung!$C$63-Berechnung!$C$64))) -> 0 | D143: =AVERAGE(D142,D144) -> 10.26875 | E143: -10.26875 | F143: -20 | G143: =HLOOKUP(Berechnung!$C$66,INDIRECT("Klimadaten!M"&Berechnung!$C$67&":BM"&Berechnung!$C$67+44),A143,FALSE) -> 217 | H143: =C143*G143 -> 0 | I143: 1 | J143: 0 | K143: =AVERAGE(K142,K144) -> 5.047849026 | L143: 0 | M143: =L143*Berechnung!$C$79/100 -> 0 | N143: =(L143*Berechnung!$C$69/1000) -> 0 | O143: 0 | P143: 0 | Q143: =P143*Berechnung!$C$78/100 -> 0 | R143: =P143*Berechnung!$C$69/1000 -> 0 | S143: 0 | T143: =S143/(Berechnung!$C$81/100) -> 0 | U143: =T143*Berechnung!$C$72 -> 0 | V143: =T143*Berechnung!$C$73/1000 -> 0 | W143: 0 | X143: 0 | Y143: 0 | Z143: 0 | AA143: 0 | AB143: 0 | AC143: 0 | AD143: =AC143/(Berechnung!$C$81/100) -> 0 | AE143: =AD143*Berechnung!$C$72 -> 0 | AF143: =AD143*Berechnung!$C$73/1000 -> 0
A144: 44 | B144: 20 | C144: =MAX(0,MIN(Berechnung!$C$65,Berechnung!$C$65*(B144-Berechnung!$C$64)/(Berechnung!$C$63-Berechnung!$C$64))) -> 0 | D144: =G91 -> 10.55 | E144: -10.55 | F144: -20 | G144: =HLOOKUP(Berechnung!$C$66,INDIRECT("Klimadaten!M"&Berechnung!$C$67&":BM"&Berechnung!$C$67+44),A144,FALSE) -> 196 | H144: 0 | I144: 1 | J144: 0 | K144: =H91 -> 5.216783217 | L144: 0 | M144: =L144*Berechnung!$C$79/100 -> 0 | N144: =(L144*Berechnung!$C$69/1000) -> 0 | O144: 0 | P144: 0 | Q144: =P144*Berechnung!$C$78/100 -> 0 | R144: =P144*Berechnung!$C$69/1000 -> 0 | S144: 0 | T144: =S144/(Berechnung!$C$81/100) -> 0 | U144: =T144*Berechnung!$C$72 -> 0 | V144: =T144*Berechnung!$C$73/1000 -> 0 | W144: 0 | X144: 0 | Y144: 0 | Z144: 0 | AA144: 0 | AB144: 0 | AC144: 0 | AD144: =AC144/(Berechnung!$C$81/100) -> 0 | AE144: =AD144*Berechnung!$C$72 -> 0 | AF144: =AD144*Berechnung!$C$73/1000 -> 0
A145: 45 | B145: > 20 | C145: 0 | D145: =D144+(D144-D143) -> 10.83125 | E145: -10.83125 | F145: > 20 | G145: =HLOOKUP(Berechnung!$C$66,INDIRECT("Klimadaten!M"&Berechnung!$C$67&":BM"&Berechnung!$C$67+44),A145,FALSE) -> 744 | H145: 0 | I145: 1 | J145: 0 | K145: =K144+(K144-K143) -> 5.385717408 | L145: 0 | M145: =L145*Berechnung!$C$79/100 -> 0 | N145: =(L145*Berechnung!$C$69/1000) -> 0 | O145: 0 | P145: 0 | Q145: =P145*Berechnung!$C$78/100 -> 0 | R145: =P145*Berechnung!$C$69/1000 -> 0 | S145: 0 | T145: =S145/(Berechnung!$C$81/100) -> 0 | U145: =T145*Berechnung!$C$72 -> 0 | V145: =T145*Berechnung!$C$73/1000 -> 0 | W145: 0 | X145: 0 | Y145: 0 | Z145: 0 | AA145: 0 | AB145: 0 | AC145: 0 | AD145: =AC145/(Berechnung!$C$81/100) -> 0 | AE145: =AD145*Berechnung!$C$72 -> 0 | AF145: =AD145*Berechnung!$C$73/1000 -> 0
F146: =MAX(F103:F145) -> -6 | G146: =SUM(G103:G145) -> 8760 | H146: =SUM(H104:H144) -> 11026.63636 | J146: =ROUND(SUM(J103:J145),0) -> 10893 | K146: =AVERAGE(K104:K144) -> 3.638420755 | L146: =SUM(L103:L145) -> 2907.136953 | M146: 523.2846516 | N146: 1805.332048 | O146: 134.1318182 | P146: 134.1318182 | Q146: 33.53295455 | R146: 83.29585909 | S146: 134.1318182 | T146: 138.2802249 | U146: 117.5381912 | V146: 34.98489691 | W146: 3041.268771 | X146: 556.8176061 | Y146: 1888.627907 | Z146: 3045.417178 | AA146: 640.8228428 | AB146: 1840.316945 | AC146: 11026.63636 | AD146: 11367.66635 | AE146: 9662.516401 | AF146: 2876.019588
B152: Darstellung Diagramm Heizlast/Heizwärmebedarf
C153: Bivalenzpunkt genauer berechnen für Darstellung | H153: Kennlinie Heizlast | L153: Hilfslinie Bivalenzpunkt | N153: Punktdarstellung Biv.Punkt | P153: Linie Bivalenzpunkt Heizarbeit | R153: Heizarbeit | T153: Ausdr. Vergleich | U153: Ausdr. Preisentw.
C154: Temp | D154: Differenz | E154: Leistung WP | F154: m | G154: n | H154: Temp | I154: Leistung | J154: m | K154: n | L154: Temp | M154: Leistung | N154: Temp | O154: Leistung | P154: Temp | Q154: kWh | U154: Öl/Gas
B155: Heizgrenze | C155: =F146 -> -6 | D155: =VLOOKUP(C155,$B$103:$E$145,4,FALSE) -> 0.1090909091 | E155: =VLOOKUP(C155,$B$103:$E$145,3,FALSE) -> 4.8 | F155: =(D156-D155)/(C156-C155) -> -0.4727272727 | G155: =D155-C155*F155 -> -2.727272727 | H155: =IF(Berechnung!$C$65=0,-30,Berechnung!$C$64) -> 12 | I155: 0 | J155: =(M156-I155)/(L156-H155) -> -0.2727272727 | K155: =M156-J155*L156 -> 3.272727273 | L155: =L156 -> -5.8 | M155: 0 | P155: =IF(OR(L156<-20,O146=0),0,ROUND(L156,0)+21) -> 15 | Q155: 0 | R155: 1. WE | S155: =IF(D5=2,AC146,J146) -> 10893 | T155: =Translation!A203 -> Heating | U155: =W74+AC74 -> 13152.8289
